Workbook

Sheet CAMP PILOTO EVOL
A1: PARA DESTACAR UM PILOTO MARQUE/DESMARQUE COM UM "X" AO LADO DO NOME E CLIQUE NO BOTÃO. => | D1: OK | F1: OK | H1: OK | J1: OK | L1: OK | N1: OK | P1: OK | R1: OK | T1: OK | V1: OK | X1: OK | Z1: DIF. LIDER | AA1: DIF. 5º | AB1: DIF. PRÓXIMO | AC1: OK | AE1: DIF. LIDER | AF1: DIF. 5º | AG1: DIF. PRÓXIMO
D2: 1ª etapa | F2: 2ª etapa | H2: 3ª etapa | J2: 4ª etapa | L2: 5ª etapa | N2: 6ª etapa | P2: 7ª etapa | R2: 8ª etapa | T2: 9ª etapa | V2: 10ª etapa | X2: 11ª etapa | AC2: 12ª etapa
B4: Nome do (a) Piloto (a) | D4: PILOTO | E4: PONTOS | F4: PILOTO | G4: PONTOS | H4: PILOTO | I4: PONTOS | J4: PILOTO | K4: PONTOS | L4: PILOTO | M4: PONTOS | N4: PILOTO | O4: PONTOS | P4: PILOTO | Q4: PONTOS | R4: PILOTO | S4: PONTOS | T4: PILOTO | U4: PONTOS | V4: PILOTO | W4: PONTOS | X4: PILOTO | Y4: PONTOS | AC4: PILOTO | AD4: PONTOS
B5: Alexandre Melillo | C5: 1 | D5: Daniel Nahum | E5: 45 | F5: Daniel Nahum | G5: 81 | H5: Wesley Bambirra | I5: 83 | J5: Marcelo Campos | K5: 87 | L5: Wesley Bambirra | M5: 124 | N5: Wesley Bambirra | O5: 169 | P5: Wesley Bambirra | Q5: 203 | R5: Wesley Bambirra | S5: 244 | T5: Marcelo Campos | U5: 272 | V5: Marcelo Campos | W5: 304 | X5: Marcelo Campos | Y5: 350 | Z5: - | AA5: - | AB5: - | AC5: Marcelo Campos | AD5: 378 | AE5: - | AF5: - | AG5: -
B6: Bernardo Freitas | C6: 2 | D6: Marcelo Campos | E6: 42 | F6: Marcelo Pereira | G6: 76 | H6: Daniel Nahum | I6: 81 | J6: Daniel Nahum | K6: 84 | L6: Marcelo Campos | M6: 123 | N6: Marcelo Campos | O6: 158 | P6: Marcelo Campos | Q6: 200 | R6: Marcelo Campos | S6: 234 | T6: Wesley Bambirra | U6: 268 | V6: Daniel Nahum | W6: 302 | X6: Daniel Nahum | Y6: 332 | Z6: =Y$5-Y6 -> 18 | AA6: - | AB6: =Y5-Y6 -> 18 | AC6: Daniel Nahum | AD6: 378 | AE6: =AD$5-AD6 -> 0 | AF6: - | AG6: =AD5-AD6 -> 0
B7: Cláudio Dumont | C7: 3 | D7: Marcelo Pereira | E7: 38 | F7: Marcelo Campos | G7: 70 | H7: Marcelo Pereira | I7: 80 | J7: Wesley Bambirra | K7: 83 | L7: Daniel Nahum | M7: 120 | N7: Daniel Nahum | O7: 158 | P7: Daniel Nahum | Q7: 196 | R7: Daniel Nahum | S7: 230 | T7: Daniel Nahum | U7: 266 | V7: Wesley Bambirra | W7: 288 | X7: Wesley Bambirra | Y7: 316 | Z7: 34 | AA7: - | AB7: 16 | AC7: Wesley Bambirra | AD7: 350 | AE7: 28 | AF7: - | AG7: 28
B8: Cláudio Naves | C8: 4 | D8: Luciano Robervine | E8: 36 | F8: Wesley Bambirra | G8: 69 | H8: Marcelo Campos | I8: 78 | J8: Cláudio Dumont | K8: 77 | L8: Cláudio Dumont | M8: 105 | N8: Alexandre Melillo | O8: 136 | P8: Alexandre Melillo | Q8: 172 | R8: Marcelo Clemente | S8: 201 | T8: Marcelo Clemente | U8: 227 | V8: Alexandre Melillo | W8: 242 | X8: Wesley Canuto | Y8: 275 | Z8: 75 | AA8: - | AB8: 41 | AC8: Wesley Canuto | AD8: 313 | AE8: 65 | AF8: - | AG8: 37
A9: X | B9: Daniel Nahum | C9: 5 | D9: Frederico Papatella | E9: 34 | F9: Cláudio Dumont | G9: 69 | H9: Cláudio Dumont | I9: 69 | J9: Rodrigo Mercadante | K9: 64 | L9: Jarbas Reis | M9: 100 | N9: Marcelo Pereira | O9: 136 | P9: Marcelo Clemente | Q9: 156 | R9: Alexandre Melillo | S9: 194 | T9: Marcelo Pereira | U9: 214 | V9: Marcelo Clemente | W9: 241 | X9: Alexandre Melillo | Y9: 266 | Z9: 84 | AA9: - | AB9: 9 | AC9: Jarbas Reis | AD9: 296 | AE9: 82 | AF9: - | AG9: 17
B10: SSSSS | C10: 6 | D10: Jarbas Reis | E10: 32 | F10: Rodrigo Mercadante | G10: 64 | H10: Rodrigo Mercadante | I10: 64 | J10: Jarbas Reis | K10: 64 | L10: Marcelo Pereira | M10: 98 | N10: Jarbas Reis | O10: 128 | P10: Jarbas Reis | Q10: 150 | R10: Wesley Canuto | S10: 178 | T10: Alexandre Melillo | U10: 208 | V10: Wesley Canuto | W10: 239 | X10: Jarbas Reis | Y10: 260 | Z10: 90 | AA10: =Y$9-Y10 -> 6 | AB10: 6 | AC10: Marcelo Clemente | AD10: 291 | AE10: 87 | AF10: =AD$9-AD10 -> 5 | AG10: 5
B11: Eduardo Henrique | C11: 7 | D11: Rodrigo Mercadante | E11: 30 | F11: Jarbas Reis | G11: 64 | H11: Jarbas Reis | I11: 64 | J11: Alexandre Melillo | K11: 63 | L11: Alexandre Melillo | M11: 95 | N11: Cláudio Dumont | O11: 121 | P11: Marcelo Pereira | Q11: 143 | R11: Jarbas Reis | S11: 172 | T11: Jarbas Reis | U11: 200 | V11: Jarbas Reis | W11: 230 | X11: Marcelo Clemente | Y11: 250 | Z11: 100 | AA11: 16 | AB11: 10 | AC11: Alexandre Melillo | AD11: 286 | AE11: 92 | AF11: 10 | AG11: 5
B12: Frederico Papatella | C12: 8 | D12: Cláudio Dumont | E12: 28 | F12: Frederico Papatella | G12: 51 | H12: Marcelo Marcondes | I12: 55 | J12: Marcelo Pereira | K12: 60 | L12: Marcelo Marcondes | M12: 85 | N12: Wesley Canuto | O12: 112 | P12: Wesley Canuto | Q12: 140 | R12: Marcelo Pereira | S12: 169 | T12: Wesley Canuto | U12: 198 | V12: Marcelo Pereira | W12: 219 | X12: Eduardo Henrique | Y12: 233 | Z12: 117 | AA12: 33 | AB12: 17 | AC12: Marcelo Marcondes | AD12: 238 | AE12: 140 | AF12: 58 | AG12: 48
B13: Guilherme Alves | C13: 9 | D13: Guilherme Alves | E13: 26 | F13: Guilherme Alves | G13: 48 | H13: Maurício Júnior | I13: 52 | J13: Marcelo Marcondes | K13: 55 | L13: Marcelo Clemente | M13: 85 | N13: Marcelo Clemente | O13: 111 | P13: Rodrigo Mercadante | Q13: 135 | R13: Guilherme Alves | S13: 157 | T13: Eduardo Henrique | U13: 182 | V13: Marcelo Marcondes | W13: 204 | X13: Guilherme Alves | Y13: 233 | Z13: 117 | AA13: 33 | AB13: 0 | AC13: Guilherme Alves | AD13: 234 | AE13: 144 | AF13: 62 | AG13: 4
B14: Felipe Bouhid | C14: 10 | D14: Wesley Bambirra | E14: 24 | F14: Maurício Júnior | G14: 44 | H14: Guilherme Alves | I14: 50 | J14: Wesley Canuto | K14: 54 | L14: Wesley Canuto | M14: 78 | N14: Rodrigo Mercadante | O14: 105 | P14: Marcelo Marcondes | Q14: 122 | R14: Marcelo Marcondes | S14: 146 | T14: Guilherme Alves | U14: 179 | V14: Guilherme Alves | W14: 201 | X14: Maurício Júnior | Y14: 231 | Z14: 119 | AA14: 35 | AB14: 2 | AC14: Marcelo Pereira | AD14: 231 | AE14: 147 | AF14: 65 | AG14: 3
B15: Hélio Chagas | C15: 11 | D15: Alexandre Melillo | E15: 22 | F15: Alexandre Melillo | G15: 42 | H15: Wesley Canuto | I15: 44 | J15: Maurício Júnior | K15: 52 | L15: Maurício Júnior | M15: 76 | N15: Eduardo Henrique | O15: 95 | P15: Cláudio Dumont | Q15: 122 | R15: Eduardo Henrique | S15: 141 | T15: Marcelo Marcondes | U15: 158 | V15: Eduardo Henrique | W15: 199 | X15: Marcelo Pereira | Y15: 226 | Z15: 124 | AA15: 40 | AB15: 5 | AC15: Maurício Júnior | AD15: 231 | AE15: 147 | AF15: 65 | AG15: 0
B16: Hugo Denucci | C16: 12 | D16: Raphael Reis | E16: 20 | F16: Marcelo Marcondes | G16: 40 | H16: Alexandre Melillo | I16: 42 | J16: Guilherme Alves | K16: 50 | L16: Rodrigo Mercadante | M16: 75 | N16: Marcelo Marcondes | O16: 89 | P16: Eduardo Henrique | Q16: 121 | R16: Maurício Júnior | S16: 137 | T16: Maurício Júnior | U16: 155 | V16: Maurício Júnior | W16: 193 | X16: Marcelo Marcondes | Y16: 211 | Z16: 139 | AA16: 55 | AB16: 15 | AC16: Eduardo Henrique | AD16: 228 | AE16: 150 | AF16: 68 | AG16: 3
A17: X | B17: Jarbas Reis | C17: 13 | D17: Maurício Júnior | E17: 18 | F17: Luciano Robervine | G17: 37 | H17: Luciano Robervine | I17: 37 | J17: Bernardo Freitas | K17: 46 | L17: Guilherme Alves | M17: 72 | N17: Guilherme Alves | O17: 87 | P17: Guilherme Alves | Q17: 121 | R17: Rodrigo Mercadante | S17: 135 | T17: Rodrigo Mercadante | U17: 135 | V17: Rodrigo Ricardo | W17: 148 | X17: Marcelo Chagas | Y17: 171 | Z17: 179 | AA17: 95 | AB17: 40 | AC17: Rodrigo Ricardo | AD17: 190 | AE17: 188 | AF17: 106 | AG17: 38
B18: Leandro Malias | C18: 14 | D18: Rodrigo Ricardo | E18: 17 | F18: Rodrigo Ricardo | G18: 33 | H18: Frederico Papatella | I18: 37 | J18: Marcelo Clemente | K18: 39 | L18: Bernardo Gatti | M18: 68 | N18: Maurício Júnior | O18: 85 | P18: Maurício Júnior | Q18: 117 | R18: Cláudio Dumont | S18: 117 | T18: Rodrigo Ricardo | U18: 126 | V18: Rodrigo Mercadante | W18: 135 | X18: Rodrigo Ricardo | Y18: 170 | Z18: 180 | AA18: 96 | AB18: 1 | AC18: Marcelo Chagas | AD18: 186 | AE18: 192 | AF18: 110 | AG18: 4
B19: Lucas Guimarães | C19: 15 | D19: Renato Amaral | E19: 16 | F19: Raphael Reis | G19: 29 | H19: Bernardo Freitas | I19: 37 | J19: Bernardo Gatti | K19: 38 | L19: Bernardo Freitas | M19: 62 | N19: Marcelo Chagas | O19: 75 | P19: Marcelo Chagas | Q19: 93 | R19: Marcelo Chagas | S19: 105 | T19: Marcelo Chagas | U19: 113 | V19: Marcelo Chagas | W19: 130 | X19: Rodrigo Mercadante | Y19: 135 | Z19: 215 | AA19: 131 | AB19: 35 | AC19: Rodrigo Mercadante | AD19: 135 | AE19: 243 | AF19: 161 | AG19: 51
B20: Luciano Robervine | C20: 16 | D20: Leandro Malias | E20: 15 | F20: Wesley Canuto | G20: 27 | H20: Marcelo Clemente | I20: 37 | J20: Luciano Robervine | K20: 37 | L20: Eduardo Henrique | M20: 59 | N20: Bernardo Gatti | O20: 74 | P20: Rodrigo Ricardo | Q20: 86 | R20: Rodrigo Ricardo | S20: 102 | T20: Cláudio Dumont | U20: 112 | V20: Cláudio Dumont | W20: 107 | X20: Renato Amaral | Y20: 116 | Z20: 234 | AA20: 150 | AB20: 19 | AC20: Vitor Gatti | AD20: 127 | AE20: 251 | AF20: 169 | AG20: 8
A21: X | B21: Marcelo Campos | C21: 17 | D21: Marcelo Sant'anna | E21: 14 | F21: SSSSS | G21: 25 | H21: Bernardo Gatti | I21: 36 | J21: Frederico Papatella | K21: 37 | L21: Frederico Papatella | M21: 54 | N21: Rodrigo Ricardo | O21: 70 | P21: Bernardo Freitas | Q21: 71 | R21: Lucas Guimarães | S21: 74 | T21: Reila Ricardo | U21: 86 | V21: Renato Amaral | W21: 106 | X21: Cláudio Dumont | Y21: 102 | Z21: 248 | AA21: 164 | AB21: 14 | AC21: Renato Amaral | AD21: 116 | AE21: 262 | AF21: 180 | AG21: 11
B22: Marcelo Chagas | C22: 18 | D22: SSSSS | E22: 13 | F22: Bernardo Gatti | G22: 24 | H22: Rodrigo Ricardo | I22: 35 | J22: Rodrigo Ricardo | K22: 35 | L22: Rodrigo Ricardo | M22: 52 | N22: Luciano Robervine | O22: 68 | P22: Luciano Robervine | Q22: 63 | R22: Bernardo Freitas | S22: 71 | T22: Renato Amaral | U22: 82 | V22: Hélio Chagas | W22: 83 | X22: Vitor Gatti | Y22: 97 | Z22: 253 | AA22: 169 | AB22: 5 | AC22: Jucimar Vieira | AD22: 115 | AE22: 263 | AF22: 181 | AG22: 1
B23: Marcelo Clemente | C23: 19 | D23: Marcelo Chagas | E23: 12 | F23: Marcelo Sant'anna | G23: 24 | H23: Raphael Reis | I23: 33 | J23: Raphael Reis | K23: 33 | L23: Raphael Reis | M23: 46 | N23: Bernardo Freitas | O23: 66 | P23: Jucimar Vieira | Q23: 59 | R23: Jucimar Vieira | S23: 71 | T23: Jucimar Vieira | U23: 75 | V23: Jucimar Vieira | W23: 82 | X23: Jucimar Vieira | Y23: 97 | Z23: 253 | AA23: 169 | AB23: 0 | AC23: Hélio Chagas | AD23: 112 | AE23: 266 | AF23: 184 | AG23: 3
B24: Marcelo Marcondes | C24: 20 | D24: Reila Ricardo | E24: 11 | F24: Reila Ricardo | G24: 24 | H24: Marcelo Chagas | I24: 28 | J24: Renato Amaral | K24: 25 | L24: Renato Amaral | M24: 39 | N24: Marcelo Sant'anna | O24: 57 | P24: Marcelo Sant'anna | Q24: 57 | R24: Reila Ricardo | S24: 70 | T24: Lucas Guimarães | U24: 69 | V24: Reila Ricardo | W24: 81 | X24: Hélio Chagas | Y24: 95 | Z24: 255 | AA24: 171 | AB24: 2 | AC24: Cláudio Dumont | AD24: 102 | AE24: 276 | AF24: 194 | AG24: 10
B25: Marcelo Pereira | C25: 21 | D25: Marcelo Marcondes | E25: 10 | F25: Renato Amaral | G25: 23 | H25: Felipe Bouhid | I25: 27 | J25: Reila Ricardo | K25: 24 | L25: Luciano Robervine | M25: 32 | N25: Raphael Reis | O25: 55 | P25: Reila Ricardo | Q25: 55 | R25: Luciano Robervine | S25: 58 | T25: Tati Marcondes | U25: 69 | V25: Tati Marcondes | W25: 74 | X25: Frederico Papatella | Y25: 88 | Z25: 262 | AA25: 178 | AB25: 7 | AC25: Raphael Reis | AD25: 97 | AE25: 281 | AF25: 199 | AG25: 5
B26: Marcelo Sant'anna | C26: 22 | D26: Hélio Chagas | E26: 9 | F26: Leandro Malias | G26: 21 | H26: Renato Amaral | I26: 25 | J26: Izabella Rodrigues | K26: 23 | L26: Jucimar Vieira | M26: 32 | N26: Frederico Papatella | O26: 54 | P26: Raphael Reis | Q26: 55 | R26: Marcelo Sant'anna | S26: 57 | T26: Bernardo Freitas | U26: 66 | V26: Bernardo Freitas | W26: 71 | X26: Tati Marcondes | Y26: 88 | Z26: 262 | AA26: 178 | AB26: 0 | AC26: Felipe Bouhid | AD26: 96 | AE26: 282 | AF26: 200 | AG26: 1
B27: Bernardo Gatti | C27: 23 | D27: Tati Marcondes | E27: 8 | F27: Marcelo Clemente | G27: 19 | H27: Reila Ricardo | I27: 24 | J27: Eduardo Henrique | K27: 21 | L27: Reila Ricardo | M27: 31 | N27: Reila Ricardo | O27: 53 | P27: Renato Amaral | Q27: 53 | R27: Hélio Chagas | S27: 57 | T27: Hélio Chagas | U27: 65 | V27: Vitor Gatti | W27: 71 | X27: Reila Ricardo | Y27: 76 | Z27: 274 | AA27: 190 | AB27: 12 | AC27: Cláudio Naves | AD27: 95 | AE27: 283 | AF27: 201 | AG27: 1
B28: Maurício Júnior | C28: 24 | D28: Cláudio Naves | E28: 7 | F28: Hélio Chagas | G28: 17 | H28: Leandro Malias | I28: 21 | J28: Tati Marcondes | K28: 19 | L28: Tati Marcondes | M28: 31 | N28: Renato Amaral | O28: 51 | P28: Frederico Papatella | Q28: 49 | R28: Raphael Reis | S28: 55 | T28: Marcelo Sant'anna | U28: 57 | V28: Frederico Papatella | W28: 70 | X28: Raphael Reis | Y28: 75 | Z28: 275 | AA28: 191 | AB28: 1 | AC28: Tati Marcondes | AD28: 90 | AE28: 288 | AF28: 206 | AG28: 5
B29: Pedro Mello | C29: 25 | D29: Bernardo Gatti | E29: 6 | F29: Felipe Bouhid | G29: 15 | H29: Tati Marcondes | I29: 19 | J29: Jucimar Vieira | K29: 19 | L29: Felipe Bouhid | M29: 29 | N29: SSSSS | O29: 45 | P29: Lucas Guimarães | Q29: 46 | R29: Tati Marcondes | S29: 51 | T29: Cláudio Naves | U29: 54 | V29: Lucas Guimarães | W29: 64 | X29: Bernardo Freitas | Y29: 71 | Z29: 279 | AA29: 195 | AB29: 4 | AC29: Frederico Papatella | AD29: 88 | AE29: 290 | AF29: 208 | AG29: 2
B30: Raphael Reis | C30: 26 | D30: Bernardo Freitas | E30: 5 | F30: Tati Marcondes | G30: 13 | H30: Eduardo Henrique | I30: 18 | J30: Felipe Bouhid | K30: 17 | L30: Marcelo Sant'anna | M30: 25 | N30: Jucimar Vieira | O30: 45 | P30: Cláudio Naves | Q30: 43 | R30: Cláudio Naves | S30: 50 | T30: Luciano Robervine | U30: 53 | V30: Marcelo Sant'anna | W30: 57 | X30: Felipe Bouhid | Y30: 70 | Z30: 280 | AA30: 196 | AB30: 1 | AC30: Reila Ricardo | AD30: 71 | AE30: 307 | AF30: 225 | AG30: 17
B31: Reila Ricardo | C31: 27 | D31: Marcelo Clemente | E31: 4 | F31: Marcelo Chagas | G31: 12 | H31: Hélio Chagas | I31: 17 | J31: Marcelo Sant'anna | K31: 11 | L31: Marcelo Chagas | M31: 23 | N31: Andre Resende | O31: 39 | P31: Hélio Chagas | Q31: 43 | R31: Frederico Papatella | S31: 49 | T31: Raphael Reis | U31: 50 | V31: Cláudio Naves | W31: 54 | X31: Cláudio Naves | Y31: 67 | Z31: 283 | AA31: 199 | AB31: 3 | AC31: Leandro Malias | AD31: 70 | AE31: 308 | AF31: 226 | AG31: 1
B32: Renato Amaral | C32: 28 | D32: Wesley Canuto | E32: 3 | F32: Jucimar Vieira | G32: 11 | H32: Jucimar Vieira | I32: 15 | J32: Leandro Malias | K32: 10 | L32: SSSSS | M32: 23 | N32: Hélio Chagas | O32: 38 | P32: Tati Marcondes | Q32: 41 | R32: Renato Amaral | S32: 48 | T32: Frederico Papatella | U32: 44 | V32: Felipe Bouhid | W32: 53 | X32: Lucas Guimarães | Y32: 59 | Z32: 291 | AA32: 207 | AB32: 8 | AC32: Bernardo Freitas | AD32: 66 | AE32: 312 | AF32: 230 | AG32: 4
B33: Rodrigo Mercadante | C33: 29 | D33: Eduardo Henrique | E33: 0 | F33: Cláudio Naves | G33: 11 | H33: Cláudio Naves | I33: 14 | J33: Andre Resende | K33: 10 | L33: Andre Resende | M33: 19 | N33: Tati Marcondes | O33: 32 | P33: SSSSS | Q33: 40 | R33: Leandro Malias | S33: 38 | T33: Vitor Gatti | U33: 43 | V33: Raphael Reis | W33: 50 | X33: Marcelo Sant'anna | Y33: 57 | Z33: 293 | AA33: 209 | AB33: 2 | AC33: Marcelo Sant'anna | AD33: 57 | AE33: 321 | AF33: 239 | AG33: 9
B34: Rodrigo Ricardo | C34: 30 | D34: Felipe Bouhid | E34: 0 | F34: Bernardo Freitas | G34: 5 | H34: Marcelo Sant'anna | I34: 11 | J34: SSSSS | K34: 8 | L34: Izabella Rodrigues | M34: 18 | N34: Leandro Malias | O34: 27 | P34: Leandro Malias | Q34: 38 | R34: Lucca Veloso | S34: 33 | T34: Leandro Malias | U34: 38 | V34: Luciano Robervine | W34: 48 | X34: Leandro Malias | Y34: 54 | Z34: 296 | AA34: 212 | AB34: 3 | AC34: Lucas Guimarães | AD34: 54 | AE34: 324 | AF34: 242 | AG34: 3
B35: Tati Marcondes | C35: 31 | D35: Jucimar Vieira | E35: 0 | F35: Roberta Epifânio | G35: 3 | H35: SSSSS | I35: 8 | J35: Cláudio Naves | K35: 8 | L35: Leandro Malias | M35: 16 | N35: Cláudio Naves | O35: 26 | P35: Izabella Rodrigues | Q35: 24 | R35: Roberta Epifânio | S35: 28 | T35: Lucca Veloso | U35: 33 | V35: Leandro Malias | W35: 38 | X35: Luciano Robervine | Y35: 43 | Z35: 307 | AA35: 223 | AB35: 11 | AC35: Luciano Robervine | AD35: 38 | AE35: 340 | AF35: 258 | AG35: 16
A36: X | B36: Wesley Bambirra | C36: 32 | D36: Andre Resende | E36: 0 | F36: Pedro Mello | G36: 2 | H36: Izabella Rodrigues | I36: 6 | J36: Hélio Chagas | K36: 4 | L36: Hélio Chagas | M36: 14 | N36: Felipe Bouhid | O36: 24 | P36: Roberta Epifânio | Q36: 19 | R36: Izabella Rodrigues | S36: 25 | T36: Felipe Bouhid | U36: 33 | V36: Lucca Veloso | W36: 33 | X36: Roberta Epifânio | Y36: 34 | Z36: 316 | AA36: 232 | AB36: 9 | AC36: Lucca Veloso | AD36: 34 | AE36: 344 | AF36: 262 | AG36: 4
B37: Wesley Camargos | C37: 33 | D37: Roberta Epifânio | E37: 0 | F37: Eduardo Henrique | G37: 1 | H37: Andre Resende | I37: 5 | J37: Roberta Epifânio | K37: 4 | L37: Cláudio Naves | M37: 9 | N37: Lucas Guimarães | O37: 22 | P37: Pedro Mello | Q37: 15 | R37: Vitor Gatti | S37: 17 | T37: Bernardo Gatti | U37: 32 | V37: Bernardo Gatti | W37: 32 | X37: Lucca Veloso | Y37: 33 | Z37: 317 | AA37: 233 | AB37: 1 | AC37: Roberta Epifânio | AD37: 34 | AE37: 344 | AF37: 262 | AG37: 0
A38: X | B38: Wesley Canuto | C38: 34 | D38: Pedro Mello | E38: 0 | F38: Lucas Guimarães | G38: 1 | H38: Roberta Epifânio | I38: 4 | J38: Pedro Mello | K38: 2 | L38: Roberta Epifânio | M38: 5 | N38: Pedro Mello | O38: 16 | P38: Wesley Camargos | Q38: 5 | R38: Pedro Mello | S38: 15 | T38: Roberta Epifânio | U38: 28 | V38: Roberta Epifânio | W38: 23 | X38: Bernardo Gatti | Y38: 32 | Z38: 318 | AA38: 234 | AB38: 1 | AC38: Bernardo Gatti | AD38: 27 | AE38: 351 | AF38: 269 | AG38: 7
B39: Roberta Epifânio | C39: 35 | D39: Lucas Guimarães | E39: 0 | F39: Andre Resende | G39: 0 | H39: Pedro Mello | I39: 2 | J39: Wesley Camargos | K39: 1 | L39: Pedro Mello | M39: 2 | N39: Izabella Rodrigues | O39: 13 | P39: Bernardo Gatti | Q39: 0 | R39: Felipe Bouhid | S39: 13 | T39: Izabella Rodrigues | U39: 20 | V39: Izabella Rodrigues | W39: 15 | X39: Pedro Mello | Y39: 15 | Z39: 335 | AA39: 251 | AB39: 17 | AC39: Pedro Mello | AD39: 15 | AE39: 363 | AF39: 281 | AG39: 12
B40: Jucimar Vieira | C40: 36 | D40: Hugo Denucci | E40: 0 | F40: Hugo Denucci | G40: 0 | H40: Lucas Guimarães | I40: 0 | J40: Marcelo Chagas | K40: 0 | L40: Lucas Guimarães | M40: 0 | N40: Roberta Epifânio | O40: 6 | P40: Andre Resende | Q40: 0 | R40: Andre Resende | S40: 11 | T40: Pedro Mello | U40: 15 | V40: Pedro Mello | W40: 15 | X40: Izabella Rodrigues | Y40: 10 | Z40: 340 | AA40: 256 | AB40: 5 | AC40: Izabella Rodrigues | AD40: 5 | AE40: 373 | AF40: 291 | AG40: 10
B41: Andre Resende | C41: 37 | D41: Wesley Camargos | E41: 0 | F41: Wesley Camargos | G41: 0 | H41: Hugo Denucci | I41: 0 | J41: Lucas Guimarães | K41: 0 | L41: Wesley Camargos | M41: 0 | N41: Wesley Camargos | O41: 0 | P41: Felipe Bouhid | Q41: 0 | R41: Bernardo Gatti | S41: 0 | T41: Andre Resende | U41: 6 | V41: Andre Resende | W41: 1 | X41: Wesley Camargos | Y41: 1 | Z41: 349 | AA41: 265 | AB41: 9 | AC41: Andre Resende | AD41: 0 | AE41: 378 | AF41: 296 | AG41: 5
B42: Izabella Rodrigues | C42: 38 | D42: Izabella Rodrigues | E42: 0 | F42: Izabella Rodrigues | G42: 0 | H42: Wesley Camargos | I42: 0 | J42: Hugo Denucci | K42: 0 | L42: Hugo Denucci | M42: 0 | N42: Hugo Denucci | O42: 0 | P42: Hugo Denucci | Q42: 0 | R42: SSSSS | S42: 0 | T42: SSSSS | U42: 0 | V42: SSSSS | W42: 0 | X42: Andre Resende | Y42: 0 | Z42: 350 | AA42: 266 | AB42: 1 | AC42: SSSSS | AD42: 0 | AE42: 378 | AF42: 296 | AG42: 0
B43: Lucca Veloso | C43: 39 | P43: Lucca Veloso | Q43: 0 | R43: Wesley Camargos | S43: 0 | T43: Wesley Camargos | U43: 0 | V43: Wesley Camargos | W43: 0 | X43: SSSSS | Y43: 0 | Z43: 350 | AA43: 266 | AB43: 0 | AC43: Wesley Camargos | AD43: 0 | AE43: 378 | AF43: 296 | AG43: 0
B44: Gabriel Garabini | C44: 40 | P44: Vitor Gatti | Q44: 0 | R44: Hugo Denucci | S44: 0 | T44: Hugo Denucci | U44: 0 | V44: Hugo Denucci | W44: 0 | X44: Hugo Denucci | Y44: 0 | Z44: 350 | AA44: 266 | AB44: 0 | AC44: Hugo Denucci | AD44: 0 | AE44: 378 | AF44: 296 | AG44: 0
B45: Vitor Gatti | C45: 41 | Q45: 0 | R45: Gabriel Garabini | S45: 0 | T45: Gabriel Garabini | U45: 0 | V45: Gabriel Garabini | W45: 0 | X45: Gabriel Garabini | Y45: 0 | Z45: 350 | AA45: 266 | AB45: 0 | AC45: Gabriel Garabini | AD45: 0 | AE45: 378 | AF45: 296 | AG45: 0
B46: Bernardo Gatti | C46: 42 | Q46: 0 | Z46: 350 | AA46: 266 | AB46: 0 | AE46: 378 | AF46: 296 | AG46: 0
C47: 43 | Z47: 350 | AA47: 266 | AB47: 0 | AE47: 378 | AF47: 296 | AG47: 0
C48: 44 | Z48: 350 | AA48: 266 | AB48: 0 | AE48: 378 | AF48: 296 | AG48: 0
C49: 45 | Z49: 350 | AA49: 266 | AB49: 0 | AE49: 378 | AF49: 296 | AG49: 0

Sheet CAMP EQUIPE EVOL
A1: 2022 | B1: OK | D1: OK | F1: OK | H1: OK | J1: OK | L1: OK | N1: OK | P1: OK | R1: OK | T1: OK | V1: OK | X1: DIF. LIDER | Y1: DIF. 3º | Z1: DIF. PRÓXIMO | AA1: OK | AC1: DIF. LIDER | AD1: DIF. 3º | AE1: DIF. PRÓXIMO
B2: 1ª etapa | D2: 2ª etapa | F2: 3ª etapa | H2: 4ª etapa | J2: 5ª etapa | L2: 6ª etapa | N2: 7ª etapa | P2: 8ª etapa | R2: 9ª etapa | T2: 10ª etapa | V2: 11ª etapa | AA2: 12ª etapa
D3: 0 | F3: 00:00:00 | H3: 00:00:00 | J3: 00:00:00 | L3: 00:00:00 | N3: 00:00:00 | P3: 00:00:00 | R3: 00:00:00 | T3: 00:00:00 | V3: 00:00:00 | AA3: 00:00:00
A4: EQUIPES | B4: EQUIPES | C4: Pontuação Geral | D4: EQUIPES | E4: Pontuação Geral | F4: EQUIPES | G4: Pontuação Geral | H4: EQUIPES | I4: Pontuação Geral | J4: EQUIPES | K4: Pontuação Geral | L4: EQUIPES | M4: Pontuação Geral | N4: Posição | O4: Pontos | P4: Posição | Q4: Pontos | R4: Posição | S4: Pontos | T4: Posição | U4: Pontos | V4: Posição | W4: Pontos | AA4: Posição | AB4: Pontos
A5: 1º | B5: Incosel | C5: 98 | D5: Incosel | E5: 171 | F5: LQN | G5: 192 | H5: LQN | I5: 200 | J5: LQN | K5: 295 | L5: LQN | M5: 385 | N5: LQN | O5: 483 | P5: LQN | Q5: 581 | R5: LQN | S5: 640 | T5: LQN | U5: 720 | V5: LQN | W5: 777 | X5: - | Y5: - | Z5: - | AA5: LQN | AB5: 844 | AC5: - | AD5: - | AE5: -
B6: Rodrigo Mercadante | C6: 30 | D6: Rodrigo Mercadante | E6: 64 | F6: Alexandre Melillo | G6: 34 | H6: Alexandre Melillo | I6: 55 | J6: Alexandre Melillo | K6: 75 | L6: Alexandre Melillo | M6: 116 | N6: Alexandre Melillo | O6: 148 | P6: Alexandre Melillo | Q6: 148 | R6: Alexandre Melillo | S6: 170 | T6: Alexandre Melillo | U6: 204 | V6: Alexandre Melillo | W6: 228 | X6: - | Y6: - | Z6: - | AA6: Alexandre Melillo | AB6: 228 | AC6: - | AD6: - | AE6: -
B7: Jarbas Reis | C7: 32 | D7: Jarbas Reis | E7: 64 | F7: Wesley Bambirra | G7: 83 | H7: Wesley Bambirra | I7: 72 | J7: Wesley Bambirra | K7: 117 | L7: Wesley Bambirra | M7: 162 | N7: Wesley Bambirra | O7: 203 | P7: Wesley Bambirra | Q7: 244 | R7: Wesley Bambirra | S7: 268 | T7: Wesley Bambirra | U7: 268 | V7: Wesley Bambirra | W7: 296 | X7: - | Y7: - | Z7: - | AA7: Wesley Bambirra | AB7: 330 | AC7: - | AD7: - | AE7: -
B8: Luciano Robervine | C8: 36 | D8: Luciano Robervine | E8: 36 | F8: SSSSS | G8: 0 | H8: SSSSS | I8: 0 | J8: SSSSS | K8: 0 | L8: SSSSS | M8: 0 | N8: SSSSS | O8: 15 | P8: SSSSS | Q8: 15 | R8: SSSSS | S8: 28 | T8: SSSSS | U8: 28 | V8: SSSSS | W8: 28 | X8: - | Y8: - | Z8: - | AA8: SSSSS | AB8: 28 | AC8: - | AD8: - | AE8: -
B9: Renato Amaral | C9: 0 | D9: Renato Amaral | E9: 7 | F9: Marcelo Marcondes | G9: 75 | H9: Marcelo Marcondes | I9: 73 | J9: Marcelo Marcondes | K9: 103 | L9: Marcelo Marcondes | M9: 107 | N9: Marcelo Marcondes | O9: 117 | P9: Marcelo Marcondes | Q9: 141 | R9: Marcelo Marcondes | S9: 141 | T9: Marcelo Marcondes | U9: 187 | V9: Marcelo Marcondes | W9: 192 | X9: - | Y9: - | Z9: - | AA9: Marcelo Marcondes | AB9: 224 | AC9: - | AD9: - | AE9: -
B10: XXXXXXXX | C10: 0 | D10: XXXXXXXX | E10: 0 | F10: XXXXX | H10: XXXXX | J10: XXXXX | L10: XXXXX | N10: Lucca Veloso | O10: 0 | P10: Lucca Veloso | Q10: 33 | R10: Lucca Veloso | S10: 33 | T10: Lucca Veloso | U10: 33 | V10: Lucca Veloso | W10: 33 | X10: - | Y10: - | Z10: - | AA10: Lucca Veloso | AB10: 34 | AC10: - | AD10: - | AE10: -
A11: 2º | B11: Lider | C11: 80 | D11: Clemente Car | E11: 165 | F11: Incosel | G11: 171 | H11: Incosel | I11: 171 | J11: Clemente Car | K11: 242 | L11: Clemente Car | M11: 313 | N11: Clemente Car | O11: 390 | P11: Clemente Car | Q11: 454 | R11: Clemente Car | S11: 500 | T11: Incosel | U11: 572 | V11: Incosel | W11: 638 | X11: =W5-W11 -> 139 | Y11: - | Z11: =W5-W11 -> 139 | AA11: Incosel | AB11: 704 | AC11: =AB5-AB11 -> 140 | AD11: - | AE11: =AB5-AB11 -> 140
B12: Marcelo Campos | C12: 42 | D12: Marcelo Clemente | E12: 1 | F12: Rodrigo Mercadante | G12: 64 | H12: Rodrigo Mercadante | I12: 64 | J12: Marcelo Clemente | K12: 18 | L12: Marcelo Clemente | M12: 63 | N12: Marcelo Clemente | O12: 108 | P12: Marcelo Clemente | Q12: 130 | R12: Marcelo Clemente | S12: 176 | T12: Rodrigo Mercadante | U12: 135 | V12: Rodrigo Mercadante | W12: 135 | X12: - | Y12: - | Z12: - | AA12: Rodrigo Mercadante | AB12: 135 | AC12: - | AD12: - | AE12: -
B13: Marcelo Pereira | C13: 38 | D13: Cláudio Dumont | E13: 69 | F13: Jarbas Reis | G13: 64 | H13: Jarbas Reis | I13: 64 | J13: Cláudio Dumont | K13: 105 | L13: Cláudio Dumont | M13: 111 | N13: Cláudio Dumont | O13: 111 | P13: Cláudio Dumont | Q13: 127 | R13: Cláudio Dumont | S13: 127 | T13: Jarbas Reis | U13: 230 | V13: Jarbas Reis | W13: 260 | X13: - | Y13: - | Z13: - | AA13: Jarbas Reis | AB13: 296 | AC13: - | AD13: - | AE13: -
B14: Wesley Camargos | C14: 0 | D14: Frederico Papatella | E14: 51 | F14: Luciano Robervine | G14: 36 | H14: Luciano Robervine | I14: 36 | J14: Frederico Papatella | K14: 51 | L14: Frederico Papatella | M14: 51 | N14: Frederico Papatella | O14: 51 | P14: Frederico Papatella | Q14: 51 | R14: Frederico Papatella | S14: 51 | T14: Luciano Robervine | U14: 62 | V14: Luciano Robervine | W14: 62 | X14: - | Y14: - | Z14: - | AA14: Luciano Robervine | AB14: 62 | AC14: - | AD14: - | AE14: -
B15: Hugo Denucci | C15: 0 | D15: Maurício Júnior | E15: 44 | F15: Renato Amaral | G15: 7 | H15: Renato Amaral | I15: 7 | J15: Maurício Júnior | K15: 68 | L15: Maurício Júnior | M15: 88 | N15: Maurício Júnior | O15: 120 | P15: Maurício Júnior | Q15: 146 | R15: Maurício Júnior | S15: 146 | T15: Renato Amaral | U15: 91 | V15: Renato Amaral | W15: 101 | X15: - | Y15: - | Z15: - | AA15: Renato Amaral | AB15: 101 | AC15: - | AD15: - | AE15: -
B16: X | D16: XXXXXX | E16: 0 | F16: XXXXXXXX | G16: 0 | H16: XXXXXXXX | I16: 0 | J16: XXXXXX | K16: 0 | L16: XXXXXX | M16: 0 | N16: XXXXXX | O16: 0 | P16: XXXXXX | Q16: 0 | R16: XXXXXX | S16: 0 | T16: Vitor Gatti | U16: 54 | V16: Vitor Gatti | W16: 80 | X16: - | Y16: - | Z16: - | AA16: Vitor Gatti | AB16: 110 | AC16: - | AD16: - | AE16: -
A17: 3º | B17: Clemente Car | C17: 80 | D17: LQN | E17: 154 | F17: Clemente Car | G17: 165 | H17: Clemente Car | I17: 165 | J17: Incosel | K17: 232 | L17: Lider | M17: 294 | N17: Lider | O17: 357 | P17: Lider | Q17: 417 | R17: Lider | S17: 500 | T17: Clemente Car | U17: 564 | V17: Clemente Car | W17: 629 | X17: =W5-W17 -> 148 | Y17: - | Z17: =W11-W17 -> 9 | AA17: Clemente Car | AB17: 672 | AC17: =AB5-AB17 -> 172 | AD17: - | AE17: =AB11-AB17 -> 32
B18: Marcelo Clemente | C18: 0 | D18: Alexandre Melillo | E18: 42 | F18: Marcelo Clemente | G18: 1 | H18: Marcelo Clemente | I18: 1 | J18: Rodrigo Mercadante | K18: 75 | L18: Marcelo Campos | M18: 152 | N18: Marcelo Campos | O18: 194 | P18: Marcelo Campos | Q18: 228 | R18: Marcelo Campos | S18: 266 | T18: Marcelo Clemente | U18: 176 | V18: Marcelo Clemente | W18: 185 | X18: - | Y18: - | Z18: - | AA18: Marcelo Clemente | AB18: 215 | AC18: - | AD18: - | AE18: -
B19: Cláudio Dumont | C19: 28 | D19: Wesley Bambirra | E19: 69 | F19: Cláudio Dumont | G19: 69 | H19: Cláudio Dumont | I19: 69 | J19: Jarbas Reis | K19: 100 | L19: Marcelo Pereira | M19: 136 | N19: Marcelo Pereira | O19: 143 | P19: Marcelo Pereira | Q19: 169 | R19: Marcelo Pereira | S19: 214 | T19: Cláudio Dumont | U19: 127 | V19: Cláudio Dumont | W19: 127 | X19: - | Y19: - | Z19: - | AA19: Cláudio Dumont | AB19: 127 | AC19: - | AD19: - | AE19: -
B20: Frederico Papatella | C20: 34 | D20: SSSSS | E20: 13 | F20: Frederico Papatella | G20: 51 | H20: Frederico Papatella | I20: 51 | J20: Luciano Robervine | K20: 36 | L20: Wesley Camargos | M20: 6 | N20: Wesley Camargos | O20: 20 | P20: Wesley Camargos | Q20: 20 | R20: Wesley Camargos | S20: 20 | T20: Frederico Papatella | U20: 77 | V20: Frederico Papatella | W20: 95 | X20: - | Y20: - | Z20: - | AA20: Frederico Papatella | AB20: 95 | AC20: - | AD20: - | AE20: -
B21: Maurício Júnior | C21: 18 | D21: Marcelo Marcondes | E21: 30 | F21: Maurício Júnior | G21: 44 | H21: Maurício Júnior | I21: 44 | J21: Renato Amaral | K21: 21 | L21: Hugo Denucci | M21: 0 | N21: Hugo Denucci | O21: 0 | P21: Hugo Denucci | Q21: 0 | R21: Hugo Denucci | S21: 0 | T21: Maurício Júnior | U21: 184 | V21: Maurício Júnior | W21: 222 | X21: - | Y21: - | Z21: - | AA21: Maurício Júnior | AB21: 235 | AC21: - | AD21: - | AE21: -
B22: XXXXXX | C22: 0 | D22: XXXXX | F22: XXXXXX | G22: 0 | H22: XXXXXX | I22: 0 | J22: XXXXXXXX | K22: 0 | L22: X | N22: X | P22: X | R22: X | T22: XXXXXX | U22: 0 | V22: XXXXXX | W22: 0 | X22: - | Y22: - | Z22: - | AA22: XXXXXX | AB22: 0 | AC22: - | AD22: - | AE22: -
A23: 4º | B23: Santiago | C23: 60 | D23: Lider | E23: 146 | F23: Lider | G23: 158 | H23: Lider | I23: 158 | J23: Lider | K23: 227 | L23: Incosel | M23: 292 | N23: Incosel | O23: 350 | P23: Incosel | Q23: 402 | R23: Incosel | S23: 490 | T23: Lider | U23: 552 | V23: Lider | W23: 616 | X23: =W$5-W23 -> 161 | Y23: =W$17-W23 -> 13 | Z23: =W17-W23 -> 13 | AA23: Lider | AB23: 653 | AC23: =AB$5-AB23 -> 191 | AD23: =AB$17-AB23 -> 19 | AE23: =AB17-AB23 -> 19
B24: Daniel Nahum | C24: 45 | D24: Marcelo Campos | E24: 70 | F24: Marcelo Campos | G24: 78 | H24: Marcelo Campos | I24: 78 | J24: Marcelo Campos | K24: 123 | L24: Rodrigo Mercadante | M24: 75 | N24: Rodrigo Mercadante | O24: 105 | P24: Rodrigo Mercadante | Q24: 135 | R24: Rodrigo Mercadante | S24: 135 | T24: Marcelo Campos | U24: 300 | V24: Marcelo Campos | W24: 346 | X24: - | Y24: - | Z24: - | AA24: Marcelo Campos | AB24: 378 | AC24: - | AD24: - | AE24: -
B25: Pedro Mello | C25: 0 | D25: Marcelo Pereira | E25: 76 | F25: Marcelo Pereira | G25: 80 | H25: Marcelo Pereira | I25: 80 | J25: Marcelo Pereira | K25: 98 | L25: Jarbas Reis | M25: 122 | N25: Jarbas Reis | O25: 150 | P25: Jarbas Reis | Q25: 172 | R25: Jarbas Reis | S25: 200 | T25: Marcelo Pereira | U25: 232 | V25: Marcelo Pereira | W25: 239 | X25: - | Y25: - | Z25: - | AA25: Marcelo Pereira | AB25: 244 | AC25: - | AD25: - | AE25: -
B26: Leandro Malias | C26: 15 | D26: Wesley Camargos | E26: 0 | F26: Wesley Camargos | G26: 0 | H26: Wesley Camargos | I26: 0 | J26: Wesley Camargos | K26: 6 | L26: Luciano Robervine | M26: 62 | N26: Luciano Robervine | O26: 62 | P26: Luciano Robervine | Q26: 62 | R26: Luciano Robervine | S26: 62 | T26: Wesley Camargos | U26: 20 | V26: Wesley Camargos | W26: 31 | X26: - | Y26: - | Z26: - | AA26: Wesley Camargos | AB26: 31 | AC26: - | AD26: - | AE26: -
B27: Lucas Guimarães | C27: 0 | D27: Hugo Denucci | E27: 0 | F27: Hugo Denucci | G27: 0 | H27: Hugo Denucci | I27: 0 | J27: Hugo Denucci | K27: 0 | L27: Renato Amaral | M27: 33 | N27: Renato Amaral | O27: 33 | P27: Renato Amaral | Q27: 33 | R27: Renato Amaral | S27: 67 | T27: Hugo Denucci | U27: 0 | V27: Hugo Denucci | W27: 0 | X27: - | Y27: - | Z27: - | AA27: Hugo Denucci | AB27: 0 | AC27: - | AD27: - | AE27: -
B28: Roberta Epifânio | C28: 0 | D28: X | F28: X | H28: X | J28: X | L28: XXXXXXXX | M28: 0 | N28: Vitor Gatti | O28: 0 | P28: Vitor Gatti | Q28: 0 | R28: Vitor Gatti | S28: 26 | T28: X | V28: X | X28: - | Y28: - | Z28: - | AA28: X | AC28: - | AD28: - | AE28: -
A29: 5º | B29: LQN | C29: 59 | D29: Santiago | E29: 105 | F29: Alpha | G29: 124 | H29: Alpha | I29: 124 | J29: Delcar | K29: 182 | L29: Delcar | M29: 246 | N29: Ventura | O29: 299 | P29: Santiago | Q29: 349 | R29: Delcar | S29: 433 | T29: Delcar | U29: 459 | V29: Ventura | W29: 526 | X29: =W$5-W29 -> 251 | Y29: =W$17-W29 -> 103 | Z29: =W23-W29 -> 90 | AA29: Ventura | AB29: 607 | AC29: =AB$5-AB29 -> 237 | AD29: =AB$17-AB29 -> 65 | AE29: =AB23-AB29 -> 46
B30: Alexandre Melillo | C30: 22 | D30: Daniel Nahum | E30: 81 | F30: Guilherme Alves | G30: 50 | H30: Guilherme Alves | I30: 50 | J30: Bernardo Gatti | K30: 88 | L30: Bernardo Gatti | M30: 94 | N30: Marcelo Sant'anna | O30: 42 | P30: Daniel Nahum | Q30: 226 | R30: Bernardo Gatti | S30: 144 | T30: Bernardo Gatti | U30: 144 | V30: Marcelo Sant'anna | W30: 56 | X30: - | Y30: - | Z30: - | AA30: Marcelo Sant'anna | AB30: 56 | AC30: - | AD30: - | AE30: -
B31: Wesley Bambirra | C31: 24 | D31: Pedro Mello | E31: 0 | F31: Raphael Reis | G31: 33 | H31: Raphael Reis | I31: 33 | J31: Eduardo Henrique | K31: 75 | L31: Eduardo Henrique | M31: 111 | N31: Wesley Canuto | O31: 130 | P31: Pedro Mello | Q31: 13 | R31: Eduardo Henrique | S31: 172 | T31: Eduardo Henrique | U31: 198 | V31: Wesley Canuto | W31: 245 | X31: - | Y31: - | Z31: - | AA31: Wesley Canuto | AB31: 283 | AC31: - | AD31: - | AE31: -
B32: SSSSS | C32: 13 | D32: Leandro Malias | E32: 21 | F32: Bernardo Freitas | G32: 32 | H32: Bernardo Freitas | I32: 32 | J32: Felipe Bouhid | K32: 12 | L32: Felipe Bouhid | M32: 12 | N32: Cláudio Naves | O32: 29 | P32: Leandro Malias | Q32: 31 | R32: Felipe Bouhid | S32: 60 | T32: Felipe Bouhid | U32: 60 | V32: Cláudio Naves | W32: 49 | X32: - | Y32: - | Z32: - | AA32: Cláudio Naves | AB32: 77 | AC32: - | AD32: - | AE32: -
B33: Marcelo Marcondes | C33: 0 | D33: Lucas Guimarães | E33: 0 | F33: Hélio Chagas | G33: 9 | H33: Hélio Chagas | I33: 9 | J33: Reila Ricardo | K33: 7 | L33: Reila Ricardo | M33: 29 | N33: Marcelo Chagas | O33: 98 | P33: Lucas Guimarães | Q33: 53 | R33: Reila Ricardo | S33: 57 | T33: Reila Ricardo | U33: 57 | V33: Marcelo Chagas | W33: 176 | X33: - | Y33: - | Z33: - | AA33: Marcelo Chagas | AB33: 191 | AC33: - | AD33: - | AE33: -
B34: XXXXX | D34: Roberta Epifânio | E34: 3 | F34: Izabella Rodrigues | G34: 0 | H34: Izabella Rodrigues | I34: 0 | J34: XXXXXXX | K34: 0 | L34: XXXXXXX | M34: 0 | N34: XXXX | P34: Roberta Epifânio | Q34: 26 | R34: XXXXXXX | S34: 0 | T34: XXXXXXX | U34: 0 | V34: XXXX | X34: - | Y34: - | Z34: - | AA34: XXXX | AC34: - | AD34: - | AE34: -
A35: 6º | B35: Alpha | C35: 55 | D35: Alpha | E35: 94 | F35: Santiago | G35: 105 | H35: Delcar | I35: 118 | J35: Alpha | K35: 172 | L35: Ventura | M35: 236 | N35: Delcar | O35: 292 | P35: Ventura | Q35: 345 | R35: Santiago | S35: 387 | T35: Ventura | U35: 436 | V35: Delcar | W35: 510 | X35: =W$5-W35 -> 267 | Y35: =W$17-W35 -> 119 | Z35: =W29-W35 -> 16 | AA35: Delcar | AB35: 536 | AC35: =AB$5-AB35 -> 308 | AD35: =AB$17-AB35 -> 136 | AE35: =AB29-AB35 -> 71
B36: Guilherme Alves | C36: 26 | D36: Guilherme Alves | E36: 48 | F36: Daniel Nahum | G36: 81 | H36: Bernardo Gatti | I36: 62 | J36: Guilherme Alves | K36: 72 | L36: Marcelo Sant'anna | M36: 42 | N36: Bernardo Gatti | O36: 112 | P36: Marcelo Sant'anna | Q36: 42 | R36: Daniel Nahum | S36: 234 | T36: Marcelo Sant'anna | U36: 56 | V36: Bernardo Gatti | W36: 144 | X36: - | Y36: - | Z36: - | AA36: Bernardo Gatti | AB36: 144 | AC36: - | AD36: - | AE36: -
B37: Raphael Reis | C37: 20 | D37: Raphael Reis | E37: 29 | F37: Pedro Mello | G37: 0 | H37: Eduardo Henrique | I37: 37 | J37: Raphael Reis | K37: 33 | L37: Wesley Canuto | M37: 102 | N37: Eduardo Henrique | O37: 111 | P37: Wesley Canuto | Q37: 168 | R37: Pedro Mello | S37: 13 | T37: Wesley Canuto | U37: 209 | V37: Eduardo Henrique | W37: 232 | X37: - | Y37: - | Z37: - | AA37: Eduardo Henrique | AB37: 232 | AC37: - | AD37: - | AE37: -
B38: Bernardo Freitas | C38: 0 | D38: Bernardo Freitas | E38: 0 | F38: Leandro Malias | G38: 21 | H38: Felipe Bouhid | I38: 12 | J38: Bernardo Freitas | K38: 48 | L38: Cláudio Naves | M38: 12 | N38: Felipe Bouhid | O38: 27 | P38: Cláudio Naves | Q38: 29 | R38: Leandro Malias | S38: 31 | T38: Cláudio Naves | U38: 36 | V38: Felipe Bouhid | W38: 77 | X38: - | Y38: - | Z38: - | AA38: Felipe Bouhid | AB38: 103 | AC38: - | AD38: - | AE38: -
B39: Hélio Chagas | C39: 9 | D39: Hélio Chagas | E39: 17 | F39: Lucas Guimarães | G39: 0 | H39: Reila Ricardo | I39: 7 | J39: Hélio Chagas | K39: 19 | L39: Marcelo Chagas | M39: 80 | N39: Reila Ricardo | O39: 42 | P39: Marcelo Chagas | Q39: 106 | R39: Lucas Guimarães | S39: 83 | T39: Marcelo Chagas | U39: 135 | V39: Reila Ricardo | W39: 57 | X39: - | Y39: - | Z39: - | AA39: Reila Ricardo | AB39: 57 | AC39: - | AD39: - | AE39: -
B40: Izabella Rodrigues | C40: 0 | D40: Izabella Rodrigues | E40: 0 | F40: Roberta Epifânio | G40: 3 | H40: XXXXXXX | I40: 0 | J40: Izabella Rodrigues | K40: 0 | L40: XXXX | N40: XXXXXXX | O40: 0 | P40: XXXX | R40: Roberta Epifânio | S40: 26 | T40: XXXX | V40: XXXXXXX | W40: 0 | X40: - | Y40: - | Z40: - | AA40: XXXXXXX | AB40: 0 | AC40: - | AD40: - | AE40: -
A41: 7º | B41: Ventura | C41: 33 | D41: Ventura | E41: 71 | F41: Delcar | G41: 105 | H41: Santiago | I41: 106 | J41: Santiago | K41: 146 | L41: Alpha | M41: 218 | N41: Santiago | O41: 282 | P41: Delcar | Q41: 340 | R41: Ventura | S41: 378 | T41: Santiago | U41: 423 | V41: Alpha | W41: 462 | X41: =W$5-W41 -> 315 | Y41: =W$17-W41 -> 167 | Z41: =W35-W41 -> 48 | AA41: Santiago | AB41: 521 | AC41: =AB$5-AB41 -> 323 | AD41: =AB$17-AB41 -> 151 | AE41: =AB35-AB41 -> 15
B42: Marcelo Sant'anna | C42: 14 | D42: Marcelo Sant'anna | E42: 24 | F42: Bernardo Gatti | G42: 48 | H42: Daniel Nahum | I42: 82 | J42: Daniel Nahum | K42: 120 | L42: Guilherme Alves | M42: 87 | N42: Daniel Nahum | O42: 196 | P42: Bernardo Gatti | Q42: 112 | R42: Marcelo Sant'anna | S42: 56 | T42: Daniel Nahum | U42: 270 | V42: Guilherme Alves | W42: 226 | X42: - | Y42: - | Z42: - | AA42: Daniel Nahum | AB42: 352 | AC42: - | AD42: - | AE42: -
B43: Wesley Canuto | C43: 0 | D43: Wesley Canuto | E43: 24 | F43: Eduardo Henrique | G43: 17 | H43: Pedro Mello | I43: 0 | J43: Pedro Mello | K43: 0 | L43: Raphael Reis | M43: 33 | N43: Pedro Mello | O43: 13 | P43: Eduardo Henrique | Q43: 131 | R43: Wesley Canuto | S43: 168 | T43: Pedro Mello | U43: 13 | V43: Raphael Reis | W43: 62 | X43: - | Y43: - | Z43: - | AA43: Pedro Mello | AB43: 13 | AC43: - | AD43: - | AE43: -
B44: Cláudio Naves | C44: 7 | D44: Cláudio Naves | E44: 11 | F44: Felipe Bouhid | G44: 27 | H44: Leandro Malias | I44: 21 | J44: Leandro Malias | K44: 21 | L44: Bernardo Freitas | M44: 62 | N44: Leandro Malias | O44: 31 | P44: Felipe Bouhid | Q44: 40 | R44: Cláudio Naves | S44: 36 | T44: Leandro Malias | U44: 31 | V44: Bernardo Freitas | W44: 66 | X44: - | Y44: - | Z44: - | AA44: Leandro Malias | AB44: 47 | AC44: - | AD44: - | AE44: -
B45: Marcelo Chagas | C45: 12 | D45: Marcelo Chagas | E45: 12 | F45: Reila Ricardo | G45: 13 | H45: Lucas Guimarães | I45: 0 | J45: Lucas Guimarães | K45: 1 | L45: Hélio Chagas | M45: 19 | N45: Lucas Guimarães | O45: 25 | P45: Reila Ricardo | Q45: 57 | R45: Marcelo Chagas | S45: 118 | T45: Lucas Guimarães | U45: 83 | V45: Hélio Chagas | W45: 74 | X45: - | Y45: - | Z45: - | AA45: Lucas Guimarães | AB45: 83 | AC45: - | AD45: - | AE45: -
B46: XXXX | D46: XXXX | F46: XXXXXXX | G46: 0 | H46: Roberta Epifânio | I46: 3 | J46: Roberta Epifânio | K46: 4 | L46: Izabella Rodrigues | M46: 17 | N46: Roberta Epifânio | O46: 17 | P46: XXXXXXX | Q46: 0 | R46: XXXX | T46: Roberta Epifânio | U46: 26 | V46: Izabella Rodrigues | W46: 34 | X46: - | Y46: - | Z46: - | AA46: Roberta Epifânio | AB46: 26 | AC46: - | AD46: - | AE46: -
A47: 8º | B47: Lokamig | C47: 25 | D47: Delcar | E47: 63 | F47: Ventura | G47: 93 | H47: Ventura | I47: 93 | J47: Ventura | K47: 146 | L47: Santiago | M47: 209 | N47: Alpha | O47: 273 | P47: Alpha | Q47: 324 | R47: Alpha | S47: 363 | T47: Alpha | U47: 398 | V47: Santiago | W47: 459 | X47: =W$5-W47 -> 318 | Y47: =W$17-W47 -> 170 | Z47: =W41-W47 -> 3 | AA47: Alpha | AB47: 502 | AC47: =AB$5-AB47 -> 342 | AD47: =AB$17-AB47 -> 170 | AE47: =AB41-AB47 -> 19
B48: Rodrigo Ricardo | C48: 17 | D48: Bernardo Gatti | E48: 24 | F48: Marcelo Sant'anna | G48: 10 | H48: Marcelo Sant'anna | I48: 10 | J48: Marcelo Sant'anna | K48: 10 | L48: Daniel Nahum | M48: 158 | N48: Guilherme Alves | O48: 121 | P48: Guilherme Alves | Q48: 157 | R48: Guilherme Alves | S48: 179 | T48: Guilherme Alves | U48: 194 | V48: Daniel Nahum | W48: 306 | X48: - | Y48: - | Z48: - | AA48: Guilherme Alves | AB48: 227 | AC48: - | AD48: - | AE48: -
B49: Tati Marcondes | C49: 8 | D49: Eduardo Henrique | E49: 0 | F49: Wesley Canuto | G49: 44 | H49: Wesley Canuto | I49: 44 | J49: Wesley Canuto | K49: 68 | L49: Pedro Mello | M49: 14 | N49: Raphael Reis | O49: 33 | P49: Raphael Reis | Q49: 33 | R49: Raphael Reis | S49: 42 | T49: Raphael Reis | U49: 42 | V49: Pedro Mello | W49: 13 | X49: - | Y49: - | Z49: - | AA49: Raphael Reis | AB49: 84 | AC49: - | AD49: - | AE49: -
B50: Jucimar Vieira | C50: 0 | D50: Felipe Bouhid | E50: 15 | F50: Cláudio Naves | G50: 11 | H50: Cláudio Naves | I50: 11 | J50: Cláudio Naves | K50: 12 | L50: Leandro Malias | M50: 32 | N50: Bernardo Freitas | O50: 62 | P50: Bernardo Freitas | Q50: 62 | R50: Bernardo Freitas | S50: 62 | T50: Bernardo Freitas | U50: 66 | V50: Leandro Malias | W50: 31 | X50: - | Y50: - | Z50: - | AA50: Bernardo Freitas | AB50: 66 | AC50: - | AD50: - | AE50: -
B51: Andre Resende | C51: 0 | D51: Reila Ricardo | E51: 24 | F51: Marcelo Chagas | G51: 28 | H51: Marcelo Chagas | I51: 28 | J51: Marcelo Chagas | K51: 56 | L51: Lucas Guimarães | M51: 1 | N51: Hélio Chagas | O51: 24 | P51: Hélio Chagas | Q51: 38 | R51: Hélio Chagas | S51: 46 | T51: Hélio Chagas | U51: 62 | V51: Lucas Guimarães | W51: 83 | X51: - | Y51: - | Z51: - | AA51: Hélio Chagas | AB51: 91 | AC51: - | AD51: - | AE51: -
B52: XXXXXXXX | C52: 0 | D52: XXXXXXX | E52: 0 | F52: XXXX | H52: XXXX | J52: XXXX | L52: Roberta Epifânio | M52: 4 | N52: Izabella Rodrigues | O52: 33 | P52: Izabella Rodrigues | Q52: 34 | R52: Izabella Rodrigues | S52: 34 | T52: Izabella Rodrigues | U52: 34 | V52: Roberta Epifânio | W52: 26 | X52: - | Y52: - | Z52: - | AA52: Izabella Rodrigues | AB52: 34 | AC52: - | AD52: - | AE52: -
A53: 9º | B53: Delcar | C53: 17 | D53: Lokamig | E53: 57 | F53: Lokamig | G53: 66 | H53: Lokamig | I53: 66 | J53: Lokamig | K53: 108 | L53: Lokamig | M53: 159 | N53: Lokamig | O53: 186 | P53: Lokamig | Q53: 225 | R53: Lokamig | S53: 267 | T53: Lokamig | U53: 296 | V53: Lokamig | W53: 347 | X53: =W$5-W53 -> 430 | Y53: =W$17-W53 -> 282 | Z53: =W47-W53 -> 112 | AA53: Lokamig | AB53: 387 | AC53: =AB$5-AB53 -> 457 | AD53: =AB$17-AB53 -> 285 | AE53: =AB47-AB53 -> 115
B54: Bernardo Gatti | C54: 6 | D54: Rodrigo Ricardo | E54: 33 | F54: Rodrigo Ricardo | G54: 34 | H54: Rodrigo Ricardo | I54: 34 | J54: Rodrigo Ricardo | K54: 51 | L54: Rodrigo Ricardo | M54: 69 | N54: Rodrigo Ricardo | O54: 80 | P54: Rodrigo Ricardo | Q54: 96 | R54: Rodrigo Ricardo | S54: 120 | T54: Rodrigo Ricardo | U54: 142 | V54: Rodrigo Ricardo | W54: 164 | X54: - | Y54: - | Z54: - | AA54: Rodrigo Ricardo | AB54: 184 | AC54: - | AD54: - | AE54: -
B55: Eduardo Henrique | C55: 0 | D55: Tati Marcondes | E55: 13 | F55: Tati Marcondes | G55: 16 | H55: Tati Marcondes | I55: 16 | J55: Tati Marcondes | K55: 28 | L55: Tati Marcondes | M55: 28 | N55: Tati Marcondes | O55: 37 | P55: Tati Marcondes | Q55: 37 | R55: Tati Marcondes | S55: 55 | T55: Tati Marcondes | U55: 55 | V55: Tati Marcondes | W55: 69 | X55: - | Y55: - | Z55: - | AA55: Tati Marcondes | AB55: 71 | AC55: - | AD55: - | AE55: -
B56: Felipe Bouhid | C56: 0 | D56: Jucimar Vieira | E56: 11 | F56: Jucimar Vieira | G56: 11 | H56: Jucimar Vieira | I56: 11 | J56: Jucimar Vieira | K56: 24 | L56: Jucimar Vieira | M56: 37 | N56: Jucimar Vieira | O56: 44 | P56: Jucimar Vieira | Q56: 56 | R56: Jucimar Vieira | S56: 56 | T56: Jucimar Vieira | U56: 63 | V56: Jucimar Vieira | W56: 78 | X56: - | Y56: - | Z56: - | AA56: Jucimar Vieira | AB56: 96 | AC56: - | AD56: - | AE56: -
B57: Reila Ricardo | C57: 11 | D57: Andre Resende | E57: 0 | F57: Andre Resende | G57: 5 | H57: Andre Resende | I57: 5 | J57: Andre Resende | K57: 5 | L57: Andre Resende | M57: 25 | N57: Andre Resende | O57: 25 | P57: Andre Resende | Q57: 36 | R57: Andre Resende | S57: 36 | T57: Andre Resende | U57: 36 | V57: Andre Resende | W57: 36 | X57: - | Y57: - | Z57: - | AA57: Andre Resende | AB57: 36 | AC57: - | AD57: - | AE57: -
B58: XXXXXXX | C58: 0 | D58: XXXXXXXX | E58: 0 | F58: XXXXXXXX | G58: 0 | H58: XXXXXXXX | I58: 0 | J58: XXXXXXXX | K58: 0 | L58: XXXXXXXX | M58: 0 | N58: XXXXXXXX | O58: 0 | P58: Gabriel Garabini | Q58: 0 | R58: Gabriel Garabini | S58: 0 | T58: Gabriel Garabini | U58: 0 | V58: Gabriel Garabini | W58: 0 | X58: - | Y58: - | Z58: - | AA58: Gabriel Garabini | AB58: 0 | AC58: - | AD58: - | AE58: -

Sheet PRESENÇAS
A1: PILOTO | B1: 1 ETAPA | C1: 2 ETAPA | D1: 3 ETAPA | E1: 4 ETAPA | F1: 5 ETAPA | G1: 6 ETAPA | H1: 7 ETAPA | I1: 8 ETAPA | J1: 9 ETAPA | K1: 10 ETAPA | L1: 11 ETAPA | M1: 12 ETAPA | N1: Faltou | O1: PUNIÇÕES
A2: Alexandre Melillo | B2: ok | C2: ok | D2: ok | E2: ok | F2: ok | G2: ok | H2: ok | I2: ok | J2: ok | K2: ok | L2: ok | M2: Faltou | N2: 0 | O2: =COUNTIF(TABELA!$B5:$AY5,"SIM") -> 1
A3: Bernardo Freitas | B3: ok | C3: Faltou | D3: ok | E3: ok | F3: ok | G3: ok | H3: Faltou | I3: Faltou | J3: Faltou | K3: Faltou | L3: Faltou | M3: Faltou | N3: 4 | O3: =COUNTIF(TABELA!$B6:$AY6,"SIM") -> 1
A4: Cláudio Dumont | B4: ok | C4: ok | D4: ok | E4: ok | F4: ok | G4: Faltou | H4: Faltou | I4: Faltou | J4: Faltou | K4: Faltou | L4: Faltou | M4: Faltou | N4: 4 | O4: =COUNTIF(TABELA!$B7:$AY7,"SIM") -> 0
A5: Cláudio Naves | B5: ok | C5: ok | D5: ok | E5: ok | F5: ok | G5: ok | H5: ok | I5: Faltou | J5: Faltou | K5: Faltou | L5: ok | M5: ok | N5: 2 | O5: =COUNTIF(TABELA!$B8:$AY8,"SIM") -> 2
A6: Daniel Nahum | B6: ok | C6: ok | D6: ok | E6: ok | F6: ok | G6: ok | H6: ok | I6: ok | J6: ok | K6: ok | L6: ok | M6: ok | N6: 0 | O6: =COUNTIF(TABELA!$B9:$AY9,"SIM") -> 0
A7: SSSSS | B7: Faltou | C7: Faltou | D7: Faltou | E7: Faltou | F7: Faltou | G7: Faltou | H7: Faltou | I7: Faltou | J7: Faltou | K7: Faltou | L7: Faltou | M7: Faltou | N7: 9 | O7: =COUNTIF(TABELA!$B10:$AY10,"SIM") -> 0
A8: Eduardo Henrique | B8: Faltou | C8: ok | D8: ok | E8: ok | F8: ok | G8: ok | H8: ok | I8: ok | J8: ok | K8: Faltou | L8: ok | M8: Faltou | N8: 1 | O8: =COUNTIF(TABELA!$B11:$AY11,"SIM") -> 1
A9: Frederico Papatella | B9: ok | C9: ok | D9: ok | E9: Faltou | F9: Faltou | G9: Faltou | H9: Faltou | I9: Faltou | J9: Faltou | K9: ok | L9: ok | M9: Faltou | N9: 6 | O9: =COUNTIF(TABELA!$B12:$AY12,"SIM") -> 1
A10: Guilherme Alves | B10: ok | C10: ok | D10: ok | E10: ok | F10: ok | G10: ok | H10: ok | I10: ok | J10: ok | K10: Faltou | L10: ok | M10: ok | N10: 0 | O10: =COUNTIF(TABELA!$B13:$AY13,"SIM") -> 2
A11: Felipe Bouhid | B11: Faltou | C11: Faltou | D11: Faltou | E11: Faltou | F11: Faltou | G11: Faltou | H11: Faltou | I11: ok | J11: ok | K11: ok | L11: ok | M11: ok | N11: 7 | O11: =COUNTIF(TABELA!$B14:$AY14,"SIM") -> 0
A12: Hélio Chagas | B12: ok | C12: ok | D12: ok | E12: Faltou | F12: ok | G12: ok | H12: ok | I12: ok | J12: Faltou | K12: ok | L12: ok | M12: ok | N12: 2 | O12: =COUNTIF(TABELA!$B15:$AY15,"SIM") -> 1
A13: Hugo Denucci | B13: Faltou | C13: Faltou | D13: Faltou | E13: Faltou | F13: Faltou | G13: Faltou | H13: Faltou | I13: Faltou | J13: Faltou | K13: Faltou | L13: Faltou | M13: Faltou | N13: 9 | O13: =COUNTIF(TABELA!$B16:$AY16,"SIM") -> 0
A14: Jarbas Reis | B14: ok | C14: ok | D14: ok | E14: ok | F14: ok | G14: ok | H14: ok | I14: ok | J14: ok | K14: ok | L14: ok | M14: ok | N14: 0 | O14: =COUNTIF(TABELA!$B17:$AY17,"SIM") -> 0
A15: Leandro Malias | B15: ok | C15: ok | D15: Faltou | E15: Faltou | F15: Faltou | G15: ok | H15: ok | I15: Faltou | J15: Faltou | K15: Faltou | L15: ok | M15: ok | N15: 5 | O15: =COUNTIF(TABELA!$B18:$AY18,"SIM") -> 0
A16: Lucas Guimarães | B16: Faltou | C16: ok | D16: Faltou | E16: ok | F16: ok | G16: Faltou | H16: ok | I16: ok | J16: Faltou | K16: Faltou | L16: Faltou | M16: Faltou | N16: 4 | O16: =COUNTIF(TABELA!$B19:$AY19,"SIM") -> 2
A17: Luciano Robervine | B17: ok | C17: ok | D17: ok | E17: ok | F17: Faltou | G17: Faltou | H17: Faltou | I17: Faltou | J17: Faltou | K17: Faltou | L17: Faltou | M17: Faltou | N17: 5 | O17: =COUNTIF(TABELA!$B20:$AY20,"SIM") -> 1
A18: Marcelo Campos | B18: ok | C18: ok | D18: ok | E18: ok | F18: ok | G18: ok | H18: ok | I18: ok | J18: ok | K18: ok | L18: ok | M18: ok | N18: 0 | O18: =COUNTIF(TABELA!$B21:$AY21,"SIM") -> 0
A19: Marcelo Chagas | B19: ok | C19: ok | D19: ok | E19: Faltou | F19: ok | G19: ok | H19: ok | I19: ok | J19: Faltou | K19: ok | L19: ok | M19: ok | N19: 2 | O19: =COUNTIF(TABELA!$B22:$AY22,"SIM") -> 1
A20: Marcelo Clemente | B20: ok | C20: ok | D20: ok | E20: ok | F20: ok | G20: ok | H20: ok | I20: ok | J20: ok | K20: Faltou | L20: ok | M20: ok | N20: 0 | O20: =COUNTIF(TABELA!$B23:$AY23,"SIM") -> 1
A21: Marcelo Marcondes | B21: ok | C21: ok | D21: ok | E21: ok | F21: ok | G21: ok | H21: Faltou | I21: ok | J21: ok | K21: ok | L21: ok | M21: ok | N21: 1 | O21: =COUNTIF(TABELA!$B24:$AY24,"SIM") -> 2
A22: Marcelo Pereira | B22: ok | C22: ok | D22: ok | E22: ok | F22: ok | G22: Faltou | H22: ok | I22: ok | J22: ok | K22: ok | L22: ok | M22: ok | N22: 1 | O22: =COUNTIF(TABELA!$B25:$AY25,"SIM") -> 5
A23: Marcelo Sant'anna | B23: ok | C23: ok | D23: ok | E23: Faltou | F23: Faltou | G23: ok | H23: Faltou | I23: Faltou | J23: Faltou | K23: Faltou | L23: Faltou | M23: Faltou | N23: 5 | O23: =COUNTIF(TABELA!$B26:$AY26,"SIM") -> 2
A24: Bernardo Gatti | B24: Faltou | C24: Faltou | D24: Faltou | E24: Faltou | F24: Faltou | G24: Faltou | H24: Faltou | I24: Faltou | J24: ok | K24: Faltou | L24: Faltou | M24: Faltou | N24: 9 | O24: =COUNTIF(TABELA!$B27:$AY27,"SIM") -> 0
A25: Maurício Júnior | B25: ok | C25: ok | D25: ok | E25: ok | F25: ok | G25: ok | H25: ok | I25: Faltou | J25: ok | K25: ok | L25: ok | M25: ok | N25: 1 | O25: =COUNTIF(TABELA!$B28:$AY28,"SIM") -> 1
A26: Pedro Mello | B26: Faltou | C26: ok | D26: Faltou | E26: Faltou | F26: Faltou | G26: ok | H26: Faltou | I26: Faltou | J26: Faltou | K26: Faltou | L26: Faltou | M26: Faltou | N26: 7 | O26: =COUNTIF(TABELA!$B29:$AY29,"SIM") -> 0
A27: Raphael Reis | B27: ok | C27: ok | D27: ok | E27: ok | F27: Faltou | G27: Faltou | H27: Faltou | I27: Faltou | J27: Faltou | K27: Faltou | L27: ok | M27: ok | N27: 5 | O27: =COUNTIF(TABELA!$B30:$AY30,"SIM") -> 0
A28: Reila Ricardo | B28: ok | C28: ok | D28: ok | E28: ok | F28: Faltou | G28: ok | H28: Faltou | I28: ok | J28: ok | K28: Faltou | L28: Faltou | M28: Faltou | N28: 2 | O28: =COUNTIF(TABELA!$B31:$AY31,"SIM") -> 0
A29: Renato Amaral | B29: ok | C29: ok | D29: ok | E29: ok | F29: ok | G29: Faltou | H29: Faltou | I29: Faltou | J29: ok | K29: ok | L29: ok | M29: Faltou | N29: 3 | O29: =COUNTIF(TABELA!$B32:$AY32,"SIM") -> 1
A30: Rodrigo Mercadante | B30: ok | C30: ok | D30: Faltou | E30: Faltou | F30: ok | G30: ok | H30: ok | I30: Faltou | J30: Faltou | K30: Faltou | L30: Faltou | M30: Faltou | N30: 4 | O30: =COUNTIF(TABELA!$B33:$AY33,"SIM") -> 1
A31: Rodrigo Ricardo | B31: ok | C31: ok | D31: ok | E31: ok | F31: ok | G31: ok | H31: Faltou | I31: ok | J31: ok | K31: ok | L31: ok | M31: ok | N31: 1 | O31: =COUNTIF(TABELA!$B34:$AY34,"SIM") -> 0
A32: Tati Marcondes | B32: ok | C32: ok | D32: ok | E32: ok | F32: ok | G32: ok | H32: Faltou | I32: ok | J32: ok | K32: Faltou | L32: ok | M32: ok | N32: 1 | O32: =COUNTIF(TABELA!$B35:$AY35,"SIM") -> 3
A33: Wesley Bambirra | B33: ok | C33: ok | D33: ok | E33: ok | F33: ok | G33: ok | H33: ok | I33: ok | J33: ok | K33: Faltou | L33: ok | M33: ok | N33: 0 | O33: =COUNTIF(TABELA!$B36:$AY36,"SIM") -> 0
A34: Wesley Camargos | B34: Faltou | C34: Faltou | D34: Faltou | E34: ok | F34: Faltou | G34: Faltou | H34: ok | I34: Faltou | J34: Faltou | K34: Faltou | L34: ok | M34: Faltou | N34: 7 | O34: =COUNTIF(TABELA!$B37:$AY37,"SIM") -> 0
A35: Wesley Canuto | B35: ok | C35: ok | D35: ok | E35: ok | F35: ok | G35: ok | H35: ok | I35: ok | J35: ok | K35: ok | L35: ok | M35: ok | N35: 0 | O35: =COUNTIF(TABELA!$B38:$AY38,"SIM") -> 0
A36: Roberta Epifânio | B36: Faltou | C36: ok | D36: ok | E36: ok | F36: Faltou | G36: ok | H36: ok | I36: ok | J36: Faltou | K36: Faltou | L36: ok | M36: Faltou | N36: 3 | O36: =COUNTIF(TABELA!$B39:$AY39,"SIM") -> 1
A37: Jucimar Vieira | B37: Faltou | C37: ok | D37: ok | E37: ok | F37: ok | G37: ok | H37: ok | I37: ok | J37: Faltou | K37: ok | L37: ok | M37: ok | N37: 2 | O37: =COUNTIF(TABELA!$B40:$AY40,"SIM") -> 1
A38: Andre Resende | B38: Faltou | C38: Faltou | D38: Faltou | E38: Faltou | F38: Faltou | G38: Faltou | H38: Faltou | I38: ok | J38: Faltou | K38: Faltou | L38: Faltou | M38: Faltou | N38: 8 | O38: =COUNTIF(TABELA!$B41:$AY41,"SIM") -> 0
A39: Izabella Rodrigues | B39: Faltou | C39: Faltou | D39: ok | E39: ok | F39: Faltou | G39: Faltou | H39: ok | I39: ok | J39: Faltou | K39: Faltou | L39: Faltou | M39: Faltou | N39: 5 | O39: =COUNTIF(TABELA!$B42:$AY42,"SIM") -> 1
A40: Lucca Veloso | B40: Faltou | C40: Faltou | D40: Faltou | E40: Faltou | F40: Faltou | G40: Faltou | H40: Faltou | I40: ok | J40: ok | K40: Faltou | L40: Faltou | M40: ok | N40: 7 | O40: =COUNTIF(TABELA!$B43:$AY43,"SIM") -> 2
A41: Vitor Gatti | B41: Faltou | C41: Faltou | D41: Faltou | E41: Faltou | F41: Faltou | G41: Faltou | H41: Faltou | I41: ok | J41: ok | K41: ok | L41: ok | M41: ok | N41: 7 | O41: =COUNTIF(TABELA!$B44:$AY44,"SIM") -> 0
A42: Gabriel Garabini | B42: Faltou | C42: Faltou | D42: Faltou | E42: Faltou | F42: Faltou | G42: Faltou | H42: Faltou | I42: Faltou | J42: Faltou | K42: Faltou | L42: Faltou | M42: Faltou | N42: 9 | O42: =COUNTIF(TABELA!$B45:$AY45,"SIM") -> 0
N43: 0 | O43: =COUNTIF(TABELA!$B46:$AY46,"SIM") -> 0
N44: 0 | O44: =COUNTIF(TABELA!$B47:$AY47,"SIM") -> 0
N45: 0 | O45: =COUNTIF(TABELA!$B48:$AY48,"SIM") -> 0
N46: 0 | O46: =COUNTIF(TABELA!$B49:$AY49,"SIM") -> 0

Sheet TROCA KART
A1: PILOTO | B1: 1 ETAPA | C1: 2 ETAPA | D1: 3 ETAPA | E1: 4 ETAPA | F1: 5 ETAPA | G1: 6 ETAPA | H1: 7 ETAPA | I1: 8 ETAPA | J1: 9 ETAPA | K1: 10 ETAPA | L1: 11 ETAPA | M1: 12 ETAPA | N1: Troca
A2: Alexandre Melillo | B2: =IF(ISERROR(VLOOKUP($A2,[1]BD!$E$2:$K$29,7,FALSE)),"",IF(VLOOKUP($A2,[1]BD!$E$2:$K$29,7,FALSE)="","",VLOOKUP($A2,[1]BD!$E$2:$K$29,7,FALSE))) -> TROCA | C2: =IF(ISERROR(VLOOKUP($A2,[1]BD!$E$30:$K$62,7,FALSE)),"",IF(VLOOKUP($A2,[1]BD!$E$30:$K$62,7,FALSE)="","",VLOOKUP($A2,[1]BD!$E$30:$K$62,7,FALSE))) ->  | D2: =IF(ISERROR(VLOOKUP($A2,[1]BD!$E$63:$K$93,7,FALSE)),"",IF(VLOOKUP($A2,[1]BD!$E$63:$K$93,7,FALSE)="","",VLOOKUP($A2,[1]BD!$E$63:$K$93,7,FALSE))) ->  | E2: =IF(ISERROR(VLOOKUP($A2,[1]BD!$E$94:$K$124,7,FALSE)),"",IF(VLOOKUP($A2,[1]BD!$E$94:$K$124,7,FALSE)="","",VLOOKUP($A2,[1]BD!$E$94:$K$124,7,FALSE))) ->  | F2: =IF(ISERROR(VLOOKUP($A2,[1]BD!$E$125:$K$150,7,FALSE)),"",IF(VLOOKUP($A2,[1]BD!$E$125:$K$150,7,FALSE)="","",VLOOKUP($A2,[1]BD!$E$125:$K$150,7,FALSE))) ->  | G2: =IF(ISERROR(VLOOKUP($A2,[1]BD!$E$151:$K$176,7,FALSE)),"",IF(VLOOKUP($A2,[1]BD!$E$151:$K$176,7,FALSE)="","",VLOOKUP($A2,[1]BD!$E$151:$K$176,7,FALSE))) ->  | H2: =IF(ISERROR(VLOOKUP($A2,[1]BD!$E$177:$K$197,7,FALSE)),"",IF(VLOOKUP($A2,[1]BD!$E$177:$K$197,7,FALSE)="","",VLOOKUP($A2,[1]BD!$E$177:$K$197,7,FALSE))) ->  | I2: =IF(ISERROR(VLOOKUP($A2,[1]BD!$E$198:$K$224,7,FALSE)),"",IF(VLOOKUP($A2,[1]BD!$E$198:$K$224,7,FALSE)="","",VLOOKUP($A2,[1]BD!$E$198:$K$224,7,FALSE))) ->  | J2: =IF(ISERROR(VLOOKUP($A2,[1]BD!$E$225:$K$244,7,FALSE)),"",IF(VLOOKUP($A2,[1]BD!$E$225:$K$244,7,FALSE)="","",VLOOKUP($A2,[1]BD!$E$225:$K$244,7,FALSE))) ->  | K2: =IF(ISERROR(VLOOKUP($A2,[1]BD!$E$245:$K$260,7,FALSE)),"",IF(VLOOKUP($A2,[1]BD!$E$245:$K$260,7,FALSE)="","",VLOOKUP($A2,[1]BD!$E$245:$K$260,7,FALSE))) ->  | L2: =IF(ISERROR(VLOOKUP($A2,[1]BD!$E$261:$K$288,7,FALSE)),"",IF(VLOOKUP($A2,[1]BD!$E$261:$K$288,7,FALSE)="","",VLOOKUP($A2,[1]BD!$E$261:$K$288,7,FALSE))) ->  | M2: =IF(ISERROR(VLOOKUP($A2,[1]BD!$E$289:$K$309,7,FALSE)),"",IF(VLOOKUP($A2,[1]BD!$E$289:$K$309,7,FALSE)="","",VLOOKUP($A2,[1]BD!$E$289:$K$309,7,FALSE))) ->  | N2: =COUNTIF(B2:M2,$N$1) -> 1
A3: Bernardo Freitas | B3: =IF(ISERROR(VLOOKUP($A3,[1]BD!$E$2:$K$29,7,FALSE)),"",IF(VLOOKUP($A3,[1]BD!$E$2:$K$29,7,FALSE)="","",VLOOKUP($A3,[1]BD!$E$2:$K$29,7,FALSE))) -> TROCA | C3: =IF(ISERROR(VLOOKUP($A3,[1]BD!$E$30:$K$62,7,FALSE)),"",IF(VLOOKUP($A3,[1]BD!$E$30:$K$62,7,FALSE)="","",VLOOKUP($A3,[1]BD!$E$30:$K$62,7,FALSE))) ->  | D3: =IF(ISERROR(VLOOKUP($A3,[1]BD!$E$63:$K$93,7,FALSE)),"",IF(VLOOKUP($A3,[1]BD!$E$63:$K$93,7,FALSE)="","",VLOOKUP($A3,[1]BD!$E$63:$K$93,7,FALSE))) ->  | E3: =IF(ISERROR(VLOOKUP($A3,[1]BD!$E$94:$K$124,7,FALSE)),"",IF(VLOOKUP($A3,[1]BD!$E$94:$K$124,7,FALSE)="","",VLOOKUP($A3,[1]BD!$E$94:$K$124,7,FALSE))) ->  | F3: =IF(ISERROR(VLOOKUP($A3,[1]BD!$E$125:$K$150,7,FALSE)),"",IF(VLOOKUP($A3,[1]BD!$E$125:$K$150,7,FALSE)="","",VLOOKUP($A3,[1]BD!$E$125:$K$150,7,FALSE))) ->  | G3: =IF(ISERROR(VLOOKUP($A3,[1]BD!$E$151:$K$176,7,FALSE)),"",IF(VLOOKUP($A3,[1]BD!$E$151:$K$176,7,FALSE)="","",VLOOKUP($A3,[1]BD!$E$151:$K$176,7,FALSE))) ->  | H3: =IF(ISERROR(VLOOKUP($A3,[1]BD!$E$177:$K$197,7,FALSE)),"",IF(VLOOKUP($A3,[1]BD!$E$177:$K$197,7,FALSE)="","",VLOOKUP($A3,[1]BD!$E$177:$K$197,7,FALSE))) ->  | I3: =IF(ISERROR(VLOOKUP($A3,[1]BD!$E$198:$K$224,7,FALSE)),"",IF(VLOOKUP($A3,[1]BD!$E$198:$K$224,7,FALSE)="","",VLOOKUP($A3,[1]BD!$E$198:$K$224,7,FALSE))) ->  | J3: =IF(ISERROR(VLOOKUP($A3,[1]BD!$E$225:$K$244,7,FALSE)),"",IF(VLOOKUP($A3,[1]BD!$E$225:$K$244,7,FALSE)="","",VLOOKUP($A3,[1]BD!$E$225:$K$244,7,FALSE))) ->  | K3: =IF(ISERROR(VLOOKUP($A3,[1]BD!$E$245:$K$260,7,FALSE)),"",IF(VLOOKUP($A3,[1]BD!$E$245:$K$260,7,FALSE)="","",VLOOKUP($A3,[1]BD!$E$245:$K$260,7,FALSE))) ->  | L3: =IF(ISERROR(VLOOKUP($A3,[1]BD!$E$261:$K$288,7,FALSE)),"",IF(VLOOKUP($A3,[1]BD!$E$261:$K$288,7,FALSE)="","",VLOOKUP($A3,[1]BD!$E$261:$K$288,7,FALSE))) ->  | M3: =IF(ISERROR(VLOOKUP($A3,[1]BD!$E$289:$K$309,7,FALSE)),"",IF(VLOOKUP($A3,[1]BD!$E$289:$K$309,7,FALSE)="","",VLOOKUP($A3,[1]BD!$E$289:$K$309,7,FALSE))) ->  | N3: 1
A4: Cláudio Dumont | B4: =IF(ISERROR(VLOOKUP($A4,[1]BD!$E$2:$K$29,7,FALSE)),"",IF(VLOOKUP($A4,[1]BD!$E$2:$K$29,7,FALSE)="","",VLOOKUP($A4,[1]BD!$E$2:$K$29,7,FALSE))) -> TROCA | C4: =IF(ISERROR(VLOOKUP($A4,[1]BD!$E$30:$K$62,7,FALSE)),"",IF(VLOOKUP($A4,[1]BD!$E$30:$K$62,7,FALSE)="","",VLOOKUP($A4,[1]BD!$E$30:$K$62,7,FALSE))) ->  | D4: =IF(ISERROR(VLOOKUP($A4,[1]BD!$E$63:$K$93,7,FALSE)),"",IF(VLOOKUP($A4,[1]BD!$E$63:$K$93,7,FALSE)="","",VLOOKUP($A4,[1]BD!$E$63:$K$93,7,FALSE))) ->  | E4: =IF(ISERROR(VLOOKUP($A4,[1]BD!$E$94:$K$124,7,FALSE)),"",IF(VLOOKUP($A4,[1]BD!$E$94:$K$124,7,FALSE)="","",VLOOKUP($A4,[1]BD!$E$94:$K$124,7,FALSE))) ->  | F4: =IF(ISERROR(VLOOKUP($A4,[1]BD!$E$125:$K$150,7,FALSE)),"",IF(VLOOKUP($A4,[1]BD!$E$125:$K$150,7,FALSE)="","",VLOOKUP($A4,[1]BD!$E$125:$K$150,7,FALSE))) -> TROCA | G4: =IF(ISERROR(VLOOKUP($A4,[1]BD!$E$151:$K$176,7,FALSE)),"",IF(VLOOKUP($A4,[1]BD!$E$151:$K$176,7,FALSE)="","",VLOOKUP($A4,[1]BD!$E$151:$K$176,7,FALSE))) ->  | H4: =IF(ISERROR(VLOOKUP($A4,[1]BD!$E$177:$K$197,7,FALSE)),"",IF(VLOOKUP($A4,[1]BD!$E$177:$K$197,7,FALSE)="","",VLOOKUP($A4,[1]BD!$E$177:$K$197,7,FALSE))) ->  | I4: =IF(ISERROR(VLOOKUP($A4,[1]BD!$E$198:$K$224,7,FALSE)),"",IF(VLOOKUP($A4,[1]BD!$E$198:$K$224,7,FALSE)="","",VLOOKUP($A4,[1]BD!$E$198:$K$224,7,FALSE))) ->  | J4: =IF(ISERROR(VLOOKUP($A4,[1]BD!$E$225:$K$244,7,FALSE)),"",IF(VLOOKUP($A4,[1]BD!$E$225:$K$244,7,FALSE)="","",VLOOKUP($A4,[1]BD!$E$225:$K$244,7,FALSE))) ->  | K4: =IF(ISERROR(VLOOKUP($A4,[1]BD!$E$245:$K$260,7,FALSE)),"",IF(VLOOKUP($A4,[1]BD!$E$245:$K$260,7,FALSE)="","",VLOOKUP($A4,[1]BD!$E$245:$K$260,7,FALSE))) ->  | L4: =IF(ISERROR(VLOOKUP($A4,[1]BD!$E$261:$K$288,7,FALSE)),"",IF(VLOOKUP($A4,[1]BD!$E$261:$K$288,7,FALSE)="","",VLOOKUP($A4,[1]BD!$E$261:$K$288,7,FALSE))) ->  | M4: =IF(ISERROR(VLOOKUP($A4,[1]BD!$E$289:$K$309,7,FALSE)),"",IF(VLOOKUP($A4,[1]BD!$E$289:$K$309,7,FALSE)="","",VLOOKUP($A4,[1]BD!$E$289:$K$309,7,FALSE))) ->  | N4: 2
A5: Cláudio Naves | B5: =IF(ISERROR(VLOOKUP($A5,[1]BD!$E$2:$K$29,7,FALSE)),"",IF(VLOOKUP($A5,[1]BD!$E$2:$K$29,7,FALSE)="","",VLOOKUP($A5,[1]BD!$E$2:$K$29,7,FALSE))) ->  | C5: =IF(ISERROR(VLOOKUP($A5,[1]BD!$E$30:$K$62,7,FALSE)),"",IF(VLOOKUP($A5,[1]BD!$E$30:$K$62,7,FALSE)="","",VLOOKUP($A5,[1]BD!$E$30:$K$62,7,FALSE))) ->  | D5: =IF(ISERROR(VLOOKUP($A5,[1]BD!$E$63:$K$93,7,FALSE)),"",IF(VLOOKUP($A5,[1]BD!$E$63:$K$93,7,FALSE)="","",VLOOKUP($A5,[1]BD!$E$63:$K$93,7,FALSE))) ->  | E5: =IF(ISERROR(VLOOKUP($A5,[1]BD!$E$94:$K$124,7,FALSE)),"",IF(VLOOKUP($A5,[1]BD!$E$94:$K$124,7,FALSE)="","",VLOOKUP($A5,[1]BD!$E$94:$K$124,7,FALSE))) ->  | F5: =IF(ISERROR(VLOOKUP($A5,[1]BD!$E$125:$K$150,7,FALSE)),"",IF(VLOOKUP($A5,[1]BD!$E$125:$K$150,7,FALSE)="","",VLOOKUP($A5,[1]BD!$E$125:$K$150,7,FALSE))) -> TROCA | G5: =IF(ISERROR(VLOOKUP($A5,[1]BD!$E$151:$K$176,7,FALSE)),"",IF(VLOOKUP($A5,[1]BD!$E$151:$K$176,7,FALSE)="","",VLOOKUP($A5,[1]BD!$E$151:$K$176,7,FALSE))) ->  | H5: =IF(ISERROR(VLOOKUP($A5,[1]BD!$E$177:$K$197,7,FALSE)),"",IF(VLOOKUP($A5,[1]BD!$E$177:$K$197,7,FALSE)="","",VLOOKUP($A5,[1]BD!$E$177:$K$197,7,FALSE))) ->  | I5: =IF(ISERROR(VLOOKUP($A5,[1]BD!$E$198:$K$224,7,FALSE)),"",IF(VLOOKUP($A5,[1]BD!$E$198:$K$224,7,FALSE)="","",VLOOKUP($A5,[1]BD!$E$198:$K$224,7,FALSE))) ->  | J5: =IF(ISERROR(VLOOKUP($A5,[1]BD!$E$225:$K$244,7,FALSE)),"",IF(VLOOKUP($A5,[1]BD!$E$225:$K$244,7,FALSE)="","",VLOOKUP($A5,[1]BD!$E$225:$K$244,7,FALSE))) ->  | K5: =IF(ISERROR(VLOOKUP($A5,[1]BD!$E$245:$K$260,7,FALSE)),"",IF(VLOOKUP($A5,[1]BD!$E$245:$K$260,7,FALSE)="","",VLOOKUP($A5,[1]BD!$E$245:$K$260,7,FALSE))) ->  | L5: =IF(ISERROR(VLOOKUP($A5,[1]BD!$E$261:$K$288,7,FALSE)),"",IF(VLOOKUP($A5,[1]BD!$E$261:$K$288,7,FALSE)="","",VLOOKUP($A5,[1]BD!$E$261:$K$288,7,FALSE))) ->  | M5: =IF(ISERROR(VLOOKUP($A5,[1]BD!$E$289:$K$309,7,FALSE)),"",IF(VLOOKUP($A5,[1]BD!$E$289:$K$309,7,FALSE)="","",VLOOKUP($A5,[1]BD!$E$289:$K$309,7,FALSE))) -> TROCA | N5: 2
A6: Daniel Nahum | B6: =IF(ISERROR(VLOOKUP($A6,[1]BD!$E$2:$K$29,7,FALSE)),"",IF(VLOOKUP($A6,[1]BD!$E$2:$K$29,7,FALSE)="","",VLOOKUP($A6,[1]BD!$E$2:$K$29,7,FALSE))) ->  | C6: =IF(ISERROR(VLOOKUP($A6,[1]BD!$E$30:$K$62,7,FALSE)),"",IF(VLOOKUP($A6,[1]BD!$E$30:$K$62,7,FALSE)="","",VLOOKUP($A6,[1]BD!$E$30:$K$62,7,FALSE))) ->  | D6: =IF(ISERROR(VLOOKUP($A6,[1]BD!$E$63:$K$93,7,FALSE)),"",IF(VLOOKUP($A6,[1]BD!$E$63:$K$93,7,FALSE)="","",VLOOKUP($A6,[1]BD!$E$63:$K$93,7,FALSE))) ->  | E6: =IF(ISERROR(VLOOKUP($A6,[1]BD!$E$94:$K$124,7,FALSE)),"",IF(VLOOKUP($A6,[1]BD!$E$94:$K$124,7,FALSE)="","",VLOOKUP($A6,[1]BD!$E$94:$K$124,7,FALSE))) ->  | F6: =IF(ISERROR(VLOOKUP($A6,[1]BD!$E$125:$K$150,7,FALSE)),"",IF(VLOOKUP($A6,[1]BD!$E$125:$K$150,7,FALSE)="","",VLOOKUP($A6,[1]BD!$E$125:$K$150,7,FALSE))) -> TROCA | G6: =IF(ISERROR(VLOOKUP($A6,[1]BD!$E$151:$K$176,7,FALSE)),"",IF(VLOOKUP($A6,[1]BD!$E$151:$K$176,7,FALSE)="","",VLOOKUP($A6,[1]BD!$E$151:$K$176,7,FALSE))) ->  | H6: =IF(ISERROR(VLOOKUP($A6,[1]BD!$E$177:$K$197,7,FALSE)),"",IF(VLOOKUP($A6,[1]BD!$E$177:$K$197,7,FALSE)="","",VLOOKUP($A6,[1]BD!$E$177:$K$197,7,FALSE))) ->  | I6: =IF(ISERROR(VLOOKUP($A6,[1]BD!$E$198:$K$224,7,FALSE)),"",IF(VLOOKUP($A6,[1]BD!$E$198:$K$224,7,FALSE)="","",VLOOKUP($A6,[1]BD!$E$198:$K$224,7,FALSE))) ->  | J6: =IF(ISERROR(VLOOKUP($A6,[1]BD!$E$225:$K$244,7,FALSE)),"",IF(VLOOKUP($A6,[1]BD!$E$225:$K$244,7,FALSE)="","",VLOOKUP($A6,[1]BD!$E$225:$K$244,7,FALSE))) ->  | K6: =IF(ISERROR(VLOOKUP($A6,[1]BD!$E$245:$K$260,7,FALSE)),"",IF(VLOOKUP($A6,[1]BD!$E$245:$K$260,7,FALSE)="","",VLOOKUP($A6,[1]BD!$E$245:$K$260,7,FALSE))) ->  | L6: =IF(ISERROR(VLOOKUP($A6,[1]BD!$E$261:$K$288,7,FALSE)),"",IF(VLOOKUP($A6,[1]BD!$E$261:$K$288,7,FALSE)="","",VLOOKUP($A6,[1]BD!$E$261:$K$288,7,FALSE))) ->  | M6: =IF(ISERROR(VLOOKUP($A6,[1]BD!$E$289:$K$309,7,FALSE)),"",IF(VLOOKUP($A6,[1]BD!$E$289:$K$309,7,FALSE)="","",VLOOKUP($A6,[1]BD!$E$289:$K$309,7,FALSE))) ->  | N6: 1
A7: SSSSS | B7: =IF(ISERROR(VLOOKUP($A7,[1]BD!$E$2:$K$29,7,FALSE)),"",IF(VLOOKUP($A7,[1]BD!$E$2:$K$29,7,FALSE)="","",VLOOKUP($A7,[1]BD!$E$2:$K$29,7,FALSE))) ->  | C7: =IF(ISERROR(VLOOKUP($A7,[1]BD!$E$30:$K$62,7,FALSE)),"",IF(VLOOKUP($A7,[1]BD!$E$30:$K$62,7,FALSE)="","",VLOOKUP($A7,[1]BD!$E$30:$K$62,7,FALSE))) ->  | D7: =IF(ISERROR(VLOOKUP($A7,[1]BD!$E$63:$K$93,7,FALSE)),"",IF(VLOOKUP($A7,[1]BD!$E$63:$K$93,7,FALSE)="","",VLOOKUP($A7,[1]BD!$E$63:$K$93,7,FALSE))) ->  | E7: =IF(ISERROR(VLOOKUP($A7,[1]BD!$E$94:$K$124,7,FALSE)),"",IF(VLOOKUP($A7,[1]BD!$E$94:$K$124,7,FALSE)="","",VLOOKUP($A7,[1]BD!$E$94:$K$124,7,FALSE))) ->  | F7: =IF(ISERROR(VLOOKUP($A7,[1]BD!$E$125:$K$150,7,FALSE)),"",IF(VLOOKUP($A7,[1]BD!$E$125:$K$150,7,FALSE)="","",VLOOKUP($A7,[1]BD!$E$125:$K$150,7,FALSE))) ->  | G7: =IF(ISERROR(VLOOKUP($A7,[1]BD!$E$151:$K$176,7,FALSE)),"",IF(VLOOKUP($A7,[1]BD!$E$151:$K$176,7,FALSE)="","",VLOOKUP($A7,[1]BD!$E$151:$K$176,7,FALSE))) ->  | H7: =IF(ISERROR(VLOOKUP($A7,[1]BD!$E$177:$K$197,7,FALSE)),"",IF(VLOOKUP($A7,[1]BD!$E$177:$K$197,7,FALSE)="","",VLOOKUP($A7,[1]BD!$E$177:$K$197,7,FALSE))) ->  | I7: =IF(ISERROR(VLOOKUP($A7,[1]BD!$E$198:$K$224,7,FALSE)),"",IF(VLOOKUP($A7,[1]BD!$E$198:$K$224,7,FALSE)="","",VLOOKUP($A7,[1]BD!$E$198:$K$224,7,FALSE))) ->  | J7: =IF(ISERROR(VLOOKUP($A7,[1]BD!$E$225:$K$244,7,FALSE)),"",IF(VLOOKUP($A7,[1]BD!$E$225:$K$244,7,FALSE)="","",VLOOKUP($A7,[1]BD!$E$225:$K$244,7,FALSE))) ->  | K7: =IF(ISERROR(VLOOKUP($A7,[1]BD!$E$245:$K$260,7,FALSE)),"",IF(VLOOKUP($A7,[1]BD!$E$245:$K$260,7,FALSE)="","",VLOOKUP($A7,[1]BD!$E$245:$K$260,7,FALSE))) ->  | L7: =IF(ISERROR(VLOOKUP($A7,[1]BD!$E$261:$K$288,7,FALSE)),"",IF(VLOOKUP($A7,[1]BD!$E$261:$K$288,7,FALSE)="","",VLOOKUP($A7,[1]BD!$E$261:$K$288,7,FALSE))) ->  | M7: =IF(ISERROR(VLOOKUP($A7,[1]BD!$E$289:$K$309,7,FALSE)),"",IF(VLOOKUP($A7,[1]BD!$E$289:$K$309,7,FALSE)="","",VLOOKUP($A7,[1]BD!$E$289:$K$309,7,FALSE))) ->  | N7: 0
A8: Eduardo Henrique | B8: =IF(ISERROR(VLOOKUP($A8,[1]BD!$E$2:$K$29,7,FALSE)),"",IF(VLOOKUP($A8,[1]BD!$E$2:$K$29,7,FALSE)="","",VLOOKUP($A8,[1]BD!$E$2:$K$29,7,FALSE))) ->  | C8: =IF(ISERROR(VLOOKUP($A8,[1]BD!$E$30:$K$62,7,FALSE)),"",IF(VLOOKUP($A8,[1]BD!$E$30:$K$62,7,FALSE)="","",VLOOKUP($A8,[1]BD!$E$30:$K$62,7,FALSE))) ->  | D8: =IF(ISERROR(VLOOKUP($A8,[1]BD!$E$63:$K$93,7,FALSE)),"",IF(VLOOKUP($A8,[1]BD!$E$63:$K$93,7,FALSE)="","",VLOOKUP($A8,[1]BD!$E$63:$K$93,7,FALSE))) ->  | E8: =IF(ISERROR(VLOOKUP($A8,[1]BD!$E$94:$K$124,7,FALSE)),"",IF(VLOOKUP($A8,[1]BD!$E$94:$K$124,7,FALSE)="","",VLOOKUP($A8,[1]BD!$E$94:$K$124,7,FALSE))) ->  | F8: =IF(ISERROR(VLOOKUP($A8,[1]BD!$E$125:$K$150,7,FALSE)),"",IF(VLOOKUP($A8,[1]BD!$E$125:$K$150,7,FALSE)="","",VLOOKUP($A8,[1]BD!$E$125:$K$150,7,FALSE))) ->  | G8: =IF(ISERROR(VLOOKUP($A8,[1]BD!$E$151:$K$176,7,FALSE)),"",IF(VLOOKUP($A8,[1]BD!$E$151:$K$176,7,FALSE)="","",VLOOKUP($A8,[1]BD!$E$151:$K$176,7,FALSE))) ->  | H8: =IF(ISERROR(VLOOKUP($A8,[1]BD!$E$177:$K$197,7,FALSE)),"",IF(VLOOKUP($A8,[1]BD!$E$177:$K$197,7,FALSE)="","",VLOOKUP($A8,[1]BD!$E$177:$K$197,7,FALSE))) ->  | I8: =IF(ISERROR(VLOOKUP($A8,[1]BD!$E$198:$K$224,7,FALSE)),"",IF(VLOOKUP($A8,[1]BD!$E$198:$K$224,7,FALSE)="","",VLOOKUP($A8,[1]BD!$E$198:$K$224,7,FALSE))) ->  | J8: =IF(ISERROR(VLOOKUP($A8,[1]BD!$E$225:$K$244,7,FALSE)),"",IF(VLOOKUP($A8,[1]BD!$E$225:$K$244,7,FALSE)="","",VLOOKUP($A8,[1]BD!$E$225:$K$244,7,FALSE))) ->  | K8: =IF(ISERROR(VLOOKUP($A8,[1]BD!$E$245:$K$260,7,FALSE)),"",IF(VLOOKUP($A8,[1]BD!$E$245:$K$260,7,FALSE)="","",VLOOKUP($A8,[1]BD!$E$245:$K$260,7,FALSE))) ->  | L8: =IF(ISERROR(VLOOKUP($A8,[1]BD!$E$261:$K$288,7,FALSE)),"",IF(VLOOKUP($A8,[1]BD!$E$261:$K$288,7,FALSE)="","",VLOOKUP($A8,[1]BD!$E$261:$K$288,7,FALSE))) ->  | M8: =IF(ISERROR(VLOOKUP($A8,[1]BD!$E$289:$K$309,7,FALSE)),"",IF(VLOOKUP($A8,[1]BD!$E$289:$K$309,7,FALSE)="","",VLOOKUP($A8,[1]BD!$E$289:$K$309,7,FALSE))) ->  | N8: 0
A9: Frederico Papatella | B9: =IF(ISERROR(VLOOKUP($A9,[1]BD!$E$2:$K$29,7,FALSE)),"",IF(VLOOKUP($A9,[1]BD!$E$2:$K$29,7,FALSE)="","",VLOOKUP($A9,[1]BD!$E$2:$K$29,7,FALSE))) -> TROCA | C9: =IF(ISERROR(VLOOKUP($A9,[1]BD!$E$30:$K$62,7,FALSE)),"",IF(VLOOKUP($A9,[1]BD!$E$30:$K$62,7,FALSE)="","",VLOOKUP($A9,[1]BD!$E$30:$K$62,7,FALSE))) ->  | D9: =IF(ISERROR(VLOOKUP($A9,[1]BD!$E$63:$K$93,7,FALSE)),"",IF(VLOOKUP($A9,[1]BD!$E$63:$K$93,7,FALSE)="","",VLOOKUP($A9,[1]BD!$E$63:$K$93,7,FALSE))) ->  | E9: =IF(ISERROR(VLOOKUP($A9,[1]BD!$E$94:$K$124,7,FALSE)),"",IF(VLOOKUP($A9,[1]BD!$E$94:$K$124,7,FALSE)="","",VLOOKUP($A9,[1]BD!$E$94:$K$124,7,FALSE))) ->  | F9: =IF(ISERROR(VLOOKUP($A9,[1]BD!$E$125:$K$150,7,FALSE)),"",IF(VLOOKUP($A9,[1]BD!$E$125:$K$150,7,FALSE)="","",VLOOKUP($A9,[1]BD!$E$125:$K$150,7,FALSE))) ->  | G9: =IF(ISERROR(VLOOKUP($A9,[1]BD!$E$151:$K$176,7,FALSE)),"",IF(VLOOKUP($A9,[1]BD!$E$151:$K$176,7,FALSE)="","",VLOOKUP($A9,[1]BD!$E$151:$K$176,7,FALSE))) ->  | H9: =IF(ISERROR(VLOOKUP($A9,[1]BD!$E$177:$K$197,7,FALSE)),"",IF(VLOOKUP($A9,[1]BD!$E$177:$K$197,7,FALSE)="","",VLOOKUP($A9,[1]BD!$E$177:$K$197,7,FALSE))) ->  | I9: =IF(ISERROR(VLOOKUP($A9,[1]BD!$E$198:$K$224,7,FALSE)),"",IF(VLOOKUP($A9,[1]BD!$E$198:$K$224,7,FALSE)="","",VLOOKUP($A9,[1]BD!$E$198:$K$224,7,FALSE))) ->  | J9: =IF(ISERROR(VLOOKUP($A9,[1]BD!$E$225:$K$244,7,FALSE)),"",IF(VLOOKUP($A9,[1]BD!$E$225:$K$244,7,FALSE)="","",VLOOKUP($A9,[1]BD!$E$225:$K$244,7,FALSE))) ->  | K9: =IF(ISERROR(VLOOKUP($A9,[1]BD!$E$245:$K$260,7,FALSE)),"",IF(VLOOKUP($A9,[1]BD!$E$245:$K$260,7,FALSE)="","",VLOOKUP($A9,[1]BD!$E$245:$K$260,7,FALSE))) ->  | L9: =IF(ISERROR(VLOOKUP($A9,[1]BD!$E$261:$K$288,7,FALSE)),"",IF(VLOOKUP($A9,[1]BD!$E$261:$K$288,7,FALSE)="","",VLOOKUP($A9,[1]BD!$E$261:$K$288,7,FALSE))) -> TROCA | M9: =IF(ISERROR(VLOOKUP($A9,[1]BD!$E$289:$K$309,7,FALSE)),"",IF(VLOOKUP($A9,[1]BD!$E$289:$K$309,7,FALSE)="","",VLOOKUP($A9,[1]BD!$E$289:$K$309,7,FALSE))) ->  | N9: 2
A10: Guilherme Alves | B10: =IF(ISERROR(VLOOKUP($A10,[1]BD!$E$2:$K$29,7,FALSE)),"",IF(VLOOKUP($A10,[1]BD!$E$2:$K$29,7,FALSE)="","",VLOOKUP($A10,[1]BD!$E$2:$K$29,7,FALSE))) ->  | C10: =IF(ISERROR(VLOOKUP($A10,[1]BD!$E$30:$K$62,7,FALSE)),"",IF(VLOOKUP($A10,[1]BD!$E$30:$K$62,7,FALSE)="","",VLOOKUP($A10,[1]BD!$E$30:$K$62,7,FALSE))) ->  | D10: =IF(ISERROR(VLOOKUP($A10,[1]BD!$E$63:$K$93,7,FALSE)),"",IF(VLOOKUP($A10,[1]BD!$E$63:$K$93,7,FALSE)="","",VLOOKUP($A10,[1]BD!$E$63:$K$93,7,FALSE))) -> TROCA | E10: =IF(ISERROR(VLOOKUP($A10,[1]BD!$E$94:$K$124,7,FALSE)),"",IF(VLOOKUP($A10,[1]BD!$E$94:$K$124,7,FALSE)="","",VLOOKUP($A10,[1]BD!$E$94:$K$124,7,FALSE))) -> TROCA | F10: =IF(ISERROR(VLOOKUP($A10,[1]BD!$E$125:$K$150,7,FALSE)),"",IF(VLOOKUP($A10,[1]BD!$E$125:$K$150,7,FALSE)="","",VLOOKUP($A10,[1]BD!$E$125:$K$150,7,FALSE))) ->  | G10: =IF(ISERROR(VLOOKUP($A10,[1]BD!$E$151:$K$176,7,FALSE)),"",IF(VLOOKUP($A10,[1]BD!$E$151:$K$176,7,FALSE)="","",VLOOKUP($A10,[1]BD!$E$151:$K$176,7,FALSE))) ->  | H10: =IF(ISERROR(VLOOKUP($A10,[1]BD!$E$177:$K$197,7,FALSE)),"",IF(VLOOKUP($A10,[1]BD!$E$177:$K$197,7,FALSE)="","",VLOOKUP($A10,[1]BD!$E$177:$K$197,7,FALSE))) ->  | I10: =IF(ISERROR(VLOOKUP($A10,[1]BD!$E$198:$K$224,7,FALSE)),"",IF(VLOOKUP($A10,[1]BD!$E$198:$K$224,7,FALSE)="","",VLOOKUP($A10,[1]BD!$E$198:$K$224,7,FALSE))) ->  | J10: =IF(ISERROR(VLOOKUP($A10,[1]BD!$E$225:$K$244,7,FALSE)),"",IF(VLOOKUP($A10,[1]BD!$E$225:$K$244,7,FALSE)="","",VLOOKUP($A10,[1]BD!$E$225:$K$244,7,FALSE))) ->  | K10: =IF(ISERROR(VLOOKUP($A10,[1]BD!$E$245:$K$260,7,FALSE)),"",IF(VLOOKUP($A10,[1]BD!$E$245:$K$260,7,FALSE)="","",VLOOKUP($A10,[1]BD!$E$245:$K$260,7,FALSE))) ->  | L10: =IF(ISERROR(VLOOKUP($A10,[1]BD!$E$261:$K$288,7,FALSE)),"",IF(VLOOKUP($A10,[1]BD!$E$261:$K$288,7,FALSE)="","",VLOOKUP($A10,[1]BD!$E$261:$K$288,7,FALSE))) ->  | M10: =IF(ISERROR(VLOOKUP($A10,[1]BD!$E$289:$K$309,7,FALSE)),"",IF(VLOOKUP($A10,[1]BD!$E$289:$K$309,7,FALSE)="","",VLOOKUP($A10,[1]BD!$E$289:$K$309,7,FALSE))) ->  | N10: 2
A11: Felipe Bouhid | B11: =IF(ISERROR(VLOOKUP($A11,[1]BD!$E$2:$K$29,7,FALSE)),"",IF(VLOOKUP($A11,[1]BD!$E$2:$K$29,7,FALSE)="","",VLOOKUP($A11,[1]BD!$E$2:$K$29,7,FALSE))) ->  | C11: =IF(ISERROR(VLOOKUP($A11,[1]BD!$E$30:$K$62,7,FALSE)),"",IF(VLOOKUP($A11,[1]BD!$E$30:$K$62,7,FALSE)="","",VLOOKUP($A11,[1]BD!$E$30:$K$62,7,FALSE))) ->  | D11: =IF(ISERROR(VLOOKUP($A11,[1]BD!$E$63:$K$93,7,FALSE)),"",IF(VLOOKUP($A11,[1]BD!$E$63:$K$93,7,FALSE)="","",VLOOKUP($A11,[1]BD!$E$63:$K$93,7,FALSE))) ->  | E11: =IF(ISERROR(VLOOKUP($A11,[1]BD!$E$94:$K$124,7,FALSE)),"",IF(VLOOKUP($A11,[1]BD!$E$94:$K$124,7,FALSE)="","",VLOOKUP($A11,[1]BD!$E$94:$K$124,7,FALSE))) ->  | F11: =IF(ISERROR(VLOOKUP($A11,[1]BD!$E$125:$K$150,7,FALSE)),"",IF(VLOOKUP($A11,[1]BD!$E$125:$K$150,7,FALSE)="","",VLOOKUP($A11,[1]BD!$E$125:$K$150,7,FALSE))) ->  | G11: =IF(ISERROR(VLOOKUP($A11,[1]BD!$E$151:$K$176,7,FALSE)),"",IF(VLOOKUP($A11,[1]BD!$E$151:$K$176,7,FALSE)="","",VLOOKUP($A11,[1]BD!$E$151:$K$176,7,FALSE))) ->  | H11: =IF(ISERROR(VLOOKUP($A11,[1]BD!$E$177:$K$197,7,FALSE)),"",IF(VLOOKUP($A11,[1]BD!$E$177:$K$197,7,FALSE)="","",VLOOKUP($A11,[1]BD!$E$177:$K$197,7,FALSE))) ->  | I11: =IF(ISERROR(VLOOKUP($A11,[1]BD!$E$198:$K$224,7,FALSE)),"",IF(VLOOKUP($A11,[1]BD!$E$198:$K$224,7,FALSE)="","",VLOOKUP($A11,[1]BD!$E$198:$K$224,7,FALSE))) ->  | J11: =IF(ISERROR(VLOOKUP($A11,[1]BD!$E$225:$K$244,7,FALSE)),"",IF(VLOOKUP($A11,[1]BD!$E$225:$K$244,7,FALSE)="","",VLOOKUP($A11,[1]BD!$E$225:$K$244,7,FALSE))) ->  | K11: =IF(ISERROR(VLOOKUP($A11,[1]BD!$E$245:$K$260,7,FALSE)),"",IF(VLOOKUP($A11,[1]BD!$E$245:$K$260,7,FALSE)="","",VLOOKUP($A11,[1]BD!$E$245:$K$260,7,FALSE))) -> TROCA | L11: =IF(ISERROR(VLOOKUP($A11,[1]BD!$E$261:$K$288,7,FALSE)),"",IF(VLOOKUP($A11,[1]BD!$E$261:$K$288,7,FALSE)="","",VLOOKUP($A11,[1]BD!$E$261:$K$288,7,FALSE))) ->  | M11: =IF(ISERROR(VLOOKUP($A11,[1]BD!$E$289:$K$309,7,FALSE)),"",IF(VLOOKUP($A11,[1]BD!$E$289:$K$309,7,FALSE)="","",VLOOKUP($A11,[1]BD!$E$289:$K$309,7,FALSE))) ->  | N11: 1
A12: Hélio Chagas | B12: =IF(ISERROR(VLOOKUP($A12,[1]BD!$E$2:$K$29,7,FALSE)),"",IF(VLOOKUP($A12,[1]BD!$E$2:$K$29,7,FALSE)="","",VLOOKUP($A12,[1]BD!$E$2:$K$29,7,FALSE))) ->  | C12: =IF(ISERROR(VLOOKUP($A12,[1]BD!$E$30:$K$62,7,FALSE)),"",IF(VLOOKUP($A12,[1]BD!$E$30:$K$62,7,FALSE)="","",VLOOKUP($A12,[1]BD!$E$30:$K$62,7,FALSE))) ->  | D12: =IF(ISERROR(VLOOKUP($A12,[1]BD!$E$63:$K$93,7,FALSE)),"",IF(VLOOKUP($A12,[1]BD!$E$63:$K$93,7,FALSE)="","",VLOOKUP($A12,[1]BD!$E$63:$K$93,7,FALSE))) ->  | E12: =IF(ISERROR(VLOOKUP($A12,[1]BD!$E$94:$K$124,7,FALSE)),"",IF(VLOOKUP($A12,[1]BD!$E$94:$K$124,7,FALSE)="","",VLOOKUP($A12,[1]BD!$E$94:$K$124,7,FALSE))) ->  | F12: =IF(ISERROR(VLOOKUP($A12,[1]BD!$E$125:$K$150,7,FALSE)),"",IF(VLOOKUP($A12,[1]BD!$E$125:$K$150,7,FALSE)="","",VLOOKUP($A12,[1]BD!$E$125:$K$150,7,FALSE))) ->  | G12: =IF(ISERROR(VLOOKUP($A12,[1]BD!$E$151:$K$176,7,FALSE)),"",IF(VLOOKUP($A12,[1]BD!$E$151:$K$176,7,FALSE)="","",VLOOKUP($A12,[1]BD!$E$151:$K$176,7,FALSE))) ->  | H12: =IF(ISERROR(VLOOKUP($A12,[1]BD!$E$177:$K$197,7,FALSE)),"",IF(VLOOKUP($A12,[1]BD!$E$177:$K$197,7,FALSE)="","",VLOOKUP($A12,[1]BD!$E$177:$K$197,7,FALSE))) ->  | I12: =IF(ISERROR(VLOOKUP($A12,[1]BD!$E$198:$K$224,7,FALSE)),"",IF(VLOOKUP($A12,[1]BD!$E$198:$K$224,7,FALSE)="","",VLOOKUP($A12,[1]BD!$E$198:$K$224,7,FALSE))) ->  | J12: =IF(ISERROR(VLOOKUP($A12,[1]BD!$E$225:$K$244,7,FALSE)),"",IF(VLOOKUP($A12,[1]BD!$E$225:$K$244,7,FALSE)="","",VLOOKUP($A12,[1]BD!$E$225:$K$244,7,FALSE))) ->  | K12: =IF(ISERROR(VLOOKUP($A12,[1]BD!$E$245:$K$260,7,FALSE)),"",IF(VLOOKUP($A12,[1]BD!$E$245:$K$260,7,FALSE)="","",VLOOKUP($A12,[1]BD!$E$245:$K$260,7,FALSE))) ->  | L12: =IF(ISERROR(VLOOKUP($A12,[1]BD!$E$261:$K$288,7,FALSE)),"",IF(VLOOKUP($A12,[1]BD!$E$261:$K$288,7,FALSE)="","",VLOOKUP($A12,[1]BD!$E$261:$K$288,7,FALSE))) ->  | M12: =IF(ISERROR(VLOOKUP($A12,[1]BD!$E$289:$K$309,7,FALSE)),"",IF(VLOOKUP($A12,[1]BD!$E$289:$K$309,7,FALSE)="","",VLOOKUP($A12,[1]BD!$E$289:$K$309,7,FALSE))) ->  | N12: 0
A13: Hugo Denucci | B13: =IF(ISERROR(VLOOKUP($A13,[1]BD!$E$2:$K$29,7,FALSE)),"",IF(VLOOKUP($A13,[1]BD!$E$2:$K$29,7,FALSE)="","",VLOOKUP($A13,[1]BD!$E$2:$K$29,7,FALSE))) ->  | C13: =IF(ISERROR(VLOOKUP($A13,[1]BD!$E$30:$K$62,7,FALSE)),"",IF(VLOOKUP($A13,[1]BD!$E$30:$K$62,7,FALSE)="","",VLOOKUP($A13,[1]BD!$E$30:$K$62,7,FALSE))) ->  | D13: =IF(ISERROR(VLOOKUP($A13,[1]BD!$E$63:$K$93,7,FALSE)),"",IF(VLOOKUP($A13,[1]BD!$E$63:$K$93,7,FALSE)="","",VLOOKUP($A13,[1]BD!$E$63:$K$93,7,FALSE))) ->  | E13: =IF(ISERROR(VLOOKUP($A13,[1]BD!$E$94:$K$124,7,FALSE)),"",IF(VLOOKUP($A13,[1]BD!$E$94:$K$124,7,FALSE)="","",VLOOKUP($A13,[1]BD!$E$94:$K$124,7,FALSE))) ->  | F13: =IF(ISERROR(VLOOKUP($A13,[1]BD!$E$125:$K$150,7,FALSE)),"",IF(VLOOKUP($A13,[1]BD!$E$125:$K$150,7,FALSE)="","",VLOOKUP($A13,[1]BD!$E$125:$K$150,7,FALSE))) ->  | G13: =IF(ISERROR(VLOOKUP($A13,[1]BD!$E$151:$K$176,7,FALSE)),"",IF(VLOOKUP($A13,[1]BD!$E$151:$K$176,7,FALSE)="","",VLOOKUP($A13,[1]BD!$E$151:$K$176,7,FALSE))) ->  | H13: =IF(ISERROR(VLOOKUP($A13,[1]BD!$E$177:$K$197,7,FALSE)),"",IF(VLOOKUP($A13,[1]BD!$E$177:$K$197,7,FALSE)="","",VLOOKUP($A13,[1]BD!$E$177:$K$197,7,FALSE))) ->  | I13: =IF(ISERROR(VLOOKUP($A13,[1]BD!$E$198:$K$224,7,FALSE)),"",IF(VLOOKUP($A13,[1]BD!$E$198:$K$224,7,FALSE)="","",VLOOKUP($A13,[1]BD!$E$198:$K$224,7,FALSE))) ->  | J13: =IF(ISERROR(VLOOKUP($A13,[1]BD!$E$225:$K$244,7,FALSE)),"",IF(VLOOKUP($A13,[1]BD!$E$225:$K$244,7,FALSE)="","",VLOOKUP($A13,[1]BD!$E$225:$K$244,7,FALSE))) ->  | K13: =IF(ISERROR(VLOOKUP($A13,[1]BD!$E$245:$K$260,7,FALSE)),"",IF(VLOOKUP($A13,[1]BD!$E$245:$K$260,7,FALSE)="","",VLOOKUP($A13,[1]BD!$E$245:$K$260,7,FALSE))) ->  | L13: =IF(ISERROR(VLOOKUP($A13,[1]BD!$E$261:$K$288,7,FALSE)),"",IF(VLOOKUP($A13,[1]BD!$E$261:$K$288,7,FALSE)="","",VLOOKUP($A13,[1]BD!$E$261:$K$288,7,FALSE))) ->  | M13: =IF(ISERROR(VLOOKUP($A13,[1]BD!$E$289:$K$309,7,FALSE)),"",IF(VLOOKUP($A13,[1]BD!$E$289:$K$309,7,FALSE)="","",VLOOKUP($A13,[1]BD!$E$289:$K$309,7,FALSE))) ->  | N13: 0
A14: Jarbas Reis | B14: =IF(ISERROR(VLOOKUP($A14,[1]BD!$E$2:$K$29,7,FALSE)),"",IF(VLOOKUP($A14,[1]BD!$E$2:$K$29,7,FALSE)="","",VLOOKUP($A14,[1]BD!$E$2:$K$29,7,FALSE))) -> TROCA | C14: =IF(ISERROR(VLOOKUP($A14,[1]BD!$E$30:$K$62,7,FALSE)),"",IF(VLOOKUP($A14,[1]BD!$E$30:$K$62,7,FALSE)="","",VLOOKUP($A14,[1]BD!$E$30:$K$62,7,FALSE))) ->  | D14: =IF(ISERROR(VLOOKUP($A14,[1]BD!$E$63:$K$93,7,FALSE)),"",IF(VLOOKUP($A14,[1]BD!$E$63:$K$93,7,FALSE)="","",VLOOKUP($A14,[1]BD!$E$63:$K$93,7,FALSE))) ->  | E14: =IF(ISERROR(VLOOKUP($A14,[1]BD!$E$94:$K$124,7,FALSE)),"",IF(VLOOKUP($A14,[1]BD!$E$94:$K$124,7,FALSE)="","",VLOOKUP($A14,[1]BD!$E$94:$K$124,7,FALSE))) ->  | F14: =IF(ISERROR(VLOOKUP($A14,[1]BD!$E$125:$K$150,7,FALSE)),"",IF(VLOOKUP($A14,[1]BD!$E$125:$K$150,7,FALSE)="","",VLOOKUP($A14,[1]BD!$E$125:$K$150,7,FALSE))) -> TROCA | G14: =IF(ISERROR(VLOOKUP($A14,[1]BD!$E$151:$K$176,7,FALSE)),"",IF(VLOOKUP($A14,[1]BD!$E$151:$K$176,7,FALSE)="","",VLOOKUP($A14,[1]BD!$E$151:$K$176,7,FALSE))) ->  | H14: =IF(ISERROR(VLOOKUP($A14,[1]BD!$E$177:$K$197,7,FALSE)),"",IF(VLOOKUP($A14,[1]BD!$E$177:$K$197,7,FALSE)="","",VLOOKUP($A14,[1]BD!$E$177:$K$197,7,FALSE))) ->  | I14: =IF(ISERROR(VLOOKUP($A14,[1]BD!$E$198:$K$224,7,FALSE)),"",IF(VLOOKUP($A14,[1]BD!$E$198:$K$224,7,FALSE)="","",VLOOKUP($A14,[1]BD!$E$198:$K$224,7,FALSE))) ->  | J14: =IF(ISERROR(VLOOKUP($A14,[1]BD!$E$225:$K$244,7,FALSE)),"",IF(VLOOKUP($A14,[1]BD!$E$225:$K$244,7,FALSE)="","",VLOOKUP($A14,[1]BD!$E$225:$K$244,7,FALSE))) ->  | K14: =IF(ISERROR(VLOOKUP($A14,[1]BD!$E$245:$K$260,7,FALSE)),"",IF(VLOOKUP($A14,[1]BD!$E$245:$K$260,7,FALSE)="","",VLOOKUP($A14,[1]BD!$E$245:$K$260,7,FALSE))) ->  | L14: =IF(ISERROR(VLOOKUP($A14,[1]BD!$E$261:$K$288,7,FALSE)),"",IF(VLOOKUP($A14,[1]BD!$E$261:$K$288,7,FALSE)="","",VLOOKUP($A14,[1]BD!$E$261:$K$288,7,FALSE))) ->  | M14: =IF(ISERROR(VLOOKUP($A14,[1]BD!$E$289:$K$309,7,FALSE)),"",IF(VLOOKUP($A14,[1]BD!$E$289:$K$309,7,FALSE)="","",VLOOKUP($A14,[1]BD!$E$289:$K$309,7,FALSE))) -> TROCA | N14: 3
A15: Leandro Malias | B15: =IF(ISERROR(VLOOKUP($A15,[1]BD!$E$2:$K$29,7,FALSE)),"",IF(VLOOKUP($A15,[1]BD!$E$2:$K$29,7,FALSE)="","",VLOOKUP($A15,[1]BD!$E$2:$K$29,7,FALSE))) ->  | C15: =IF(ISERROR(VLOOKUP($A15,[1]BD!$E$30:$K$62,7,FALSE)),"",IF(VLOOKUP($A15,[1]BD!$E$30:$K$62,7,FALSE)="","",VLOOKUP($A15,[1]BD!$E$30:$K$62,7,FALSE))) ->  | D15: =IF(ISERROR(VLOOKUP($A15,[1]BD!$E$63:$K$93,7,FALSE)),"",IF(VLOOKUP($A15,[1]BD!$E$63:$K$93,7,FALSE)="","",VLOOKUP($A15,[1]BD!$E$63:$K$93,7,FALSE))) ->  | E15: =IF(ISERROR(VLOOKUP($A15,[1]BD!$E$94:$K$124,7,FALSE)),"",IF(VLOOKUP($A15,[1]BD!$E$94:$K$124,7,FALSE)="","",VLOOKUP($A15,[1]BD!$E$94:$K$124,7,FALSE))) ->  | F15: =IF(ISERROR(VLOOKUP($A15,[1]BD!$E$125:$K$150,7,FALSE)),"",IF(VLOOKUP($A15,[1]BD!$E$125:$K$150,7,FALSE)="","",VLOOKUP($A15,[1]BD!$E$125:$K$150,7,FALSE))) ->  | G15: =IF(ISERROR(VLOOKUP($A15,[1]BD!$E$151:$K$176,7,FALSE)),"",IF(VLOOKUP($A15,[1]BD!$E$151:$K$176,7,FALSE)="","",VLOOKUP($A15,[1]BD!$E$151:$K$176,7,FALSE))) ->  | H15: =IF(ISERROR(VLOOKUP($A15,[1]BD!$E$177:$K$197,7,FALSE)),"",IF(VLOOKUP($A15,[1]BD!$E$177:$K$197,7,FALSE)="","",VLOOKUP($A15,[1]BD!$E$177:$K$197,7,FALSE))) ->  | I15: =IF(ISERROR(VLOOKUP($A15,[1]BD!$E$198:$K$224,7,FALSE)),"",IF(VLOOKUP($A15,[1]BD!$E$198:$K$224,7,FALSE)="","",VLOOKUP($A15,[1]BD!$E$198:$K$224,7,FALSE))) ->  | J15: =IF(ISERROR(VLOOKUP($A15,[1]BD!$E$225:$K$244,7,FALSE)),"",IF(VLOOKUP($A15,[1]BD!$E$225:$K$244,7,FALSE)="","",VLOOKUP($A15,[1]BD!$E$225:$K$244,7,FALSE))) ->  | K15: =IF(ISERROR(VLOOKUP($A15,[1]BD!$E$245:$K$260,7,FALSE)),"",IF(VLOOKUP($A15,[1]BD!$E$245:$K$260,7,FALSE)="","",VLOOKUP($A15,[1]BD!$E$245:$K$260,7,FALSE))) ->  | L15: =IF(ISERROR(VLOOKUP($A15,[1]BD!$E$261:$K$288,7,FALSE)),"",IF(VLOOKUP($A15,[1]BD!$E$261:$K$288,7,FALSE)="","",VLOOKUP($A15,[1]BD!$E$261:$K$288,7,FALSE))) ->  | M15: =IF(ISERROR(VLOOKUP($A15,[1]BD!$E$289:$K$309,7,FALSE)),"",IF(VLOOKUP($A15,[1]BD!$E$289:$K$309,7,FALSE)="","",VLOOKUP($A15,[1]BD!$E$289:$K$309,7,FALSE))) ->  | N15: 0
A16: Lucas Guimarães | B16: =IF(ISERROR(VLOOKUP($A16,[1]BD!$E$2:$K$29,7,FALSE)),"",IF(VLOOKUP($A16,[1]BD!$E$2:$K$29,7,FALSE)="","",VLOOKUP($A16,[1]BD!$E$2:$K$29,7,FALSE))) ->  | C16: =IF(ISERROR(VLOOKUP($A16,[1]BD!$E$30:$K$62,7,FALSE)),"",IF(VLOOKUP($A16,[1]BD!$E$30:$K$62,7,FALSE)="","",VLOOKUP($A16,[1]BD!$E$30:$K$62,7,FALSE))) ->  | D16: =IF(ISERROR(VLOOKUP($A16,[1]BD!$E$63:$K$93,7,FALSE)),"",IF(VLOOKUP($A16,[1]BD!$E$63:$K$93,7,FALSE)="","",VLOOKUP($A16,[1]BD!$E$63:$K$93,7,FALSE))) ->  | E16: =IF(ISERROR(VLOOKUP($A16,[1]BD!$E$94:$K$124,7,FALSE)),"",IF(VLOOKUP($A16,[1]BD!$E$94:$K$124,7,FALSE)="","",VLOOKUP($A16,[1]BD!$E$94:$K$124,7,FALSE))) ->  | F16: =IF(ISERROR(VLOOKUP($A16,[1]BD!$E$125:$K$150,7,FALSE)),"",IF(VLOOKUP($A16,[1]BD!$E$125:$K$150,7,FALSE)="","",VLOOKUP($A16,[1]BD!$E$125:$K$150,7,FALSE))) ->  | G16: =IF(ISERROR(VLOOKUP($A16,[1]BD!$E$151:$K$176,7,FALSE)),"",IF(VLOOKUP($A16,[1]BD!$E$151:$K$176,7,FALSE)="","",VLOOKUP($A16,[1]BD!$E$151:$K$176,7,FALSE))) ->  | H16: =IF(ISERROR(VLOOKUP($A16,[1]BD!$E$177:$K$197,7,FALSE)),"",IF(VLOOKUP($A16,[1]BD!$E$177:$K$197,7,FALSE)="","",VLOOKUP($A16,[1]BD!$E$177:$K$197,7,FALSE))) ->  | I16: =IF(ISERROR(VLOOKUP($A16,[1]BD!$E$198:$K$224,7,FALSE)),"",IF(VLOOKUP($A16,[1]BD!$E$198:$K$224,7,FALSE)="","",VLOOKUP($A16,[1]BD!$E$198:$K$224,7,FALSE))) ->  | J16: =IF(ISERROR(VLOOKUP($A16,[1]BD!$E$225:$K$244,7,FALSE)),"",IF(VLOOKUP($A16,[1]BD!$E$225:$K$244,7,FALSE)="","",VLOOKUP($A16,[1]BD!$E$225:$K$244,7,FALSE))) ->  | K16: =IF(ISERROR(VLOOKUP($A16,[1]BD!$E$245:$K$260,7,FALSE)),"",IF(VLOOKUP($A16,[1]BD!$E$245:$K$260,7,FALSE)="","",VLOOKUP($A16,[1]BD!$E$245:$K$260,7,FALSE))) ->  | L16: =IF(ISERROR(VLOOKUP($A16,[1]BD!$E$261:$K$288,7,FALSE)),"",IF(VLOOKUP($A16,[1]BD!$E$261:$K$288,7,FALSE)="","",VLOOKUP($A16,[1]BD!$E$261:$K$288,7,FALSE))) ->  | M16: =IF(ISERROR(VLOOKUP($A16,[1]BD!$E$289:$K$309,7,FALSE)),"",IF(VLOOKUP($A16,[1]BD!$E$289:$K$309,7,FALSE)="","",VLOOKUP($A16,[1]BD!$E$289:$K$309,7,FALSE))) ->  | N16: 0
A17: Luciano Robervine | B17: =IF(ISERROR(VLOOKUP($A17,[1]BD!$E$2:$K$29,7,FALSE)),"",IF(VLOOKUP($A17,[1]BD!$E$2:$K$29,7,FALSE)="","",VLOOKUP($A17,[1]BD!$E$2:$K$29,7,FALSE))) ->  | C17: =IF(ISERROR(VLOOKUP($A17,[1]BD!$E$30:$K$62,7,FALSE)),"",IF(VLOOKUP($A17,[1]BD!$E$30:$K$62,7,FALSE)="","",VLOOKUP($A17,[1]BD!$E$30:$K$62,7,FALSE))) ->  | D17: =IF(ISERROR(VLOOKUP($A17,[1]BD!$E$63:$K$93,7,FALSE)),"",IF(VLOOKUP($A17,[1]BD!$E$63:$K$93,7,FALSE)="","",VLOOKUP($A17,[1]BD!$E$63:$K$93,7,FALSE))) ->  | E17: =IF(ISERROR(VLOOKUP($A17,[1]BD!$E$94:$K$124,7,FALSE)),"",IF(VLOOKUP($A17,[1]BD!$E$94:$K$124,7,FALSE)="","",VLOOKUP($A17,[1]BD!$E$94:$K$124,7,FALSE))) ->  | F17: =IF(ISERROR(VLOOKUP($A17,[1]BD!$E$125:$K$150,7,FALSE)),"",IF(VLOOKUP($A17,[1]BD!$E$125:$K$150,7,FALSE)="","",VLOOKUP($A17,[1]BD!$E$125:$K$150,7,FALSE))) ->  | G17: =IF(ISERROR(VLOOKUP($A17,[1]BD!$E$151:$K$176,7,FALSE)),"",IF(VLOOKUP($A17,[1]BD!$E$151:$K$176,7,FALSE)="","",VLOOKUP($A17,[1]BD!$E$151:$K$176,7,FALSE))) ->  | H17: =IF(ISERROR(VLOOKUP($A17,[1]BD!$E$177:$K$197,7,FALSE)),"",IF(VLOOKUP($A17,[1]BD!$E$177:$K$197,7,FALSE)="","",VLOOKUP($A17,[1]BD!$E$177:$K$197,7,FALSE))) ->  | I17: =IF(ISERROR(VLOOKUP($A17,[1]BD!$E$198:$K$224,7,FALSE)),"",IF(VLOOKUP($A17,[1]BD!$E$198:$K$224,7,FALSE)="","",VLOOKUP($A17,[1]BD!$E$198:$K$224,7,FALSE))) ->  | J17: =IF(ISERROR(VLOOKUP($A17,[1]BD!$E$225:$K$244,7,FALSE)),"",IF(VLOOKUP($A17,[1]BD!$E$225:$K$244,7,FALSE)="","",VLOOKUP($A17,[1]BD!$E$225:$K$244,7,FALSE))) ->  | K17: =IF(ISERROR(VLOOKUP($A17,[1]BD!$E$245:$K$260,7,FALSE)),"",IF(VLOOKUP($A17,[1]BD!$E$245:$K$260,7,FALSE)="","",VLOOKUP($A17,[1]BD!$E$245:$K$260,7,FALSE))) ->  | L17: =IF(ISERROR(VLOOKUP($A17,[1]BD!$E$261:$K$288,7,FALSE)),"",IF(VLOOKUP($A17,[1]BD!$E$261:$K$288,7,FALSE)="","",VLOOKUP($A17,[1]BD!$E$261:$K$288,7,FALSE))) ->  | M17: =IF(ISERROR(VLOOKUP($A17,[1]BD!$E$289:$K$309,7,FALSE)),"",IF(VLOOKUP($A17,[1]BD!$E$289:$K$309,7,FALSE)="","",VLOOKUP($A17,[1]BD!$E$289:$K$309,7,FALSE))) ->  | N17: 0
A18: Marcelo Campos | B18: =IF(ISERROR(VLOOKUP($A18,[1]BD!$E$2:$K$29,7,FALSE)),"",IF(VLOOKUP($A18,[1]BD!$E$2:$K$29,7,FALSE)="","",VLOOKUP($A18,[1]BD!$E$2:$K$29,7,FALSE))) ->  | C18: =IF(ISERROR(VLOOKUP($A18,[1]BD!$E$30:$K$62,7,FALSE)),"",IF(VLOOKUP($A18,[1]BD!$E$30:$K$62,7,FALSE)="","",VLOOKUP($A18,[1]BD!$E$30:$K$62,7,FALSE))) ->  | D18: =IF(ISERROR(VLOOKUP($A18,[1]BD!$E$63:$K$93,7,FALSE)),"",IF(VLOOKUP($A18,[1]BD!$E$63:$K$93,7,FALSE)="","",VLOOKUP($A18,[1]BD!$E$63:$K$93,7,FALSE))) -> TROCA | E18: =IF(ISERROR(VLOOKUP($A18,[1]BD!$E$94:$K$124,7,FALSE)),"",IF(VLOOKUP($A18,[1]BD!$E$94:$K$124,7,FALSE)="","",VLOOKUP($A18,[1]BD!$E$94:$K$124,7,FALSE))) ->  | F18: =IF(ISERROR(VLOOKUP($A18,[1]BD!$E$125:$K$150,7,FALSE)),"",IF(VLOOKUP($A18,[1]BD!$E$125:$K$150,7,FALSE)="","",VLOOKUP($A18,[1]BD!$E$125:$K$150,7,FALSE))) ->  | G18: =IF(ISERROR(VLOOKUP($A18,[1]BD!$E$151:$K$176,7,FALSE)),"",IF(VLOOKUP($A18,[1]BD!$E$151:$K$176,7,FALSE)="","",VLOOKUP($A18,[1]BD!$E$151:$K$176,7,FALSE))) ->  | H18: =IF(ISERROR(VLOOKUP($A18,[1]BD!$E$177:$K$197,7,FALSE)),"",IF(VLOOKUP($A18,[1]BD!$E$177:$K$197,7,FALSE)="","",VLOOKUP($A18,[1]BD!$E$177:$K$197,7,FALSE))) ->  | I18: =IF(ISERROR(VLOOKUP($A18,[1]BD!$E$198:$K$224,7,FALSE)),"",IF(VLOOKUP($A18,[1]BD!$E$198:$K$224,7,FALSE)="","",VLOOKUP($A18,[1]BD!$E$198:$K$224,7,FALSE))) ->  | J18: =IF(ISERROR(VLOOKUP($A18,[1]BD!$E$225:$K$244,7,FALSE)),"",IF(VLOOKUP($A18,[1]BD!$E$225:$K$244,7,FALSE)="","",VLOOKUP($A18,[1]BD!$E$225:$K$244,7,FALSE))) ->  | K18: =IF(ISERROR(VLOOKUP($A18,[1]BD!$E$245:$K$260,7,FALSE)),"",IF(VLOOKUP($A18,[1]BD!$E$245:$K$260,7,FALSE)="","",VLOOKUP($A18,[1]BD!$E$245:$K$260,7,FALSE))) ->  | L18: =IF(ISERROR(VLOOKUP($A18,[1]BD!$E$261:$K$288,7,FALSE)),"",IF(VLOOKUP($A18,[1]BD!$E$261:$K$288,7,FALSE)="","",VLOOKUP($A18,[1]BD!$E$261:$K$288,7,FALSE))) ->  | M18: =IF(ISERROR(VLOOKUP($A18,[1]BD!$E$289:$K$309,7,FALSE)),"",IF(VLOOKUP($A18,[1]BD!$E$289:$K$309,7,FALSE)="","",VLOOKUP($A18,[1]BD!$E$289:$K$309,7,FALSE))) -> TROCA | N18: 2
A19: Marcelo Chagas | B19: =IF(ISERROR(VLOOKUP($A19,[1]BD!$E$2:$K$29,7,FALSE)),"",IF(VLOOKUP($A19,[1]BD!$E$2:$K$29,7,FALSE)="","",VLOOKUP($A19,[1]BD!$E$2:$K$29,7,FALSE))) ->  | C19: =IF(ISERROR(VLOOKUP($A19,[1]BD!$E$30:$K$62,7,FALSE)),"",IF(VLOOKUP($A19,[1]BD!$E$30:$K$62,7,FALSE)="","",VLOOKUP($A19,[1]BD!$E$30:$K$62,7,FALSE))) ->  | D19: =IF(ISERROR(VLOOKUP($A19,[1]BD!$E$63:$K$93,7,FALSE)),"",IF(VLOOKUP($A19,[1]BD!$E$63:$K$93,7,FALSE)="","",VLOOKUP($A19,[1]BD!$E$63:$K$93,7,FALSE))) ->  | E19: =IF(ISERROR(VLOOKUP($A19,[1]BD!$E$94:$K$124,7,FALSE)),"",IF(VLOOKUP($A19,[1]BD!$E$94:$K$124,7,FALSE)="","",VLOOKUP($A19,[1]BD!$E$94:$K$124,7,FALSE))) ->  | F19: =IF(ISERROR(VLOOKUP($A19,[1]BD!$E$125:$K$150,7,FALSE)),"",IF(VLOOKUP($A19,[1]BD!$E$125:$K$150,7,FALSE)="","",VLOOKUP($A19,[1]BD!$E$125:$K$150,7,FALSE))) ->  | G19: =IF(ISERROR(VLOOKUP($A19,[1]BD!$E$151:$K$176,7,FALSE)),"",IF(VLOOKUP($A19,[1]BD!$E$151:$K$176,7,FALSE)="","",VLOOKUP($A19,[1]BD!$E$151:$K$176,7,FALSE))) ->  | H19: =IF(ISERROR(VLOOKUP($A19,[1]BD!$E$177:$K$197,7,FALSE)),"",IF(VLOOKUP($A19,[1]BD!$E$177:$K$197,7,FALSE)="","",VLOOKUP($A19,[1]BD!$E$177:$K$197,7,FALSE))) ->  | I19: =IF(ISERROR(VLOOKUP($A19,[1]BD!$E$198:$K$224,7,FALSE)),"",IF(VLOOKUP($A19,[1]BD!$E$198:$K$224,7,FALSE)="","",VLOOKUP($A19,[1]BD!$E$198:$K$224,7,FALSE))) ->  | J19: =IF(ISERROR(VLOOKUP($A19,[1]BD!$E$225:$K$244,7,FALSE)),"",IF(VLOOKUP($A19,[1]BD!$E$225:$K$244,7,FALSE)="","",VLOOKUP($A19,[1]BD!$E$225:$K$244,7,FALSE))) ->  | K19: =IF(ISERROR(VLOOKUP($A19,[1]BD!$E$245:$K$260,7,FALSE)),"",IF(VLOOKUP($A19,[1]BD!$E$245:$K$260,7,FALSE)="","",VLOOKUP($A19,[1]BD!$E$245:$K$260,7,FALSE))) ->  | L19: =IF(ISERROR(VLOOKUP($A19,[1]BD!$E$261:$K$288,7,FALSE)),"",IF(VLOOKUP($A19,[1]BD!$E$261:$K$288,7,FALSE)="","",VLOOKUP($A19,[1]BD!$E$261:$K$288,7,FALSE))) ->  | M19: =IF(ISERROR(VLOOKUP($A19,[1]BD!$E$289:$K$309,7,FALSE)),"",IF(VLOOKUP($A19,[1]BD!$E$289:$K$309,7,FALSE)="","",VLOOKUP($A19,[1]BD!$E$289:$K$309,7,FALSE))) -> TROCA | N19: 1
A20: Marcelo Clemente | B20: =IF(ISERROR(VLOOKUP($A20,[1]BD!$E$2:$K$29,7,FALSE)),"",IF(VLOOKUP($A20,[1]BD!$E$2:$K$29,7,FALSE)="","",VLOOKUP($A20,[1]BD!$E$2:$K$29,7,FALSE))) ->  | C20: =IF(ISERROR(VLOOKUP($A20,[1]BD!$E$30:$K$62,7,FALSE)),"",IF(VLOOKUP($A20,[1]BD!$E$30:$K$62,7,FALSE)="","",VLOOKUP($A20,[1]BD!$E$30:$K$62,7,FALSE))) -> TROCA | D20: =IF(ISERROR(VLOOKUP($A20,[1]BD!$E$63:$K$93,7,FALSE)),"",IF(VLOOKUP($A20,[1]BD!$E$63:$K$93,7,FALSE)="","",VLOOKUP($A20,[1]BD!$E$63:$K$93,7,FALSE))) ->  | E20: =IF(ISERROR(VLOOKUP($A20,[1]BD!$E$94:$K$124,7,FALSE)),"",IF(VLOOKUP($A20,[1]BD!$E$94:$K$124,7,FALSE)="","",VLOOKUP($A20,[1]BD!$E$94:$K$124,7,FALSE))) ->  | F20: =IF(ISERROR(VLOOKUP($A20,[1]BD!$E$125:$K$150,7,FALSE)),"",IF(VLOOKUP($A20,[1]BD!$E$125:$K$150,7,FALSE)="","",VLOOKUP($A20,[1]BD!$E$125:$K$150,7,FALSE))) ->  | G20: =IF(ISERROR(VLOOKUP($A20,[1]BD!$E$151:$K$176,7,FALSE)),"",IF(VLOOKUP($A20,[1]BD!$E$151:$K$176,7,FALSE)="","",VLOOKUP($A20,[1]BD!$E$151:$K$176,7,FALSE))) ->  | H20: =IF(ISERROR(VLOOKUP($A20,[1]BD!$E$177:$K$197,7,FALSE)),"",IF(VLOOKUP($A20,[1]BD!$E$177:$K$197,7,FALSE)="","",VLOOKUP($A20,[1]BD!$E$177:$K$197,7,FALSE))) ->  | I20: =IF(ISERROR(VLOOKUP($A20,[1]BD!$E$198:$K$224,7,FALSE)),"",IF(VLOOKUP($A20,[1]BD!$E$198:$K$224,7,FALSE)="","",VLOOKUP($A20,[1]BD!$E$198:$K$224,7,FALSE))) ->  | J20: =IF(ISERROR(VLOOKUP($A20,[1]BD!$E$225:$K$244,7,FALSE)),"",IF(VLOOKUP($A20,[1]BD!$E$225:$K$244,7,FALSE)="","",VLOOKUP($A20,[1]BD!$E$225:$K$244,7,FALSE))) ->  | K20: =IF(ISERROR(VLOOKUP($A20,[1]BD!$E$245:$K$260,7,FALSE)),"",IF(VLOOKUP($A20,[1]BD!$E$245:$K$260,7,FALSE)="","",VLOOKUP($A20,[1]BD!$E$245:$K$260,7,FALSE))) ->  | L20: =IF(ISERROR(VLOOKUP($A20,[1]BD!$E$261:$K$288,7,FALSE)),"",IF(VLOOKUP($A20,[1]BD!$E$261:$K$288,7,FALSE)="","",VLOOKUP($A20,[1]BD!$E$261:$K$288,7,FALSE))) ->  | M20: =IF(ISERROR(VLOOKUP($A20,[1]BD!$E$289:$K$309,7,FALSE)),"",IF(VLOOKUP($A20,[1]BD!$E$289:$K$309,7,FALSE)="","",VLOOKUP($A20,[1]BD!$E$289:$K$309,7,FALSE))) ->  | N20: 1
A21: Marcelo Marcondes | B21: =IF(ISERROR(VLOOKUP($A21,[1]BD!$E$2:$K$29,7,FALSE)),"",IF(VLOOKUP($A21,[1]BD!$E$2:$K$29,7,FALSE)="","",VLOOKUP($A21,[1]BD!$E$2:$K$29,7,FALSE))) ->  | C21: =IF(ISERROR(VLOOKUP($A21,[1]BD!$E$30:$K$62,7,FALSE)),"",IF(VLOOKUP($A21,[1]BD!$E$30:$K$62,7,FALSE)="","",VLOOKUP($A21,[1]BD!$E$30:$K$62,7,FALSE))) ->  | D21: =IF(ISERROR(VLOOKUP($A21,[1]BD!$E$63:$K$93,7,FALSE)),"",IF(VLOOKUP($A21,[1]BD!$E$63:$K$93,7,FALSE)="","",VLOOKUP($A21,[1]BD!$E$63:$K$93,7,FALSE))) ->  | E21: =IF(ISERROR(VLOOKUP($A21,[1]BD!$E$94:$K$124,7,FALSE)),"",IF(VLOOKUP($A21,[1]BD!$E$94:$K$124,7,FALSE)="","",VLOOKUP($A21,[1]BD!$E$94:$K$124,7,FALSE))) ->  | F21: =IF(ISERROR(VLOOKUP($A21,[1]BD!$E$125:$K$150,7,FALSE)),"",IF(VLOOKUP($A21,[1]BD!$E$125:$K$150,7,FALSE)="","",VLOOKUP($A21,[1]BD!$E$125:$K$150,7,FALSE))) -> TROCA | G21: =IF(ISERROR(VLOOKUP($A21,[1]BD!$E$151:$K$176,7,FALSE)),"",IF(VLOOKUP($A21,[1]BD!$E$151:$K$176,7,FALSE)="","",VLOOKUP($A21,[1]BD!$E$151:$K$176,7,FALSE))) ->  | H21: =IF(ISERROR(VLOOKUP($A21,[1]BD!$E$177:$K$197,7,FALSE)),"",IF(VLOOKUP($A21,[1]BD!$E$177:$K$197,7,FALSE)="","",VLOOKUP($A21,[1]BD!$E$177:$K$197,7,FALSE))) ->  | I21: =IF(ISERROR(VLOOKUP($A21,[1]BD!$E$198:$K$224,7,FALSE)),"",IF(VLOOKUP($A21,[1]BD!$E$198:$K$224,7,FALSE)="","",VLOOKUP($A21,[1]BD!$E$198:$K$224,7,FALSE))) ->  | J21: =IF(ISERROR(VLOOKUP($A21,[1]BD!$E$225:$K$244,7,FALSE)),"",IF(VLOOKUP($A21,[1]BD!$E$225:$K$244,7,FALSE)="","",VLOOKUP($A21,[1]BD!$E$225:$K$244,7,FALSE))) ->  | K21: =IF(ISERROR(VLOOKUP($A21,[1]BD!$E$245:$K$260,7,FALSE)),"",IF(VLOOKUP($A21,[1]BD!$E$245:$K$260,7,FALSE)="","",VLOOKUP($A21,[1]BD!$E$245:$K$260,7,FALSE))) ->  | L21: =IF(ISERROR(VLOOKUP($A21,[1]BD!$E$261:$K$288,7,FALSE)),"",IF(VLOOKUP($A21,[1]BD!$E$261:$K$288,7,FALSE)="","",VLOOKUP($A21,[1]BD!$E$261:$K$288,7,FALSE))) ->  | M21: =IF(ISERROR(VLOOKUP($A21,[1]BD!$E$289:$K$309,7,FALSE)),"",IF(VLOOKUP($A21,[1]BD!$E$289:$K$309,7,FALSE)="","",VLOOKUP($A21,[1]BD!$E$289:$K$309,7,FALSE))) ->  | N21: 1
A22: Marcelo Pereira | B22: =IF(ISERROR(VLOOKUP($A22,[1]BD!$E$2:$K$29,7,FALSE)),"",IF(VLOOKUP($A22,[1]BD!$E$2:$K$29,7,FALSE)="","",VLOOKUP($A22,[1]BD!$E$2:$K$29,7,FALSE))) ->  | C22: =IF(ISERROR(VLOOKUP($A22,[1]BD!$E$30:$K$62,7,FALSE)),"",IF(VLOOKUP($A22,[1]BD!$E$30:$K$62,7,FALSE)="","",VLOOKUP($A22,[1]BD!$E$30:$K$62,7,FALSE))) ->  | D22: =IF(ISERROR(VLOOKUP($A22,[1]BD!$E$63:$K$93,7,FALSE)),"",IF(VLOOKUP($A22,[1]BD!$E$63:$K$93,7,FALSE)="","",VLOOKUP($A22,[1]BD!$E$63:$K$93,7,FALSE))) ->  | E22: =IF(ISERROR(VLOOKUP($A22,[1]BD!$E$94:$K$124,7,FALSE)),"",IF(VLOOKUP($A22,[1]BD!$E$94:$K$124,7,FALSE)="","",VLOOKUP($A22,[1]BD!$E$94:$K$124,7,FALSE))) ->  | F22: =IF(ISERROR(VLOOKUP($A22,[1]BD!$E$125:$K$150,7,FALSE)),"",IF(VLOOKUP($A22,[1]BD!$E$125:$K$150,7,FALSE)="","",VLOOKUP($A22,[1]BD!$E$125:$K$150,7,FALSE))) ->  | G22: =IF(ISERROR(VLOOKUP($A22,[1]BD!$E$151:$K$176,7,FALSE)),"",IF(VLOOKUP($A22,[1]BD!$E$151:$K$176,7,FALSE)="","",VLOOKUP($A22,[1]BD!$E$151:$K$176,7,FALSE))) ->  | H22: =IF(ISERROR(VLOOKUP($A22,[1]BD!$E$177:$K$197,7,FALSE)),"",IF(VLOOKUP($A22,[1]BD!$E$177:$K$197,7,FALSE)="","",VLOOKUP($A22,[1]BD!$E$177:$K$197,7,FALSE))) ->  | I22: =IF(ISERROR(VLOOKUP($A22,[1]BD!$E$198:$K$224,7,FALSE)),"",IF(VLOOKUP($A22,[1]BD!$E$198:$K$224,7,FALSE)="","",VLOOKUP($A22,[1]BD!$E$198:$K$224,7,FALSE))) ->  | J22: =IF(ISERROR(VLOOKUP($A22,[1]BD!$E$225:$K$244,7,FALSE)),"",IF(VLOOKUP($A22,[1]BD!$E$225:$K$244,7,FALSE)="","",VLOOKUP($A22,[1]BD!$E$225:$K$244,7,FALSE))) ->  | K22: =IF(ISERROR(VLOOKUP($A22,[1]BD!$E$245:$K$260,7,FALSE)),"",IF(VLOOKUP($A22,[1]BD!$E$245:$K$260,7,FALSE)="","",VLOOKUP($A22,[1]BD!$E$245:$K$260,7,FALSE))) -> TROCA | L22: =IF(ISERROR(VLOOKUP($A22,[1]BD!$E$261:$K$288,7,FALSE)),"",IF(VLOOKUP($A22,[1]BD!$E$261:$K$288,7,FALSE)="","",VLOOKUP($A22,[1]BD!$E$261:$K$288,7,FALSE))) ->  | M22: =IF(ISERROR(VLOOKUP($A22,[1]BD!$E$289:$K$309,7,FALSE)),"",IF(VLOOKUP($A22,[1]BD!$E$289:$K$309,7,FALSE)="","",VLOOKUP($A22,[1]BD!$E$289:$K$309,7,FALSE))) ->  | N22: 1
A23: Marcelo Sant'anna | B23: =IF(ISERROR(VLOOKUP($A23,[1]BD!$E$2:$K$29,7,FALSE)),"",IF(VLOOKUP($A23,[1]BD!$E$2:$K$29,7,FALSE)="","",VLOOKUP($A23,[1]BD!$E$2:$K$29,7,FALSE))) ->  | C23: =IF(ISERROR(VLOOKUP($A23,[1]BD!$E$30:$K$62,7,FALSE)),"",IF(VLOOKUP($A23,[1]BD!$E$30:$K$62,7,FALSE)="","",VLOOKUP($A23,[1]BD!$E$30:$K$62,7,FALSE))) ->  | D23: =IF(ISERROR(VLOOKUP($A23,[1]BD!$E$63:$K$93,7,FALSE)),"",IF(VLOOKUP($A23,[1]BD!$E$63:$K$93,7,FALSE)="","",VLOOKUP($A23,[1]BD!$E$63:$K$93,7,FALSE))) ->  | E23: =IF(ISERROR(VLOOKUP($A23,[1]BD!$E$94:$K$124,7,FALSE)),"",IF(VLOOKUP($A23,[1]BD!$E$94:$K$124,7,FALSE)="","",VLOOKUP($A23,[1]BD!$E$94:$K$124,7,FALSE))) ->  | F23: =IF(ISERROR(VLOOKUP($A23,[1]BD!$E$125:$K$150,7,FALSE)),"",IF(VLOOKUP($A23,[1]BD!$E$125:$K$150,7,FALSE)="","",VLOOKUP($A23,[1]BD!$E$125:$K$150,7,FALSE))) ->  | G23: =IF(ISERROR(VLOOKUP($A23,[1]BD!$E$151:$K$176,7,FALSE)),"",IF(VLOOKUP($A23,[1]BD!$E$151:$K$176,7,FALSE)="","",VLOOKUP($A23,[1]BD!$E$151:$K$176,7,FALSE))) ->  | H23: =IF(ISERROR(VLOOKUP($A23,[1]BD!$E$177:$K$197,7,FALSE)),"",IF(VLOOKUP($A23,[1]BD!$E$177:$K$197,7,FALSE)="","",VLOOKUP($A23,[1]BD!$E$177:$K$197,7,FALSE))) ->  | I23: =IF(ISERROR(VLOOKUP($A23,[1]BD!$E$198:$K$224,7,FALSE)),"",IF(VLOOKUP($A23,[1]BD!$E$198:$K$224,7,FALSE)="","",VLOOKUP($A23,[1]BD!$E$198:$K$224,7,FALSE))) ->  | J23: =IF(ISERROR(VLOOKUP($A23,[1]BD!$E$225:$K$244,7,FALSE)),"",IF(VLOOKUP($A23,[1]BD!$E$225:$K$244,7,FALSE)="","",VLOOKUP($A23,[1]BD!$E$225:$K$244,7,FALSE))) ->  | K23: =IF(ISERROR(VLOOKUP($A23,[1]BD!$E$245:$K$260,7,FALSE)),"",IF(VLOOKUP($A23,[1]BD!$E$245:$K$260,7,FALSE)="","",VLOOKUP($A23,[1]BD!$E$245:$K$260,7,FALSE))) ->  | L23: =IF(ISERROR(VLOOKUP($A23,[1]BD!$E$261:$K$288,7,FALSE)),"",IF(VLOOKUP($A23,[1]BD!$E$261:$K$288,7,FALSE)="","",VLOOKUP($A23,[1]BD!$E$261:$K$288,7,FALSE))) ->  | M23: =IF(ISERROR(VLOOKUP($A23,[1]BD!$E$289:$K$309,7,FALSE)),"",IF(VLOOKUP($A23,[1]BD!$E$289:$K$309,7,FALSE)="","",VLOOKUP($A23,[1]BD!$E$289:$K$309,7,FALSE))) ->  | N23: 0
A24: Bernardo Gatti | B24: =IF(ISERROR(VLOOKUP($A24,[1]BD!$E$2:$K$29,7,FALSE)),"",IF(VLOOKUP($A24,[1]BD!$E$2:$K$29,7,FALSE)="","",VLOOKUP($A24,[1]BD!$E$2:$K$29,7,FALSE))) ->  | C24: =IF(ISERROR(VLOOKUP($A24,[1]BD!$E$30:$K$62,7,FALSE)),"",IF(VLOOKUP($A24,[1]BD!$E$30:$K$62,7,FALSE)="","",VLOOKUP($A24,[1]BD!$E$30:$K$62,7,FALSE))) ->  | D24: =IF(ISERROR(VLOOKUP($A24,[1]BD!$E$63:$K$93,7,FALSE)),"",IF(VLOOKUP($A24,[1]BD!$E$63:$K$93,7,FALSE)="","",VLOOKUP($A24,[1]BD!$E$63:$K$93,7,FALSE))) ->  | E24: =IF(ISERROR(VLOOKUP($A24,[1]BD!$E$94:$K$124,7,FALSE)),"",IF(VLOOKUP($A24,[1]BD!$E$94:$K$124,7,FALSE)="","",VLOOKUP($A24,[1]BD!$E$94:$K$124,7,FALSE))) ->  | F24: =IF(ISERROR(VLOOKUP($A24,[1]BD!$E$125:$K$150,7,FALSE)),"",IF(VLOOKUP($A24,[1]BD!$E$125:$K$150,7,FALSE)="","",VLOOKUP($A24,[1]BD!$E$125:$K$150,7,FALSE))) ->  | G24: =IF(ISERROR(VLOOKUP($A24,[1]BD!$E$151:$K$176,7,FALSE)),"",IF(VLOOKUP($A24,[1]BD!$E$151:$K$176,7,FALSE)="","",VLOOKUP($A24,[1]BD!$E$151:$K$176,7,FALSE))) ->  | H24: =IF(ISERROR(VLOOKUP($A24,[1]BD!$E$177:$K$197,7,FALSE)),"",IF(VLOOKUP($A24,[1]BD!$E$177:$K$197,7,FALSE)="","",VLOOKUP($A24,[1]BD!$E$177:$K$197,7,FALSE))) ->  | I24: =IF(ISERROR(VLOOKUP($A24,[1]BD!$E$198:$K$224,7,FALSE)),"",IF(VLOOKUP($A24,[1]BD!$E$198:$K$224,7,FALSE)="","",VLOOKUP($A24,[1]BD!$E$198:$K$224,7,FALSE))) ->  | J24: =IF(ISERROR(VLOOKUP($A24,[1]BD!$E$225:$K$244,7,FALSE)),"",IF(VLOOKUP($A24,[1]BD!$E$225:$K$244,7,FALSE)="","",VLOOKUP($A24,[1]BD!$E$225:$K$244,7,FALSE))) -> TROCA | K24: =IF(ISERROR(VLOOKUP($A24,[1]BD!$E$245:$K$260,7,FALSE)),"",IF(VLOOKUP($A24,[1]BD!$E$245:$K$260,7,FALSE)="","",VLOOKUP($A24,[1]BD!$E$245:$K$260,7,FALSE))) ->  | L24: =IF(ISERROR(VLOOKUP($A24,[1]BD!$E$261:$K$288,7,FALSE)),"",IF(VLOOKUP($A24,[1]BD!$E$261:$K$288,7,FALSE)="","",VLOOKUP($A24,[1]BD!$E$261:$K$288,7,FALSE))) ->  | M24: =IF(ISERROR(VLOOKUP($A24,[1]BD!$E$289:$K$309,7,FALSE)),"",IF(VLOOKUP($A24,[1]BD!$E$289:$K$309,7,FALSE)="","",VLOOKUP($A24,[1]BD!$E$289:$K$309,7,FALSE))) ->  | N24: 1
A25: Maurício Júnior | B25: =IF(ISERROR(VLOOKUP($A25,[1]BD!$E$2:$K$29,7,FALSE)),"",IF(VLOOKUP($A25,[1]BD!$E$2:$K$29,7,FALSE)="","",VLOOKUP($A25,[1]BD!$E$2:$K$29,7,FALSE))) ->  | C25: =IF(ISERROR(VLOOKUP($A25,[1]BD!$E$30:$K$62,7,FALSE)),"",IF(VLOOKUP($A25,[1]BD!$E$30:$K$62,7,FALSE)="","",VLOOKUP($A25,[1]BD!$E$30:$K$62,7,FALSE))) ->  | D25: =IF(ISERROR(VLOOKUP($A25,[1]BD!$E$63:$K$93,7,FALSE)),"",IF(VLOOKUP($A25,[1]BD!$E$63:$K$93,7,FALSE)="","",VLOOKUP($A25,[1]BD!$E$63:$K$93,7,FALSE))) ->  | E25: =IF(ISERROR(VLOOKUP($A25,[1]BD!$E$94:$K$124,7,FALSE)),"",IF(VLOOKUP($A25,[1]BD!$E$94:$K$124,7,FALSE)="","",VLOOKUP($A25,[1]BD!$E$94:$K$124,7,FALSE))) ->  | F25: =IF(ISERROR(VLOOKUP($A25,[1]BD!$E$125:$K$150,7,FALSE)),"",IF(VLOOKUP($A25,[1]BD!$E$125:$K$150,7,FALSE)="","",VLOOKUP($A25,[1]BD!$E$125:$K$150,7,FALSE))) ->  | G25: =IF(ISERROR(VLOOKUP($A25,[1]BD!$E$151:$K$176,7,FALSE)),"",IF(VLOOKUP($A25,[1]BD!$E$151:$K$176,7,FALSE)="","",VLOOKUP($A25,[1]BD!$E$151:$K$176,7,FALSE))) ->  | H25: =IF(ISERROR(VLOOKUP($A25,[1]BD!$E$177:$K$197,7,FALSE)),"",IF(VLOOKUP($A25,[1]BD!$E$177:$K$197,7,FALSE)="","",VLOOKUP($A25,[1]BD!$E$177:$K$197,7,FALSE))) ->  | I25: =IF(ISERROR(VLOOKUP($A25,[1]BD!$E$198:$K$224,7,FALSE)),"",IF(VLOOKUP($A25,[1]BD!$E$198:$K$224,7,FALSE)="","",VLOOKUP($A25,[1]BD!$E$198:$K$224,7,FALSE))) ->  | J25: =IF(ISERROR(VLOOKUP($A25,[1]BD!$E$225:$K$244,7,FALSE)),"",IF(VLOOKUP($A25,[1]BD!$E$225:$K$244,7,FALSE)="","",VLOOKUP($A25,[1]BD!$E$225:$K$244,7,FALSE))) ->  | K25: =IF(ISERROR(VLOOKUP($A25,[1]BD!$E$245:$K$260,7,FALSE)),"",IF(VLOOKUP($A25,[1]BD!$E$245:$K$260,7,FALSE)="","",VLOOKUP($A25,[1]BD!$E$245:$K$260,7,FALSE))) ->  | L25: =IF(ISERROR(VLOOKUP($A25,[1]BD!$E$261:$K$288,7,FALSE)),"",IF(VLOOKUP($A25,[1]BD!$E$261:$K$288,7,FALSE)="","",VLOOKUP($A25,[1]BD!$E$261:$K$288,7,FALSE))) ->  | M25: =IF(ISERROR(VLOOKUP($A25,[1]BD!$E$289:$K$309,7,FALSE)),"",IF(VLOOKUP($A25,[1]BD!$E$289:$K$309,7,FALSE)="","",VLOOKUP($A25,[1]BD!$E$289:$K$309,7,FALSE))) -> TROCA | N25: 1
A26: Pedro Mello | B26: =IF(ISERROR(VLOOKUP($A26,[1]BD!$E$2:$K$29,7,FALSE)),"",IF(VLOOKUP($A26,[1]BD!$E$2:$K$29,7,FALSE)="","",VLOOKUP($A26,[1]BD!$E$2:$K$29,7,FALSE))) ->  | C26: =IF(ISERROR(VLOOKUP($A26,[1]BD!$E$30:$K$62,7,FALSE)),"",IF(VLOOKUP($A26,[1]BD!$E$30:$K$62,7,FALSE)="","",VLOOKUP($A26,[1]BD!$E$30:$K$62,7,FALSE))) ->  | D26: =IF(ISERROR(VLOOKUP($A26,[1]BD!$E$63:$K$93,7,FALSE)),"",IF(VLOOKUP($A26,[1]BD!$E$63:$K$93,7,FALSE)="","",VLOOKUP($A26,[1]BD!$E$63:$K$93,7,FALSE))) ->  | E26: =IF(ISERROR(VLOOKUP($A26,[1]BD!$E$94:$K$124,7,FALSE)),"",IF(VLOOKUP($A26,[1]BD!$E$94:$K$124,7,FALSE)="","",VLOOKUP($A26,[1]BD!$E$94:$K$124,7,FALSE))) ->  | F26: =IF(ISERROR(VLOOKUP($A26,[1]BD!$E$125:$K$150,7,FALSE)),"",IF(VLOOKUP($A26,[1]BD!$E$125:$K$150,7,FALSE)="","",VLOOKUP($A26,[1]BD!$E$125:$K$150,7,FALSE))) ->  | G26: =IF(ISERROR(VLOOKUP($A26,[1]BD!$E$151:$K$176,7,FALSE)),"",IF(VLOOKUP($A26,[1]BD!$E$151:$K$176,7,FALSE)="","",VLOOKUP($A26,[1]BD!$E$151:$K$176,7,FALSE))) ->  | H26: =IF(ISERROR(VLOOKUP($A26,[1]BD!$E$177:$K$197,7,FALSE)),"",IF(VLOOKUP($A26,[1]BD!$E$177:$K$197,7,FALSE)="","",VLOOKUP($A26,[1]BD!$E$177:$K$197,7,FALSE))) ->  | I26: =IF(ISERROR(VLOOKUP($A26,[1]BD!$E$198:$K$224,7,FALSE)),"",IF(VLOOKUP($A26,[1]BD!$E$198:$K$224,7,FALSE)="","",VLOOKUP($A26,[1]BD!$E$198:$K$224,7,FALSE))) ->  | J26: =IF(ISERROR(VLOOKUP($A26,[1]BD!$E$225:$K$244,7,FALSE)),"",IF(VLOOKUP($A26,[1]BD!$E$225:$K$244,7,FALSE)="","",VLOOKUP($A26,[1]BD!$E$225:$K$244,7,FALSE))) ->  | K26: =IF(ISERROR(VLOOKUP($A26,[1]BD!$E$245:$K$260,7,FALSE)),"",IF(VLOOKUP($A26,[1]BD!$E$245:$K$260,7,FALSE)="","",VLOOKUP($A26,[1]BD!$E$245:$K$260,7,FALSE))) ->  | L26: =IF(ISERROR(VLOOKUP($A26,[1]BD!$E$261:$K$288,7,FALSE)),"",IF(VLOOKUP($A26,[1]BD!$E$261:$K$288,7,FALSE)="","",VLOOKUP($A26,[1]BD!$E$261:$K$288,7,FALSE))) ->  | M26: =IF(ISERROR(VLOOKUP($A26,[1]BD!$E$289:$K$309,7,FALSE)),"",IF(VLOOKUP($A26,[1]BD!$E$289:$K$309,7,FALSE)="","",VLOOKUP($A26,[1]BD!$E$289:$K$309,7,FALSE))) ->  | N26: 0
A27: Raphael Reis | B27: =IF(ISERROR(VLOOKUP($A27,[1]BD!$E$2:$K$29,7,FALSE)),"",IF(VLOOKUP($A27,[1]BD!$E$2:$K$29,7,FALSE)="","",VLOOKUP($A27,[1]BD!$E$2:$K$29,7,FALSE))) ->  | C27: =IF(ISERROR(VLOOKUP($A27,[1]BD!$E$30:$K$62,7,FALSE)),"",IF(VLOOKUP($A27,[1]BD!$E$30:$K$62,7,FALSE)="","",VLOOKUP($A27,[1]BD!$E$30:$K$62,7,FALSE))) ->  | D27: =IF(ISERROR(VLOOKUP($A27,[1]BD!$E$63:$K$93,7,FALSE)),"",IF(VLOOKUP($A27,[1]BD!$E$63:$K$93,7,FALSE)="","",VLOOKUP($A27,[1]BD!$E$63:$K$93,7,FALSE))) ->  | E27: =IF(ISERROR(VLOOKUP($A27,[1]BD!$E$94:$K$124,7,FALSE)),"",IF(VLOOKUP($A27,[1]BD!$E$94:$K$124,7,FALSE)="","",VLOOKUP($A27,[1]BD!$E$94:$K$124,7,FALSE))) ->  | F27: =IF(ISERROR(VLOOKUP($A27,[1]BD!$E$125:$K$150,7,FALSE)),"",IF(VLOOKUP($A27,[1]BD!$E$125:$K$150,7,FALSE)="","",VLOOKUP($A27,[1]BD!$E$125:$K$150,7,FALSE))) ->  | G27: =IF(ISERROR(VLOOKUP($A27,[1]BD!$E$151:$K$176,7,FALSE)),"",IF(VLOOKUP($A27,[1]BD!$E$151:$K$176,7,FALSE)="","",VLOOKUP($A27,[1]BD!$E$151:$K$176,7,FALSE))) ->  | H27: =IF(ISERROR(VLOOKUP($A27,[1]BD!$E$177:$K$197,7,FALSE)),"",IF(VLOOKUP($A27,[1]BD!$E$177:$K$197,7,FALSE)="","",VLOOKUP($A27,[1]BD!$E$177:$K$197,7,FALSE))) ->  | I27: =IF(ISERROR(VLOOKUP($A27,[1]BD!$E$198:$K$224,7,FALSE)),"",IF(VLOOKUP($A27,[1]BD!$E$198:$K$224,7,FALSE)="","",VLOOKUP($A27,[1]BD!$E$198:$K$224,7,FALSE))) ->  | J27: =IF(ISERROR(VLOOKUP($A27,[1]BD!$E$225:$K$244,7,FALSE)),"",IF(VLOOKUP($A27,[1]BD!$E$225:$K$244,7,FALSE)="","",VLOOKUP($A27,[1]BD!$E$225:$K$244,7,FALSE))) ->  | K27: =IF(ISERROR(VLOOKUP($A27,[1]BD!$E$245:$K$260,7,FALSE)),"",IF(VLOOKUP($A27,[1]BD!$E$245:$K$260,7,FALSE)="","",VLOOKUP($A27,[1]BD!$E$245:$K$260,7,FALSE))) ->  | L27: =IF(ISERROR(VLOOKUP($A27,[1]BD!$E$261:$K$288,7,FALSE)),"",IF(VLOOKUP($A27,[1]BD!$E$261:$K$288,7,FALSE)="","",VLOOKUP($A27,[1]BD!$E$261:$K$288,7,FALSE))) ->  | M27: =IF(ISERROR(VLOOKUP($A27,[1]BD!$E$289:$K$309,7,FALSE)),"",IF(VLOOKUP($A27,[1]BD!$E$289:$K$309,7,FALSE)="","",VLOOKUP($A27,[1]BD!$E$289:$K$309,7,FALSE))) ->  | N27: 0
A28: Reila Ricardo | B28: =IF(ISERROR(VLOOKUP($A28,[1]BD!$E$2:$K$29,7,FALSE)),"",IF(VLOOKUP($A28,[1]BD!$E$2:$K$29,7,FALSE)="","",VLOOKUP($A28,[1]BD!$E$2:$K$29,7,FALSE))) ->  | C28: =IF(ISERROR(VLOOKUP($A28,[1]BD!$E$30:$K$62,7,FALSE)),"",IF(VLOOKUP($A28,[1]BD!$E$30:$K$62,7,FALSE)="","",VLOOKUP($A28,[1]BD!$E$30:$K$62,7,FALSE))) ->  | D28: =IF(ISERROR(VLOOKUP($A28,[1]BD!$E$63:$K$93,7,FALSE)),"",IF(VLOOKUP($A28,[1]BD!$E$63:$K$93,7,FALSE)="","",VLOOKUP($A28,[1]BD!$E$63:$K$93,7,FALSE))) ->  | E28: =IF(ISERROR(VLOOKUP($A28,[1]BD!$E$94:$K$124,7,FALSE)),"",IF(VLOOKUP($A28,[1]BD!$E$94:$K$124,7,FALSE)="","",VLOOKUP($A28,[1]BD!$E$94:$K$124,7,FALSE))) ->  | F28: =IF(ISERROR(VLOOKUP($A28,[1]BD!$E$125:$K$150,7,FALSE)),"",IF(VLOOKUP($A28,[1]BD!$E$125:$K$150,7,FALSE)="","",VLOOKUP($A28,[1]BD!$E$125:$K$150,7,FALSE))) ->  | G28: =IF(ISERROR(VLOOKUP($A28,[1]BD!$E$151:$K$176,7,FALSE)),"",IF(VLOOKUP($A28,[1]BD!$E$151:$K$176,7,FALSE)="","",VLOOKUP($A28,[1]BD!$E$151:$K$176,7,FALSE))) ->  | H28: =IF(ISERROR(VLOOKUP($A28,[1]BD!$E$177:$K$197,7,FALSE)),"",IF(VLOOKUP($A28,[1]BD!$E$177:$K$197,7,FALSE)="","",VLOOKUP($A28,[1]BD!$E$177:$K$197,7,FALSE))) ->  | I28: =IF(ISERROR(VLOOKUP($A28,[1]BD!$E$198:$K$224,7,FALSE)),"",IF(VLOOKUP($A28,[1]BD!$E$198:$K$224,7,FALSE)="","",VLOOKUP($A28,[1]BD!$E$198:$K$224,7,FALSE))) ->  | J28: =IF(ISERROR(VLOOKUP($A28,[1]BD!$E$225:$K$244,7,FALSE)),"",IF(VLOOKUP($A28,[1]BD!$E$225:$K$244,7,FALSE)="","",VLOOKUP($A28,[1]BD!$E$225:$K$244,7,FALSE))) -> TROCA | K28: =IF(ISERROR(VLOOKUP($A28,[1]BD!$E$245:$K$260,7,FALSE)),"",IF(VLOOKUP($A28,[1]BD!$E$245:$K$260,7,FALSE)="","",VLOOKUP($A28,[1]BD!$E$245:$K$260,7,FALSE))) ->  | L28: =IF(ISERROR(VLOOKUP($A28,[1]BD!$E$261:$K$288,7,FALSE)),"",IF(VLOOKUP($A28,[1]BD!$E$261:$K$288,7,FALSE)="","",VLOOKUP($A28,[1]BD!$E$261:$K$288,7,FALSE))) ->  | M28: =IF(ISERROR(VLOOKUP($A28,[1]BD!$E$289:$K$309,7,FALSE)),"",IF(VLOOKUP($A28,[1]BD!$E$289:$K$309,7,FALSE)="","",VLOOKUP($A28,[1]BD!$E$289:$K$309,7,FALSE))) ->  | N28: 1
A29: Renato Amaral | B29: =IF(ISERROR(VLOOKUP($A29,[1]BD!$E$2:$K$29,7,FALSE)),"",IF(VLOOKUP($A29,[1]BD!$E$2:$K$29,7,FALSE)="","",VLOOKUP($A29,[1]BD!$E$2:$K$29,7,FALSE))) ->  | C29: =IF(ISERROR(VLOOKUP($A29,[1]BD!$E$30:$K$62,7,FALSE)),"",IF(VLOOKUP($A29,[1]BD!$E$30:$K$62,7,FALSE)="","",VLOOKUP($A29,[1]BD!$E$30:$K$62,7,FALSE))) ->  | D29: =IF(ISERROR(VLOOKUP($A29,[1]BD!$E$63:$K$93,7,FALSE)),"",IF(VLOOKUP($A29,[1]BD!$E$63:$K$93,7,FALSE)="","",VLOOKUP($A29,[1]BD!$E$63:$K$93,7,FALSE))) ->  | E29: =IF(ISERROR(VLOOKUP($A29,[1]BD!$E$94:$K$124,7,FALSE)),"",IF(VLOOKUP($A29,[1]BD!$E$94:$K$124,7,FALSE)="","",VLOOKUP($A29,[1]BD!$E$94:$K$124,7,FALSE))) ->  | F29: =IF(ISERROR(VLOOKUP($A29,[1]BD!$E$125:$K$150,7,FALSE)),"",IF(VLOOKUP($A29,[1]BD!$E$125:$K$150,7,FALSE)="","",VLOOKUP($A29,[1]BD!$E$125:$K$150,7,FALSE))) ->  | G29: =IF(ISERROR(VLOOKUP($A29,[1]BD!$E$151:$K$176,7,FALSE)),"",IF(VLOOKUP($A29,[1]BD!$E$151:$K$176,7,FALSE)="","",VLOOKUP($A29,[1]BD!$E$151:$K$176,7,FALSE))) ->  | H29: =IF(ISERROR(VLOOKUP($A29,[1]BD!$E$177:$K$197,7,FALSE)),"",IF(VLOOKUP($A29,[1]BD!$E$177:$K$197,7,FALSE)="","",VLOOKUP($A29,[1]BD!$E$177:$K$197,7,FALSE))) ->  | I29: =IF(ISERROR(VLOOKUP($A29,[1]BD!$E$198:$K$224,7,FALSE)),"",IF(VLOOKUP($A29,[1]BD!$E$198:$K$224,7,FALSE)="","",VLOOKUP($A29,[1]BD!$E$198:$K$224,7,FALSE))) ->  | J29: =IF(ISERROR(VLOOKUP($A29,[1]BD!$E$225:$K$244,7,FALSE)),"",IF(VLOOKUP($A29,[1]BD!$E$225:$K$244,7,FALSE)="","",VLOOKUP($A29,[1]BD!$E$225:$K$244,7,FALSE))) ->  | K29: =IF(ISERROR(VLOOKUP($A29,[1]BD!$E$245:$K$260,7,FALSE)),"",IF(VLOOKUP($A29,[1]BD!$E$245:$K$260,7,FALSE)="","",VLOOKUP($A29,[1]BD!$E$245:$K$260,7,FALSE))) ->  | L29: =IF(ISERROR(VLOOKUP($A29,[1]BD!$E$261:$K$288,7,FALSE)),"",IF(VLOOKUP($A29,[1]BD!$E$261:$K$288,7,FALSE)="","",VLOOKUP($A29,[1]BD!$E$261:$K$288,7,FALSE))) ->  | M29: =IF(ISERROR(VLOOKUP($A29,[1]BD!$E$289:$K$309,7,FALSE)),"",IF(VLOOKUP($A29,[1]BD!$E$289:$K$309,7,FALSE)="","",VLOOKUP($A29,[1]BD!$E$289:$K$309,7,FALSE))) ->  | N29: 0
A30: Rodrigo Mercadante | B30: =IF(ISERROR(VLOOKUP($A30,[1]BD!$E$2:$K$29,7,FALSE)),"",IF(VLOOKUP($A30,[1]BD!$E$2:$K$29,7,FALSE)="","",VLOOKUP($A30,[1]BD!$E$2:$K$29,7,FALSE))) ->  | C30: =IF(ISERROR(VLOOKUP($A30,[1]BD!$E$30:$K$62,7,FALSE)),"",IF(VLOOKUP($A30,[1]BD!$E$30:$K$62,7,FALSE)="","",VLOOKUP($A30,[1]BD!$E$30:$K$62,7,FALSE))) ->  | D30: =IF(ISERROR(VLOOKUP($A30,[1]BD!$E$63:$K$93,7,FALSE)),"",IF(VLOOKUP($A30,[1]BD!$E$63:$K$93,7,FALSE)="","",VLOOKUP($A30,[1]BD!$E$63:$K$93,7,FALSE))) ->  | E30: =IF(ISERROR(VLOOKUP($A30,[1]BD!$E$94:$K$124,7,FALSE)),"",IF(VLOOKUP($A30,[1]BD!$E$94:$K$124,7,FALSE)="","",VLOOKUP($A30,[1]BD!$E$94:$K$124,7,FALSE))) ->  | F30: =IF(ISERROR(VLOOKUP($A30,[1]BD!$E$125:$K$150,7,FALSE)),"",IF(VLOOKUP($A30,[1]BD!$E$125:$K$150,7,FALSE)="","",VLOOKUP($A30,[1]BD!$E$125:$K$150,7,FALSE))) ->  | G30: =IF(ISERROR(VLOOKUP($A30,[1]BD!$E$151:$K$176,7,FALSE)),"",IF(VLOOKUP($A30,[1]BD!$E$151:$K$176,7,FALSE)="","",VLOOKUP($A30,[1]BD!$E$151:$K$176,7,FALSE))) ->  | H30: =IF(ISERROR(VLOOKUP($A30,[1]BD!$E$177:$K$197,7,FALSE)),"",IF(VLOOKUP($A30,[1]BD!$E$177:$K$197,7,FALSE)="","",VLOOKUP($A30,[1]BD!$E$177:$K$197,7,FALSE))) ->  | I30: =IF(ISERROR(VLOOKUP($A30,[1]BD!$E$198:$K$224,7,FALSE)),"",IF(VLOOKUP($A30,[1]BD!$E$198:$K$224,7,FALSE)="","",VLOOKUP($A30,[1]BD!$E$198:$K$224,7,FALSE))) ->  | J30: =IF(ISERROR(VLOOKUP($A30,[1]BD!$E$225:$K$244,7,FALSE)),"",IF(VLOOKUP($A30,[1]BD!$E$225:$K$244,7,FALSE)="","",VLOOKUP($A30,[1]BD!$E$225:$K$244,7,FALSE))) ->  | K30: =IF(ISERROR(VLOOKUP($A30,[1]BD!$E$245:$K$260,7,FALSE)),"",IF(VLOOKUP($A30,[1]BD!$E$245:$K$260,7,FALSE)="","",VLOOKUP($A30,[1]BD!$E$245:$K$260,7,FALSE))) ->  | L30: =IF(ISERROR(VLOOKUP($A30,[1]BD!$E$261:$K$288,7,FALSE)),"",IF(VLOOKUP($A30,[1]BD!$E$261:$K$288,7,FALSE)="","",VLOOKUP($A30,[1]BD!$E$261:$K$288,7,FALSE))) ->  | M30: =IF(ISERROR(VLOOKUP($A30,[1]BD!$E$289:$K$309,7,FALSE)),"",IF(VLOOKUP($A30,[1]BD!$E$289:$K$309,7,FALSE)="","",VLOOKUP($A30,[1]BD!$E$289:$K$309,7,FALSE))) ->  | N30: 0
A31: Rodrigo Ricardo | B31: =IF(ISERROR(VLOOKUP($A31,[1]BD!$E$2:$K$29,7,FALSE)),"",IF(VLOOKUP($A31,[1]BD!$E$2:$K$29,7,FALSE)="","",VLOOKUP($A31,[1]BD!$E$2:$K$29,7,FALSE))) ->  | C31: =IF(ISERROR(VLOOKUP($A31,[1]BD!$E$30:$K$62,7,FALSE)),"",IF(VLOOKUP($A31,[1]BD!$E$30:$K$62,7,FALSE)="","",VLOOKUP($A31,[1]BD!$E$30:$K$62,7,FALSE))) ->  | D31: =IF(ISERROR(VLOOKUP($A31,[1]BD!$E$63:$K$93,7,FALSE)),"",IF(VLOOKUP($A31,[1]BD!$E$63:$K$93,7,FALSE)="","",VLOOKUP($A31,[1]BD!$E$63:$K$93,7,FALSE))) -> TROCA | E31: =IF(ISERROR(VLOOKUP($A31,[1]BD!$E$94:$K$124,7,FALSE)),"",IF(VLOOKUP($A31,[1]BD!$E$94:$K$124,7,FALSE)="","",VLOOKUP($A31,[1]BD!$E$94:$K$124,7,FALSE))) ->  | F31: =IF(ISERROR(VLOOKUP($A31,[1]BD!$E$125:$K$150,7,FALSE)),"",IF(VLOOKUP($A31,[1]BD!$E$125:$K$150,7,FALSE)="","",VLOOKUP($A31,[1]BD!$E$125:$K$150,7,FALSE))) ->  | G31: =IF(ISERROR(VLOOKUP($A31,[1]BD!$E$151:$K$176,7,FALSE)),"",IF(VLOOKUP($A31,[1]BD!$E$151:$K$176,7,FALSE)="","",VLOOKUP($A31,[1]BD!$E$151:$K$176,7,FALSE))) ->  | H31: =IF(ISERROR(VLOOKUP($A31,[1]BD!$E$177:$K$197,7,FALSE)),"",IF(VLOOKUP($A31,[1]BD!$E$177:$K$197,7,FALSE)="","",VLOOKUP($A31,[1]BD!$E$177:$K$197,7,FALSE))) ->  | I31: =IF(ISERROR(VLOOKUP($A31,[1]BD!$E$198:$K$224,7,FALSE)),"",IF(VLOOKUP($A31,[1]BD!$E$198:$K$224,7,FALSE)="","",VLOOKUP($A31,[1]BD!$E$198:$K$224,7,FALSE))) ->  | J31: =IF(ISERROR(VLOOKUP($A31,[1]BD!$E$225:$K$244,7,FALSE)),"",IF(VLOOKUP($A31,[1]BD!$E$225:$K$244,7,FALSE)="","",VLOOKUP($A31,[1]BD!$E$225:$K$244,7,FALSE))) ->  | K31: =IF(ISERROR(VLOOKUP($A31,[1]BD!$E$245:$K$260,7,FALSE)),"",IF(VLOOKUP($A31,[1]BD!$E$245:$K$260,7,FALSE)="","",VLOOKUP($A31,[1]BD!$E$245:$K$260,7,FALSE))) ->  | L31: =IF(ISERROR(VLOOKUP($A31,[1]BD!$E$261:$K$288,7,FALSE)),"",IF(VLOOKUP($A31,[1]BD!$E$261:$K$288,7,FALSE)="","",VLOOKUP($A31,[1]BD!$E$261:$K$288,7,FALSE))) ->  | M31: =IF(ISERROR(VLOOKUP($A31,[1]BD!$E$289:$K$309,7,FALSE)),"",IF(VLOOKUP($A31,[1]BD!$E$289:$K$309,7,FALSE)="","",VLOOKUP($A31,[1]BD!$E$289:$K$309,7,FALSE))) ->  | N31: 1
A32: Tati Marcondes | B32: =IF(ISERROR(VLOOKUP($A32,[1]BD!$E$2:$K$29,7,FALSE)),"",IF(VLOOKUP($A32,[1]BD!$E$2:$K$29,7,FALSE)="","",VLOOKUP($A32,[1]BD!$E$2:$K$29,7,FALSE))) ->  | C32: =IF(ISERROR(VLOOKUP($A32,[1]BD!$E$30:$K$62,7,FALSE)),"",IF(VLOOKUP($A32,[1]BD!$E$30:$K$62,7,FALSE)="","",VLOOKUP($A32,[1]BD!$E$30:$K$62,7,FALSE))) ->  | D32: =IF(ISERROR(VLOOKUP($A32,[1]BD!$E$63:$K$93,7,FALSE)),"",IF(VLOOKUP($A32,[1]BD!$E$63:$K$93,7,FALSE)="","",VLOOKUP($A32,[1]BD!$E$63:$K$93,7,FALSE))) ->  | E32: =IF(ISERROR(VLOOKUP($A32,[1]BD!$E$94:$K$124,7,FALSE)),"",IF(VLOOKUP($A32,[1]BD!$E$94:$K$124,7,FALSE)="","",VLOOKUP($A32,[1]BD!$E$94:$K$124,7,FALSE))) ->  | F32: =IF(ISERROR(VLOOKUP($A32,[1]BD!$E$125:$K$150,7,FALSE)),"",IF(VLOOKUP($A32,[1]BD!$E$125:$K$150,7,FALSE)="","",VLOOKUP($A32,[1]BD!$E$125:$K$150,7,FALSE))) ->  | G32: =IF(ISERROR(VLOOKUP($A32,[1]BD!$E$151:$K$176,7,FALSE)),"",IF(VLOOKUP($A32,[1]BD!$E$151:$K$176,7,FALSE)="","",VLOOKUP($A32,[1]BD!$E$151:$K$176,7,FALSE))) ->  | H32: =IF(ISERROR(VLOOKUP($A32,[1]BD!$E$177:$K$197,7,FALSE)),"",IF(VLOOKUP($A32,[1]BD!$E$177:$K$197,7,FALSE)="","",VLOOKUP($A32,[1]BD!$E$177:$K$197,7,FALSE))) ->  | I32: =IF(ISERROR(VLOOKUP($A32,[1]BD!$E$198:$K$224,7,FALSE)),"",IF(VLOOKUP($A32,[1]BD!$E$198:$K$224,7,FALSE)="","",VLOOKUP($A32,[1]BD!$E$198:$K$224,7,FALSE))) ->  | J32: =IF(ISERROR(VLOOKUP($A32,[1]BD!$E$225:$K$244,7,FALSE)),"",IF(VLOOKUP($A32,[1]BD!$E$225:$K$244,7,FALSE)="","",VLOOKUP($A32,[1]BD!$E$225:$K$244,7,FALSE))) ->  | K32: =IF(ISERROR(VLOOKUP($A32,[1]BD!$E$245:$K$260,7,FALSE)),"",IF(VLOOKUP($A32,[1]BD!$E$245:$K$260,7,FALSE)="","",VLOOKUP($A32,[1]BD!$E$245:$K$260,7,FALSE))) ->  | L32: =IF(ISERROR(VLOOKUP($A32,[1]BD!$E$261:$K$288,7,FALSE)),"",IF(VLOOKUP($A32,[1]BD!$E$261:$K$288,7,FALSE)="","",VLOOKUP($A32,[1]BD!$E$261:$K$288,7,FALSE))) ->  | M32: =IF(ISERROR(VLOOKUP($A32,[1]BD!$E$289:$K$309,7,FALSE)),"",IF(VLOOKUP($A32,[1]BD!$E$289:$K$309,7,FALSE)="","",VLOOKUP($A32,[1]BD!$E$289:$K$309,7,FALSE))) ->  | N32: 0
A33: Wesley Bambirra | B33: =IF(ISERROR(VLOOKUP($A33,[1]BD!$E$2:$K$29,7,FALSE)),"",IF(VLOOKUP($A33,[1]BD!$E$2:$K$29,7,FALSE)="","",VLOOKUP($A33,[1]BD!$E$2:$K$29,7,FALSE))) ->  | C33: =IF(ISERROR(VLOOKUP($A33,[1]BD!$E$30:$K$62,7,FALSE)),"",IF(VLOOKUP($A33,[1]BD!$E$30:$K$62,7,FALSE)="","",VLOOKUP($A33,[1]BD!$E$30:$K$62,7,FALSE))) -> TROCA | D33: =IF(ISERROR(VLOOKUP($A33,[1]BD!$E$63:$K$93,7,FALSE)),"",IF(VLOOKUP($A33,[1]BD!$E$63:$K$93,7,FALSE)="","",VLOOKUP($A33,[1]BD!$E$63:$K$93,7,FALSE))) ->  | E33: =IF(ISERROR(VLOOKUP($A33,[1]BD!$E$94:$K$124,7,FALSE)),"",IF(VLOOKUP($A33,[1]BD!$E$94:$K$124,7,FALSE)="","",VLOOKUP($A33,[1]BD!$E$94:$K$124,7,FALSE))) ->  | F33: =IF(ISERROR(VLOOKUP($A33,[1]BD!$E$125:$K$150,7,FALSE)),"",IF(VLOOKUP($A33,[1]BD!$E$125:$K$150,7,FALSE)="","",VLOOKUP($A33,[1]BD!$E$125:$K$150,7,FALSE))) ->  | G33: =IF(ISERROR(VLOOKUP($A33,[1]BD!$E$151:$K$176,7,FALSE)),"",IF(VLOOKUP($A33,[1]BD!$E$151:$K$176,7,FALSE)="","",VLOOKUP($A33,[1]BD!$E$151:$K$176,7,FALSE))) ->  | H33: =IF(ISERROR(VLOOKUP($A33,[1]BD!$E$177:$K$197,7,FALSE)),"",IF(VLOOKUP($A33,[1]BD!$E$177:$K$197,7,FALSE)="","",VLOOKUP($A33,[1]BD!$E$177:$K$197,7,FALSE))) ->  | I33: =IF(ISERROR(VLOOKUP($A33,[1]BD!$E$198:$K$224,7,FALSE)),"",IF(VLOOKUP($A33,[1]BD!$E$198:$K$224,7,FALSE)="","",VLOOKUP($A33,[1]BD!$E$198:$K$224,7,FALSE))) ->  | J33: =IF(ISERROR(VLOOKUP($A33,[1]BD!$E$225:$K$244,7,FALSE)),"",IF(VLOOKUP($A33,[1]BD!$E$225:$K$244,7,FALSE)="","",VLOOKUP($A33,[1]BD!$E$225:$K$244,7,FALSE))) ->  | K33: =IF(ISERROR(VLOOKUP($A33,[1]BD!$E$245:$K$260,7,FALSE)),"",IF(VLOOKUP($A33,[1]BD!$E$245:$K$260,7,FALSE)="","",VLOOKUP($A33,[1]BD!$E$245:$K$260,7,FALSE))) ->  | L33: =IF(ISERROR(VLOOKUP($A33,[1]BD!$E$261:$K$288,7,FALSE)),"",IF(VLOOKUP($A33,[1]BD!$E$261:$K$288,7,FALSE)="","",VLOOKUP($A33,[1]BD!$E$261:$K$288,7,FALSE))) -> TROCA | M33: =IF(ISERROR(VLOOKUP($A33,[1]BD!$E$289:$K$309,7,FALSE)),"",IF(VLOOKUP($A33,[1]BD!$E$289:$K$309,7,FALSE)="","",VLOOKUP($A33,[1]BD!$E$289:$K$309,7,FALSE))) ->  | N33: 2
A34: Wesley Camargos | B34: =IF(ISERROR(VLOOKUP($A34,[1]BD!$E$2:$K$29,7,FALSE)),"",IF(VLOOKUP($A34,[1]BD!$E$2:$K$29,7,FALSE)="","",VLOOKUP($A34,[1]BD!$E$2:$K$29,7,FALSE))) ->  | C34: =IF(ISERROR(VLOOKUP($A34,[1]BD!$E$30:$K$62,7,FALSE)),"",IF(VLOOKUP($A34,[1]BD!$E$30:$K$62,7,FALSE)="","",VLOOKUP($A34,[1]BD!$E$30:$K$62,7,FALSE))) ->  | D34: =IF(ISERROR(VLOOKUP($A34,[1]BD!$E$63:$K$93,7,FALSE)),"",IF(VLOOKUP($A34,[1]BD!$E$63:$K$93,7,FALSE)="","",VLOOKUP($A34,[1]BD!$E$63:$K$93,7,FALSE))) ->  | E34: =IF(ISERROR(VLOOKUP($A34,[1]BD!$E$94:$K$124,7,FALSE)),"",IF(VLOOKUP($A34,[1]BD!$E$94:$K$124,7,FALSE)="","",VLOOKUP($A34,[1]BD!$E$94:$K$124,7,FALSE))) ->  | F34: =IF(ISERROR(VLOOKUP($A34,[1]BD!$E$125:$K$150,7,FALSE)),"",IF(VLOOKUP($A34,[1]BD!$E$125:$K$150,7,FALSE)="","",VLOOKUP($A34,[1]BD!$E$125:$K$150,7,FALSE))) ->  | G34: =IF(ISERROR(VLOOKUP($A34,[1]BD!$E$151:$K$176,7,FALSE)),"",IF(VLOOKUP($A34,[1]BD!$E$151:$K$176,7,FALSE)="","",VLOOKUP($A34,[1]BD!$E$151:$K$176,7,FALSE))) ->  | H34: =IF(ISERROR(VLOOKUP($A34,[1]BD!$E$177:$K$197,7,FALSE)),"",IF(VLOOKUP($A34,[1]BD!$E$177:$K$197,7,FALSE)="","",VLOOKUP($A34,[1]BD!$E$177:$K$197,7,FALSE))) ->  | I34: =IF(ISERROR(VLOOKUP($A34,[1]BD!$E$198:$K$224,7,FALSE)),"",IF(VLOOKUP($A34,[1]BD!$E$198:$K$224,7,FALSE)="","",VLOOKUP($A34,[1]BD!$E$198:$K$224,7,FALSE))) ->  | J34: =IF(ISERROR(VLOOKUP($A34,[1]BD!$E$225:$K$244,7,FALSE)),"",IF(VLOOKUP($A34,[1]BD!$E$225:$K$244,7,FALSE)="","",VLOOKUP($A34,[1]BD!$E$225:$K$244,7,FALSE))) ->  | K34: =IF(ISERROR(VLOOKUP($A34,[1]BD!$E$245:$K$260,7,FALSE)),"",IF(VLOOKUP($A34,[1]BD!$E$245:$K$260,7,FALSE)="","",VLOOKUP($A34,[1]BD!$E$245:$K$260,7,FALSE))) ->  | L34: =IF(ISERROR(VLOOKUP($A34,[1]BD!$E$261:$K$288,7,FALSE)),"",IF(VLOOKUP($A34,[1]BD!$E$261:$K$288,7,FALSE)="","",VLOOKUP($A34,[1]BD!$E$261:$K$288,7,FALSE))) ->  | M34: =IF(ISERROR(VLOOKUP($A34,[1]BD!$E$289:$K$309,7,FALSE)),"",IF(VLOOKUP($A34,[1]BD!$E$289:$K$309,7,FALSE)="","",VLOOKUP($A34,[1]BD!$E$289:$K$309,7,FALSE))) ->  | N34: 0
A35: Wesley Canuto | B35: =IF(ISERROR(VLOOKUP($A35,[1]BD!$E$2:$K$29,7,FALSE)),"",IF(VLOOKUP($A35,[1]BD!$E$2:$K$29,7,FALSE)="","",VLOOKUP($A35,[1]BD!$E$2:$K$29,7,FALSE))) ->  | C35: =IF(ISERROR(VLOOKUP($A35,[1]BD!$E$30:$K$62,7,FALSE)),"",IF(VLOOKUP($A35,[1]BD!$E$30:$K$62,7,FALSE)="","",VLOOKUP($A35,[1]BD!$E$30:$K$62,7,FALSE))) ->  | D35: =IF(ISERROR(VLOOKUP($A35,[1]BD!$E$63:$K$93,7,FALSE)),"",IF(VLOOKUP($A35,[1]BD!$E$63:$K$93,7,FALSE)="","",VLOOKUP($A35,[1]BD!$E$63:$K$93,7,FALSE))) ->  | E35: =IF(ISERROR(VLOOKUP($A35,[1]BD!$E$94:$K$124,7,FALSE)),"",IF(VLOOKUP($A35,[1]BD!$E$94:$K$124,7,FALSE)="","",VLOOKUP($A35,[1]BD!$E$94:$K$124,7,FALSE))) ->  | F35: =IF(ISERROR(VLOOKUP($A35,[1]BD!$E$125:$K$150,7,FALSE)),"",IF(VLOOKUP($A35,[1]BD!$E$125:$K$150,7,FALSE)="","",VLOOKUP($A35,[1]BD!$E$125:$K$150,7,FALSE))) ->  | G35: =IF(ISERROR(VLOOKUP($A35,[1]BD!$E$151:$K$176,7,FALSE)),"",IF(VLOOKUP($A35,[1]BD!$E$151:$K$176,7,FALSE)="","",VLOOKUP($A35,[1]BD!$E$151:$K$176,7,FALSE))) ->  | H35: =IF(ISERROR(VLOOKUP($A35,[1]BD!$E$177:$K$197,7,FALSE)),"",IF(VLOOKUP($A35,[1]BD!$E$177:$K$197,7,FALSE)="","",VLOOKUP($A35,[1]BD!$E$177:$K$197,7,FALSE))) ->  | I35: =IF(ISERROR(VLOOKUP($A35,[1]BD!$E$198:$K$224,7,FALSE)),"",IF(VLOOKUP($A35,[1]BD!$E$198:$K$224,7,FALSE)="","",VLOOKUP($A35,[1]BD!$E$198:$K$224,7,FALSE))) ->  | J35: =IF(ISERROR(VLOOKUP($A35,[1]BD!$E$225:$K$244,7,FALSE)),"",IF(VLOOKUP($A35,[1]BD!$E$225:$K$244,7,FALSE)="","",VLOOKUP($A35,[1]BD!$E$225:$K$244,7,FALSE))) ->  | K35: =IF(ISERROR(VLOOKUP($A35,[1]BD!$E$245:$K$260,7,FALSE)),"",IF(VLOOKUP($A35,[1]BD!$E$245:$K$260,7,FALSE)="","",VLOOKUP($A35,[1]BD!$E$245:$K$260,7,FALSE))) ->  | L35: =IF(ISERROR(VLOOKUP($A35,[1]BD!$E$261:$K$288,7,FALSE)),"",IF(VLOOKUP($A35,[1]BD!$E$261:$K$288,7,FALSE)="","",VLOOKUP($A35,[1]BD!$E$261:$K$288,7,FALSE))) -> TROCA | M35: =IF(ISERROR(VLOOKUP($A35,[1]BD!$E$289:$K$309,7,FALSE)),"",IF(VLOOKUP($A35,[1]BD!$E$289:$K$309,7,FALSE)="","",VLOOKUP($A35,[1]BD!$E$289:$K$309,7,FALSE))) ->  | N35: 1
A36: Roberta Epifânio | B36: =IF(ISERROR(VLOOKUP($A36,[1]BD!$E$2:$K$29,7,FALSE)),"",IF(VLOOKUP($A36,[1]BD!$E$2:$K$29,7,FALSE)="","",VLOOKUP($A36,[1]BD!$E$2:$K$29,7,FALSE))) ->  | C36: =IF(ISERROR(VLOOKUP($A36,[1]BD!$E$30:$K$62,7,FALSE)),"",IF(VLOOKUP($A36,[1]BD!$E$30:$K$62,7,FALSE)="","",VLOOKUP($A36,[1]BD!$E$30:$K$62,7,FALSE))) ->  | D36: =IF(ISERROR(VLOOKUP($A36,[1]BD!$E$63:$K$93,7,FALSE)),"",IF(VLOOKUP($A36,[1]BD!$E$63:$K$93,7,FALSE)="","",VLOOKUP($A36,[1]BD!$E$63:$K$93,7,FALSE))) ->  | E36: =IF(ISERROR(VLOOKUP($A36,[1]BD!$E$94:$K$124,7,FALSE)),"",IF(VLOOKUP($A36,[1]BD!$E$94:$K$124,7,FALSE)="","",VLOOKUP($A36,[1]BD!$E$94:$K$124,7,FALSE))) ->  | F36: =IF(ISERROR(VLOOKUP($A36,[1]BD!$E$125:$K$150,7,FALSE)),"",IF(VLOOKUP($A36,[1]BD!$E$125:$K$150,7,FALSE)="","",VLOOKUP($A36,[1]BD!$E$125:$K$150,7,FALSE))) ->  | G36: =IF(ISERROR(VLOOKUP($A36,[1]BD!$E$151:$K$176,7,FALSE)),"",IF(VLOOKUP($A36,[1]BD!$E$151:$K$176,7,FALSE)="","",VLOOKUP($A36,[1]BD!$E$151:$K$176,7,FALSE))) ->  | H36: =IF(ISERROR(VLOOKUP($A36,[1]BD!$E$177:$K$197,7,FALSE)),"",IF(VLOOKUP($A36,[1]BD!$E$177:$K$197,7,FALSE)="","",VLOOKUP($A36,[1]BD!$E$177:$K$197,7,FALSE))) ->  | I36: =IF(ISERROR(VLOOKUP($A36,[1]BD!$E$198:$K$224,7,FALSE)),"",IF(VLOOKUP($A36,[1]BD!$E$198:$K$224,7,FALSE)="","",VLOOKUP($A36,[1]BD!$E$198:$K$224,7,FALSE))) ->  | J36: =IF(ISERROR(VLOOKUP($A36,[1]BD!$E$225:$K$244,7,FALSE)),"",IF(VLOOKUP($A36,[1]BD!$E$225:$K$244,7,FALSE)="","",VLOOKUP($A36,[1]BD!$E$225:$K$244,7,FALSE))) ->  | K36: =IF(ISERROR(VLOOKUP($A36,[1]BD!$E$245:$K$260,7,FALSE)),"",IF(VLOOKUP($A36,[1]BD!$E$245:$K$260,7,FALSE)="","",VLOOKUP($A36,[1]BD!$E$245:$K$260,7,FALSE))) ->  | L36: =IF(ISERROR(VLOOKUP($A36,[1]BD!$E$261:$K$288,7,FALSE)),"",IF(VLOOKUP($A36,[1]BD!$E$261:$K$288,7,FALSE)="","",VLOOKUP($A36,[1]BD!$E$261:$K$288,7,FALSE))) ->  | M36: =IF(ISERROR(VLOOKUP($A36,[1]BD!$E$289:$K$309,7,FALSE)),"",IF(VLOOKUP($A36,[1]BD!$E$289:$K$309,7,FALSE)="","",VLOOKUP($A36,[1]BD!$E$289:$K$309,7,FALSE))) ->  | N36: 0
A37: Jucimar Vieira | B37: =IF(ISERROR(VLOOKUP($A37,[1]BD!$E$2:$K$29,7,FALSE)),"",IF(VLOOKUP($A37,[1]BD!$E$2:$K$29,7,FALSE)="","",VLOOKUP($A37,[1]BD!$E$2:$K$29,7,FALSE))) ->  | C37: =IF(ISERROR(VLOOKUP($A37,[1]BD!$E$30:$K$62,7,FALSE)),"",IF(VLOOKUP($A37,[1]BD!$E$30:$K$62,7,FALSE)="","",VLOOKUP($A37,[1]BD!$E$30:$K$62,7,FALSE))) ->  | D37: =IF(ISERROR(VLOOKUP($A37,[1]BD!$E$63:$K$93,7,FALSE)),"",IF(VLOOKUP($A37,[1]BD!$E$63:$K$93,7,FALSE)="","",VLOOKUP($A37,[1]BD!$E$63:$K$93,7,FALSE))) -> TROCA | E37: =IF(ISERROR(VLOOKUP($A37,[1]BD!$E$94:$K$124,7,FALSE)),"",IF(VLOOKUP($A37,[1]BD!$E$94:$K$124,7,FALSE)="","",VLOOKUP($A37,[1]BD!$E$94:$K$124,7,FALSE))) -> TROCA | F37: =IF(ISERROR(VLOOKUP($A37,[1]BD!$E$125:$K$150,7,FALSE)),"",IF(VLOOKUP($A37,[1]BD!$E$125:$K$150,7,FALSE)="","",VLOOKUP($A37,[1]BD!$E$125:$K$150,7,FALSE))) ->  | G37: =IF(ISERROR(VLOOKUP($A37,[1]BD!$E$151:$K$176,7,FALSE)),"",IF(VLOOKUP($A37,[1]BD!$E$151:$K$176,7,FALSE)="","",VLOOKUP($A37,[1]BD!$E$151:$K$176,7,FALSE))) ->  | H37: =IF(ISERROR(VLOOKUP($A37,[1]BD!$E$177:$K$197,7,FALSE)),"",IF(VLOOKUP($A37,[1]BD!$E$177:$K$197,7,FALSE)="","",VLOOKUP($A37,[1]BD!$E$177:$K$197,7,FALSE))) ->  | I37: =IF(ISERROR(VLOOKUP($A37,[1]BD!$E$198:$K$224,7,FALSE)),"",IF(VLOOKUP($A37,[1]BD!$E$198:$K$224,7,FALSE)="","",VLOOKUP($A37,[1]BD!$E$198:$K$224,7,FALSE))) ->  | J37: =IF(ISERROR(VLOOKUP($A37,[1]BD!$E$225:$K$244,7,FALSE)),"",IF(VLOOKUP($A37,[1]BD!$E$225:$K$244,7,FALSE)="","",VLOOKUP($A37,[1]BD!$E$225:$K$244,7,FALSE))) ->  | K37: =IF(ISERROR(VLOOKUP($A37,[1]BD!$E$245:$K$260,7,FALSE)),"",IF(VLOOKUP($A37,[1]BD!$E$245:$K$260,7,FALSE)="","",VLOOKUP($A37,[1]BD!$E$245:$K$260,7,FALSE))) ->  | L37: =IF(ISERROR(VLOOKUP($A37,[1]BD!$E$261:$K$288,7,FALSE)),"",IF(VLOOKUP($A37,[1]BD!$E$261:$K$288,7,FALSE)="","",VLOOKUP($A37,[1]BD!$E$261:$K$288,7,FALSE))) ->  | M37: =IF(ISERROR(VLOOKUP($A37,[1]BD!$E$289:$K$309,7,FALSE)),"",IF(VLOOKUP($A37,[1]BD!$E$289:$K$309,7,FALSE)="","",VLOOKUP($A37,[1]BD!$E$289:$K$309,7,FALSE))) ->  | N37: 2
A38: Andre Resende | B38: =IF(ISERROR(VLOOKUP($A38,[1]BD!$E$2:$K$29,7,FALSE)),"",IF(VLOOKUP($A38,[1]BD!$E$2:$K$29,7,FALSE)="","",VLOOKUP($A38,[1]BD!$E$2:$K$29,7,FALSE))) ->  | C38: =IF(ISERROR(VLOOKUP($A38,[1]BD!$E$30:$K$62,7,FALSE)),"",IF(VLOOKUP($A38,[1]BD!$E$30:$K$62,7,FALSE)="","",VLOOKUP($A38,[1]BD!$E$30:$K$62,7,FALSE))) ->  | D38: =IF(ISERROR(VLOOKUP($A38,[1]BD!$E$63:$K$93,7,FALSE)),"",IF(VLOOKUP($A38,[1]BD!$E$63:$K$93,7,FALSE)="","",VLOOKUP($A38,[1]BD!$E$63:$K$93,7,FALSE))) ->  | E38: =IF(ISERROR(VLOOKUP($A38,[1]BD!$E$94:$K$124,7,FALSE)),"",IF(VLOOKUP($A38,[1]BD!$E$94:$K$124,7,FALSE)="","",VLOOKUP($A38,[1]BD!$E$94:$K$124,7,FALSE))) ->  | F38: =IF(ISERROR(VLOOKUP($A38,[1]BD!$E$125:$K$150,7,FALSE)),"",IF(VLOOKUP($A38,[1]BD!$E$125:$K$150,7,FALSE)="","",VLOOKUP($A38,[1]BD!$E$125:$K$150,7,FALSE))) ->  | G38: =IF(ISERROR(VLOOKUP($A38,[1]BD!$E$151:$K$176,7,FALSE)),"",IF(VLOOKUP($A38,[1]BD!$E$151:$K$176,7,FALSE)="","",VLOOKUP($A38,[1]BD!$E$151:$K$176,7,FALSE))) ->  | H38: =IF(ISERROR(VLOOKUP($A38,[1]BD!$E$177:$K$197,7,FALSE)),"",IF(VLOOKUP($A38,[1]BD!$E$177:$K$197,7,FALSE)="","",VLOOKUP($A38,[1]BD!$E$177:$K$197,7,FALSE))) ->  | I38: =IF(ISERROR(VLOOKUP($A38,[1]BD!$E$198:$K$224,7,FALSE)),"",IF(VLOOKUP($A38,[1]BD!$E$198:$K$224,7,FALSE)="","",VLOOKUP($A38,[1]BD!$E$198:$K$224,7,FALSE))) ->  | J38: =IF(ISERROR(VLOOKUP($A38,[1]BD!$E$225:$K$244,7,FALSE)),"",IF(VLOOKUP($A38,[1]BD!$E$225:$K$244,7,FALSE)="","",VLOOKUP($A38,[1]BD!$E$225:$K$244,7,FALSE))) ->  | K38: =IF(ISERROR(VLOOKUP($A38,[1]BD!$E$245:$K$260,7,FALSE)),"",IF(VLOOKUP($A38,[1]BD!$E$245:$K$260,7,FALSE)="","",VLOOKUP($A38,[1]BD!$E$245:$K$260,7,FALSE))) ->  | L38: =IF(ISERROR(VLOOKUP($A38,[1]BD!$E$261:$K$288,7,FALSE)),"",IF(VLOOKUP($A38,[1]BD!$E$261:$K$288,7,FALSE)="","",VLOOKUP($A38,[1]BD!$E$261:$K$288,7,FALSE))) ->  | M38: =IF(ISERROR(VLOOKUP($A38,[1]BD!$E$289:$K$309,7,FALSE)),"",IF(VLOOKUP($A38,[1]BD!$E$289:$K$309,7,FALSE)="","",VLOOKUP($A38,[1]BD!$E$289:$K$309,7,FALSE))) ->  | N38: 0
A39: Izabella Rodrigues | B39: =IF(ISERROR(VLOOKUP($A39,[1]BD!$E$2:$K$29,7,FALSE)),"",IF(VLOOKUP($A39,[1]BD!$E$2:$K$29,7,FALSE)="","",VLOOKUP($A39,[1]BD!$E$2:$K$29,7,FALSE))) ->  | C39: =IF(ISERROR(VLOOKUP($A39,[1]BD!$E$30:$K$62,7,FALSE)),"",IF(VLOOKUP($A39,[1]BD!$E$30:$K$62,7,FALSE)="","",VLOOKUP($A39,[1]BD!$E$30:$K$62,7,FALSE))) ->  | D39: =IF(ISERROR(VLOOKUP($A39,[1]BD!$E$63:$K$93,7,FALSE)),"",IF(VLOOKUP($A39,[1]BD!$E$63:$K$93,7,FALSE)="","",VLOOKUP($A39,[1]BD!$E$63:$K$93,7,FALSE))) ->  | E39: =IF(ISERROR(VLOOKUP($A39,[1]BD!$E$94:$K$124,7,FALSE)),"",IF(VLOOKUP($A39,[1]BD!$E$94:$K$124,7,FALSE)="","",VLOOKUP($A39,[1]BD!$E$94:$K$124,7,FALSE))) ->  | F39: =IF(ISERROR(VLOOKUP($A39,[1]BD!$E$125:$K$150,7,FALSE)),"",IF(VLOOKUP($A39,[1]BD!$E$125:$K$150,7,FALSE)="","",VLOOKUP($A39,[1]BD!$E$125:$K$150,7,FALSE))) ->  | G39: =IF(ISERROR(VLOOKUP($A39,[1]BD!$E$151:$K$176,7,FALSE)),"",IF(VLOOKUP($A39,[1]BD!$E$151:$K$176,7,FALSE)="","",VLOOKUP($A39,[1]BD!$E$151:$K$176,7,FALSE))) ->  | H39: =IF(ISERROR(VLOOKUP($A39,[1]BD!$E$177:$K$197,7,FALSE)),"",IF(VLOOKUP($A39,[1]BD!$E$177:$K$197,7,FALSE)="","",VLOOKUP($A39,[1]BD!$E$177:$K$197,7,FALSE))) ->  | I39: =IF(ISERROR(VLOOKUP($A39,[1]BD!$E$198:$K$224,7,FALSE)),"",IF(VLOOKUP($A39,[1]BD!$E$198:$K$224,7,FALSE)="","",VLOOKUP($A39,[1]BD!$E$198:$K$224,7,FALSE))) ->  | J39: =IF(ISERROR(VLOOKUP($A39,[1]BD!$E$225:$K$244,7,FALSE)),"",IF(VLOOKUP($A39,[1]BD!$E$225:$K$244,7,FALSE)="","",VLOOKUP($A39,[1]BD!$E$225:$K$244,7,FALSE))) ->  | K39: =IF(ISERROR(VLOOKUP($A39,[1]BD!$E$245:$K$260,7,FALSE)),"",IF(VLOOKUP($A39,[1]BD!$E$245:$K$260,7,FALSE)="","",VLOOKUP($A39,[1]BD!$E$245:$K$260,7,FALSE))) ->  | L39: =IF(ISERROR(VLOOKUP($A39,[1]BD!$E$261:$K$288,7,FALSE)),"",IF(VLOOKUP($A39,[1]BD!$E$261:$K$288,7,FALSE)="","",VLOOKUP($A39,[1]BD!$E$261:$K$288,7,FALSE))) ->  | M39: =IF(ISERROR(VLOOKUP($A39,[1]BD!$E$289:$K$309,7,FALSE)),"",IF(VLOOKUP($A39,[1]BD!$E$289:$K$309,7,FALSE)="","",VLOOKUP($A39,[1]BD!$E$289:$K$309,7,FALSE))) ->  | N39: 0
A40: Lucca Veloso | B40: =IF(ISERROR(VLOOKUP($A40,[1]BD!$E$2:$K$29,7,FALSE)),"",IF(VLOOKUP($A40,[1]BD!$E$2:$K$29,7,FALSE)="","",VLOOKUP($A40,[1]BD!$E$2:$K$29,7,FALSE))) ->  | C40: =IF(ISERROR(VLOOKUP($A40,[1]BD!$E$30:$K$62,7,FALSE)),"",IF(VLOOKUP($A40,[1]BD!$E$30:$K$62,7,FALSE)="","",VLOOKUP($A40,[1]BD!$E$30:$K$62,7,FALSE))) ->  | D40: =IF(ISERROR(VLOOKUP($A40,[1]BD!$E$63:$K$93,7,FALSE)),"",IF(VLOOKUP($A40,[1]BD!$E$63:$K$93,7,FALSE)="","",VLOOKUP($A40,[1]BD!$E$63:$K$93,7,FALSE))) ->  | E40: =IF(ISERROR(VLOOKUP($A40,[1]BD!$E$94:$K$124,7,FALSE)),"",IF(VLOOKUP($A40,[1]BD!$E$94:$K$124,7,FALSE)="","",VLOOKUP($A40,[1]BD!$E$94:$K$124,7,FALSE))) ->  | F40: =IF(ISERROR(VLOOKUP($A40,[1]BD!$E$125:$K$150,7,FALSE)),"",IF(VLOOKUP($A40,[1]BD!$E$125:$K$150,7,FALSE)="","",VLOOKUP($A40,[1]BD!$E$125:$K$150,7,FALSE))) ->  | G40: =IF(ISERROR(VLOOKUP($A40,[1]BD!$E$151:$K$176,7,FALSE)),"",IF(VLOOKUP($A40,[1]BD!$E$151:$K$176,7,FALSE)="","",VLOOKUP($A40,[1]BD!$E$151:$K$176,7,FALSE))) ->  | H40: =IF(ISERROR(VLOOKUP($A40,[1]BD!$E$177:$K$197,7,FALSE)),"",IF(VLOOKUP($A40,[1]BD!$E$177:$K$197,7,FALSE)="","",VLOOKUP($A40,[1]BD!$E$177:$K$197,7,FALSE))) ->  | I40: =IF(ISERROR(VLOOKUP($A40,[1]BD!$E$198:$K$224,7,FALSE)),"",IF(VLOOKUP($A40,[1]BD!$E$198:$K$224,7,FALSE)="","",VLOOKUP($A40,[1]BD!$E$198:$K$224,7,FALSE))) ->  | J40: =IF(ISERROR(VLOOKUP($A40,[1]BD!$E$225:$K$244,7,FALSE)),"",IF(VLOOKUP($A40,[1]BD!$E$225:$K$244,7,FALSE)="","",VLOOKUP($A40,[1]BD!$E$225:$K$244,7,FALSE))) ->  | K40: =IF(ISERROR(VLOOKUP($A40,[1]BD!$E$245:$K$260,7,FALSE)),"",IF(VLOOKUP($A40,[1]BD!$E$245:$K$260,7,FALSE)="","",VLOOKUP($A40,[1]BD!$E$245:$K$260,7,FALSE))) ->  | L40: =IF(ISERROR(VLOOKUP($A40,[1]BD!$E$261:$K$288,7,FALSE)),"",IF(VLOOKUP($A40,[1]BD!$E$261:$K$288,7,FALSE)="","",VLOOKUP($A40,[1]BD!$E$261:$K$288,7,FALSE))) ->  | M40: =IF(ISERROR(VLOOKUP($A40,[1]BD!$E$289:$K$309,7,FALSE)),"",IF(VLOOKUP($A40,[1]BD!$E$289:$K$309,7,FALSE)="","",VLOOKUP($A40,[1]BD!$E$289:$K$309,7,FALSE))) ->  | N40: 0
A41: Vitor Gatti | B41: =IF(ISERROR(VLOOKUP($A41,[1]BD!$E$2:$K$29,7,FALSE)),"",IF(VLOOKUP($A41,[1]BD!$E$2:$K$29,7,FALSE)="","",VLOOKUP($A41,[1]BD!$E$2:$K$29,7,FALSE))) ->  | C41: =IF(ISERROR(VLOOKUP($A41,[1]BD!$E$30:$K$62,7,FALSE)),"",IF(VLOOKUP($A41,[1]BD!$E$30:$K$62,7,FALSE)="","",VLOOKUP($A41,[1]BD!$E$30:$K$62,7,FALSE))) ->  | D41: =IF(ISERROR(VLOOKUP($A41,[1]BD!$E$63:$K$93,7,FALSE)),"",IF(VLOOKUP($A41,[1]BD!$E$63:$K$93,7,FALSE)="","",VLOOKUP($A41,[1]BD!$E$63:$K$93,7,FALSE))) ->  | E41: =IF(ISERROR(VLOOKUP($A41,[1]BD!$E$94:$K$124,7,FALSE)),"",IF(VLOOKUP($A41,[1]BD!$E$94:$K$124,7,FALSE)="","",VLOOKUP($A41,[1]BD!$E$94:$K$124,7,FALSE))) ->  | F41: =IF(ISERROR(VLOOKUP($A41,[1]BD!$E$125:$K$150,7,FALSE)),"",IF(VLOOKUP($A41,[1]BD!$E$125:$K$150,7,FALSE)="","",VLOOKUP($A41,[1]BD!$E$125:$K$150,7,FALSE))) ->  | G41: =IF(ISERROR(VLOOKUP($A41,[1]BD!$E$151:$K$176,7,FALSE)),"",IF(VLOOKUP($A41,[1]BD!$E$151:$K$176,7,FALSE)="","",VLOOKUP($A41,[1]BD!$E$151:$K$176,7,FALSE))) ->  | H41: =IF(ISERROR(VLOOKUP($A41,[1]BD!$E$177:$K$197,7,FALSE)),"",IF(VLOOKUP($A41,[1]BD!$E$177:$K$197,7,FALSE)="","",VLOOKUP($A41,[1]BD!$E$177:$K$197,7,FALSE))) ->  | I41: =IF(ISERROR(VLOOKUP($A41,[1]BD!$E$198:$K$224,7,FALSE)),"",IF(VLOOKUP($A41,[1]BD!$E$198:$K$224,7,FALSE)="","",VLOOKUP($A41,[1]BD!$E$198:$K$224,7,FALSE))) ->  | J41: =IF(ISERROR(VLOOKUP($A41,[1]BD!$E$225:$K$244,7,FALSE)),"",IF(VLOOKUP($A41,[1]BD!$E$225:$K$244,7,FALSE)="","",VLOOKUP($A41,[1]BD!$E$225:$K$244,7,FALSE))) -> TROCA | K41: =IF(ISERROR(VLOOKUP($A41,[1]BD!$E$245:$K$260,7,FALSE)),"",IF(VLOOKUP($A41,[1]BD!$E$245:$K$260,7,FALSE)="","",VLOOKUP($A41,[1]BD!$E$245:$K$260,7,FALSE))) ->  | L41: =IF(ISERROR(VLOOKUP($A41,[1]BD!$E$261:$K$288,7,FALSE)),"",IF(VLOOKUP($A41,[1]BD!$E$261:$K$288,7,FALSE)="","",VLOOKUP($A41,[1]BD!$E$261:$K$288,7,FALSE))) ->  | M41: =IF(ISERROR(VLOOKUP($A41,[1]BD!$E$289:$K$309,7,FALSE)),"",IF(VLOOKUP($A41,[1]BD!$E$289:$K$309,7,FALSE)="","",VLOOKUP($A41,[1]BD!$E$289:$K$309,7,FALSE))) ->  | N41: 1
A42: Gabriel Garabini | B42: =IF(ISERROR(VLOOKUP($A42,[1]BD!$E$2:$K$29,7,FALSE)),"",IF(VLOOKUP($A42,[1]BD!$E$2:$K$29,7,FALSE)="","",VLOOKUP($A42,[1]BD!$E$2:$K$29,7,FALSE))) ->  | C42: =IF(ISERROR(VLOOKUP($A42,[1]BD!$E$30:$K$62,7,FALSE)),"",IF(VLOOKUP($A42,[1]BD!$E$30:$K$62,7,FALSE)="","",VLOOKUP($A42,[1]BD!$E$30:$K$62,7,FALSE))) ->  | D42: =IF(ISERROR(VLOOKUP($A42,[1]BD!$E$63:$K$93,7,FALSE)),"",IF(VLOOKUP($A42,[1]BD!$E$63:$K$93,7,FALSE)="","",VLOOKUP($A42,[1]BD!$E$63:$K$93,7,FALSE))) ->  | E42: =IF(ISERROR(VLOOKUP($A42,[1]BD!$E$94:$K$124,7,FALSE)),"",IF(VLOOKUP($A42,[1]BD!$E$94:$K$124,7,FALSE)="","",VLOOKUP($A42,[1]BD!$E$94:$K$124,7,FALSE))) ->  | F42: =IF(ISERROR(VLOOKUP($A42,[1]BD!$E$125:$K$150,7,FALSE)),"",IF(VLOOKUP($A42,[1]BD!$E$125:$K$150,7,FALSE)="","",VLOOKUP($A42,[1]BD!$E$125:$K$150,7,FALSE))) ->  | G42: =IF(ISERROR(VLOOKUP($A42,[1]BD!$E$151:$K$176,7,FALSE)),"",IF(VLOOKUP($A42,[1]BD!$E$151:$K$176,7,FALSE)="","",VLOOKUP($A42,[1]BD!$E$151:$K$176,7,FALSE))) ->  | H42: =IF(ISERROR(VLOOKUP($A42,[1]BD!$E$177:$K$197,7,FALSE)),"",IF(VLOOKUP($A42,[1]BD!$E$177:$K$197,7,FALSE)="","",VLOOKUP($A42,[1]BD!$E$177:$K$197,7,FALSE))) ->  | I42: =IF(ISERROR(VLOOKUP($A42,[1]BD!$E$198:$K$224,7,FALSE)),"",IF(VLOOKUP($A42,[1]BD!$E$198:$K$224,7,FALSE)="","",VLOOKUP($A42,[1]BD!$E$198:$K$224,7,FALSE))) ->  | J42: =IF(ISERROR(VLOOKUP($A42,[1]BD!$E$225:$K$244,7,FALSE)),"",IF(VLOOKUP($A42,[1]BD!$E$225:$K$244,7,FALSE)="","",VLOOKUP($A42,[1]BD!$E$225:$K$244,7,FALSE))) ->  | K42: =IF(ISERROR(VLOOKUP($A42,[1]BD!$E$245:$K$260,7,FALSE)),"",IF(VLOOKUP($A42,[1]BD!$E$245:$K$260,7,FALSE)="","",VLOOKUP($A42,[1]BD!$E$245:$K$260,7,FALSE))) ->  | L42: =IF(ISERROR(VLOOKUP($A42,[1]BD!$E$261:$K$288,7,FALSE)),"",IF(VLOOKUP($A42,[1]BD!$E$261:$K$288,7,FALSE)="","",VLOOKUP($A42,[1]BD!$E$261:$K$288,7,FALSE))) ->  | M42: =IF(ISERROR(VLOOKUP($A42,[1]BD!$E$289:$K$309,7,FALSE)),"",IF(VLOOKUP($A42,[1]BD!$E$289:$K$309,7,FALSE)="","",VLOOKUP($A42,[1]BD!$E$289:$K$309,7,FALSE))) ->  | N42: 0
B43: =IF(ISERROR(VLOOKUP($A43,[1]BD!$E$2:$K$29,7,FALSE)),"",IF(VLOOKUP($A43,[1]BD!$E$2:$K$29,7,FALSE)="","",VLOOKUP($A43,[1]BD!$E$2:$K$29,7,FALSE))) ->  | C43: =IF(ISERROR(VLOOKUP($A43,[1]BD!$E$30:$K$62,7,FALSE)),"",IF(VLOOKUP($A43,[1]BD!$E$30:$K$62,7,FALSE)="","",VLOOKUP($A43,[1]BD!$E$30:$K$62,7,FALSE))) ->  | D43: =IF(ISERROR(VLOOKUP($A43,[1]BD!$E$63:$K$93,7,FALSE)),"",IF(VLOOKUP($A43,[1]BD!$E$63:$K$93,7,FALSE)="","",VLOOKUP($A43,[1]BD!$E$63:$K$93,7,FALSE))) ->  | E43: =IF(ISERROR(VLOOKUP($A43,[1]BD!$E$94:$K$124,7,FALSE)),"",IF(VLOOKUP($A43,[1]BD!$E$94:$K$124,7,FALSE)="","",VLOOKUP($A43,[1]BD!$E$94:$K$124,7,FALSE))) ->  | F43: =IF(ISERROR(VLOOKUP($A43,[1]BD!$E$125:$K$150,7,FALSE)),"",IF(VLOOKUP($A43,[1]BD!$E$125:$K$150,7,FALSE)="","",VLOOKUP($A43,[1]BD!$E$125:$K$150,7,FALSE))) ->  | G43: =IF(ISERROR(VLOOKUP($A43,[1]BD!$E$151:$K$176,7,FALSE)),"",IF(VLOOKUP($A43,[1]BD!$E$151:$K$176,7,FALSE)="","",VLOOKUP($A43,[1]BD!$E$151:$K$176,7,FALSE))) ->  | H43: =IF(ISERROR(VLOOKUP($A43,[1]BD!$E$177:$K$197,7,FALSE)),"",IF(VLOOKUP($A43,[1]BD!$E$177:$K$197,7,FALSE)="","",VLOOKUP($A43,[1]BD!$E$177:$K$197,7,FALSE))) ->  | I43: =IF(ISERROR(VLOOKUP($A43,[1]BD!$E$198:$K$224,7,FALSE)),"",IF(VLOOKUP($A43,[1]BD!$E$198:$K$224,7,FALSE)="","",VLOOKUP($A43,[1]BD!$E$198:$K$224,7,FALSE))) ->  | J43: =IF(ISERROR(VLOOKUP($A43,[1]BD!$E$225:$K$244,7,FALSE)),"",IF(VLOOKUP($A43,[1]BD!$E$225:$K$244,7,FALSE)="","",VLOOKUP($A43,[1]BD!$E$225:$K$244,7,FALSE))) ->  | K43: =IF(ISERROR(VLOOKUP($A43,[1]BD!$E$245:$K$260,7,FALSE)),"",IF(VLOOKUP($A43,[1]BD!$E$245:$K$260,7,FALSE)="","",VLOOKUP($A43,[1]BD!$E$245:$K$260,7,FALSE))) ->  | L43: =IF(ISERROR(VLOOKUP($A43,[1]BD!$E$261:$K$288,7,FALSE)),"",IF(VLOOKUP($A43,[1]BD!$E$261:$K$288,7,FALSE)="","",VLOOKUP($A43,[1]BD!$E$261:$K$288,7,FALSE))) ->  | M43: =IF(ISERROR(VLOOKUP($A43,[1]BD!$E$289:$K$309,7,FALSE)),"",IF(VLOOKUP($A43,[1]BD!$E$289:$K$309,7,FALSE)="","",VLOOKUP($A43,[1]BD!$E$289:$K$309,7,FALSE))) ->  | N43: 0
B44: =IF(ISERROR(VLOOKUP($A44,[1]BD!$E$2:$K$29,7,FALSE)),"",IF(VLOOKUP($A44,[1]BD!$E$2:$K$29,7,FALSE)="","",VLOOKUP($A44,[1]BD!$E$2:$K$29,7,FALSE))) ->  | C44: =IF(ISERROR(VLOOKUP($A44,[1]BD!$E$30:$K$62,7,FALSE)),"",IF(VLOOKUP($A44,[1]BD!$E$30:$K$62,7,FALSE)="","",VLOOKUP($A44,[1]BD!$E$30:$K$62,7,FALSE))) ->  | D44: =IF(ISERROR(VLOOKUP($A44,[1]BD!$E$63:$K$93,7,FALSE)),"",IF(VLOOKUP($A44,[1]BD!$E$63:$K$93,7,FALSE)="","",VLOOKUP($A44,[1]BD!$E$63:$K$93,7,FALSE))) ->  | E44: =IF(ISERROR(VLOOKUP($A44,[1]BD!$E$94:$K$124,7,FALSE)),"",IF(VLOOKUP($A44,[1]BD!$E$94:$K$124,7,FALSE)="","",VLOOKUP($A44,[1]BD!$E$94:$K$124,7,FALSE))) ->  | F44: =IF(ISERROR(VLOOKUP($A44,[1]BD!$E$125:$K$150,7,FALSE)),"",IF(VLOOKUP($A44,[1]BD!$E$125:$K$150,7,FALSE)="","",VLOOKUP($A44,[1]BD!$E$125:$K$150,7,FALSE))) ->  | G44: =IF(ISERROR(VLOOKUP($A44,[1]BD!$E$151:$K$176,7,FALSE)),"",IF(VLOOKUP($A44,[1]BD!$E$151:$K$176,7,FALSE)="","",VLOOKUP($A44,[1]BD!$E$151:$K$176,7,FALSE))) ->  | H44: =IF(ISERROR(VLOOKUP($A44,[1]BD!$E$177:$K$197,7,FALSE)),"",IF(VLOOKUP($A44,[1]BD!$E$177:$K$197,7,FALSE)="","",VLOOKUP($A44,[1]BD!$E$177:$K$197,7,FALSE))) ->  | I44: =IF(ISERROR(VLOOKUP($A44,[1]BD!$E$198:$K$224,7,FALSE)),"",IF(VLOOKUP($A44,[1]BD!$E$198:$K$224,7,FALSE)="","",VLOOKUP($A44,[1]BD!$E$198:$K$224,7,FALSE))) ->  | J44: =IF(ISERROR(VLOOKUP($A44,[1]BD!$E$225:$K$244,7,FALSE)),"",IF(VLOOKUP($A44,[1]BD!$E$225:$K$244,7,FALSE)="","",VLOOKUP($A44,[1]BD!$E$225:$K$244,7,FALSE))) ->  | K44: =IF(ISERROR(VLOOKUP($A44,[1]BD!$E$245:$K$260,7,FALSE)),"",IF(VLOOKUP($A44,[1]BD!$E$245:$K$260,7,FALSE)="","",VLOOKUP($A44,[1]BD!$E$245:$K$260,7,FALSE))) ->  | L44: =IF(ISERROR(VLOOKUP($A44,[1]BD!$E$261:$K$288,7,FALSE)),"",IF(VLOOKUP($A44,[1]BD!$E$261:$K$288,7,FALSE)="","",VLOOKUP($A44,[1]BD!$E$261:$K$288,7,FALSE))) ->  | M44: =IF(ISERROR(VLOOKUP($A44,[1]BD!$E$289:$K$309,7,FALSE)),"",IF(VLOOKUP($A44,[1]BD!$E$289:$K$309,7,FALSE)="","",VLOOKUP($A44,[1]BD!$E$289:$K$309,7,FALSE))) ->  | N44: 0
B45: =IF(ISERROR(VLOOKUP($A45,[1]BD!$E$2:$K$29,7,FALSE)),"",IF(VLOOKUP($A45,[1]BD!$E$2:$K$29,7,FALSE)="","",VLOOKUP($A45,[1]BD!$E$2:$K$29,7,FALSE))) ->  | C45: =IF(ISERROR(VLOOKUP($A45,[1]BD!$E$30:$K$62,7,FALSE)),"",IF(VLOOKUP($A45,[1]BD!$E$30:$K$62,7,FALSE)="","",VLOOKUP($A45,[1]BD!$E$30:$K$62,7,FALSE))) ->  | D45: =IF(ISERROR(VLOOKUP($A45,[1]BD!$E$63:$K$93,7,FALSE)),"",IF(VLOOKUP($A45,[1]BD!$E$63:$K$93,7,FALSE)="","",VLOOKUP($A45,[1]BD!$E$63:$K$93,7,FALSE))) ->  | E45: =IF(ISERROR(VLOOKUP($A45,[1]BD!$E$94:$K$124,7,FALSE)),"",IF(VLOOKUP($A45,[1]BD!$E$94:$K$124,7,FALSE)="","",VLOOKUP($A45,[1]BD!$E$94:$K$124,7,FALSE))) ->  | F45: =IF(ISERROR(VLOOKUP($A45,[1]BD!$E$125:$K$150,7,FALSE)),"",IF(VLOOKUP($A45,[1]BD!$E$125:$K$150,7,FALSE)="","",VLOOKUP($A45,[1]BD!$E$125:$K$150,7,FALSE))) ->  | G45: =IF(ISERROR(VLOOKUP($A45,[1]BD!$E$151:$K$176,7,FALSE)),"",IF(VLOOKUP($A45,[1]BD!$E$151:$K$176,7,FALSE)="","",VLOOKUP($A45,[1]BD!$E$151:$K$176,7,FALSE))) ->  | H45: =IF(ISERROR(VLOOKUP($A45,[1]BD!$E$177:$K$197,7,FALSE)),"",IF(VLOOKUP($A45,[1]BD!$E$177:$K$197,7,FALSE)="","",VLOOKUP($A45,[1]BD!$E$177:$K$197,7,FALSE))) ->  | I45: =IF(ISERROR(VLOOKUP($A45,[1]BD!$E$198:$K$224,7,FALSE)),"",IF(VLOOKUP($A45,[1]BD!$E$198:$K$224,7,FALSE)="","",VLOOKUP($A45,[1]BD!$E$198:$K$224,7,FALSE))) ->  | J45: =IF(ISERROR(VLOOKUP($A45,[1]BD!$E$225:$K$244,7,FALSE)),"",IF(VLOOKUP($A45,[1]BD!$E$225:$K$244,7,FALSE)="","",VLOOKUP($A45,[1]BD!$E$225:$K$244,7,FALSE))) ->  | M45: =IF(ISERROR(VLOOKUP($A45,[1]BD!$E$289:$K$309,7,FALSE)),"",IF(VLOOKUP($A45,[1]BD!$E$289:$K$309,7,FALSE)="","",VLOOKUP($A45,[1]BD!$E$289:$K$309,7,FALSE))) ->  | N45: 0
C46: =IF(ISERROR(VLOOKUP($A46,[1]BD!$E$30:$K$62,7,FALSE)),"",IF(VLOOKUP($A46,[1]BD!$E$30:$K$62,7,FALSE)="","",VLOOKUP($A46,[1]BD!$E$30:$K$62,7,FALSE))) ->  | E46: =IF(ISERROR(VLOOKUP($A46,[1]BD!$E$94:$K$124,7,FALSE)),"",IF(VLOOKUP($A46,[1]BD!$E$94:$K$124,7,FALSE)="","",VLOOKUP($A46,[1]BD!$E$94:$K$124,7,FALSE))) ->  | M46: =IF(ISERROR(VLOOKUP($A46,[1]BD!$E$289:$K$309,7,FALSE)),"",IF(VLOOKUP($A46,[1]BD!$E$289:$K$309,7,FALSE)="","",VLOOKUP($A46,[1]BD!$E$289:$K$309,7,FALSE))) ->  | N46: 0

Sheet TABELA
A1: 2022 | E1: OK | I1: OK | M1: OK | Q1: OK | U1: OK | Y1: OK | AC1: OK | AG1: OK | AK1: OK | AO1: OK | AS1: OK | AW1: OK
D2: 1ª etapa | H2: 2ª etapa | L2: 3ª etapa | P2: 4ª etapa | T2: 5ª etapa | X2: 6ª etapa | AB2: 7ª etapa | AF2: 8ª etapa | AJ2: 9ª etapa | AN2: 10ª etapa | AR2: 11ª etapa | AV2: 12ª etapa
L3: 13/03/2022 - 10:00 - Domingo
B4: Nome do (a) Piloto (a) | C4: Pontuação Geral | D4: Posição | E4: Pontos | F4: Bônus | G4: Penalidade | H4: Posição | I4: Pontos | J4: Bônus | K4: Penalidade | L4: Posição | M4: Pontos | N4: Bônus | O4: Penalidade | P4: Posição | Q4: Pontos | R4: Bônus | S4: Penalidade | T4: Posição | U4: Pontos | V4: Bônus | W4: Penalidade | X4: Posição | Y4: Pontos | Z4: Bônus | AA4: Penalidade | AB4: Posição | AC4: Pontos | AD4: Bônus | AE4: Penalidade | AF4: Posição | AG4: Pontos | AH4: Bônus | AI4: Penalidade | AJ4: Posição | AK4: Pontos | AL4: Bônus | AM4: Penalidade | AN4: Posição | AO4: Pontos | AP4: Bônus | AQ4: Penalidade | AR4: Posição | AS4: Pontos | AT4: Bônus | AU4: Penalidade | AV4: Posição | AW4: Pontos | AX4: Bônus | AY4: Penalidade | AZ4: 1º LUGAR | BA4: 2º LUGAR | BB4: 3º LUGAR | BC4: 4º LUGAR | BD4: 5º LUGAR | BE4: 6º LUGAR | BF4: 7º LUGAR | BG4: 8º LUGAR | BH4: 9º LUGAR | BI4: 10º LUGAR | BJ4: 11º LUGAR | BK4: 12º LUGAR | BL4: 13º LUGAR | BM4: 14º LUGAR | BN4: 15º LUGAR | BO4: 16º LUGAR | BP4: 17º LUGAR | BQ4: 18º LUGAR | BR4: 19º LUGAR | BS4: 20º LUGAR | BT4: 21º LUGAR | BU4: 22º LUGAR | BV4: 23º LUGAR | BW4: 24º LUGAR | BX4: 25º LUGAR | BY4: 26º LUGAR | BZ4: 27º LUGAR | CA4: 28º LUGAR | CB4: 29º LUGAR | CC4: 30º LUGAR | CD4: 31º LUGAR | CE4: 32º LUGAR | CF4: 33º LUGAR | CG4: 34º LUGAR | CH4: 35º LUGAR | CI4: 36º LUGAR | CJ4: 37º LUGAR | CK4: 38º LUGAR | CL4: 39º LUGAR | CM4: 40º LUGAR | CN4: 41º LUGAR
A5: 1 | B5: Alexandre Melillo | C5: 300 | D5: 11 | E5: 22 | H5: 12 | I5: 20 | L5: 17 | M5: 14 | P5: 2 | Q5: 41 | T5: 6 | U5: 32 | X5: 2 | Y5: 41 | AB5: 4 | AC5: 36 | AF5: 11 | AG5: 22 | AJ5: 17 | AK5: 14 | AM5: SIM | AN5: 5 | AO5: 34 | AR5: 10 | AS5: 24 | AW5: 0 | AZ5: 0 | BA5: 2 | BB5: 0 | BC5: 1 | BD5: 1 | BE5: 1 | BF5: 0 | BG5: 0 | BH5: 0 | BI5: 1 | BJ5: 2 | BK5: 1 | BL5: 0 | BM5: 0 | BN5: 0 | BO5: 0 | BP5: 2 | BQ5: 0 | BR5: 0 | BS5: 0 | BT5: 0 | BU5: 0 | BV5: 0 | BW5: 0 | BX5: 0 | BY5: 0 | BZ5: 0 | CA5: 0 | CB5: 0 | CC5: 0 | CD5: 0 | CE5: 0 | CF5: 0 | CG5: 0 | CH5: 0 | CI5: 0 | CJ5: 0 | CK5: 0 | CL5: 0 | CM5: 0 | CN5: 0
A6: 2 | B6: Bernardo Freitas | C6: 66 | D6: 26 | E6: 5 | I6: 0 | L6: 6 | M6: 32 | P6: 17 | Q6: 14 | T6: 15 | U6: 16 | X6: 27 | Y6: 4 | AA6: SIM | AC6: 0 | AG6: 0 | AK6: 0 | AO6: 0 | AS6: 0 | AW6: 0 | AY6: -5 | AZ6: 0 | BA6: 0 | BB6: 0 | BC6: 0 | BD6: 0 | BE6: 1 | BF6: 0 | BG6: 0 | BH6: 0 | BI6: 0 | BJ6: 0 | BK6: 0 | BL6: 0 | BM6: 0 | BN6: 1 | BO6: 0 | BP6: 1 | BQ6: 0 | BR6: 0 | BS6: 0 | BT6: 0 | BU6: 0 | BV6: 0 | BW6: 0 | BX6: 0 | BY6: 1 | BZ6: 1 | CA6: 0 | CB6: 0 | CC6: 0 | CD6: 0 | CE6: 0 | CF6: 0 | CG6: 0 | CH6: 0 | CI6: 0 | CJ6: 0 | CK6: 0 | CL6: 0 | CM6: 0 | CN6: 0
A7: 3 | B7: Cláudio Dumont | C7: 102 | D7: 8 | E7: 28 | H7: 2 | I7: 41 | L7: 15 | M7: 16 | P7: 4 | Q7: 36 | T7: 25 | U7: 6 | Y7: 0 | AC7: 0 | AE7: -5 | AG7: 0 | AI7: -5 | AK7: 0 | AM7: -5 | AO7: 0 | AQ7: -5 | AS7: 0 | AU7: -5 | AW7: 0 | AZ7: 0 | BA7: 1 | BB7: 0 | BC7: 1 | BD7: 0 | BE7: 0 | BF7: 0 | BG7: 1 | BH7: 0 | BI7: 0 | BJ7: 0 | BK7: 0 | BL7: 0 | BM7: 0 | BN7: 1 | BO7: 0 | BP7: 0 | BQ7: 0 | BR7: 0 | BS7: 0 | BT7: 0 | BU7: 0 | BV7: 0 | BW7: 0 | BX7: 1 | BY7: 0 | BZ7: 0 | CA7: 0 | CB7: 0 | CC7: 0 | CD7: 0 | CE7: 0 | CF7: 0 | CG7: 0 | CH7: 0 | CI7: 0 | CJ7: 0 | CK7: 0 | CL7: 0 | CM7: 0 | CN7: 0
A8: 4 | B8: Cláudio Naves | C8: 95 | D8: 24 | E8: 7 | H8: 27 | I8: 4 | L8: 24 | M8: 7 | P8: 33 | Q8: 1 | S8: SIM | T8: 44 | U8: 1 | W8: SIM | X8: 14 | Y8: 17 | AB8: 14 | AC8: 17 | AG8: 0 | AK8: 0 | AO8: 0 | AR8: 18 | AS8: 13 | AV8: 8 | AW8: 28 | AZ8: 0 | BA8: 0 | BB8: 0 | BC8: 0 | BD8: 0 | BE8: 0 | BF8: 0 | BG8: 1 | BH8: 0 | BI8: 0 | BJ8: 0 | BK8: 0 | BL8: 0 | BM8: 2 | BN8: 0 | BO8: 0 | BP8: 0 | BQ8: 1 | BR8: 0 | BS8: 0 | BT8: 0 | BU8: 0 | BV8: 0 | BW8: 2 | BX8: 0 | BY8: 0 | BZ8: 1 | CA8: 0 | CB8: 0 | CC8: 0 | CD8: 0 | CE8: 0 | CF8: 1 | CG8: 0 | CH8: 0 | CI8: 0 | CJ8: 0 | CK8: 0 | CL8: 0 | CM8: 0 | CN8: 0
A9: 5 | B9: Daniel Nahum | C9: 394 | D9: 1 | E9: 45 | H9: 4 | I9: 36 | L9: 5 | M9: 34 | P9: 3 | Q9: 38 | R9: 1 | T9: 23 | U9: 8 | X9: 3 | Y9: 38 | AB9: 3 | AC9: 38 | AF9: 7 | AG9: 30 | AJ9: 4 | AK9: 36 | AN9: 4 | AO9: 36 | AR9: 23 | AS9: 8 | AV9: 1 | AW9: 45 | AX9: 1 | AZ9: 2 | BA9: 0 | BB9: 3 | BC9: 3 | BD9: 1 | BE9: 0 | BF9: 1 | BG9: 0 | BH9: 0 | BI9: 0 | BJ9: 0 | BK9: 0 | BL9: 0 | BM9: 0 | BN9: 0 | BO9: 0 | BP9: 0 | BQ9: 0 | BR9: 0 | BS9: 0 | BT9: 0 | BU9: 0 | BV9: 2 | BW9: 0 | BX9: 0 | BY9: 0 | BZ9: 0 | CA9: 0 | CB9: 0 | CC9: 0 | CD9: 0 | CE9: 0 | CF9: 0 | CG9: 0 | CH9: 0 | CI9: 0 | CJ9: 0 | CK9: 0 | CL9: 0 | CM9: 0 | CN9: 0
A10: 6 | B10: SSSSS | C10: 0 | E10: 0 | I10: 0 | M10: 0 | Q10: 0 | U10: 0 | Y10: 0 | AC10: 0 | AG10: 0 | AK10: 0 | AO10: 0 | AS10: 0 | AW10: 0 | AZ10: 0 | BA10: 0 | BB10: 0 | BC10: 0 | BD10: 0 | BE10: 0 | BF10: 0 | BG10: 0 | BH10: 0 | BI10: 0 | BJ10: 0 | BK10: 0 | BL10: 0 | BM10: 0 | BN10: 0 | BO10: 1 | BP10: 0 | BQ10: 1 | BR10: 1 | BS10: 0 | BT10: 1 | BU10: 0 | BV10: 0 | BW10: 0 | BX10: 0 | BY10: 0 | BZ10: 0 | CA10: 0 | CB10: 0 | CC10: 0 | CD10: 0 | CE10: 0 | CF10: 0 | CG10: 0 | CH10: 0 | CI10: 0 | CJ10: 0 | CK10: 0 | CL10: 0 | CM10: 0 | CN10: 0
A11: 7 | B11: Eduardo Henrique | C11: 228 | E11: 0 | H11: 42 | I11: 1 | K11: SIM | L11: 14 | M11: 17 | P11: 12 | Q11: 20 | T11: 3 | U11: 38 | X11: 4 | Y11: 36 | AB11: 9 | AC11: 26 | AF11: 12 | AG11: 20 | AJ11: 2 | AK11: 41 | AO11: 0 | AR11: 5 | AS11: 34 | AW11: 0 | AY11: -5 | AZ11: 0 | BA11: 1 | BB11: 1 | BC11: 1 | BD11: 1 | BE11: 0 | BF11: 0 | BG11: 0 | BH11: 1 | BI11: 0 | BJ11: 0 | BK11: 2 | BL11: 0 | BM11: 1 | BN11: 0 | BO11: 0 | BP11: 0 | BQ11: 0 | BR11: 0 | BS11: 0 | BT11: 0 | BU11: 0 | BV11: 0 | BW11: 0 | BX11: 0 | BY11: 0 | BZ11: 0 | CA11: 0 | CB11: 0 | CC11: 0 | CD11: 0 | CE11: 0 | CF11: 0 | CG11: 0 | CH11: 0 | CI11: 0 | CJ11: 0 | CK11: 0 | CL11: 0 | CM11: 0 | CN11: 0
A12: 8 | B12: Frederico Papatella | C12: 88 | D12: 5 | E12: 34 | H12: 14 | I12: 17 | L12: 28 | M12: 3 | O12: SIM | Q12: 0 | U12: 0 | Y12: 0 | AC12: 0 | AE12: -5 | AG12: 0 | AK12: 0 | AM12: -5 | AN12: 9 | AO12: 26 | AR12: 13 | AS12: 18 | AW12: 0 | AZ12: 0 | BA12: 0 | BB12: 0 | BC12: 0 | BD12: 1 | BE12: 0 | BF12: 0 | BG12: 0 | BH12: 1 | BI12: 0 | BJ12: 0 | BK12: 0 | BL12: 1 | BM12: 1 | BN12: 0 | BO12: 0 | BP12: 0 | BQ12: 0 | BR12: 0 | BS12: 0 | BT12: 0 | BU12: 0 | BV12: 0 | BW12: 0 | BX12: 0 | BY12: 0 | BZ12: 0 | CA12: 1 | CB12: 0 | CC12: 0 | CD12: 0 | CE12: 0 | CF12: 0 | CG12: 0 | CH12: 0 | CI12: 0 | CJ12: 0 | CK12: 0 | CL12: 0 | CM12: 0 | CN12: 0
A13: 9 | B13: Guilherme Alves | C13: 249 | D13: 9 | E13: 26 | H13: 11 | I13: 22 | L13: 10 | M13: 24 | P13: 16 | Q13: 15 | T13: 11 | U13: 22 | X13: 16 | Y13: 15 | AA13: SIM | AB13: 5 | AC13: 34 | AF13: 4 | AG13: 36 | AJ13: 11 | AK13: 22 | AO13: 0 | AR13: 6 | AS13: 32 | AV13: 37 | AW13: 1 | AY13: SIM | AZ13: 0 | BA13: 0 | BB13: 0 | BC13: 1 | BD13: 1 | BE13: 1 | BF13: 0 | BG13: 0 | BH13: 1 | BI13: 1 | BJ13: 3 | BK13: 0 | BL13: 0 | BM13: 0 | BN13: 0 | BO13: 2 | BP13: 0 | BQ13: 0 | BR13: 0 | BS13: 0 | BT13: 0 | BU13: 0 | BV13: 0 | BW13: 0 | BX13: 0 | BY13: 0 | BZ13: 0 | CA13: 0 | CB13: 0 | CC13: 0 | CD13: 0 | CE13: 0 | CF13: 0 | CG13: 0 | CH13: 0 | CI13: 0 | CJ13: 1 | CK13: 0 | CL13: 0 | CM13: 0 | CN13: 0
A14: 10 | B14: Felipe Bouhid | C14: 96 | E14: 0 | I14: 0 | M14: 0 | Q14: 0 | U14: 0 | Y14: 0 | AC14: 0 | AF14: 18 | AG14: 13 | AJ14: 12 | AK14: 20 | AN14: 12 | AO14: 20 | AR14: 14 | AS14: 17 | AV14: 9 | AW14: 26 | AZ14: 0 | BA14: 0 | BB14: 0 | BC14: 0 | BD14: 0 | BE14: 0 | BF14: 0 | BG14: 0 | BH14: 1 | BI14: 0 | BJ14: 0 | BK14: 2 | BL14: 0 | BM14: 1 | BN14: 0 | BO14: 1 | BP14: 0 | BQ14: 1 | BR14: 1 | BS14: 0 | BT14: 0 | BU14: 0 | BV14: 0 | BW14: 0 | BX14: 0 | BY14: 0 | BZ14: 0 | CA14: 0 | CB14: 1 | CC14: 0 | CD14: 0 | CE14: 0 | CF14: 0 | CG14: 0 | CH14: 0 | CI14: 0 | CJ14: 0 | CK14: 0 | CL14: 0 | CM14: 0 | CN14: 0
A15: 11 | B15: Hélio Chagas | C15: 112 | D15: 22 | E15: 9 | H15: 23 | I15: 8 | L15: 23 | M15: 8 | Q15: 0 | S15: -5 | T15: 21 | U15: 10 | X15: 15 | Y15: 16 | AB15: 26 | AC15: 5 | AE15: SIM | AF15: 17 | AG15: 14 | AK15: 0 | AN15: 13 | AO15: 18 | AR15: 19 | AS15: 12 | AV15: 14 | AW15: 17 | AZ15: 0 | BA15: 0 | BB15: 0 | BC15: 0 | BD15: 0 | BE15: 0 | BF15: 0 | BG15: 0 | BH15: 0 | BI15: 0 | BJ15: 0 | BK15: 0 | BL15: 1 | BM15: 1 | BN15: 1 | BO15: 0 | BP15: 1 | BQ15: 0 | BR15: 1 | BS15: 0 | BT15: 1 | BU15: 1 | BV15: 2 | BW15: 0 | BX15: 0 | BY15: 1 | BZ15: 0 | CA15: 0 | CB15: 0 | CC15: 0 | CD15: 0 | CE15: 0 | CF15: 0 | CG15: 0 | CH15: 0 | CI15: 0 | CJ15: 0 | CK15: 0 | CL15: 0 | CM15: 0 | CN15: 0
A16: 12 | B16: Hugo Denucci | C16: 0 | E16: 0 | G16: -5 | I16: 0 | K16: -5 | M16: 0 | Q16: 0 | S16: -5 | U16: 0 | Y16: 0 | AC16: 0 | AG16: 0 | AI16: -5 | AK16: 0 | AM16: -5 | AO16: 0 | AQ16: -5 | AS16: 0 | AU16: -5 | AW16: 0 | AY16: -5 | AZ16: 0 | BA16: 0 | BB16: 0 | BC16: 0 | BD16: 0 | BE16: 0 | BF16: 0 | BG16: 0 | BH16: 0 | BI16: 0 | BJ16: 0 | BK16: 0 | BL16: 0 | BM16: 0 | BN16: 0 | BO16: 0 | BP16: 0 | BQ16: 0 | BR16: 0 | BS16: 0 | BT16: 0 | BU16: 0 | BV16: 0 | BW16: 0 | BX16: 0 | BY16: 0 | BZ16: 0 | CA16: 0 | CB16: 0 | CC16: 0 | CD16: 0 | CE16: 0 | CF16: 0 | CG16: 0 | CH16: 0 | CI16: 0 | CJ16: 0 | CK16: 0 | CL16: 0 | CM16: 0 | CN16: 0
A17: 13 | B17: Jarbas Reis | C17: 324 | D17: 6 | E17: 32 | H17: 6 | I17: 32 | L17: 21 | M17: 10 | P17: 11 | Q17: 22 | T17: 4 | U17: 36 | X17: 8 | Y17: 28 | AB17: 11 | AC17: 22 | AF17: 13 | AG17: 18 | AJ17: 8 | AK17: 28 | AN17: 7 | AO17: 30 | AR17: 7 | AS17: 30 | AV17: 4 | AW17: 36 | AZ17: 0 | BA17: 0 | BB17: 0 | BC17: 2 | BD17: 0 | BE17: 2 | BF17: 2 | BG17: 2 | BH17: 0 | BI17: 0 | BJ17: 2 | BK17: 0 | BL17: 1 | BM17: 0 | BN17: 0 | BO17: 0 | BP17: 0 | BQ17: 0 | BR17: 0 | BS17: 0 | BT17: 1 | BU17: 0 | BV17: 0 | BW17: 0 | BX17: 0 | BY17: 0 | BZ17: 0 | CA17: 0 | CB17: 0 | CC17: 0 | CD17: 0 | CE17: 0 | CF17: 0 | CG17: 0 | CH17: 0 | CI17: 0 | CJ17: 0 | CK17: 0 | CL17: 0 | CM17: 0 | CN17: 0
A18: 14 | B18: Leandro Malias | C18: 70 | D18: 16 | E18: 15 | H18: 25 | I18: 6 | M18: 0 | Q18: 0 | S18: -5 | U18: 0 | X18: 21 | Y18: 10 | AB18: 19 | AC18: 12 | AG18: 0 | AK18: 0 | AO18: 0 | AR18: 15 | AS18: 16 | AV18: 15 | AW18: 16 | AZ18: 0 | BA18: 0 | BB18: 0 | BC18: 0 | BD18: 0 | BE18: 0 | BF18: 0 | BG18: 0 | BH18: 0 | BI18: 0 | BJ18: 0 | BK18: 0 | BL18: 0 | BM18: 0 | BN18: 2 | BO18: 1 | BP18: 0 | BQ18: 0 | BR18: 1 | BS18: 0 | BT18: 1 | BU18: 0 | BV18: 0 | BW18: 0 | BX18: 1 | BY18: 0 | BZ18: 0 | CA18: 0 | CB18: 0 | CC18: 0 | CD18: 0 | CE18: 0 | CF18: 0 | CG18: 0 | CH18: 0 | CI18: 0 | CJ18: 0 | CK18: 0 | CL18: 0 | CM18: 0 | CN18: 0
A19: 15 | B19: Lucas Guimarães | C19: 54 | E19: 0 | H19: 32 | I19: 1 | K19: SIM | M19: 0 | O19: -5 | P19: 33 | Q19: 1 | S19: SIM | T19: 7 | U19: 30 | Y19: 0 | AA19: -5 | AB19: 10 | AC19: 24 | AF19: 8 | AG19: 28 | AK19: 0 | AM19: -5 | AO19: 0 | AQ19: -5 | AS19: 0 | AU19: -5 | AW19: 0 | AY19: -5 | AZ19: 0 | BA19: 0 | BB19: 0 | BC19: 0 | BD19: 0 | BE19: 0 | BF19: 1 | BG19: 1 | BH19: 0 | BI19: 1 | BJ19: 0 | BK19: 0 | BL19: 0 | BM19: 0 | BN19: 0 | BO19: 0 | BP19: 0 | BQ19: 0 | BR19: 0 | BS19: 0 | BT19: 0 | BU19: 0 | BV19: 0 | BW19: 0 | BX19: 0 | BY19: 0 | BZ19: 0 | CA19: 0 | CB19: 0 | CC19: 0 | CD19: 0 | CE19: 1 | CF19: 1 | CG19: 0 | CH19: 0 | CI19: 0 | CJ19: 0 | CK19: 0 | CL19: 0 | CM19: 0 | CN19: 0
A20: 16 | B20: Luciano Robervine | C20: 38 | D20: 4 | E20: 36 | H20: 33 | I20: 1 | K20: SIM | L20: 16 | M20: 15 | P20: 9 | Q20: 26 | U20: 0 | W20: -5 | Y20: 0 | AA20: -5 | AC20: 0 | AE20: -5 | AG20: 0 | AI20: -5 | AK20: 0 | AM20: -5 | AO20: 0 | AQ20: -5 | AS20: 0 | AU20: -5 | AW20: 0 | AY20: -5 | AZ20: 0 | BA20: 0 | BB20: 0 | BC20: 1 | BD20: 0 | BE20: 0 | BF20: 0 | BG20: 0 | BH20: 1 | BI20: 0 | BJ20: 0 | BK20: 0 | BL20: 0 | BM20: 0 | BN20: 0 | BO20: 1 | BP20: 0 | BQ20: 0 | BR20: 0 | BS20: 0 | BT20: 0 | BU20: 0 | BV20: 0 | BW20: 0 | BX20: 0 | BY20: 0 | BZ20: 0 | CA20: 0 | CB20: 0 | CC20: 0 | CD20: 0 | CE20: 0 | CF20: 1 | CG20: 0 | CH20: 0 | CI20: 0 | CJ20: 0 | CK20: 0 | CL20: 0 | CM20: 0 | CN20: 0
A21: 17 | B21: Marcelo Campos | C21: 413 | D21: 2 | E21: 41 | F21: 1 | H21: 8 | I21: 28 | L21: 4 | M21: 36 | P21: 1 | Q21: 45 | T21: 5 | U21: 34 | X21: 20 | Y21: 11 | Z21: 1 | AB21: 2 | AC21: 41 | AD21: 1 | AF21: 5 | AG21: 34 | AJ21: 3 | AK21: 38 | AN21: 6 | AO21: 32 | AR21: 1 | AS21: 45 | AT21: 1 | AV21: 10 | AW21: 24 | AZ21: 2 | BA21: 2 | BB21: 1 | BC21: 1 | BD21: 2 | BE21: 1 | BF21: 0 | BG21: 1 | BH21: 0 | BI21: 1 | BJ21: 0 | BK21: 0 | BL21: 0 | BM21: 0 | BN21: 0 | BO21: 0 | BP21: 0 | BQ21: 0 | BR21: 0 | BS21: 1 | BT21: 0 | BU21: 0 | BV21: 0 | BW21: 0 | BX21: 0 | BY21: 0 | BZ21: 0 | CA21: 0 | CB21: 0 | CC21: 0 | CD21: 0 | CE21: 0 | CF21: 0 | CG21: 0 | CH21: 0 | CI21: 0 | CJ21: 0 | CK21: 0 | CL21: 0 | CM21: 0 | CN21: 0
A22: 18 | B22: Marcelo Chagas | C22: 186 | D22: 19 | E22: 12 | H22: 0 | I22: 0 | K22: SIM | L22: 8 | M22: 28 | Q22: 0 | S22: -5 | T22: 8 | U22: 28 | X22: 10 | Y22: 24 | AB22: 13 | AC22: 18 | AF22: 23 | AG22: 8 | AK22: 0 | AN22: 14 | AO22: 17 | AR22: 2 | AS22: 41 | AV22: 16 | AW22: 15 | AZ22: 0 | BA22: 1 | BB22: 0 | BC22: 0 | BD22: 0 | BE22: 0 | BF22: 0 | BG22: 2 | BH22: 0 | BI22: 1 | BJ22: 0 | BK22: 0 | BL22: 1 | BM22: 1 | BN22: 0 | BO22: 1 | BP22: 0 | BQ22: 0 | BR22: 1 | BS22: 0 | BT22: 0 | BU22: 0 | BV22: 1 | BW22: 0 | BX22: 0 | BY22: 0 | BZ22: 0 | CA22: 0 | CB22: 0 | CC22: 0 | CD22: 0 | CE22: 0 | CF22: 0 | CG22: 0 | CH22: 0 | CI22: 0 | CJ22: 0 | CK22: 0 | CL22: 0 | CM22: 0 | CN22: 0
A23: 19 | B23: Marcelo Clemente | C23: 295 | D23: 27 | E23: 4 | H23: 17 | I23: 14 | J23: 1 | L23: 11 | M23: 22 | P23: 15 | Q23: 16 | S23: SIM | T23: 1 | U23: 45 | V23: 1 | X23: 9 | Y23: 26 | AB23: 1 | AC23: 45 | AF23: 1 | AG23: 45 | AJ23: 7 | AK23: 30 | AL23: 1 | AM23: -5 | AO23: 0 | AR23: 22 | AS23: 9 | AV23: 2 | AW23: 41 | AZ23: 3 | BA23: 1 | BB23: 0 | BC23: 0 | BD23: 0 | BE23: 0 | BF23: 1 | BG23: 0 | BH23: 1 | BI23: 0 | BJ23: 1 | BK23: 0 | BL23: 0 | BM23: 0 | BN23: 1 | BO23: 0 | BP23: 1 | BQ23: 0 | BR23: 0 | BS23: 0 | BT23: 0 | BU23: 1 | BV23: 0 | BW23: 0 | BX23: 0 | BY23: 0 | BZ23: 1 | CA23: 0 | CB23: 0 | CC23: 0 | CD23: 0 | CE23: 0 | CF23: 0 | CG23: 0 | CH23: 0 | CI23: 0 | CJ23: 0 | CK23: 0 | CL23: 0 | CM23: 0 | CN23: 0
A24: 20 | B24: Marcelo Marcondes | C24: 243 | D24: 21 | E24: 10 | G24: SIM | H24: 7 | I24: 30 | L24: 1 | M24: 45 | P24: 8 | Q24: 28 | T24: 24 | U24: 7 | X24: 17 | Y24: 14 | AA24: SIM | AC24: 0 | AE24: -5 | AF24: 10 | AG24: 24 | AJ24: 19 | AK24: 12 | AN24: 1 | AO24: 45 | AP24: 1 | AR24: 26 | AS24: 5 | AV24: 6 | AW24: 32 | AY24: -5 | AZ24: 2 | BA24: 0 | BB24: 0 | BC24: 0 | BD24: 0 | BE24: 1 | BF24: 1 | BG24: 1 | BH24: 0 | BI24: 1 | BJ24: 0 | BK24: 0 | BL24: 0 | BM24: 0 | BN24: 0 | BO24: 0 | BP24: 1 | BQ24: 0 | BR24: 1 | BS24: 0 | BT24: 1 | BU24: 0 | BV24: 0 | BW24: 1 | BX24: 0 | BY24: 1 | BZ24: 0 | CA24: 0 | CB24: 0 | CC24: 0 | CD24: 0 | CE24: 0 | CF24: 0 | CG24: 0 | CH24: 0 | CI24: 0 | CJ24: 0 | CK24: 0 | CL24: 0 | CM24: 0 | CN24: 0
A25: 21 | B25: Marcelo Pereira | C25: 249 | D25: 3 | E25: 38 | H25: 3 | I25: 38 | L25: 2 | M25: 41 | N25: 1 | P25: 13 | Q25: 18 | S25: SIM | T25: 13 | U25: 18 | Y25: 0 | AB25: 24 | AC25: 7 | AE25: SIM | AF25: 9 | AG25: 26 | AJ25: 1 | AK25: 45 | AN25: 26 | AO25: 5 | AQ25: SIM | AR25: 24 | AS25: 7 | AU25: SIM | AV25: 26 | AW25: 5 | AY25: SIM | AZ25: 1 | BA25: 1 | BB25: 2 | BC25: 0 | BD25: 0 | BE25: 0 | BF25: 0 | BG25: 0 | BH25: 1 | BI25: 0 | BJ25: 0 | BK25: 0 | BL25: 2 | BM25: 0 | BN25: 0 | BO25: 0 | BP25: 0 | BQ25: 0 | BR25: 0 | BS25: 0 | BT25: 0 | BU25: 0 | BV25: 0 | BW25: 2 | BX25: 0 | BY25: 2 | BZ25: 0 | CA25: 0 | CB25: 0 | CC25: 0 | CD25: 0 | CE25: 0 | CF25: 0 | CG25: 0 | CH25: 0 | CI25: 0 | CJ25: 0 | CK25: 0 | CL25: 0 | CM25: 0 | CN25: 0
A26: 22 | B26: Marcelo Sant'anna | C26: 57 | D26: 17 | E26: 14 | H26: 21 | I26: 10 | K26: SIM | L26: 47 | M26: 1 | O26: SIM | Q26: 0 | U26: 0 | X26: 6 | Y26: 32 | AC26: 0 | AG26: 0 | AK26: 0 | AO26: 0 | AS26: 0 | AW26: 0 | AZ26: 0 | BA26: 0 | BB26: 0 | BC26: 0 | BD26: 0 | BE26: 1 | BF26: 0 | BG26: 0 | BH26: 0 | BI26: 0 | BJ26: 0 | BK26: 0 | BL26: 0 | BM26: 0 | BN26: 0 | BO26: 0 | BP26: 1 | BQ26: 0 | BR26: 0 | BS26: 0 | BT26: 1 | BU26: 0 | BV26: 0 | BW26: 0 | BX26: 0 | BY26: 0 | BZ26: 0 | CA26: 0 | CB26: 0 | CC26: 0 | CD26: 0 | CE26: 0 | CF26: 0 | CG26: 0 | CH26: 0 | CI26: 0 | CJ26: 0 | CK26: 0 | CL26: 0 | CM26: 0 | CN26: 0
A27: 23 | B27: Bernardo Gatti | C27: 27 | E27: 0 | I27: 0 | M27: 0 | Q27: 0 | U27: 0 | Y27: 0 | AC27: 0 | AG27: 0 | AJ27: 6 | AK27: 32 | AO27: 0 | AS27: 0 | AW27: 0 | AY27: -5 | AZ27: 0 | BA27: 0 | BB27: 0 | BC27: 0 | BD27: 0 | BE27: 2 | BF27: 1 | BG27: 0 | BH27: 1 | BI27: 0 | BJ27: 0 | BK27: 0 | BL27: 1 | BM27: 0 | BN27: 0 | BO27: 0 | BP27: 0 | BQ27: 0 | BR27: 0 | BS27: 0 | BT27: 0 | BU27: 0 | BV27: 0 | BW27: 0 | BX27: 2 | BY27: 0 | BZ27: 0 | CA27: 0 | CB27: 0 | CC27: 0 | CD27: 0 | CE27: 0 | CF27: 0 | CG27: 0 | CH27: 0 | CI27: 0 | CJ27: 0 | CK27: 0 | CL27: 0 | CM27: 0 | CN27: 0
A28: 24 | B28: Maurício Júnior | C28: 244 | D28: 13 | E28: 18 | H28: 9 | I28: 26 | L28: 9 | M28: 26 | P28: 10 | Q28: 24 | T28: 12 | U28: 20 | X28: 22 | Y28: 9 | AA28: SIM | AB28: 6 | AC28: 32 | AG28: 0 | AJ28: 18 | AK28: 13 | AN28: 3 | AO28: 38 | AR28: 3 | AS28: 38 | AV28: 0 | AW28: 0 | AZ28: 0 | BA28: 0 | BB28: 2 | BC28: 0 | BD28: 0 | BE28: 1 | BF28: 0 | BG28: 0 | BH28: 2 | BI28: 1 | BJ28: 0 | BK28: 1 | BL28: 1 | BM28: 0 | BN28: 0 | BO28: 0 | BP28: 0 | BQ28: 1 | BR28: 0 | BS28: 0 | BT28: 0 | BU28: 1 | BV28: 0 | BW28: 0 | BX28: 0 | BY28: 0 | BZ28: 0 | CA28: 0 | CB28: 0 | CC28: 0 | CD28: 0 | CE28: 0 | CF28: 0 | CG28: 0 | CH28: 0 | CI28: 0 | CJ28: 0 | CK28: 0 | CL28: 0 | CM28: 0 | CN28: 0
A29: 25 | B29: Pedro Mello | C29: 15 | E29: 0 | H29: 29 | I29: 2 | M29: 0 | Q29: 0 | U29: 0 | X29: 18 | Y29: 13 | AC29: 0 | AG29: 0 | AK29: 0 | AO29: 0 | AS29: 0 | AW29: 0 | AZ29: 0 | BA29: 0 | BB29: 0 | BC29: 0 | BD29: 0 | BE29: 0 | BF29: 0 | BG29: 0 | BH29: 0 | BI29: 0 | BJ29: 0 | BK29: 0 | BL29: 0 | BM29: 0 | BN29: 0 | BO29: 0 | BP29: 0 | BQ29: 1 | BR29: 0 | BS29: 0 | BT29: 0 | BU29: 0 | BV29: 0 | BW29: 0 | BX29: 0 | BY29: 0 | BZ29: 0 | CA29: 0 | CB29: 1 | CC29: 0 | CD29: 0 | CE29: 0 | CF29: 0 | CG29: 0 | CH29: 0 | CI29: 0 | CJ29: 0 | CK29: 0 | CL29: 0 | CM29: 0 | CN29: 0
A30: 26 | B30: Raphael Reis | C30: 97 | D30: 12 | E30: 20 | H30: 22 | I30: 9 | L30: 18 | M30: 13 | P30: 18 | Q30: 13 | U30: 0 | Y30: 0 | AC30: 0 | AG30: 0 | AK30: 0 | AO30: 0 | AR30: 12 | AS30: 20 | AV30: 11 | AW30: 22 | AZ30: 0 | BA30: 0 | BB30: 0 | BC30: 0 | BD30: 0 | BE30: 0 | BF30: 0 | BG30: 0 | BH30: 0 | BI30: 0 | BJ30: 1 | BK30: 2 | BL30: 0 | BM30: 0 | BN30: 0 | BO30: 0 | BP30: 0 | BQ30: 2 | BR30: 0 | BS30: 0 | BT30: 0 | BU30: 1 | BV30: 0 | BW30: 0 | BX30: 0 | BY30: 0 | BZ30: 0 | CA30: 0 | CB30: 0 | CC30: 0 | CD30: 0 | CE30: 0 | CF30: 0 | CG30: 0 | CH30: 0 | CI30: 0 | CJ30: 0 | CK30: 0 | CL30: 0 | CM30: 0 | CN30: 0
A31: 27 | B31: Reila Ricardo | C31: 71 | D31: 20 | E31: 11 | H31: 18 | I31: 13 | L31: 29 | M31: 2 | P31: 24 | Q31: 7 | U31: 0 | X31: 11 | Y31: 22 | AC31: 0 | AF31: 16 | AG31: 15 | AJ31: 15 | AK31: 16 | AO31: 0 | AQ31: -5 | AS31: 0 | AU31: -5 | AW31: 0 | AY31: -5 | AZ31: 0 | BA31: 0 | BB31: 0 | BC31: 0 | BD31: 0 | BE31: 0 | BF31: 0 | BG31: 0 | BH31: 0 | BI31: 0 | BJ31: 1 | BK31: 0 | BL31: 0 | BM31: 0 | BN31: 1 | BO31: 1 | BP31: 0 | BQ31: 1 | BR31: 0 | BS31: 1 | BT31: 0 | BU31: 0 | BV31: 0 | BW31: 1 | BX31: 0 | BY31: 0 | BZ31: 0 | CA31: 0 | CB31: 1 | CC31: 0 | CD31: 0 | CE31: 0 | CF31: 0 | CG31: 0 | CH31: 0 | CI31: 0 | CJ31: 0 | CK31: 0 | CL31: 0 | CM31: 0 | CN31: 0
A32: 28 | B32: Renato Amaral | C32: 116 | D32: 15 | E32: 16 | H32: 24 | I32: 7 | L32: 22 | M32: 9 | O32: SIM | P32: 19 | Q32: 12 | T32: 17 | U32: 14 | Y32: 0 | AC32: 0 | AE32: -5 | AG32: 0 | AI32: -5 | AJ32: 5 | AK32: 34 | AN32: 10 | AO32: 24 | AR32: 21 | AS32: 10 | AW32: 0 | AZ32: 0 | BA32: 0 | BB32: 0 | BC32: 0 | BD32: 1 | BE32: 0 | BF32: 0 | BG32: 0 | BH32: 0 | BI32: 1 | BJ32: 0 | BK32: 0 | BL32: 0 | BM32: 0 | BN32: 1 | BO32: 0 | BP32: 1 | BQ32: 0 | BR32: 1 | BS32: 0 | BT32: 1 | BU32: 1 | BV32: 0 | BW32: 1 | BX32: 0 | BY32: 0 | BZ32: 0 | CA32: 0 | CB32: 0 | CC32: 0 | CD32: 0 | CE32: 0 | CF32: 0 | CG32: 0 | CH32: 0 | CI32: 0 | CJ32: 0 | CK32: 0 | CL32: 0 | CM32: 0 | CN32: 0
A33: 29 | B33: Rodrigo Mercadante | C33: 135 | D33: 7 | E33: 30 | H33: 5 | I33: 34 | M33: 0 | Q33: 0 | T33: 20 | U33: 11 | W33: SIM | X33: 7 | Y33: 30 | AB33: 7 | AC33: 30 | AG33: 0 | AK33: 0 | AO33: 0 | AS33: 0 | AW33: 0 | AZ33: 0 | BA33: 0 | BB33: 0 | BC33: 0 | BD33: 1 | BE33: 0 | BF33: 3 | BG33: 0 | BH33: 0 | BI33: 0 | BJ33: 0 | BK33: 0 | BL33: 0 | BM33: 0 | BN33: 0 | BO33: 0 | BP33: 0 | BQ33: 0 | BR33: 0 | BS33: 1 | BT33: 0 | BU33: 0 | BV33: 0 | BW33: 0 | BX33: 0 | BY33: 0 | BZ33: 0 | CA33: 0 | CB33: 0 | CC33: 0 | CD33: 0 | CE33: 0 | CF33: 0 | CG33: 0 | CH33: 0 | CI33: 0 | CJ33: 0 | CK33: 0 | CL33: 0 | CM33: 0 | CN33: 0
A34: 30 | B34: Rodrigo Ricardo | C34: 201 | D34: 14 | E34: 17 | H34: 15 | I34: 16 | L34: 13 | M34: 18 | P34: 20 | Q34: 11 | T34: 14 | U34: 17 | X34: 13 | Y34: 18 | AC34: 0 | AF34: 15 | AG34: 16 | AJ34: 10 | AK34: 24 | AN34: 11 | AO34: 22 | AR34: 11 | AS34: 22 | AV34: 12 | AW34: 20 | AZ34: 0 | BA34: 0 | BB34: 0 | BC34: 0 | BD34: 0 | BE34: 0 | BF34: 0 | BG34: 0 | BH34: 0 | BI34: 1 | BJ34: 2 | BK34: 1 | BL34: 2 | BM34: 2 | BN34: 2 | BO34: 0 | BP34: 0 | BQ34: 0 | BR34: 0 | BS34: 1 | BT34: 0 | BU34: 0 | BV34: 0 | BW34: 0 | BX34: 0 | BY34: 0 | BZ34: 0 | CA34: 0 | CB34: 0 | CC34: 0 | CD34: 0 | CE34: 0 | CF34: 0 | CG34: 0 | CH34: 0 | CI34: 0 | CJ34: 0 | CK34: 0 | CL34: 0 | CM34: 0 | CN34: 0
A35: 31 | B35: Tati Marcondes | C35: 90 | D35: 23 | E35: 8 | G35: SIM | H35: 26 | I35: 5 | L35: 20 | M35: 11 | P35: 22 | Q35: 9 | T35: 19 | U35: 12 | X35: 44 | Y35: 1 | AA35: SIM | AC35: 0 | AF35: 21 | AG35: 10 | AJ35: 13 | AK35: 18 | AO35: 0 | AR35: 17 | AS35: 14 | AV35: 29 | AW35: 2 | AY35: SIM | AZ35: 0 | BA35: 0 | BB35: 0 | BC35: 0 | BD35: 0 | BE35: 0 | BF35: 0 | BG35: 0 | BH35: 0 | BI35: 0 | BJ35: 0 | BK35: 0 | BL35: 1 | BM35: 0 | BN35: 0 | BO35: 0 | BP35: 1 | BQ35: 0 | BR35: 1 | BS35: 1 | BT35: 1 | BU35: 1 | BV35: 1 | BW35: 0 | BX35: 0 | BY35: 1 | BZ35: 0 | CA35: 0 | CB35: 1 | CC35: 0 | CD35: 0 | CE35: 0 | CF35: 0 | CG35: 0 | CH35: 0 | CI35: 0 | CJ35: 0 | CK35: 0 | CL35: 0 | CM35: 0 | CN35: 0
A36: 32 | B36: Wesley Bambirra | C36: 367 | D36: 10 | E36: 24 | H36: 1 | I36: 45 | L36: 3 | M36: 38 | P36: 5 | Q36: 34 | T36: 2 | U36: 41 | X36: 1 | Y36: 45 | AB36: 12 | AC36: 20 | AF36: 2 | AG36: 41 | AJ36: 14 | AK36: 17 | AO36: 0 | AR36: 8 | AS36: 28 | AV36: 5 | AW36: 34 | AZ36: 2 | BA36: 2 | BB36: 1 | BC36: 0 | BD36: 2 | BE36: 0 | BF36: 0 | BG36: 1 | BH36: 0 | BI36: 1 | BJ36: 0 | BK36: 1 | BL36: 0 | BM36: 1 | BN36: 0 | BO36: 0 | BP36: 0 | BQ36: 0 | BR36: 0 | BS36: 0 | BT36: 0 | BU36: 0 | BV36: 0 | BW36: 0 | BX36: 0 | BY36: 0 | BZ36: 0 | CA36: 0 | CB36: 0 | CC36: 0 | CD36: 0 | CE36: 0 | CF36: 0 | CG36: 0 | CH36: 0 | CI36: 0 | CJ36: 0 | CK36: 0 | CL36: 0 | CM36: 0 | CN36: 0
A37: 33 | B37: Wesley Camargos | C37: 0 | E37: 0 | I37: 0 | M37: 0 | O37: -5 | P37: 25 | Q37: 6 | U37: 0 | W37: -5 | Y37: 0 | AA37: -5 | AB37: 17 | AC37: 14 | AG37: 0 | AI37: -5 | AK37: 0 | AM37: -5 | AO37: 0 | AQ37: -5 | AR37: 20 | AS37: 11 | AW37: 0 | AY37: -5 | AZ37: 0 | BA37: 0 | BB37: 0 | BC37: 0 | BD37: 0 | BE37: 0 | BF37: 0 | BG37: 0 | BH37: 0 | BI37: 0 | BJ37: 0 | BK37: 0 | BL37: 0 | BM37: 0 | BN37: 0 | BO37: 0 | BP37: 1 | BQ37: 0 | BR37: 0 | BS37: 1 | BT37: 0 | BU37: 0 | BV37: 0 | BW37: 0 | BX37: 1 | BY37: 0 | BZ37: 0 | CA37: 0 | CB37: 0 | CC37: 0 | CD37: 0 | CE37: 0 | CF37: 0 | CG37: 0 | CH37: 0 | CI37: 0 | CJ37: 0 | CK37: 0 | CL37: 0 | CM37: 0 | CN37: 0
A38: 34 | B38: Wesley Canuto | C38: 331 | D38: 28 | E38: 3 | H38: 10 | I38: 24 | L38: 12 | M38: 20 | P38: 7 | Q38: 30 | T38: 10 | U38: 24 | X38: 5 | Y38: 34 | AB38: 8 | AC38: 28 | AF38: 3 | AG38: 38 | AJ38: 16 | AK38: 15 | AN38: 2 | AO38: 41 | AR38: 4 | AS38: 36 | AV38: 3 | AW38: 38 | AZ38: 0 | BA38: 1 | BB38: 2 | BC38: 1 | BD38: 1 | BE38: 0 | BF38: 1 | BG38: 1 | BH38: 0 | BI38: 2 | BJ38: 0 | BK38: 1 | BL38: 0 | BM38: 0 | BN38: 0 | BO38: 1 | BP38: 0 | BQ38: 0 | BR38: 0 | BS38: 0 | BT38: 0 | BU38: 0 | BV38: 0 | BW38: 0 | BX38: 0 | BY38: 0 | BZ38: 0 | CA38: 1 | CB38: 0 | CC38: 0 | CD38: 0 | CE38: 0 | CF38: 0 | CG38: 0 | CH38: 0 | CI38: 0 | CJ38: 0 | CK38: 0 | CL38: 0 | CM38: 0 | CN38: 0
A39: 35 | B39: Roberta Epifânio | C39: 34 | E39: 0 | H39: 28 | I39: 3 | L39: 30 | M39: 1 | P39: 30 | Q39: 1 | U39: 0 | X39: 33 | Y39: 1 | AA39: SIM | AB39: 18 | AC39: 13 | AF39: 22 | AG39: 9 | AK39: 0 | AO39: 0 | AR39: 25 | AS39: 6 | AW39: 0 | AZ39: 0 | BA39: 0 | BB39: 0 | BC39: 0 | BD39: 0 | BE39: 0 | BF39: 0 | BG39: 0 | BH39: 0 | BI39: 0 | BJ39: 0 | BK39: 0 | BL39: 0 | BM39: 0 | BN39: 0 | BO39: 0 | BP39: 0 | BQ39: 1 | BR39: 0 | BS39: 0 | BT39: 0 | BU39: 1 | BV39: 0 | BW39: 0 | BX39: 1 | BY39: 0 | BZ39: 0 | CA39: 1 | CB39: 0 | CC39: 2 | CD39: 0 | CE39: 0 | CF39: 1 | CG39: 0 | CH39: 0 | CI39: 0 | CJ39: 0 | CK39: 0 | CL39: 0 | CM39: 0 | CN39: 0
A40: 36 | B40: Jucimar Vieira | C40: 115 | E40: 0 | H40: 20 | I40: 11 | L40: 27 | M40: 4 | P40: 23 | Q40: 8 | T40: 18 | U40: 13 | X40: 19 | Y40: 12 | AB40: 16 | AC40: 15 | AF40: 19 | AG40: 12 | AK40: 0 | AN40: 24 | AO40: 7 | AQ40: SIM | AR40: 16 | AS40: 15 | AV40: 13 | AW40: 18 | AZ40: 0 | BA40: 0 | BB40: 0 | BC40: 0 | BD40: 0 | BE40: 0 | BF40: 0 | BG40: 0 | BH40: 0 | BI40: 0 | BJ40: 0 | BK40: 0 | BL40: 1 | BM40: 0 | BN40: 0 | BO40: 2 | BP40: 0 | BQ40: 1 | BR40: 2 | BS40: 1 | BT40: 0 | BU40: 0 | BV40: 1 | BW40: 1 | BX40: 0 | BY40: 0 | BZ40: 1 | CA40: 0 | CB40: 0 | CC40: 0 | CD40: 0 | CE40: 0 | CF40: 0 | CG40: 0 | CH40: 0 | CI40: 0 | CJ40: 0 | CK40: 0 | CL40: 0 | CM40: 0 | CN40: 0
A41: 37 | B41: Andre Resende | C41: 0 | E41: 0 | I41: 0 | M41: 0 | Q41: 0 | U41: 0 | Y41: 0 | AC41: 0 | AF41: 20 | AG41: 11 | AK41: 0 | AM41: -5 | AO41: 0 | AQ41: -5 | AS41: 0 | AU41: -5 | AW41: 0 | AY41: -5 | AZ41: 0 | BA41: 0 | BB41: 0 | BC41: 0 | BD41: 0 | BE41: 0 | BF41: 0 | BG41: 0 | BH41: 0 | BI41: 0 | BJ41: 0 | BK41: 1 | BL41: 0 | BM41: 0 | BN41: 0 | BO41: 0 | BP41: 0 | BQ41: 0 | BR41: 0 | BS41: 1 | BT41: 0 | BU41: 1 | BV41: 0 | BW41: 0 | BX41: 0 | BY41: 2 | BZ41: 0 | CA41: 0 | CB41: 0 | CC41: 0 | CD41: 0 | CE41: 0 | CF41: 0 | CG41: 0 | CH41: 0 | CI41: 0 | CJ41: 0 | CK41: 0 | CL41: 0 | CM41: 0 | CN41: 0
A42: 38 | B42: Izabella Rodrigues | C42: 5 | E42: 0 | I42: 0 | L42: 25 | M42: 6 | P42: 14 | Q42: 17 | U42: 0 | W42: -5 | Y42: 0 | AA42: -5 | AB42: 15 | AC42: 16 | AE42: -5 | AF42: 32 | AG42: 1 | AI42: SIM | AK42: 0 | AM42: -5 | AO42: 0 | AQ42: -5 | AS42: 0 | AU42: -5 | AW42: 0 | AY42: -5 | AZ42: 0 | BA42: 0 | BB42: 0 | BC42: 0 | BD42: 0 | BE42: 0 | BF42: 0 | BG42: 0 | BH42: 0 | BI42: 0 | BJ42: 0 | BK42: 0 | BL42: 0 | BM42: 1 | BN42: 1 | BO42: 0 | BP42: 0 | BQ42: 0 | BR42: 0 | BS42: 0 | BT42: 0 | BU42: 0 | BV42: 0 | BW42: 0 | BX42: 1 | BY42: 0 | BZ42: 0 | CA42: 0 | CB42: 0 | CC42: 0 | CD42: 0 | CE42: 1 | CF42: 0 | CG42: 0 | CH42: 0 | CI42: 0 | CJ42: 0 | CK42: 0 | CL42: 0 | CM42: 0 | CN42: 0
A43: 39 | B43: Lucca Veloso | C43: 34 | E43: 0 | I43: 0 | M43: 0 | Q43: 0 | U43: 0 | Y43: 0 | AC43: 0 | AF43: 6 | AG43: 32 | AH43: 1 | AJ43: 50 | AK43: 0 | AM43: SIM | AO43: 0 | AS43: 0 | AV43: 31 | AW43: 1 | AY43: SIM | AZ43: 0 | BA43: 0 | BB43: 0 | BC43: 0 | BD43: 0 | BE43: 1 | BF43: 0 | BG43: 0 | BH43: 0 | BI43: 0 | BJ43: 0 | BK43: 0 | BL43: 0 | BM43: 0 | BN43: 0 | BO43: 0 | BP43: 0 | BQ43: 0 | BR43: 0 | BS43: 0 | BT43: 0 | BU43: 0 | BV43: 0 | BW43: 0 | BX43: 0 | BY43: 0 | BZ43: 0 | CA43: 0 | CB43: 0 | CC43: 0 | CD43: 1 | CE43: 0 | CF43: 0 | CG43: 0 | CH43: 0 | CI43: 0 | CJ43: 0 | CK43: 0 | CL43: 0 | CM43: 0 | CN43: 0
A44: 40 | B44: Vitor Gatti | C44: 127 | E44: 0 | I44: 0 | M44: 0 | Q44: 0 | U44: 0 | Y44: 0 | AC44: 0 | AF44: 14 | AG44: 17 | AJ44: 9 | AK44: 26 | AN44: 8 | AO44: 28 | AR44: 9 | AS44: 26 | AV44: 7 | AW44: 30 | AZ44: 0 | BA44: 0 | BB44: 0 | BC44: 0 | BD44: 0 | BE44: 0 | BF44: 1 | BG44: 1 | BH44: 2 | BI44: 0 | BJ44: 0 | BK44: 0 | BL44: 0 | BM44: 1 | BN44: 0 | BO44: 0 | BP44: 0 | BQ44: 0 | BR44: 0 | BS44: 0 | BT44: 0 | BU44: 0 | BV44: 0 | BW44: 0 | BX44: 0 | BY44: 0 | BZ44: 0 | CA44: 0 | CB44: 0 | CC44: 0 | CD44: 0 | CE44: 0 | CF44: 0 | CG44: 0 | CH44: 0 | CI44: 0 | CJ44: 0 | CK44: 0 | CL44: 0 | CM44: 0 | CN44: 0
A45: 41 | B45: Gabriel Garabini | C45: 0 | E45: 0 | I45: 0 | M45: 0 | Q45: 0 | U45: 0 | Y45: 0 | AC45: 0 | AG45: 0 | AK45: 0 | AM45: -5 | AO45: 0 | AQ45: -5 | AS45: 0 | AU45: -5 | AW45: 0 | AY45: -5 | AZ45: 0 | BA45: 0 | BB45: 0 | BC45: 0 | BD45: 0 | BE45: 0 | BF45: 0 | BG45: 0 | BH45: 0 | BI45: 0 | BJ45: 0 | BK45: 0 | BL45: 0 | BM45: 0 | BN45: 0 | BO45: 0 | BP45: 0 | BQ45: 0 | BR45: 0 | BS45: 0 | BT45: 0 | BU45: 0 | BV45: 0 | BW45: 0 | BX45: 0 | BY45: 0 | BZ45: 0 | CA45: 0 | CB45: 0 | CC45: 0 | CD45: 0 | CE45: 0 | CF45: 0 | CG45: 0 | CH45: 0 | CI45: 0 | CJ45: 0 | CK45: 0 | CL45: 0 | CM45: 0 | CN45: 0
A46: 42 | C46: 0 | E46: 0 | I46: 0 | M46: 0 | Q46: 0 | U46: 0 | Y46: 0 | AC46: 0 | AG46: 0 | AK46: 0 | AO46: 0 | AS46: 0 | AW46: 0 | AZ46: 0 | BA46: 0 | BB46: 0 | BC46: 0 | BD46: 0 | BE46: 0 | BF46: 0 | BG46: 0 | BH46: 0 | BI46: 0 | BJ46: 0 | BK46: 0 | BL46: 0 | BM46: 0 | BN46: 0 | BO46: 0 | BP46: 0 | BQ46: 0 | BR46: 0 | BS46: 0 | BT46: 0 | BU46: 0 | BV46: 0 | BW46: 0 | BX46: 0 | BY46: 0 | BZ46: 0 | CA46: 0 | CB46: 0 | CC46: 0 | CD46: 0 | CE46: 0 | CF46: 0 | CG46: 0 | CH46: 0 | CI46: 0 | CJ46: 0 | CK46: 0 | CL46: 0 | CM46: 0 | CN46: 0
A47: 43 | C47: 0 | E47: 0 | I47: 0 | M47: 0 | Q47: 0 | U47: 0 | Y47: 0 | AC47: 0 | AG47: 0 | AK47: 0 | AO47: 0 | AS47: 0 | AW47: 0 | AZ47: 0 | BA47: 0 | BB47: 0 | BC47: 0 | BD47: 0 | BE47: 0 | BF47: 0 | BG47: 0 | BH47: 0 | BI47: 0 | BJ47: 0 | BK47: 0 | BL47: 0 | BM47: 0 | BN47: 0 | BO47: 0 | BP47: 0 | BQ47: 0 | BR47: 0 | BS47: 0 | BT47: 0 | BU47: 0 | BV47: 0 | BW47: 0 | BX47: 0 | BY47: 0 | BZ47: 0 | CA47: 0 | CB47: 0 | CC47: 0 | CD47: 0 | CE47: 0 | CF47: 0 | CG47: 0 | CH47: 0 | CI47: 0 | CJ47: 0 | CK47: 0 | CL47: 0 | CM47: 0 | CN47: 0
A48: 44 | C48: 0 | E48: 0 | I48: 0 | M48: 0 | Q48: 0 | U48: 0 | Y48: 0 | AC48: 0 | AG48: 0 | AK48: 0 | AO48: 0 | AS48: 0 | AW48: 0 | AZ48: 0 | BA48: 0 | BB48: 0 | BC48: 0 | BD48: 0 | BE48: 0 | BF48: 0 | BG48: 0 | BH48: 0 | BI48: 0 | BJ48: 0 | BK48: 0 | BL48: 0 | BM48: 0 | BN48: 0 | BO48: 0 | BP48: 0 | BQ48: 0 | BR48: 0 | BS48: 0 | BT48: 0 | BU48: 0 | BV48: 0 | BW48: 0 | BX48: 0 | BY48: 0 | BZ48: 0 | CA48: 0 | CB48: 0 | CC48: 0 | CD48: 0 | CE48: 0 | CF48: 0 | CG48: 0 | CH48: 0 | CI48: 0 | CJ48: 0 | CK48: 0 | CL48: 0 | CM48: 0 | CN48: 0
A49: 45 | C49: 0 | E49: 0 | I49: 0 | M49: 0 | Q49: 0 | U49: 0 | Y49: 0 | AC49: 0 | AG49: 0 | AK49: 0 | AO49: 0 | AS49: 0 | AW49: 0 | AZ49: 0 | BA49: 0 | BB49: 0 | BC49: 0 | BD49: 0 | BE49: 0 | BF49: 0 | BG49: 0 | BH49: 0 | BI49: 0 | BJ49: 0 | BK49: 0 | BL49: 0 | BM49: 0 | BN49: 0 | BO49: 0 | BP49: 0 | BQ49: 0 | BR49: 0 | BS49: 0 | BT49: 0 | BU49: 0 | BV49: 0 | BW49: 0 | BX49: 0 | BY49: 0 | BZ49: 0 | CA49: 0 | CB49: 0 | CC49: 0 | CD49: 0 | CE49: 0 | CF49: 0 | CG49: 0 | CH49: 0 | CI49: 0 | CJ49: 0 | CK49: 0 | CL49: 0 | CM49: 0 | CN49: 0
M53: 1
L55: 29

Sheet Classificação Geral
A1: 2022 | E1: OK | I1: OK | M1: OK | Q1: OK | U1: OK | Y1: OK | AC1: OK | AG1: OK | AK1: OK | AO1: OK | AS1: OK | AW1: OK
D2: 1ª etapa | H2: 2ª etapa | L2: 3ª etapa | P2: 4ª etapa | T2: 5ª etapa | X2: 6ª etapa | AB2: 7ª etapa | AF2: 8ª etapa | AJ2: 9ª etapa | AN2: 10ª etapa | AR2: 11ª etapa | AV2: 12ª etapa
L3: 13/03/2022 - 10:00 - Domingo
B4: Nome do (a) Piloto (a) | C4: Pontuação Geral | D4: Posição | E4: Pontos | F4: Bônus | G4: Penalidade | H4: Posição | I4: Pontos | J4: Bônus | K4: Penalidade | L4: Posição | M4: Pontos | N4: Bônus | O4: Penalidade | P4: Posição | Q4: Pontos | R4: Bônus | S4: Penalidade | T4: Posição | U4: Pontos | V4: Bônus | W4: Penalidade | X4: Posição | Y4: Pontos | Z4: Bônus | AA4: Penalidade | AB4: Posição | AC4: Pontos | AD4: Bônus | AE4: Penalidade | AF4: Posição | AG4: Pontos | AH4: Bônus | AI4: Penalidade | AJ4: Posição | AK4: Pontos | AL4: Bônus | AM4: Penalidade | AN4: Posição | AO4: Pontos | AP4: Bônus | AQ4: Penalidade | AR4: Posição | AS4: Pontos | AT4: Bônus | AU4: Penalidade | AV4: Posição | AW4: Pontos | AX4: Bônus | AY4: Penalidade | AZ4: 1º LUGAR | BA4: 2º LUGAR | BB4: 3º LUGAR | BC4: 4º LUGAR | BD4: 5º LUGAR | BE4: 6º LUGAR | BF4: 7º LUGAR | BG4: 8º LUGAR | BH4: 9º LUGAR | BI4: 10º LUGAR | BJ4: 11º LUGAR | BK4: 12º LUGAR | BL4: 13º LUGAR | BM4: 14º LUGAR | BN4: 15º LUGAR | BO4: 16º LUGAR | BP4: 17º LUGAR | BQ4: 18º LUGAR | BR4: 19º LUGAR | BS4: 20º LUGAR | BT4: 21º LUGAR | BU4: 22º LUGAR | BV4: 23º LUGAR | BW4: 24º LUGAR | BX4: 25º LUGAR | BY4: 26º LUGAR | BZ4: 27º LUGAR | CA4: 28º LUGAR | CB4: 29º LUGAR | CC4: 30º LUGAR | CD4: 31º LUGAR | CE4: 32º LUGAR | CF4: 33º LUGAR | CG4: 34º LUGAR | CH4: 35º LUGAR | CI4: 36º LUGAR | CJ4: 37º LUGAR | CK4: 38º LUGAR | CL4: 39º LUGAR | CM4: 40º LUGAR | CN4: 41º LUGAR
A5: 1 | B5: Marcelo Campos | C5: 413 | D5: 2 | E5: 41 | F5: 1 | H5: 8 | I5: 28 | L5: 4 | M5: 36 | P5: 1 | Q5: 45 | T5: 5 | U5: 34 | X5: 20 | Y5: 11 | Z5: 1 | AB5: 2 | AC5: 41 | AD5: 1 | AF5: 5 | AG5: 34 | AJ5: 3 | AK5: 38 | AN5: 6 | AO5: 32 | AR5: 1 | AS5: 45 | AT5: 1 | AV5: 10 | AW5: 24 | AZ5: 2 | BA5: 2 | BB5: 1 | BC5: 1 | BD5: 2 | BE5: 1 | BF5: 0 | BG5: 1 | BH5: 0 | BI5: 1 | BJ5: 0 | BK5: 0 | BL5: 0 | BM5: 0 | BN5: 0 | BO5: 0 | BP5: 0 | BQ5: 0 | BR5: 0 | BS5: 1 | BT5: 0 | BU5: 0 | BV5: 0 | BW5: 0 | BX5: 0 | BY5: 0 | BZ5: 0 | CA5: 0 | CB5: 0 | CC5: 0 | CD5: 0 | CE5: 0 | CF5: 0 | CG5: 0 | CH5: 0 | CI5: 0 | CJ5: 0 | CK5: 0 | CL5: 0 | CM5: 0 | CN5: 0
A6: 2 | B6: Daniel Nahum | C6: 394 | D6: 1 | E6: 45 | H6: 4 | I6: 36 | L6: 5 | M6: 34 | P6: 3 | Q6: 38 | R6: 1 | T6: 23 | U6: 8 | X6: 3 | Y6: 38 | AB6: 3 | AC6: 38 | AF6: 7 | AG6: 30 | AJ6: 4 | AK6: 36 | AN6: 4 | AO6: 36 | AR6: 23 | AS6: 8 | AV6: 1 | AW6: 45 | AX6: 1 | AZ6: 2 | BA6: 0 | BB6: 3 | BC6: 3 | BD6: 1 | BE6: 0 | BF6: 1 | BG6: 0 | BH6: 0 | BI6: 0 | BJ6: 0 | BK6: 0 | BL6: 0 | BM6: 0 | BN6: 0 | BO6: 0 | BP6: 0 | BQ6: 0 | BR6: 0 | BS6: 0 | BT6: 0 | BU6: 0 | BV6: 2 | BW6: 0 | BX6: 0 | BY6: 0 | BZ6: 0 | CA6: 0 | CB6: 0 | CC6: 0 | CD6: 0 | CE6: 0 | CF6: 0 | CG6: 0 | CH6: 0 | CI6: 0 | CJ6: 0 | CK6: 0 | CL6: 0 | CM6: 0 | CN6: 0
A7: 3 | B7: Wesley Bambirra | C7: 367 | D7: 10 | E7: 24 | H7: 1 | I7: 45 | L7: 3 | M7: 38 | P7: 5 | Q7: 34 | T7: 2 | U7: 41 | X7: 1 | Y7: 45 | AB7: 12 | AC7: 20 | AF7: 2 | AG7: 41 | AJ7: 14 | AK7: 17 | AO7: 0 | AR7: 8 | AS7: 28 | AV7: 5 | AW7: 34 | AZ7: 2 | BA7: 2 | BB7: 1 | BC7: 0 | BD7: 2 | BE7: 0 | BF7: 0 | BG7: 1 | BH7: 0 | BI7: 1 | BJ7: 0 | BK7: 1 | BL7: 0 | BM7: 1 | BN7: 0 | BO7: 0 | BP7: 0 | BQ7: 0 | BR7: 0 | BS7: 0 | BT7: 0 | BU7: 0 | BV7: 0 | BW7: 0 | BX7: 0 | BY7: 0 | BZ7: 0 | CA7: 0 | CB7: 0 | CC7: 0 | CD7: 0 | CE7: 0 | CF7: 0 | CG7: 0 | CH7: 0 | CI7: 0 | CJ7: 0 | CK7: 0 | CL7: 0 | CM7: 0 | CN7: 0
A8: 4 | B8: Wesley Canuto | C8: 331 | D8: 28 | E8: 3 | H8: 10 | I8: 24 | L8: 12 | M8: 20 | P8: 7 | Q8: 30 | T8: 10 | U8: 24 | X8: 5 | Y8: 34 | AB8: 8 | AC8: 28 | AF8: 3 | AG8: 38 | AJ8: 16 | AK8: 15 | AN8: 2 | AO8: 41 | AR8: 4 | AS8: 36 | AV8: 3 | AW8: 38 | AZ8: 0 | BA8: 1 | BB8: 2 | BC8: 1 | BD8: 1 | BE8: 0 | BF8: 1 | BG8: 1 | BH8: 0 | BI8: 2 | BJ8: 0 | BK8: 1 | BL8: 0 | BM8: 0 | BN8: 0 | BO8: 1 | BP8: 0 | BQ8: 0 | BR8: 0 | BS8: 0 | BT8: 0 | BU8: 0 | BV8: 0 | BW8: 0 | BX8: 0 | BY8: 0 | BZ8: 0 | CA8: 1 | CB8: 0 | CC8: 0 | CD8: 0 | CE8: 0 | CF8: 0 | CG8: 0 | CH8: 0 | CI8: 0 | CJ8: 0 | CK8: 0 | CL8: 0 | CM8: 0 | CN8: 0
A9: 5 | B9: Jarbas Reis | C9: 324 | D9: 6 | E9: 32 | H9: 6 | I9: 32 | L9: 21 | M9: 10 | P9: 11 | Q9: 22 | T9: 4 | U9: 36 | X9: 8 | Y9: 28 | AB9: 11 | AC9: 22 | AF9: 13 | AG9: 18 | AJ9: 8 | AK9: 28 | AN9: 7 | AO9: 30 | AR9: 7 | AS9: 30 | AV9: 4 | AW9: 36 | AZ9: 0 | BA9: 0 | BB9: 0 | BC9: 2 | BD9: 0 | BE9: 2 | BF9: 2 | BG9: 2 | BH9: 0 | BI9: 0 | BJ9: 2 | BK9: 0 | BL9: 1 | BM9: 0 | BN9: 0 | BO9: 0 | BP9: 0 | BQ9: 0 | BR9: 0 | BS9: 0 | BT9: 1 | BU9: 0 | BV9: 0 | BW9: 0 | BX9: 0 | BY9: 0 | BZ9: 0 | CA9: 0 | CB9: 0 | CC9: 0 | CD9: 0 | CE9: 0 | CF9: 0 | CG9: 0 | CH9: 0 | CI9: 0 | CJ9: 0 | CK9: 0 | CL9: 0 | CM9: 0 | CN9: 0
A10: 6 | B10: Alexandre Melillo | C10: 300 | D10: 11 | E10: 22 | H10: 12 | I10: 20 | L10: 17 | M10: 14 | P10: 2 | Q10: 41 | T10: 6 | U10: 32 | X10: 2 | Y10: 41 | AB10: 4 | AC10: 36 | AF10: 11 | AG10: 22 | AJ10: 17 | AK10: 14 | AM10: SIM | AN10: 5 | AO10: 34 | AR10: 10 | AS10: 24 | AW10: 0 | AZ10: 0 | BA10: 2 | BB10: 0 | BC10: 1 | BD10: 1 | BE10: 1 | BF10: 0 | BG10: 0 | BH10: 0 | BI10: 1 | BJ10: 2 | BK10: 1 | BL10: 0 | BM10: 0 | BN10: 0 | BO10: 0 | BP10: 2 | BQ10: 0 | BR10: 0 | BS10: 0 | BT10: 0 | BU10: 0 | BV10: 0 | BW10: 0 | BX10: 0 | BY10: 0 | BZ10: 0 | CA10: 0 | CB10: 0 | CC10: 0 | CD10: 0 | CE10: 0 | CF10: 0 | CG10: 0 | CH10: 0 | CI10: 0 | CJ10: 0 | CK10: 0 | CL10: 0 | CM10: 0 | CN10: 0
A11: 7 | B11: Marcelo Clemente | C11: 295 | D11: 27 | E11: 4 | H11: 17 | I11: 14 | J11: 1 | L11: 11 | M11: 22 | P11: 15 | Q11: 16 | S11: SIM | T11: 1 | U11: 45 | V11: 1 | X11: 9 | Y11: 26 | AB11: 1 | AC11: 45 | AF11: 1 | AG11: 45 | AJ11: 7 | AK11: 30 | AL11: 1 | AM11: -5 | AO11: 0 | AR11: 22 | AS11: 9 | AV11: 2 | AW11: 41 | AZ11: 3 | BA11: 1 | BB11: 0 | BC11: 0 | BD11: 0 | BE11: 0 | BF11: 1 | BG11: 0 | BH11: 1 | BI11: 0 | BJ11: 1 | BK11: 0 | BL11: 0 | BM11: 0 | BN11: 1 | BO11: 0 | BP11: 1 | BQ11: 0 | BR11: 0 | BS11: 0 | BT11: 0 | BU11: 1 | BV11: 0 | BW11: 0 | BX11: 0 | BY11: 0 | BZ11: 1 | CA11: 0 | CB11: 0 | CC11: 0 | CD11: 0 | CE11: 0 | CF11: 0 | CG11: 0 | CH11: 0 | CI11: 0 | CJ11: 0 | CK11: 0 | CL11: 0 | CM11: 0 | CN11: 0
A12: 8 | B12: Marcelo Pereira | C12: 249 | D12: 3 | E12: 38 | H12: 3 | I12: 38 | L12: 2 | M12: 41 | N12: 1 | P12: 13 | Q12: 18 | S12: SIM | T12: 13 | U12: 18 | Y12: 0 | AB12: 24 | AC12: 7 | AE12: SIM | AF12: 9 | AG12: 26 | AJ12: 1 | AK12: 45 | AN12: 26 | AO12: 5 | AQ12: SIM | AR12: 24 | AS12: 7 | AU12: SIM | AV12: 26 | AW12: 5 | AY12: SIM | AZ12: 1 | BA12: 1 | BB12: 2 | BC12: 0 | BD12: 0 | BE12: 0 | BF12: 0 | BG12: 0 | BH12: 1 | BI12: 0 | BJ12: 0 | BK12: 0 | BL12: 2 | BM12: 0 | BN12: 0 | BO12: 0 | BP12: 0 | BQ12: 0 | BR12: 0 | BS12: 0 | BT12: 0 | BU12: 0 | BV12: 0 | BW12: 2 | BX12: 0 | BY12: 2 | BZ12: 0 | CA12: 0 | CB12: 0 | CC12: 0 | CD12: 0 | CE12: 0 | CF12: 0 | CG12: 0 | CH12: 0 | CI12: 0 | CJ12: 0 | CK12: 0 | CL12: 0 | CM12: 0 | CN12: 0
A13: 9 | B13: Guilherme Alves | C13: 249 | D13: 9 | E13: 26 | H13: 11 | I13: 22 | L13: 10 | M13: 24 | P13: 16 | Q13: 15 | T13: 11 | U13: 22 | X13: 16 | Y13: 15 | AA13: SIM | AB13: 5 | AC13: 34 | AF13: 4 | AG13: 36 | AJ13: 11 | AK13: 22 | AO13: 0 | AR13: 6 | AS13: 32 | AV13: 37 | AW13: 1 | AY13: SIM | AZ13: 0 | BA13: 0 | BB13: 0 | BC13: 1 | BD13: 1 | BE13: 1 | BF13: 0 | BG13: 0 | BH13: 1 | BI13: 1 | BJ13: 3 | BK13: 0 | BL13: 0 | BM13: 0 | BN13: 0 | BO13: 2 | BP13: 0 | BQ13: 0 | BR13: 0 | BS13: 0 | BT13: 0 | BU13: 0 | BV13: 0 | BW13: 0 | BX13: 0 | BY13: 0 | BZ13: 0 | CA13: 0 | CB13: 0 | CC13: 0 | CD13: 0 | CE13: 0 | CF13: 0 | CG13: 0 | CH13: 0 | CI13: 0 | CJ13: 1 | CK13: 0 | CL13: 0 | CM13: 0 | CN13: 0
A14: 10 | B14: Maurício Júnior | C14: 244 | D14: 13 | E14: 18 | H14: 9 | I14: 26 | L14: 9 | M14: 26 | P14: 10 | Q14: 24 | T14: 12 | U14: 20 | X14: 22 | Y14: 9 | AA14: SIM | AB14: 6 | AC14: 32 | AG14: 0 | AJ14: 18 | AK14: 13 | AN14: 3 | AO14: 38 | AR14: 3 | AS14: 38 | AV14: 0 | AW14: 0 | AZ14: 0 | BA14: 0 | BB14: 2 | BC14: 0 | BD14: 0 | BE14: 1 | BF14: 0 | BG14: 0 | BH14: 2 | BI14: 1 | BJ14: 0 | BK14: 1 | BL14: 1 | BM14: 0 | BN14: 0 | BO14: 0 | BP14: 0 | BQ14: 1 | BR14: 0 | BS14: 0 | BT14: 0 | BU14: 1 | BV14: 0 | BW14: 0 | BX14: 0 | BY14: 0 | BZ14: 0 | CA14: 0 | CB14: 0 | CC14: 0 | CD14: 0 | CE14: 0 | CF14: 0 | CG14: 0 | CH14: 0 | CI14: 0 | CJ14: 0 | CK14: 0 | CL14: 0 | CM14: 0 | CN14: 0
A15: 11 | B15: Marcelo Marcondes | C15: 243 | D15: 21 | E15: 10 | G15: SIM | H15: 7 | I15: 30 | L15: 1 | M15: 45 | P15: 8 | Q15: 28 | T15: 24 | U15: 7 | X15: 17 | Y15: 14 | AA15: SIM | AC15: 0 | AE15: -5 | AF15: 10 | AG15: 24 | AJ15: 19 | AK15: 12 | AN15: 1 | AO15: 45 | AP15: 1 | AR15: 26 | AS15: 5 | AV15: 6 | AW15: 32 | AY15: -5 | AZ15: 2 | BA15: 0 | BB15: 0 | BC15: 0 | BD15: 0 | BE15: 1 | BF15: 1 | BG15: 1 | BH15: 0 | BI15: 1 | BJ15: 0 | BK15: 0 | BL15: 0 | BM15: 0 | BN15: 0 | BO15: 0 | BP15: 1 | BQ15: 0 | BR15: 1 | BS15: 0 | BT15: 1 | BU15: 0 | BV15: 0 | BW15: 1 | BX15: 0 | BY15: 1 | BZ15: 0 | CA15: 0 | CB15: 0 | CC15: 0 | CD15: 0 | CE15: 0 | CF15: 0 | CG15: 0 | CH15: 0 | CI15: 0 | CJ15: 0 | CK15: 0 | CL15: 0 | CM15: 0 | CN15: 0
A16: 12 | B16: Eduardo Henrique | C16: 228 | E16: 0 | H16: 42 | I16: 1 | K16: SIM | L16: 14 | M16: 17 | P16: 12 | Q16: 20 | T16: 3 | U16: 38 | X16: 4 | Y16: 36 | AB16: 9 | AC16: 26 | AF16: 12 | AG16: 20 | AJ16: 2 | AK16: 41 | AO16: 0 | AR16: 5 | AS16: 34 | AW16: 0 | AY16: -5 | AZ16: 0 | BA16: 1 | BB16: 1 | BC16: 1 | BD16: 1 | BE16: 0 | BF16: 0 | BG16: 0 | BH16: 1 | BI16: 0 | BJ16: 0 | BK16: 2 | BL16: 0 | BM16: 1 | BN16: 0 | BO16: 0 | BP16: 0 | BQ16: 0 | BR16: 0 | BS16: 0 | BT16: 0 | BU16: 0 | BV16: 0 | BW16: 0 | BX16: 0 | BY16: 0 | BZ16: 0 | CA16: 0 | CB16: 0 | CC16: 0 | CD16: 0 | CE16: 0 | CF16: 0 | CG16: 0 | CH16: 0 | CI16: 0 | CJ16: 0 | CK16: 0 | CL16: 0 | CM16: 0 | CN16: 0
A17: 13 | B17: Rodrigo Ricardo | C17: 201 | D17: 14 | E17: 17 | H17: 15 | I17: 16 | L17: 13 | M17: 18 | P17: 20 | Q17: 11 | T17: 14 | U17: 17 | X17: 13 | Y17: 18 | AC17: 0 | AF17: 15 | AG17: 16 | AJ17: 10 | AK17: 24 | AN17: 11 | AO17: 22 | AR17: 11 | AS17: 22 | AV17: 12 | AW17: 20 | AZ17: 0 | BA17: 0 | BB17: 0 | BC17: 0 | BD17: 0 | BE17: 0 | BF17: 0 | BG17: 0 | BH17: 0 | BI17: 1 | BJ17: 2 | BK17: 1 | BL17: 2 | BM17: 2 | BN17: 2 | BO17: 0 | BP17: 0 | BQ17: 0 | BR17: 0 | BS17: 1 | BT17: 0 | BU17: 0 | BV17: 0 | BW17: 0 | BX17: 0 | BY17: 0 | BZ17: 0 | CA17: 0 | CB17: 0 | CC17: 0 | CD17: 0 | CE17: 0 | CF17: 0 | CG17: 0 | CH17: 0 | CI17: 0 | CJ17: 0 | CK17: 0 | CL17: 0 | CM17: 0 | CN17: 0
A18: 14 | B18: Marcelo Chagas | C18: 186 | D18: 19 | E18: 12 | H18: 0 | I18: 0 | K18: SIM | L18: 8 | M18: 28 | Q18: 0 | S18: -5 | T18: 8 | U18: 28 | X18: 10 | Y18: 24 | AB18: 13 | AC18: 18 | AF18: 23 | AG18: 8 | AK18: 0 | AN18: 14 | AO18: 17 | AR18: 2 | AS18: 41 | AV18: 16 | AW18: 15 | AZ18: 0 | BA18: 1 | BB18: 0 | BC18: 0 | BD18: 0 | BE18: 0 | BF18: 0 | BG18: 2 | BH18: 0 | BI18: 1 | BJ18: 0 | BK18: 0 | BL18: 1 | BM18: 1 | BN18: 0 | BO18: 1 | BP18: 0 | BQ18: 0 | BR18: 1 | BS18: 0 | BT18: 0 | BU18: 0 | BV18: 1 | BW18: 0 | BX18: 0 | BY18: 0 | BZ18: 0 | CA18: 0 | CB18: 0 | CC18: 0 | CD18: 0 | CE18: 0 | CF18: 0 | CG18: 0 | CH18: 0 | CI18: 0 | CJ18: 0 | CK18: 0 | CL18: 0 | CM18: 0 | CN18: 0
A19: 15 | B19: Rodrigo Mercadante | C19: 135 | D19: 7 | E19: 30 | H19: 5 | I19: 34 | M19: 0 | Q19: 0 | T19: 20 | U19: 11 | W19: SIM | X19: 7 | Y19: 30 | AB19: 7 | AC19: 30 | AG19: 0 | AK19: 0 | AO19: 0 | AS19: 0 | AW19: 0 | AZ19: 0 | BA19: 0 | BB19: 0 | BC19: 0 | BD19: 1 | BE19: 0 | BF19: 3 | BG19: 0 | BH19: 0 | BI19: 0 | BJ19: 0 | BK19: 0 | BL19: 0 | BM19: 0 | BN19: 0 | BO19: 0 | BP19: 0 | BQ19: 0 | BR19: 0 | BS19: 1 | BT19: 0 | BU19: 0 | BV19: 0 | BW19: 0 | BX19: 0 | BY19: 0 | BZ19: 0 | CA19: 0 | CB19: 0 | CC19: 0 | CD19: 0 | CE19: 0 | CF19: 0 | CG19: 0 | CH19: 0 | CI19: 0 | CJ19: 0 | CK19: 0 | CL19: 0 | CM19: 0 | CN19: 0
A20: 16 | B20: Vitor Gatti | C20: 127 | E20: 0 | I20: 0 | M20: 0 | Q20: 0 | U20: 0 | Y20: 0 | AC20: 0 | AF20: 14 | AG20: 17 | AJ20: 9 | AK20: 26 | AN20: 8 | AO20: 28 | AR20: 9 | AS20: 26 | AV20: 7 | AW20: 30 | AZ20: 0 | BA20: 0 | BB20: 0 | BC20: 0 | BD20: 0 | BE20: 0 | BF20: 1 | BG20: 1 | BH20: 2 | BI20: 0 | BJ20: 0 | BK20: 0 | BL20: 0 | BM20: 1 | BN20: 0 | BO20: 0 | BP20: 0 | BQ20: 0 | BR20: 0 | BS20: 0 | BT20: 0 | BU20: 0 | BV20: 0 | BW20: 0 | BX20: 0 | BY20: 0 | BZ20: 0 | CA20: 0 | CB20: 0 | CC20: 0 | CD20: 0 | CE20: 0 | CF20: 0 | CG20: 0 | CH20: 0 | CI20: 0 | CJ20: 0 | CK20: 0 | CL20: 0 | CM20: 0 | CN20: 0
A21: 17 | B21: Renato Amaral | C21: 116 | D21: 15 | E21: 16 | H21: 24 | I21: 7 | L21: 22 | M21: 9 | O21: SIM | P21: 19 | Q21: 12 | T21: 17 | U21: 14 | Y21: 0 | AC21: 0 | AE21: -5 | AG21: 0 | AI21: -5 | AJ21: 5 | AK21: 34 | AN21: 10 | AO21: 24 | AR21: 21 | AS21: 10 | AW21: 0 | AZ21: 0 | BA21: 0 | BB21: 0 | BC21: 0 | BD21: 1 | BE21: 0 | BF21: 0 | BG21: 0 | BH21: 0 | BI21: 1 | BJ21: 0 | BK21: 0 | BL21: 0 | BM21: 0 | BN21: 1 | BO21: 0 | BP21: 1 | BQ21: 0 | BR21: 1 | BS21: 0 | BT21: 1 | BU21: 1 | BV21: 0 | BW21: 1 | BX21: 0 | BY21: 0 | BZ21: 0 | CA21: 0 | CB21: 0 | CC21: 0 | CD21: 0 | CE21: 0 | CF21: 0 | CG21: 0 | CH21: 0 | CI21: 0 | CJ21: 0 | CK21: 0 | CL21: 0 | CM21: 0 | CN21: 0
A22: 18 | B22: Jucimar Vieira | C22: 115 | E22: 0 | H22: 20 | I22: 11 | L22: 27 | M22: 4 | P22: 23 | Q22: 8 | T22: 18 | U22: 13 | X22: 19 | Y22: 12 | AB22: 16 | AC22: 15 | AF22: 19 | AG22: 12 | AK22: 0 | AN22: 24 | AO22: 7 | AQ22: SIM | AR22: 16 | AS22: 15 | AV22: 13 | AW22: 18 | AZ22: 0 | BA22: 0 | BB22: 0 | BC22: 0 | BD22: 0 | BE22: 0 | BF22: 0 | BG22: 0 | BH22: 0 | BI22: 0 | BJ22: 0 | BK22: 0 | BL22: 1 | BM22: 0 | BN22: 0 | BO22: 2 | BP22: 0 | BQ22: 1 | BR22: 2 | BS22: 1 | BT22: 0 | BU22: 0 | BV22: 1 | BW22: 1 | BX22: 0 | BY22: 0 | BZ22: 1 | CA22: 0 | CB22: 0 | CC22: 0 | CD22: 0 | CE22: 0 | CF22: 0 | CG22: 0 | CH22: 0 | CI22: 0 | CJ22: 0 | CK22: 0 | CL22: 0 | CM22: 0 | CN22: 0
A23: 19 | B23: Hélio Chagas | C23: 112 | D23: 22 | E23: 9 | H23: 23 | I23: 8 | L23: 23 | M23: 8 | Q23: 0 | S23: -5 | T23: 21 | U23: 10 | X23: 15 | Y23: 16 | AB23: 26 | AC23: 5 | AE23: SIM | AF23: 17 | AG23: 14 | AK23: 0 | AN23: 13 | AO23: 18 | AR23: 19 | AS23: 12 | AV23: 14 | AW23: 17 | AZ23: 0 | BA23: 0 | BB23: 0 | BC23: 0 | BD23: 0 | BE23: 0 | BF23: 0 | BG23: 0 | BH23: 0 | BI23: 0 | BJ23: 0 | BK23: 0 | BL23: 1 | BM23: 1 | BN23: 1 | BO23: 0 | BP23: 1 | BQ23: 0 | BR23: 1 | BS23: 0 | BT23: 1 | BU23: 1 | BV23: 2 | BW23: 0 | BX23: 0 | BY23: 1 | BZ23: 0 | CA23: 0 | CB23: 0 | CC23: 0 | CD23: 0 | CE23: 0 | CF23: 0 | CG23: 0 | CH23: 0 | CI23: 0 | CJ23: 0 | CK23: 0 | CL23: 0 | CM23: 0 | CN23: 0
A24: 20 | B24: Cláudio Dumont | C24: 102 | D24: 8 | E24: 28 | H24: 2 | I24: 41 | L24: 15 | M24: 16 | P24: 4 | Q24: 36 | T24: 25 | U24: 6 | Y24: 0 | AC24: 0 | AE24: -5 | AG24: 0 | AI24: -5 | AK24: 0 | AM24: -5 | AO24: 0 | AQ24: -5 | AS24: 0 | AU24: -5 | AW24: 0 | AZ24: 0 | BA24: 1 | BB24: 0 | BC24: 1 | BD24: 0 | BE24: 0 | BF24: 0 | BG24: 1 | BH24: 0 | BI24: 0 | BJ24: 0 | BK24: 0 | BL24: 0 | BM24: 0 | BN24: 1 | BO24: 0 | BP24: 0 | BQ24: 0 | BR24: 0 | BS24: 0 | BT24: 0 | BU24: 0 | BV24: 0 | BW24: 0 | BX24: 1 | BY24: 0 | BZ24: 0 | CA24: 0 | CB24: 0 | CC24: 0 | CD24: 0 | CE24: 0 | CF24: 0 | CG24: 0 | CH24: 0 | CI24: 0 | CJ24: 0 | CK24: 0 | CL24: 0 | CM24: 0 | CN24: 0
A25: 21 | B25: Raphael Reis | C25: 97 | D25: 12 | E25: 20 | H25: 22 | I25: 9 | L25: 18 | M25: 13 | P25: 18 | Q25: 13 | U25: 0 | Y25: 0 | AC25: 0 | AG25: 0 | AK25: 0 | AO25: 0 | AR25: 12 | AS25: 20 | AV25: 11 | AW25: 22 | AZ25: 0 | BA25: 0 | BB25: 0 | BC25: 0 | BD25: 0 | BE25: 0 | BF25: 0 | BG25: 0 | BH25: 0 | BI25: 0 | BJ25: 1 | BK25: 2 | BL25: 0 | BM25: 0 | BN25: 0 | BO25: 0 | BP25: 0 | BQ25: 2 | BR25: 0 | BS25: 0 | BT25: 0 | BU25: 1 | BV25: 0 | BW25: 0 | BX25: 0 | BY25: 0 | BZ25: 0 | CA25: 0 | CB25: 0 | CC25: 0 | CD25: 0 | CE25: 0 | CF25: 0 | CG25: 0 | CH25: 0 | CI25: 0 | CJ25: 0 | CK25: 0 | CL25: 0 | CM25: 0 | CN25: 0
A26: 22 | B26: Felipe Bouhid | C26: 96 | E26: 0 | I26: 0 | M26: 0 | Q26: 0 | U26: 0 | Y26: 0 | AC26: 0 | AF26: 18 | AG26: 13 | AJ26: 12 | AK26: 20 | AN26: 12 | AO26: 20 | AR26: 14 | AS26: 17 | AV26: 9 | AW26: 26 | AZ26: 0 | BA26: 0 | BB26: 0 | BC26: 0 | BD26: 0 | BE26: 0 | BF26: 0 | BG26: 0 | BH26: 1 | BI26: 0 | BJ26: 0 | BK26: 2 | BL26: 0 | BM26: 1 | BN26: 0 | BO26: 1 | BP26: 0 | BQ26: 1 | BR26: 1 | BS26: 0 | BT26: 0 | BU26: 0 | BV26: 0 | BW26: 0 | BX26: 0 | BY26: 0 | BZ26: 0 | CA26: 0 | CB26: 1 | CC26: 0 | CD26: 0 | CE26: 0 | CF26: 0 | CG26: 0 | CH26: 0 | CI26: 0 | CJ26: 0 | CK26: 0 | CL26: 0 | CM26: 0 | CN26: 0
A27: 23 | B27: Cláudio Naves | C27: 95 | D27: 24 | E27: 7 | H27: 27 | I27: 4 | L27: 24 | M27: 7 | P27: 33 | Q27: 1 | S27: SIM | T27: 44 | U27: 1 | W27: SIM | X27: 14 | Y27: 17 | AB27: 14 | AC27: 17 | AG27: 0 | AK27: 0 | AO27: 0 | AR27: 18 | AS27: 13 | AV27: 8 | AW27: 28 | AZ27: 0 | BA27: 0 | BB27: 0 | BC27: 0 | BD27: 0 | BE27: 0 | BF27: 0 | BG27: 1 | BH27: 0 | BI27: 0 | BJ27: 0 | BK27: 0 | BL27: 0 | BM27: 2 | BN27: 0 | BO27: 0 | BP27: 0 | BQ27: 1 | BR27: 0 | BS27: 0 | BT27: 0 | BU27: 0 | BV27: 0 | BW27: 2 | BX27: 0 | BY27: 0 | BZ27: 1 | CA27: 0 | CB27: 0 | CC27: 0 | CD27: 0 | CE27: 0 | CF27: 1 | CG27: 0 | CH27: 0 | CI27: 0 | CJ27: 0 | CK27: 0 | CL27: 0 | CM27: 0 | CN27: 0
A28: 24 | B28: Tati Marcondes | C28: 90 | D28: 23 | E28: 8 | G28: SIM | H28: 26 | I28: 5 | L28: 20 | M28: 11 | P28: 22 | Q28: 9 | T28: 19 | U28: 12 | X28: 44 | Y28: 1 | AA28: SIM | AC28: 0 | AF28: 21 | AG28: 10 | AJ28: 13 | AK28: 18 | AO28: 0 | AR28: 17 | AS28: 14 | AV28: 29 | AW28: 2 | AY28: SIM | AZ28: 0 | BA28: 0 | BB28: 0 | BC28: 0 | BD28: 0 | BE28: 0 | BF28: 0 | BG28: 0 | BH28: 0 | BI28: 0 | BJ28: 0 | BK28: 0 | BL28: 1 | BM28: 0 | BN28: 0 | BO28: 0 | BP28: 1 | BQ28: 0 | BR28: 1 | BS28: 1 | BT28: 1 | BU28: 1 | BV28: 1 | BW28: 0 | BX28: 0 | BY28: 1 | BZ28: 0 | CA28: 0 | CB28: 1 | CC28: 0 | CD28: 0 | CE28: 0 | CF28: 0 | CG28: 0 | CH28: 0 | CI28: 0 | CJ28: 0 | CK28: 0 | CL28: 0 | CM28: 0 | CN28: 0
A29: 25 | B29: Frederico Papatella | C29: 88 | D29: 5 | E29: 34 | H29: 14 | I29: 17 | L29: 28 | M29: 3 | O29: SIM | Q29: 0 | U29: 0 | Y29: 0 | AC29: 0 | AE29: -5 | AG29: 0 | AK29: 0 | AM29: -5 | AN29: 9 | AO29: 26 | AR29: 13 | AS29: 18 | AW29: 0 | AZ29: 0 | BA29: 0 | BB29: 0 | BC29: 0 | BD29: 1 | BE29: 0 | BF29: 0 | BG29: 0 | BH29: 1 | BI29: 0 | BJ29: 0 | BK29: 0 | BL29: 1 | BM29: 1 | BN29: 0 | BO29: 0 | BP29: 0 | BQ29: 0 | BR29: 0 | BS29: 0 | BT29: 0 | BU29: 0 | BV29: 0 | BW29: 0 | BX29: 0 | BY29: 0 | BZ29: 0 | CA29: 1 | CB29: 0 | CC29: 0 | CD29: 0 | CE29: 0 | CF29: 0 | CG29: 0 | CH29: 0 | CI29: 0 | CJ29: 0 | CK29: 0 | CL29: 0 | CM29: 0 | CN29: 0
A30: 26 | B30: Reila Ricardo | C30: 71 | D30: 20 | E30: 11 | H30: 18 | I30: 13 | L30: 29 | M30: 2 | P30: 24 | Q30: 7 | U30: 0 | X30: 11 | Y30: 22 | AC30: 0 | AF30: 16 | AG30: 15 | AJ30: 15 | AK30: 16 | AO30: 0 | AQ30: -5 | AS30: 0 | AU30: -5 | AW30: 0 | AY30: -5 | AZ30: 0 | BA30: 0 | BB30: 0 | BC30: 0 | BD30: 0 | BE30: 0 | BF30: 0 | BG30: 0 | BH30: 0 | BI30: 0 | BJ30: 1 | BK30: 0 | BL30: 0 | BM30: 0 | BN30: 1 | BO30: 1 | BP30: 0 | BQ30: 1 | BR30: 0 | BS30: 1 | BT30: 0 | BU30: 0 | BV30: 0 | BW30: 1 | BX30: 0 | BY30: 0 | BZ30: 0 | CA30: 0 | CB30: 1 | CC30: 0 | CD30: 0 | CE30: 0 | CF30: 0 | CG30: 0 | CH30: 0 | CI30: 0 | CJ30: 0 | CK30: 0 | CL30: 0 | CM30: 0 | CN30: 0
A31: 27 | B31: Leandro Malias | C31: 70 | D31: 16 | E31: 15 | H31: 25 | I31: 6 | M31: 0 | Q31: 0 | S31: -5 | U31: 0 | X31: 21 | Y31: 10 | AB31: 19 | AC31: 12 | AG31: 0 | AK31: 0 | AO31: 0 | AR31: 15 | AS31: 16 | AV31: 15 | AW31: 16 | AZ31: 0 | BA31: 0 | BB31: 0 | BC31: 0 | BD31: 0 | BE31: 0 | BF31: 0 | BG31: 0 | BH31: 0 | BI31: 0 | BJ31: 0 | BK31: 0 | BL31: 0 | BM31: 0 | BN31: 2 | BO31: 1 | BP31: 0 | BQ31: 0 | BR31: 1 | BS31: 0 | BT31: 1 | BU31: 0 | BV31: 0 | BW31: 0 | BX31: 1 | BY31: 0 | BZ31: 0 | CA31: 0 | CB31: 0 | CC31: 0 | CD31: 0 | CE31: 0 | CF31: 0 | CG31: 0 | CH31: 0 | CI31: 0 | CJ31: 0 | CK31: 0 | CL31: 0 | CM31: 0 | CN31: 0
A32: 28 | B32: Bernardo Freitas | C32: 66 | D32: 26 | E32: 5 | I32: 0 | L32: 6 | M32: 32 | P32: 17 | Q32: 14 | T32: 15 | U32: 16 | X32: 27 | Y32: 4 | AA32: SIM | AC32: 0 | AG32: 0 | AK32: 0 | AO32: 0 | AS32: 0 | AW32: 0 | AY32: -5 | AZ32: 0 | BA32: 0 | BB32: 0 | BC32: 0 | BD32: 0 | BE32: 1 | BF32: 0 | BG32: 0 | BH32: 0 | BI32: 0 | BJ32: 0 | BK32: 0 | BL32: 0 | BM32: 0 | BN32: 1 | BO32: 0 | BP32: 1 | BQ32: 0 | BR32: 0 | BS32: 0 | BT32: 0 | BU32: 0 | BV32: 0 | BW32: 0 | BX32: 0 | BY32: 1 | BZ32: 1 | CA32: 0 | CB32: 0 | CC32: 0 | CD32: 0 | CE32: 0 | CF32: 0 | CG32: 0 | CH32: 0 | CI32: 0 | CJ32: 0 | CK32: 0 | CL32: 0 | CM32: 0 | CN32: 0
A33: 29 | B33: Marcelo Sant'anna | C33: 57 | D33: 17 | E33: 14 | H33: 21 | I33: 10 | K33: SIM | L33: 47 | M33: 1 | O33: SIM | Q33: 0 | U33: 0 | X33: 6 | Y33: 32 | AC33: 0 | AG33: 0 | AK33: 0 | AO33: 0 | AS33: 0 | AW33: 0 | AZ33: 0 | BA33: 0 | BB33: 0 | BC33: 0 | BD33: 0 | BE33: 1 | BF33: 0 | BG33: 0 | BH33: 0 | BI33: 0 | BJ33: 0 | BK33: 0 | BL33: 0 | BM33: 0 | BN33: 0 | BO33: 0 | BP33: 1 | BQ33: 0 | BR33: 0 | BS33: 0 | BT33: 1 | BU33: 0 | BV33: 0 | BW33: 0 | BX33: 0 | BY33: 0 | BZ33: 0 | CA33: 0 | CB33: 0 | CC33: 0 | CD33: 0 | CE33: 0 | CF33: 0 | CG33: 0 | CH33: 0 | CI33: 0 | CJ33: 0 | CK33: 0 | CL33: 0 | CM33: 0 | CN33: 0
A34: 30 | B34: Lucas Guimarães | C34: 54 | E34: 0 | H34: 32 | I34: 1 | K34: SIM | M34: 0 | O34: -5 | P34: 33 | Q34: 1 | S34: SIM | T34: 7 | U34: 30 | Y34: 0 | AA34: -5 | AB34: 10 | AC34: 24 | AF34: 8 | AG34: 28 | AK34: 0 | AM34: -5 | AO34: 0 | AQ34: -5 | AS34: 0 | AU34: -5 | AW34: 0 | AY34: -5 | AZ34: 0 | BA34: 0 | BB34: 0 | BC34: 0 | BD34: 0 | BE34: 0 | BF34: 1 | BG34: 1 | BH34: 0 | BI34: 1 | BJ34: 0 | BK34: 0 | BL34: 0 | BM34: 0 | BN34: 0 | BO34: 0 | BP34: 0 | BQ34: 0 | BR34: 0 | BS34: 0 | BT34: 0 | BU34: 0 | BV34: 0 | BW34: 0 | BX34: 0 | BY34: 0 | BZ34: 0 | CA34: 0 | CB34: 0 | CC34: 0 | CD34: 0 | CE34: 1 | CF34: 1 | CG34: 0 | CH34: 0 | CI34: 0 | CJ34: 0 | CK34: 0 | CL34: 0 | CM34: 0 | CN34: 0
A35: 31 | B35: Luciano Robervine | C35: 38 | D35: 4 | E35: 36 | H35: 33 | I35: 1 | K35: SIM | L35: 16 | M35: 15 | P35: 9 | Q35: 26 | U35: 0 | W35: -5 | Y35: 0 | AA35: -5 | AC35: 0 | AE35: -5 | AG35: 0 | AI35: -5 | AK35: 0 | AM35: -5 | AO35: 0 | AQ35: -5 | AS35: 0 | AU35: -5 | AW35: 0 | AY35: -5 | AZ35: 0 | BA35: 0 | BB35: 0 | BC35: 1 | BD35: 0 | BE35: 0 | BF35: 0 | BG35: 0 | BH35: 1 | BI35: 0 | BJ35: 0 | BK35: 0 | BL35: 0 | BM35: 0 | BN35: 0 | BO35: 1 | BP35: 0 | BQ35: 0 | BR35: 0 | BS35: 0 | BT35: 0 | BU35: 0 | BV35: 0 | BW35: 0 | BX35: 0 | BY35: 0 | BZ35: 0 | CA35: 0 | CB35: 0 | CC35: 0 | CD35: 0 | CE35: 0 | CF35: 1 | CG35: 0 | CH35: 0 | CI35: 0 | CJ35: 0 | CK35: 0 | CL35: 0 | CM35: 0 | CN35: 0
A36: 32 | B36: Lucca Veloso | C36: 34 | E36: 0 | I36: 0 | M36: 0 | Q36: 0 | U36: 0 | Y36: 0 | AC36: 0 | AF36: 6 | AG36: 32 | AH36: 1 | AJ36: 50 | AK36: 0 | AM36: SIM | AO36: 0 | AS36: 0 | AV36: 31 | AW36: 1 | AY36: SIM | AZ36: 0 | BA36: 0 | BB36: 0 | BC36: 0 | BD36: 0 | BE36: 1 | BF36: 0 | BG36: 0 | BH36: 0 | BI36: 0 | BJ36: 0 | BK36: 0 | BL36: 0 | BM36: 0 | BN36: 0 | BO36: 0 | BP36: 0 | BQ36: 0 | BR36: 0 | BS36: 0 | BT36: 0 | BU36: 0 | BV36: 0 | BW36: 0 | BX36: 0 | BY36: 0 | BZ36: 0 | CA36: 0 | CB36: 0 | CC36: 0 | CD36: 1 | CE36: 0 | CF36: 0 | CG36: 0 | CH36: 0 | CI36: 0 | CJ36: 0 | CK36: 0 | CL36: 0 | CM36: 0 | CN36: 0
A37: 33 | B37: Roberta Epifânio | C37: 34 | E37: 0 | H37: 28 | I37: 3 | L37: 30 | M37: 1 | P37: 30 | Q37: 1 | U37: 0 | X37: 33 | Y37: 1 | AA37: SIM | AB37: 18 | AC37: 13 | AF37: 22 | AG37: 9 | AK37: 0 | AO37: 0 | AR37: 25 | AS37: 6 | AW37: 0 | AZ37: 0 | BA37: 0 | BB37: 0 | BC37: 0 | BD37: 0 | BE37: 0 | BF37: 0 | BG37: 0 | BH37: 0 | BI37: 0 | BJ37: 0 | BK37: 0 | BL37: 0 | BM37: 0 | BN37: 0 | BO37: 0 | BP37: 0 | BQ37: 1 | BR37: 0 | BS37: 0 | BT37: 0 | BU37: 1 | BV37: 0 | BW37: 0 | BX37: 1 | BY37: 0 | BZ37: 0 | CA37: 1 | CB37: 0 | CC37: 2 | CD37: 0 | CE37: 0 | CF37: 1 | CG37: 0 | CH37: 0 | CI37: 0 | CJ37: 0 | CK37: 0 | CL37: 0 | CM37: 0 | CN37: 0
A38: 34 | B38: Bernardo Gatti | C38: 27 | E38: 0 | I38: 0 | M38: 0 | Q38: 0 | U38: 0 | Y38: 0 | AC38: 0 | AG38: 0 | AJ38: 6 | AK38: 32 | AO38: 0 | AS38: 0 | AW38: 0 | AY38: -5 | AZ38: 0 | BA38: 0 | BB38: 0 | BC38: 0 | BD38: 0 | BE38: 2 | BF38: 1 | BG38: 0 | BH38: 1 | BI38: 0 | BJ38: 0 | BK38: 0 | BL38: 1 | BM38: 0 | BN38: 0 | BO38: 0 | BP38: 0 | BQ38: 0 | BR38: 0 | BS38: 0 | BT38: 0 | BU38: 0 | BV38: 0 | BW38: 0 | BX38: 2 | BY38: 0 | BZ38: 0 | CA38: 0 | CB38: 0 | CC38: 0 | CD38: 0 | CE38: 0 | CF38: 0 | CG38: 0 | CH38: 0 | CI38: 0 | CJ38: 0 | CK38: 0 | CL38: 0 | CM38: 0 | CN38: 0
A39: 35 | B39: Pedro Mello | C39: 15 | E39: 0 | H39: 29 | I39: 2 | M39: 0 | Q39: 0 | U39: 0 | X39: 18 | Y39: 13 | AC39: 0 | AG39: 0 | AK39: 0 | AO39: 0 | AS39: 0 | AW39: 0 | AZ39: 0 | BA39: 0 | BB39: 0 | BC39: 0 | BD39: 0 | BE39: 0 | BF39: 0 | BG39: 0 | BH39: 0 | BI39: 0 | BJ39: 0 | BK39: 0 | BL39: 0 | BM39: 0 | BN39: 0 | BO39: 0 | BP39: 0 | BQ39: 1 | BR39: 0 | BS39: 0 | BT39: 0 | BU39: 0 | BV39: 0 | BW39: 0 | BX39: 0 | BY39: 0 | BZ39: 0 | CA39: 0 | CB39: 1 | CC39: 0 | CD39: 0 | CE39: 0 | CF39: 0 | CG39: 0 | CH39: 0 | CI39: 0 | CJ39: 0 | CK39: 0 | CL39: 0 | CM39: 0 | CN39: 0
A40: 36 | B40: Izabella Rodrigues | C40: 5 | E40: 0 | I40: 0 | L40: 25 | M40: 6 | P40: 14 | Q40: 17 | U40: 0 | W40: -5 | Y40: 0 | AA40: -5 | AB40: 15 | AC40: 16 | AE40: -5 | AF40: 32 | AG40: 1 | AI40: SIM | AK40: 0 | AM40: -5 | AO40: 0 | AQ40: -5 | AS40: 0 | AU40: -5 | AW40: 0 | AY40: -5 | AZ40: 0 | BA40: 0 | BB40: 0 | BC40: 0 | BD40: 0 | BE40: 0 | BF40: 0 | BG40: 0 | BH40: 0 | BI40: 0 | BJ40: 0 | BK40: 0 | BL40: 0 | BM40: 1 | BN40: 1 | BO40: 0 | BP40: 0 | BQ40: 0 | BR40: 0 | BS40: 0 | BT40: 0 | BU40: 0 | BV40: 0 | BW40: 0 | BX40: 1 | BY40: 0 | BZ40: 0 | CA40: 0 | CB40: 0 | CC40: 0 | CD40: 0 | CE40: 1 | CF40: 0 | CG40: 0 | CH40: 0 | CI40: 0 | CJ40: 0 | CK40: 0 | CL40: 0 | CM40: 0 | CN40: 0
A41: 37 | B41: Andre Resende | C41: 0 | E41: 0 | I41: 0 | M41: 0 | Q41: 0 | U41: 0 | Y41: 0 | AC41: 0 | AF41: 20 | AG41: 11 | AK41: 0 | AM41: -5 | AO41: 0 | AQ41: -5 | AS41: 0 | AU41: -5 | AW41: 0 | AY41: -5 | AZ41: 0 | BA41: 0 | BB41: 0 | BC41: 0 | BD41: 0 | BE41: 0 | BF41: 0 | BG41: 0 | BH41: 0 | BI41: 0 | BJ41: 0 | BK41: 1 | BL41: 0 | BM41: 0 | BN41: 0 | BO41: 0 | BP41: 0 | BQ41: 0 | BR41: 0 | BS41: 1 | BT41: 0 | BU41: 1 | BV41: 0 | BW41: 0 | BX41: 0 | BY41: 2 | BZ41: 0 | CA41: 0 | CB41: 0 | CC41: 0 | CD41: 0 | CE41: 0 | CF41: 0 | CG41: 0 | CH41: 0 | CI41: 0 | CJ41: 0 | CK41: 0 | CL41: 0 | CM41: 0 | CN41: 0
A42: 38 | B42: SSSSS | C42: 0 | E42: 0 | I42: 0 | M42: 0 | Q42: 0 | U42: 0 | Y42: 0 | AC42: 0 | AG42: 0 | AK42: 0 | AO42: 0 | AS42: 0 | AW42: 0 | AZ42: 0 | BA42: 0 | BB42: 0 | BC42: 0 | BD42: 0 | BE42: 0 | BF42: 0 | BG42: 0 | BH42: 0 | BI42: 0 | BJ42: 0 | BK42: 0 | BL42: 0 | BM42: 0 | BN42: 0 | BO42: 1 | BP42: 0 | BQ42: 1 | BR42: 1 | BS42: 0 | BT42: 1 | BU42: 0 | BV42: 0 | BW42: 0 | BX42: 0 | BY42: 0 | BZ42: 0 | CA42: 0 | CB42: 0 | CC42: 0 | CD42: 0 | CE42: 0 | CF42: 0 | CG42: 0 | CH42: 0 | CI42: 0 | CJ42: 0 | CK42: 0 | CL42: 0 | CM42: 0 | CN42: 0
A43: 39 | B43: Wesley Camargos | C43: 0 | E43: 0 | I43: 0 | M43: 0 | O43: -5 | P43: 25 | Q43: 6 | U43: 0 | W43: -5 | Y43: 0 | AA43: -5 | AB43: 17 | AC43: 14 | AG43: 0 | AI43: -5 | AK43: 0 | AM43: -5 | AO43: 0 | AQ43: -5 | AR43: 20 | AS43: 11 | AW43: 0 | AY43: -5 | AZ43: 0 | BA43: 0 | BB43: 0 | BC43: 0 | BD43: 0 | BE43: 0 | BF43: 0 | BG43: 0 | BH43: 0 | BI43: 0 | BJ43: 0 | BK43: 0 | BL43: 0 | BM43: 0 | BN43: 0 | BO43: 0 | BP43: 1 | BQ43: 0 | BR43: 0 | BS43: 1 | BT43: 0 | BU43: 0 | BV43: 0 | BW43: 0 | BX43: 1 | BY43: 0 | BZ43: 0 | CA43: 0 | CB43: 0 | CC43: 0 | CD43: 0 | CE43: 0 | CF43: 0 | CG43: 0 | CH43: 0 | CI43: 0 | CJ43: 0 | CK43: 0 | CL43: 0 | CM43: 0 | CN43: 0
A44: 40 | B44: Hugo Denucci | C44: 0 | E44: 0 | G44: -5 | I44: 0 | K44: -5 | M44: 0 | Q44: 0 | S44: -5 | U44: 0 | Y44: 0 | AC44: 0 | AG44: 0 | AI44: -5 | AK44: 0 | AM44: -5 | AO44: 0 | AQ44: -5 | AS44: 0 | AU44: -5 | AW44: 0 | AY44: -5 | AZ44: 0 | BA44: 0 | BB44: 0 | BC44: 0 | BD44: 0 | BE44: 0 | BF44: 0 | BG44: 0 | BH44: 0 | BI44: 0 | BJ44: 0 | BK44: 0 | BL44: 0 | BM44: 0 | BN44: 0 | BO44: 0 | BP44: 0 | BQ44: 0 | BR44: 0 | BS44: 0 | BT44: 0 | BU44: 0 | BV44: 0 | BW44: 0 | BX44: 0 | BY44: 0 | BZ44: 0 | CA44: 0 | CB44: 0 | CC44: 0 | CD44: 0 | CE44: 0 | CF44: 0 | CG44: 0 | CH44: 0 | CI44: 0 | CJ44: 0 | CK44: 0 | CL44: 0 | CM44: 0 | CN44: 0
A45: 41 | B45: Gabriel Garabini | C45: 0 | E45: 0 | I45: 0 | M45: 0 | Q45: 0 | U45: 0 | Y45: 0 | AC45: 0 | AG45: 0 | AK45: 0 | AM45: -5 | AO45: 0 | AQ45: -5 | AS45: 0 | AU45: -5 | AW45: 0 | AY45: -5 | AZ45: 0 | BA45: 0 | BB45: 0 | BC45: 0 | BD45: 0 | BE45: 0 | BF45: 0 | BG45: 0 | BH45: 0 | BI45: 0 | BJ45: 0 | BK45: 0 | BL45: 0 | BM45: 0 | BN45: 0 | BO45: 0 | BP45: 0 | BQ45: 0 | BR45: 0 | BS45: 0 | BT45: 0 | BU45: 0 | BV45: 0 | BW45: 0 | BX45: 0 | BY45: 0 | BZ45: 0 | CA45: 0 | CB45: 0 | CC45: 0 | CD45: 0 | CE45: 0 | CF45: 0 | CG45: 0 | CH45: 0 | CI45: 0 | CJ45: 0 | CK45: 0 | CL45: 0 | CM45: 0 | CN45: 0
A46: 42 | C46: 0 | E46: 0 | I46: 0 | M46: 0 | Q46: 0 | U46: 0 | Y46: 0 | AC46: 0 | AG46: 0 | AK46: 0 | AO46: 0 | AS46: 0 | AW46: 0 | AZ46: 0 | BA46: 0 | BB46: 0 | BC46: 0 | BD46: 0 | BE46: 0 | BF46: 0 | BG46: 0 | BH46: 0 | BI46: 0 | BJ46: 0 | BK46: 0 | BL46: 0 | BM46: 0 | BN46: 0 | BO46: 0 | BP46: 0 | BQ46: 0 | BR46: 0 | BS46: 0 | BT46: 0 | BU46: 0 | BV46: 0 | BW46: 0 | BX46: 0 | BY46: 0 | BZ46: 0 | CA46: 0 | CB46: 0 | CC46: 0 | CD46: 0 | CE46: 0 | CF46: 0 | CG46: 0 | CH46: 0 | CI46: 0 | CJ46: 0 | CK46: 0 | CL46: 0 | CM46: 0 | CN46: 0
A47: 43 | C47: 0 | E47: 0 | I47: 0 | M47: 0 | Q47: 0 | U47: 0 | Y47: 0 | AC47: 0 | AG47: 0 | AK47: 0 | AO47: 0 | AS47: 0 | AW47: 0 | AZ47: 0 | BA47: 0 | BB47: 0 | BC47: 0 | BD47: 0 | BE47: 0 | BF47: 0 | BG47: 0 | BH47: 0 | BI47: 0 | BJ47: 0 | BK47: 0 | BL47: 0 | BM47: 0 | BN47: 0 | BO47: 0 | BP47: 0 | BQ47: 0 | BR47: 0 | BS47: 0 | BT47: 0 | BU47: 0 | BV47: 0 | BW47: 0 | BX47: 0 | BY47: 0 | BZ47: 0 | CA47: 0 | CB47: 0 | CC47: 0 | CD47: 0 | CE47: 0 | CF47: 0 | CG47: 0 | CH47: 0 | CI47: 0 | CJ47: 0 | CK47: 0 | CL47: 0 | CM47: 0 | CN47: 0
A48: 44 | C48: 0 | E48: 0 | I48: 0 | M48: 0 | Q48: 0 | U48: 0 | Y48: 0 | AC48: 0 | AG48: 0 | AK48: 0 | AO48: 0 | AS48: 0 | AW48: 0 | AZ48: 0 | BA48: 0 | BB48: 0 | BC48: 0 | BD48: 0 | BE48: 0 | BF48: 0 | BG48: 0 | BH48: 0 | BI48: 0 | BJ48: 0 | BK48: 0 | BL48: 0 | BM48: 0 | BN48: 0 | BO48: 0 | BP48: 0 | BQ48: 0 | BR48: 0 | BS48: 0 | BT48: 0 | BU48: 0 | BV48: 0 | BW48: 0 | BX48: 0 | BY48: 0 | BZ48: 0 | CA48: 0 | CB48: 0 | CC48: 0 | CD48: 0 | CE48: 0 | CF48: 0 | CG48: 0 | CH48: 0 | CI48: 0 | CJ48: 0 | CK48: 0 | CL48: 0 | CM48: 0 | CN48: 0
A49: 45 | C49: 0 | E49: 0 | I49: 0 | M49: 0 | Q49: 0 | U49: 0 | Y49: 0 | AC49: 0 | AG49: 0 | AK49: 0 | AO49: 0 | AS49: 0 | AW49: 0 | AZ49: 0 | BA49: 0 | BB49: 0 | BC49: 0 | BD49: 0 | BE49: 0 | BF49: 0 | BG49: 0 | BH49: 0 | BI49: 0 | BJ49: 0 | BK49: 0 | BL49: 0 | BM49: 0 | BN49: 0 | BO49: 0 | BP49: 0 | BQ49: 0 | BR49: 0 | BS49: 0 | BT49: 0 | BU49: 0 | BV49: 0 | BW49: 0 | BX49: 0 | BY49: 0 | BZ49: 0 | CA49: 0 | CB49: 0 | CC49: 0 | CD49: 0 | CE49: 0 | CF49: 0 | CG49: 0 | CH49: 0 | CI49: 0 | CJ49: 0 | CK49: 0 | CL49: 0 | CM49: 0 | CN49: 0
M53: 1
L55: 29

Sheet Class. elimin. 2 piores res
A1: 2022 | E1: OK | I1: OK | M1: OK | Q1: OK | U1: OK | Y1: OK | AC1: OK | AG1: OK | AK1: OK | AO1: OK | AS1: OK | AW1: OK
D2: 1ª etapa | H2: 2ª etapa | L2: 3ª etapa | P2: 4ª etapa | T2: 5ª etapa | X2: 6ª etapa | AB2: 7ª etapa | AF2: 8ª etapa | AJ2: 9ª etapa | AN2: 10ª etapa | AR2: 11ª etapa | AV2: 12ª etapa
L3: 13/03/2022 - 10:00 - Domingo
B4: Nome do (a) Piloto (a) | C4: Pontuação Geral | D4: Posição | E4: Pontos | F4: Bônus | G4: Penalidade | H4: Posição | I4: Pontos | J4: Bônus | K4: Penalidade | L4: Posição | M4: Pontos | N4: Bônus | O4: Penalidade | P4: Posição | Q4: Pontos | R4: Bônus | S4: Penalidade | T4: Posição | U4: Pontos | V4: Bônus | W4: Penalidade | X4: Posição | Y4: Pontos | Z4: Bônus | AA4: Penalidade | AB4: Posição | AC4: Pontos | AD4: Bônus | AE4: Penalidade | AF4: Posição | AG4: Pontos | AH4: Bônus | AI4: Penalidade | AJ4: Posição | AK4: Pontos | AL4: Bônus | AM4: Penalidade | AN4: Posição | AO4: Pontos | AP4: Bônus | AQ4: Penalidade | AR4: Posição | AS4: Pontos | AT4: Bônus | AU4: Penalidade | AV4: Posição | AW4: Pontos | AX4: Bônus | AY4: Penalidade | AZ4: 1º LUGAR | BA4: 2º LUGAR | BB4: 3º LUGAR | BC4: 4º LUGAR | BD4: 5º LUGAR | BE4: 6º LUGAR | BF4: 7º LUGAR | BG4: 8º LUGAR | BH4: 9º LUGAR | BI4: 10º LUGAR | BJ4: 11º LUGAR | BK4: 12º LUGAR | BL4: 13º LUGAR | BM4: 14º LUGAR | BN4: 15º LUGAR | BO4: 16º LUGAR | BP4: 17º LUGAR | BQ4: 18º LUGAR | BR4: 19º LUGAR | BS4: 20º LUGAR | BT4: 21º LUGAR | BU4: 22º LUGAR | BV4: 23º LUGAR | BW4: 24º LUGAR | BX4: 25º LUGAR | BY4: 26º LUGAR | BZ4: 27º LUGAR | CA4: 28º LUGAR | CB4: 29º LUGAR | CC4: 30º LUGAR | CD4: 31º LUGAR | CE4: 32º LUGAR | CF4: 33º LUGAR | CG4: 34º LUGAR | CH4: 35º LUGAR | CI4: 36º LUGAR | CJ4: 37º LUGAR | CK4: 38º LUGAR | CL4: 39º LUGAR | CM4: 40º LUGAR | CN4: 41º LUGAR
A5: 1 | B5: Marcelo Campos | C5: 378 | D5: 2 | E5: 41 | F5: 1 | H5: 8 | I5: 28 | L5: 4 | M5: 36 | P5: 1 | Q5: 45 | T5: 5 | U5: 34 | X5: 20 | Y5: 11* | Z5: 1 | AB5: 2 | AC5: 41 | AD5: 1 | AF5: 5 | AG5: 34 | AJ5: 3 | AK5: 38 | AN5: 6 | AO5: 32 | AR5: 1 | AS5: 45 | AT5: 1 | AV5: 10 | AW5: 24* | AZ5: 2 | BA5: 2 | BB5: 1 | BC5: 1 | BD5: 2 | BE5: 1 | BF5: 0 | BG5: 1 | BH5: 0 | BI5: 1 | BJ5: 0 | BK5: 0 | BL5: 0 | BM5: 0 | BN5: 0 | BO5: 0 | BP5: 0 | BQ5: 0 | BR5: 0 | BS5: 1 | BT5: 0 | BU5: 0 | BV5: 0 | BW5: 0 | BX5: 0 | BY5: 0 | BZ5: 0 | CA5: 0 | CB5: 0 | CC5: 0 | CD5: 0 | CE5: 0 | CF5: 0 | CG5: 0 | CH5: 0 | CI5: 0 | CJ5: 0 | CK5: 0 | CL5: 0 | CM5: 0 | CN5: 0
A6: 2 | B6: Daniel Nahum | C6: 378 | D6: 1 | E6: 45 | H6: 4 | I6: 36 | L6: 5 | M6: 34 | P6: 3 | Q6: 38 | R6: 1 | T6: 23 | U6: 8* | X6: 3 | Y6: 38 | AB6: 3 | AC6: 38 | AF6: 7 | AG6: 30 | AJ6: 4 | AK6: 36 | AN6: 4 | AO6: 36 | AR6: 23 | AS6: 8* | AV6: 1 | AW6: 45 | AX6: 1 | AZ6: 2 | BA6: 0 | BB6: 3 | BC6: 3 | BD6: 1 | BE6: 0 | BF6: 1 | BG6: 0 | BH6: 0 | BI6: 0 | BJ6: 0 | BK6: 0 | BL6: 0 | BM6: 0 | BN6: 0 | BO6: 0 | BP6: 0 | BQ6: 0 | BR6: 0 | BS6: 0 | BT6: 0 | BU6: 0 | BV6: 2 | BW6: 0 | BX6: 0 | BY6: 0 | BZ6: 0 | CA6: 0 | CB6: 0 | CC6: 0 | CD6: 0 | CE6: 0 | CF6: 0 | CG6: 0 | CH6: 0 | CI6: 0 | CJ6: 0 | CK6: 0 | CL6: 0 | CM6: 0 | CN6: 0
A7: 3 | B7: Wesley Bambirra | C7: 350 | D7: 10 | E7: 24 | H7: 1 | I7: 45 | L7: 3 | M7: 38 | P7: 5 | Q7: 34 | T7: 2 | U7: 41 | X7: 1 | Y7: 45 | AB7: 12 | AC7: 20 | AF7: 2 | AG7: 41 | AJ7: 14 | AK7: 17* | AO7: 0* | AR7: 8 | AS7: 28 | AV7: 5 | AW7: 34 | AZ7: 2 | BA7: 2 | BB7: 1 | BC7: 0 | BD7: 2 | BE7: 0 | BF7: 0 | BG7: 1 | BH7: 0 | BI7: 1 | BJ7: 0 | BK7: 1 | BL7: 0 | BM7: 1 | BN7: 0 | BO7: 0 | BP7: 0 | BQ7: 0 | BR7: 0 | BS7: 0 | BT7: 0 | BU7: 0 | BV7: 0 | BW7: 0 | BX7: 0 | BY7: 0 | BZ7: 0 | CA7: 0 | CB7: 0 | CC7: 0 | CD7: 0 | CE7: 0 | CF7: 0 | CG7: 0 | CH7: 0 | CI7: 0 | CJ7: 0 | CK7: 0 | CL7: 0 | CM7: 0 | CN7: 0
A8: 4 | B8: Wesley Canuto | C8: 313 | D8: 28 | E8: 3* | H8: 10 | I8: 24 | L8: 12 | M8: 20 | P8: 7 | Q8: 30 | T8: 10 | U8: 24 | X8: 5 | Y8: 34 | AB8: 8 | AC8: 28 | AF8: 3 | AG8: 38 | AJ8: 16 | AK8: 15* | AN8: 2 | AO8: 41 | AR8: 4 | AS8: 36 | AV8: 3 | AW8: 38 | AZ8: 0 | BA8: 1 | BB8: 2 | BC8: 1 | BD8: 1 | BE8: 0 | BF8: 1 | BG8: 1 | BH8: 0 | BI8: 2 | BJ8: 0 | BK8: 1 | BL8: 0 | BM8: 0 | BN8: 0 | BO8: 1 | BP8: 0 | BQ8: 0 | BR8: 0 | BS8: 0 | BT8: 0 | BU8: 0 | BV8: 0 | BW8: 0 | BX8: 0 | BY8: 0 | BZ8: 0 | CA8: 1 | CB8: 0 | CC8: 0 | CD8: 0 | CE8: 0 | CF8: 0 | CG8: 0 | CH8: 0 | CI8: 0 | CJ8: 0 | CK8: 0 | CL8: 0 | CM8: 0 | CN8: 0
A9: 5 | B9: Jarbas Reis | C9: 296 | D9: 6 | E9: 32 | H9: 6 | I9: 32 | L9: 21 | M9: 10* | P9: 11 | Q9: 22 | T9: 4 | U9: 36 | X9: 8 | Y9: 28 | AB9: 11 | AC9: 22 | AF9: 13 | AG9: 18* | AJ9: 8 | AK9: 28 | AN9: 7 | AO9: 30 | AR9: 7 | AS9: 30 | AV9: 4 | AW9: 36 | AZ9: 0 | BA9: 0 | BB9: 0 | BC9: 2 | BD9: 0 | BE9: 2 | BF9: 2 | BG9: 2 | BH9: 0 | BI9: 0 | BJ9: 2 | BK9: 0 | BL9: 1 | BM9: 0 | BN9: 0 | BO9: 0 | BP9: 0 | BQ9: 0 | BR9: 0 | BS9: 0 | BT9: 1 | BU9: 0 | BV9: 0 | BW9: 0 | BX9: 0 | BY9: 0 | BZ9: 0 | CA9: 0 | CB9: 0 | CC9: 0 | CD9: 0 | CE9: 0 | CF9: 0 | CG9: 0 | CH9: 0 | CI9: 0 | CJ9: 0 | CK9: 0 | CL9: 0 | CM9: 0 | CN9: 0
A10: 6 | B10: Marcelo Clemente | C10: 291 | D10: 27 | E10: 4* | H10: 17 | I10: 14 | J10: 1 | L10: 11 | M10: 22 | P10: 15 | Q10: 16 | S10: SIM | T10: 1 | U10: 45 | V10: 1 | X10: 9 | Y10: 26 | AB10: 1 | AC10: 45 | AF10: 1 | AG10: 45 | AJ10: 7 | AK10: 30 | AL10: 1 | AM10: -5 | AO10: 0* | AR10: 22 | AS10: 9 | AV10: 2 | AW10: 41 | AZ10: 3 | BA10: 1 | BB10: 0 | BC10: 0 | BD10: 0 | BE10: 0 | BF10: 1 | BG10: 0 | BH10: 1 | BI10: 0 | BJ10: 1 | BK10: 0 | BL10: 0 | BM10: 0 | BN10: 1 | BO10: 0 | BP10: 1 | BQ10: 0 | BR10: 0 | BS10: 0 | BT10: 0 | BU10: 1 | BV10: 0 | BW10: 0 | BX10: 0 | BY10: 0 | BZ10: 1 | CA10: 0 | CB10: 0 | CC10: 0 | CD10: 0 | CE10: 0 | CF10: 0 | CG10: 0 | CH10: 0 | CI10: 0 | CJ10: 0 | CK10: 0 | CL10: 0 | CM10: 0 | CN10: 0
A11: 7 | B11: Alexandre Melillo | C11: 286 | D11: 11 | E11: 22 | H11: 12 | I11: 20 | L11: 17 | M11: 14* | P11: 2 | Q11: 41 | T11: 6 | U11: 32 | X11: 2 | Y11: 41 | AB11: 4 | AC11: 36 | AF11: 11 | AG11: 22 | AJ11: 17 | AK11: 14 | AM11: SIM | AN11: 5 | AO11: 34 | AR11: 10 | AS11: 24 | AW11: 0* | AZ11: 0 | BA11: 2 | BB11: 0 | BC11: 1 | BD11: 1 | BE11: 1 | BF11: 0 | BG11: 0 | BH11: 0 | BI11: 1 | BJ11: 2 | BK11: 1 | BL11: 0 | BM11: 0 | BN11: 0 | BO11: 0 | BP11: 2 | BQ11: 0 | BR11: 0 | BS11: 0 | BT11: 0 | BU11: 0 | BV11: 0 | BW11: 0 | BX11: 0 | BY11: 0 | BZ11: 0 | CA11: 0 | CB11: 0 | CC11: 0 | CD11: 0 | CE11: 0 | CF11: 0 | CG11: 0 | CH11: 0 | CI11: 0 | CJ11: 0 | CK11: 0 | CL11: 0 | CM11: 0 | CN11: 0
A12: 8 | B12: Marcelo Marcondes | C12: 238 | D12: 21 | E12: 10 | G12: SIM | H12: 7 | I12: 30 | L12: 1 | M12: 45 | P12: 8 | Q12: 28 | T12: 24 | U12: 7 | X12: 17 | Y12: 14 | AA12: SIM | AC12: 0* | AE12: -5 | AF12: 10 | AG12: 24 | AJ12: 19 | AK12: 12 | AN12: 1 | AO12: 45 | AP12: 1 | AR12: 26 | AS12: 5* | AV12: 6 | AW12: 32 | AY12: -5 | AZ12: 2 | BA12: 0 | BB12: 0 | BC12: 0 | BD12: 0 | BE12: 1 | BF12: 1 | BG12: 1 | BH12: 0 | BI12: 1 | BJ12: 0 | BK12: 0 | BL12: 0 | BM12: 0 | BN12: 0 | BO12: 0 | BP12: 1 | BQ12: 0 | BR12: 1 | BS12: 0 | BT12: 1 | BU12: 0 | BV12: 0 | BW12: 1 | BX12: 0 | BY12: 1 | BZ12: 0 | CA12: 0 | CB12: 0 | CC12: 0 | CD12: 0 | CE12: 0 | CF12: 0 | CG12: 0 | CH12: 0 | CI12: 0 | CJ12: 0 | CK12: 0 | CL12: 0 | CM12: 0 | CN12: 0
A13: 9 | B13: Guilherme Alves | C13: 234 | D13: 9 | E13: 26 | H13: 11 | I13: 22 | L13: 10 | M13: 24 | P13: 16 | Q13: 15* | T13: 11 | U13: 22 | X13: 16 | Y13: 15 | AA13: SIM | AB13: 5 | AC13: 34 | AF13: 4 | AG13: 36 | AJ13: 11 | AK13: 22 | AO13: 0* | AR13: 6 | AS13: 32 | AV13: 37 | AW13: 1 | AY13: SIM | AZ13: 0 | BA13: 0 | BB13: 0 | BC13: 1 | BD13: 1 | BE13: 1 | BF13: 0 | BG13: 0 | BH13: 1 | BI13: 1 | BJ13: 3 | BK13: 0 | BL13: 0 | BM13: 0 | BN13: 0 | BO13: 2 | BP13: 0 | BQ13: 0 | BR13: 0 | BS13: 0 | BT13: 0 | BU13: 0 | BV13: 0 | BW13: 0 | BX13: 0 | BY13: 0 | BZ13: 0 | CA13: 0 | CB13: 0 | CC13: 0 | CD13: 0 | CE13: 0 | CF13: 0 | CG13: 0 | CH13: 0 | CI13: 0 | CJ13: 1 | CK13: 0 | CL13: 0 | CM13: 0 | CN13: 0
A14: 10 | B14: Marcelo Pereira | C14: 231 | D14: 3 | E14: 38 | H14: 3 | I14: 38 | L14: 2 | M14: 41 | N14: 1 | P14: 13 | Q14: 18 | S14: SIM | T14: 13 | U14: 18* | Y14: 0* | AB14: 24 | AC14: 7 | AE14: SIM | AF14: 9 | AG14: 26 | AJ14: 1 | AK14: 45 | AN14: 26 | AO14: 5 | AQ14: SIM | AR14: 24 | AS14: 7 | AU14: SIM | AV14: 26 | AW14: 5 | AY14: SIM | AZ14: 1 | BA14: 1 | BB14: 2 | BC14: 0 | BD14: 0 | BE14: 0 | BF14: 0 | BG14: 0 | BH14: 1 | BI14: 0 | BJ14: 0 | BK14: 0 | BL14: 2 | BM14: 0 | BN14: 0 | BO14: 0 | BP14: 0 | BQ14: 0 | BR14: 0 | BS14: 0 | BT14: 0 | BU14: 0 | BV14: 0 | BW14: 2 | BX14: 0 | BY14: 2 | BZ14: 0 | CA14: 0 | CB14: 0 | CC14: 0 | CD14: 0 | CE14: 0 | CF14: 0 | CG14: 0 | CH14: 0 | CI14: 0 | CJ14: 0 | CK14: 0 | CL14: 0 | CM14: 0 | CN14: 0
A15: 11 | B15: Maurício Júnior | C15: 231 | D15: 13 | E15: 18 | H15: 9 | I15: 26 | L15: 9 | M15: 26 | P15: 10 | Q15: 24 | T15: 12 | U15: 20 | X15: 22 | Y15: 9 | AA15: SIM | AB15: 6 | AC15: 32 | AG15: 0* | AJ15: 18 | AK15: 13* | AN15: 3 | AO15: 38 | AR15: 3 | AS15: 38 | AV15: 0 | AW15: 0 | AZ15: 0 | BA15: 0 | BB15: 2 | BC15: 0 | BD15: 0 | BE15: 1 | BF15: 0 | BG15: 0 | BH15: 2 | BI15: 1 | BJ15: 0 | BK15: 1 | BL15: 1 | BM15: 0 | BN15: 0 | BO15: 0 | BP15: 0 | BQ15: 1 | BR15: 0 | BS15: 0 | BT15: 0 | BU15: 1 | BV15: 0 | BW15: 0 | BX15: 0 | BY15: 0 | BZ15: 0 | CA15: 0 | CB15: 0 | CC15: 0 | CD15: 0 | CE15: 0 | CF15: 0 | CG15: 0 | CH15: 0 | CI15: 0 | CJ15: 0 | CK15: 0 | CL15: 0 | CM15: 0 | CN15: 0
A16: 12 | B16: Eduardo Henrique | C16: 228 | E16: 0* | H16: 42 | I16: 1 | K16: SIM | L16: 14 | M16: 17 | P16: 12 | Q16: 20 | T16: 3 | U16: 38 | X16: 4 | Y16: 36 | AB16: 9 | AC16: 26 | AF16: 12 | AG16: 20 | AJ16: 2 | AK16: 41 | AO16: 0* | AR16: 5 | AS16: 34 | AW16: 0 | AY16: -5 | AZ16: 0 | BA16: 1 | BB16: 1 | BC16: 1 | BD16: 1 | BE16: 0 | BF16: 0 | BG16: 0 | BH16: 1 | BI16: 0 | BJ16: 0 | BK16: 2 | BL16: 0 | BM16: 1 | BN16: 0 | BO16: 0 | BP16: 0 | BQ16: 0 | BR16: 0 | BS16: 0 | BT16: 0 | BU16: 0 | BV16: 0 | BW16: 0 | BX16: 0 | BY16: 0 | BZ16: 0 | CA16: 0 | CB16: 0 | CC16: 0 | CD16: 0 | CE16: 0 | CF16: 0 | CG16: 0 | CH16: 0 | CI16: 0 | CJ16: 0 | CK16: 0 | CL16: 0 | CM16: 0 | CN16: 0
A17: 13 | B17: Rodrigo Ricardo | C17: 190 | D17: 14 | E17: 17 | H17: 15 | I17: 16 | L17: 13 | M17: 18 | P17: 20 | Q17: 11* | T17: 14 | U17: 17 | X17: 13 | Y17: 18 | AC17: 0* | AF17: 15 | AG17: 16 | AJ17: 10 | AK17: 24 | AN17: 11 | AO17: 22 | AR17: 11 | AS17: 22 | AV17: 12 | AW17: 20 | AZ17: 0 | BA17: 0 | BB17: 0 | BC17: 0 | BD17: 0 | BE17: 0 | BF17: 0 | BG17: 0 | BH17: 0 | BI17: 1 | BJ17: 2 | BK17: 1 | BL17: 2 | BM17: 2 | BN17: 2 | BO17: 0 | BP17: 0 | BQ17: 0 | BR17: 0 | BS17: 1 | BT17: 0 | BU17: 0 | BV17: 0 | BW17: 0 | BX17: 0 | BY17: 0 | BZ17: 0 | CA17: 0 | CB17: 0 | CC17: 0 | CD17: 0 | CE17: 0 | CF17: 0 | CG17: 0 | CH17: 0 | CI17: 0 | CJ17: 0 | CK17: 0 | CL17: 0 | CM17: 0 | CN17: 0
A18: 14 | B18: Marcelo Chagas | C18: 186 | D18: 19 | E18: 12 | H18: 0 | I18: 0 | K18: SIM | L18: 8 | M18: 28 | Q18: 0* | S18: -5 | T18: 8 | U18: 28 | X18: 10 | Y18: 24 | AB18: 13 | AC18: 18 | AF18: 23 | AG18: 8 | AK18: 0* | AN18: 14 | AO18: 17 | AR18: 2 | AS18: 41 | AV18: 16 | AW18: 15 | AZ18: 0 | BA18: 1 | BB18: 0 | BC18: 0 | BD18: 0 | BE18: 0 | BF18: 0 | BG18: 2 | BH18: 0 | BI18: 1 | BJ18: 0 | BK18: 0 | BL18: 1 | BM18: 1 | BN18: 0 | BO18: 1 | BP18: 0 | BQ18: 0 | BR18: 1 | BS18: 0 | BT18: 0 | BU18: 0 | BV18: 1 | BW18: 0 | BX18: 0 | BY18: 0 | BZ18: 0 | CA18: 0 | CB18: 0 | CC18: 0 | CD18: 0 | CE18: 0 | CF18: 0 | CG18: 0 | CH18: 0 | CI18: 0 | CJ18: 0 | CK18: 0 | CL18: 0 | CM18: 0 | CN18: 0
A19: 15 | B19: Rodrigo Mercadante | C19: 135 | D19: 7 | E19: 30 | H19: 5 | I19: 34 | M19: 0* | Q19: 0* | T19: 20 | U19: 11 | W19: SIM | X19: 7 | Y19: 30 | AB19: 7 | AC19: 30 | AG19: 0 | AK19: 0 | AO19: 0 | AS19: 0 | AW19: 0 | AZ19: 0 | BA19: 0 | BB19: 0 | BC19: 0 | BD19: 1 | BE19: 0 | BF19: 3 | BG19: 0 | BH19: 0 | BI19: 0 | BJ19: 0 | BK19: 0 | BL19: 0 | BM19: 0 | BN19: 0 | BO19: 0 | BP19: 0 | BQ19: 0 | BR19: 0 | BS19: 1 | BT19: 0 | BU19: 0 | BV19: 0 | BW19: 0 | BX19: 0 | BY19: 0 | BZ19: 0 | CA19: 0 | CB19: 0 | CC19: 0 | CD19: 0 | CE19: 0 | CF19: 0 | CG19: 0 | CH19: 0 | CI19: 0 | CJ19: 0 | CK19: 0 | CL19: 0 | CM19: 0 | CN19: 0
A20: 16 | B20: Vitor Gatti | C20: 127 | E20: 0* | I20: 0* | M20: 0 | Q20: 0 | U20: 0 | Y20: 0 | AC20: 0 | AF20: 14 | AG20: 17 | AJ20: 9 | AK20: 26 | AN20: 8 | AO20: 28 | AR20: 9 | AS20: 26 | AV20: 7 | AW20: 30 | AZ20: 0 | BA20: 0 | BB20: 0 | BC20: 0 | BD20: 0 | BE20: 0 | BF20: 1 | BG20: 1 | BH20: 2 | BI20: 0 | BJ20: 0 | BK20: 0 | BL20: 0 | BM20: 1 | BN20: 0 | BO20: 0 | BP20: 0 | BQ20: 0 | BR20: 0 | BS20: 0 | BT20: 0 | BU20: 0 | BV20: 0 | BW20: 0 | BX20: 0 | BY20: 0 | BZ20: 0 | CA20: 0 | CB20: 0 | CC20: 0 | CD20: 0 | CE20: 0 | CF20: 0 | CG20: 0 | CH20: 0 | CI20: 0 | CJ20: 0 | CK20: 0 | CL20: 0 | CM20: 0 | CN20: 0
A21: 17 | B21: Renato Amaral | C21: 116 | D21: 15 | E21: 16 | H21: 24 | I21: 7 | L21: 22 | M21: 9 | O21: SIM | P21: 19 | Q21: 12 | T21: 17 | U21: 14 | Y21: 0* | AC21: 0* | AE21: -5 | AG21: 0 | AI21: -5 | AJ21: 5 | AK21: 34 | AN21: 10 | AO21: 24 | AR21: 21 | AS21: 10 | AW21: 0 | AZ21: 0 | BA21: 0 | BB21: 0 | BC21: 0 | BD21: 1 | BE21: 0 | BF21: 0 | BG21: 0 | BH21: 0 | BI21: 1 | BJ21: 0 | BK21: 0 | BL21: 0 | BM21: 0 | BN21: 1 | BO21: 0 | BP21: 1 | BQ21: 0 | BR21: 1 | BS21: 0 | BT21: 1 | BU21: 1 | BV21: 0 | BW21: 1 | BX21: 0 | BY21: 0 | BZ21: 0 | CA21: 0 | CB21: 0 | CC21: 0 | CD21: 0 | CE21: 0 | CF21: 0 | CG21: 0 | CH21: 0 | CI21: 0 | CJ21: 0 | CK21: 0 | CL21: 0 | CM21: 0 | CN21: 0
A22: 18 | B22: Jucimar Vieira | C22: 115 | E22: 0* | H22: 20 | I22: 11 | L22: 27 | M22: 4 | P22: 23 | Q22: 8 | T22: 18 | U22: 13 | X22: 19 | Y22: 12 | AB22: 16 | AC22: 15 | AF22: 19 | AG22: 12 | AK22: 0* | AN22: 24 | AO22: 7 | AQ22: SIM | AR22: 16 | AS22: 15 | AV22: 13 | AW22: 18 | AZ22: 0 | BA22: 0 | BB22: 0 | BC22: 0 | BD22: 0 | BE22: 0 | BF22: 0 | BG22: 0 | BH22: 0 | BI22: 0 | BJ22: 0 | BK22: 0 | BL22: 1 | BM22: 0 | BN22: 0 | BO22: 2 | BP22: 0 | BQ22: 1 | BR22: 2 | BS22: 1 | BT22: 0 | BU22: 0 | BV22: 1 | BW22: 1 | BX22: 0 | BY22: 0 | BZ22: 1 | CA22: 0 | CB22: 0 | CC22: 0 | CD22: 0 | CE22: 0 | CF22: 0 | CG22: 0 | CH22: 0 | CI22: 0 | CJ22: 0 | CK22: 0 | CL22: 0 | CM22: 0 | CN22: 0
A23: 19 | B23: Hélio Chagas | C23: 112 | D23: 22 | E23: 9 | H23: 23 | I23: 8 | L23: 23 | M23: 8 | Q23: 0* | S23: -5 | T23: 21 | U23: 10 | X23: 15 | Y23: 16 | AB23: 26 | AC23: 5 | AE23: SIM | AF23: 17 | AG23: 14 | AK23: 0* | AN23: 13 | AO23: 18 | AR23: 19 | AS23: 12 | AV23: 14 | AW23: 17 | AZ23: 0 | BA23: 0 | BB23: 0 | BC23: 0 | BD23: 0 | BE23: 0 | BF23: 0 | BG23: 0 | BH23: 0 | BI23: 0 | BJ23: 0 | BK23: 0 | BL23: 1 | BM23: 1 | BN23: 1 | BO23: 0 | BP23: 1 | BQ23: 0 | BR23: 1 | BS23: 0 | BT23: 1 | BU23: 1 | BV23: 2 | BW23: 0 | BX23: 0 | BY23: 1 | BZ23: 0 | CA23: 0 | CB23: 0 | CC23: 0 | CD23: 0 | CE23: 0 | CF23: 0 | CG23: 0 | CH23: 0 | CI23: 0 | CJ23: 0 | CK23: 0 | CL23: 0 | CM23: 0 | CN23: 0
A24: 20 | B24: Cláudio Dumont | C24: 102 | D24: 8 | E24: 28 | H24: 2 | I24: 41 | L24: 15 | M24: 16 | P24: 4 | Q24: 36 | T24: 25 | U24: 6 | Y24: 0* | AC24: 0* | AE24: -5 | AG24: 0 | AI24: -5 | AK24: 0 | AM24: -5 | AO24: 0 | AQ24: -5 | AS24: 0 | AU24: -5 | AW24: 0 | AZ24: 0 | BA24: 1 | BB24: 0 | BC24: 1 | BD24: 0 | BE24: 0 | BF24: 0 | BG24: 1 | BH24: 0 | BI24: 0 | BJ24: 0 | BK24: 0 | BL24: 0 | BM24: 0 | BN24: 1 | BO24: 0 | BP24: 0 | BQ24: 0 | BR24: 0 | BS24: 0 | BT24: 0 | BU24: 0 | BV24: 0 | BW24: 0 | BX24: 1 | BY24: 0 | BZ24: 0 | CA24: 0 | CB24: 0 | CC24: 0 | CD24: 0 | CE24: 0 | CF24: 0 | CG24: 0 | CH24: 0 | CI24: 0 | CJ24: 0 | CK24: 0 | CL24: 0 | CM24: 0 | CN24: 0
A25: 21 | B25: Raphael Reis | C25: 97 | D25: 12 | E25: 20 | H25: 22 | I25: 9 | L25: 18 | M25: 13 | P25: 18 | Q25: 13 | U25: 0* | Y25: 0* | AC25: 0 | AG25: 0 | AK25: 0 | AO25: 0 | AR25: 12 | AS25: 20 | AV25: 11 | AW25: 22 | AZ25: 0 | BA25: 0 | BB25: 0 | BC25: 0 | BD25: 0 | BE25: 0 | BF25: 0 | BG25: 0 | BH25: 0 | BI25: 0 | BJ25: 1 | BK25: 2 | BL25: 0 | BM25: 0 | BN25: 0 | BO25: 0 | BP25: 0 | BQ25: 2 | BR25: 0 | BS25: 0 | BT25: 0 | BU25: 1 | BV25: 0 | BW25: 0 | BX25: 0 | BY25: 0 | BZ25: 0 | CA25: 0 | CB25: 0 | CC25: 0 | CD25: 0 | CE25: 0 | CF25: 0 | CG25: 0 | CH25: 0 | CI25: 0 | CJ25: 0 | CK25: 0 | CL25: 0 | CM25: 0 | CN25: 0
A26: 22 | B26: Felipe Bouhid | C26: 96 | E26: 0* | I26: 0* | M26: 0 | Q26: 0 | U26: 0 | Y26: 0 | AC26: 0 | AF26: 18 | AG26: 13 | AJ26: 12 | AK26: 20 | AN26: 12 | AO26: 20 | AR26: 14 | AS26: 17 | AV26: 9 | AW26: 26 | AZ26: 0 | BA26: 0 | BB26: 0 | BC26: 0 | BD26: 0 | BE26: 0 | BF26: 0 | BG26: 0 | BH26: 1 | BI26: 0 | BJ26: 0 | BK26: 2 | BL26: 0 | BM26: 1 | BN26: 0 | BO26: 1 | BP26: 0 | BQ26: 1 | BR26: 1 | BS26: 0 | BT26: 0 | BU26: 0 | BV26: 0 | BW26: 0 | BX26: 0 | BY26: 0 | BZ26: 0 | CA26: 0 | CB26: 1 | CC26: 0 | CD26: 0 | CE26: 0 | CF26: 0 | CG26: 0 | CH26: 0 | CI26: 0 | CJ26: 0 | CK26: 0 | CL26: 0 | CM26: 0 | CN26: 0
A27: 23 | B27: Cláudio Naves | C27: 95 | D27: 24 | E27: 7 | H27: 27 | I27: 4 | L27: 24 | M27: 7 | P27: 33 | Q27: 1 | S27: SIM | T27: 44 | U27: 1 | W27: SIM | X27: 14 | Y27: 17 | AB27: 14 | AC27: 17 | AG27: 0* | AK27: 0* | AO27: 0 | AR27: 18 | AS27: 13 | AV27: 8 | AW27: 28 | AZ27: 0 | BA27: 0 | BB27: 0 | BC27: 0 | BD27: 0 | BE27: 0 | BF27: 0 | BG27: 1 | BH27: 0 | BI27: 0 | BJ27: 0 | BK27: 0 | BL27: 0 | BM27: 2 | BN27: 0 | BO27: 0 | BP27: 0 | BQ27: 1 | BR27: 0 | BS27: 0 | BT27: 0 | BU27: 0 | BV27: 0 | BW27: 2 | BX27: 0 | BY27: 0 | BZ27: 1 | CA27: 0 | CB27: 0 | CC27: 0 | CD27: 0 | CE27: 0 | CF27: 1 | CG27: 0 | CH27: 0 | CI27: 0 | CJ27: 0 | CK27: 0 | CL27: 0 | CM27: 0 | CN27: 0
A28: 24 | B28: Tati Marcondes | C28: 90 | D28: 23 | E28: 8 | G28: SIM | H28: 26 | I28: 5 | L28: 20 | M28: 11 | P28: 22 | Q28: 9 | T28: 19 | U28: 12 | X28: 44 | Y28: 1 | AA28: SIM | AC28: 0* | AF28: 21 | AG28: 10 | AJ28: 13 | AK28: 18 | AO28: 0* | AR28: 17 | AS28: 14 | AV28: 29 | AW28: 2 | AY28: SIM | AZ28: 0 | BA28: 0 | BB28: 0 | BC28: 0 | BD28: 0 | BE28: 0 | BF28: 0 | BG28: 0 | BH28: 0 | BI28: 0 | BJ28: 0 | BK28: 0 | BL28: 1 | BM28: 0 | BN28: 0 | BO28: 0 | BP28: 1 | BQ28: 0 | BR28: 1 | BS28: 1 | BT28: 1 | BU28: 1 | BV28: 1 | BW28: 0 | BX28: 0 | BY28: 1 | BZ28: 0 | CA28: 0 | CB28: 1 | CC28: 0 | CD28: 0 | CE28: 0 | CF28: 0 | CG28: 0 | CH28: 0 | CI28: 0 | CJ28: 0 | CK28: 0 | CL28: 0 | CM28: 0 | CN28: 0
A29: 25 | B29: Frederico Papatella | C29: 88 | D29: 5 | E29: 34 | H29: 14 | I29: 17 | L29: 28 | M29: 3 | O29: SIM | Q29: 0* | U29: 0* | Y29: 0 | AC29: 0 | AE29: -5 | AG29: 0 | AK29: 0 | AM29: -5 | AN29: 9 | AO29: 26 | AR29: 13 | AS29: 18 | AW29: 0 | AZ29: 0 | BA29: 0 | BB29: 0 | BC29: 0 | BD29: 1 | BE29: 0 | BF29: 0 | BG29: 0 | BH29: 1 | BI29: 0 | BJ29: 0 | BK29: 0 | BL29: 1 | BM29: 1 | BN29: 0 | BO29: 0 | BP29: 0 | BQ29: 0 | BR29: 0 | BS29: 0 | BT29: 0 | BU29: 0 | BV29: 0 | BW29: 0 | BX29: 0 | BY29: 0 | BZ29: 0 | CA29: 1 | CB29: 0 | CC29: 0 | CD29: 0 | CE29: 0 | CF29: 0 | CG29: 0 | CH29: 0 | CI29: 0 | CJ29: 0 | CK29: 0 | CL29: 0 | CM29: 0 | CN29: 0
A30: 26 | B30: Reila Ricardo | C30: 71 | D30: 20 | E30: 11 | H30: 18 | I30: 13 | L30: 29 | M30: 2 | P30: 24 | Q30: 7 | U30: 0* | X30: 11 | Y30: 22 | AC30: 0* | AF30: 16 | AG30: 15 | AJ30: 15 | AK30: 16 | AO30: 0 | AQ30: -5 | AS30: 0 | AU30: -5 | AW30: 0 | AY30: -5 | AZ30: 0 | BA30: 0 | BB30: 0 | BC30: 0 | BD30: 0 | BE30: 0 | BF30: 0 | BG30: 0 | BH30: 0 | BI30: 0 | BJ30: 1 | BK30: 0 | BL30: 0 | BM30: 0 | BN30: 1 | BO30: 1 | BP30: 0 | BQ30: 1 | BR30: 0 | BS30: 1 | BT30: 0 | BU30: 0 | BV30: 0 | BW30: 1 | BX30: 0 | BY30: 0 | BZ30: 0 | CA30: 0 | CB30: 1 | CC30: 0 | CD30: 0 | CE30: 0 | CF30: 0 | CG30: 0 | CH30: 0 | CI30: 0 | CJ30: 0 | CK30: 0 | CL30: 0 | CM30: 0 | CN30: 0
A31: 27 | B31: Leandro Malias | C31: 70 | D31: 16 | E31: 15 | H31: 25 | I31: 6 | M31: 0* | Q31: 0* | S31: -5 | U31: 0 | X31: 21 | Y31: 10 | AB31: 19 | AC31: 12 | AG31: 0 | AK31: 0 | AO31: 0 | AR31: 15 | AS31: 16 | AV31: 15 | AW31: 16 | AZ31: 0 | BA31: 0 | BB31: 0 | BC31: 0 | BD31: 0 | BE31: 0 | BF31: 0 | BG31: 0 | BH31: 0 | BI31: 0 | BJ31: 0 | BK31: 0 | BL31: 0 | BM31: 0 | BN31: 2 | BO31: 1 | BP31: 0 | BQ31: 0 | BR31: 1 | BS31: 0 | BT31: 1 | BU31: 0 | BV31: 0 | BW31: 0 | BX31: 1 | BY31: 0 | BZ31: 0 | CA31: 0 | CB31: 0 | CC31: 0 | CD31: 0 | CE31: 0 | CF31: 0 | CG31: 0 | CH31: 0 | CI31: 0 | CJ31: 0 | CK31: 0 | CL31: 0 | CM31: 0 | CN31: 0
A32: 28 | B32: Bernardo Freitas | C32: 66 | D32: 26 | E32: 5 | I32: 0* | L32: 6 | M32: 32 | P32: 17 | Q32: 14 | T32: 15 | U32: 16 | X32: 27 | Y32: 4 | AA32: SIM | AC32: 0* | AG32: 0 | AK32: 0 | AO32: 0 | AS32: 0 | AW32: 0 | AY32: -5 | AZ32: 0 | BA32: 0 | BB32: 0 | BC32: 0 | BD32: 0 | BE32: 1 | BF32: 0 | BG32: 0 | BH32: 0 | BI32: 0 | BJ32: 0 | BK32: 0 | BL32: 0 | BM32: 0 | BN32: 1 | BO32: 0 | BP32: 1 | BQ32: 0 | BR32: 0 | BS32: 0 | BT32: 0 | BU32: 0 | BV32: 0 | BW32: 0 | BX32: 0 | BY32: 1 | BZ32: 1 | CA32: 0 | CB32: 0 | CC32: 0 | CD32: 0 | CE32: 0 | CF32: 0 | CG32: 0 | CH32: 0 | CI32: 0 | CJ32: 0 | CK32: 0 | CL32: 0 | CM32: 0 | CN32: 0
A33: 29 | B33: Marcelo Sant'anna | C33: 57 | D33: 17 | E33: 14 | H33: 21 | I33: 10 | K33: SIM | L33: 47 | M33: 1 | O33: SIM | Q33: 0* | U33: 0* | X33: 6 | Y33: 32 | AC33: 0 | AG33: 0 | AK33: 0 | AO33: 0 | AS33: 0 | AW33: 0 | AZ33: 0 | BA33: 0 | BB33: 0 | BC33: 0 | BD33: 0 | BE33: 1 | BF33: 0 | BG33: 0 | BH33: 0 | BI33: 0 | BJ33: 0 | BK33: 0 | BL33: 0 | BM33: 0 | BN33: 0 | BO33: 0 | BP33: 1 | BQ33: 0 | BR33: 0 | BS33: 0 | BT33: 1 | BU33: 0 | BV33: 0 | BW33: 0 | BX33: 0 | BY33: 0 | BZ33: 0 | CA33: 0 | CB33: 0 | CC33: 0 | CD33: 0 | CE33: 0 | CF33: 0 | CG33: 0 | CH33: 0 | CI33: 0 | CJ33: 0 | CK33: 0 | CL33: 0 | CM33: 0 | CN33: 0
A34: 30 | B34: Lucas Guimarães | C34: 54 | E34: 0* | H34: 32 | I34: 1 | K34: SIM | M34: 0* | O34: -5 | P34: 33 | Q34: 1 | S34: SIM | T34: 7 | U34: 30 | Y34: 0 | AA34: -5 | AB34: 10 | AC34: 24 | AF34: 8 | AG34: 28 | AK34: 0 | AM34: -5 | AO34: 0 | AQ34: -5 | AS34: 0 | AU34: -5 | AW34: 0 | AY34: -5 | AZ34: 0 | BA34: 0 | BB34: 0 | BC34: 0 | BD34: 0 | BE34: 0 | BF34: 1 | BG34: 1 | BH34: 0 | BI34: 1 | BJ34: 0 | BK34: 0 | BL34: 0 | BM34: 0 | BN34: 0 | BO34: 0 | BP34: 0 | BQ34: 0 | BR34: 0 | BS34: 0 | BT34: 0 | BU34: 0 | BV34: 0 | BW34: 0 | BX34: 0 | BY34: 0 | BZ34: 0 | CA34: 0 | CB34: 0 | CC34: 0 | CD34: 0 | CE34: 1 | CF34: 1 | CG34: 0 | CH34: 0 | CI34: 0 | CJ34: 0 | CK34: 0 | CL34: 0 | CM34: 0 | CN34: 0
A35: 31 | B35: Luciano Robervine | C35: 38 | D35: 4 | E35: 36 | H35: 33 | I35: 1 | K35: SIM | L35: 16 | M35: 15 | P35: 9 | Q35: 26 | U35: 0* | W35: -5 | Y35: 0* | AA35: -5 | AC35: 0 | AE35: -5 | AG35: 0 | AI35: -5 | AK35: 0 | AM35: -5 | AO35: 0 | AQ35: -5 | AS35: 0 | AU35: -5 | AW35: 0 | AY35: -5 | AZ35: 0 | BA35: 0 | BB35: 0 | BC35: 1 | BD35: 0 | BE35: 0 | BF35: 0 | BG35: 0 | BH35: 1 | BI35: 0 | BJ35: 0 | BK35: 0 | BL35: 0 | BM35: 0 | BN35: 0 | BO35: 1 | BP35: 0 | BQ35: 0 | BR35: 0 | BS35: 0 | BT35: 0 | BU35: 0 | BV35: 0 | BW35: 0 | BX35: 0 | BY35: 0 | BZ35: 0 | CA35: 0 | CB35: 0 | CC35: 0 | CD35: 0 | CE35: 0 | CF35: 1 | CG35: 0 | CH35: 0 | CI35: 0 | CJ35: 0 | CK35: 0 | CL35: 0 | CM35: 0 | CN35: 0
A36: 32 | B36: Lucca Veloso | C36: 34 | E36: 0* | I36: 0* | M36: 0 | Q36: 0 | U36: 0 | Y36: 0 | AC36: 0 | AF36: 6 | AG36: 32 | AH36: 1 | AJ36: 50 | AK36: 0 | AM36: SIM | AO36: 0 | AS36: 0 | AV36: 31 | AW36: 1 | AY36: SIM | AZ36: 0 | BA36: 0 | BB36: 0 | BC36: 0 | BD36: 0 | BE36: 1 | BF36: 0 | BG36: 0 | BH36: 0 | BI36: 0 | BJ36: 0 | BK36: 0 | BL36: 0 | BM36: 0 | BN36: 0 | BO36: 0 | BP36: 0 | BQ36: 0 | BR36: 0 | BS36: 0 | BT36: 0 | BU36: 0 | BV36: 0 | BW36: 0 | BX36: 0 | BY36: 0 | BZ36: 0 | CA36: 0 | CB36: 0 | CC36: 0 | CD36: 1 | CE36: 0 | CF36: 0 | CG36: 0 | CH36: 0 | CI36: 0 | CJ36: 0 | CK36: 0 | CL36: 0 | CM36: 0 | CN36: 0
A37: 33 | B37: Roberta Epifânio | C37: 34 | E37: 0* | H37: 28 | I37: 3 | L37: 30 | M37: 1 | P37: 30 | Q37: 1 | U37: 0* | X37: 33 | Y37: 1 | AA37: SIM | AB37: 18 | AC37: 13 | AF37: 22 | AG37: 9 | AK37: 0 | AO37: 0 | AR37: 25 | AS37: 6 | AW37: 0 | AZ37: 0 | BA37: 0 | BB37: 0 | BC37: 0 | BD37: 0 | BE37: 0 | BF37: 0 | BG37: 0 | BH37: 0 | BI37: 0 | BJ37: 0 | BK37: 0 | BL37: 0 | BM37: 0 | BN37: 0 | BO37: 0 | BP37: 0 | BQ37: 1 | BR37: 0 | BS37: 0 | BT37: 0 | BU37: 1 | BV37: 0 | BW37: 0 | BX37: 1 | BY37: 0 | BZ37: 0 | CA37: 1 | CB37: 0 | CC37: 2 | CD37: 0 | CE37: 0 | CF37: 1 | CG37: 0 | CH37: 0 | CI37: 0 | CJ37: 0 | CK37: 0 | CL37: 0 | CM37: 0 | CN37: 0
A38: 34 | B38: Bernardo Gatti | C38: 27 | E38: 0* | I38: 0* | M38: 0 | Q38: 0 | U38: 0 | Y38: 0 | AC38: 0 | AG38: 0 | AJ38: 6 | AK38: 32 | AO38: 0 | AS38: 0 | AW38: 0 | AY38: -5 | AZ38: 0 | BA38: 0 | BB38: 0 | BC38: 0 | BD38: 0 | BE38: 2 | BF38: 1 | BG38: 0 | BH38: 1 | BI38: 0 | BJ38: 0 | BK38: 0 | BL38: 1 | BM38: 0 | BN38: 0 | BO38: 0 | BP38: 0 | BQ38: 0 | BR38: 0 | BS38: 0 | BT38: 0 | BU38: 0 | BV38: 0 | BW38: 0 | BX38: 2 | BY38: 0 | BZ38: 0 | CA38: 0 | CB38: 0 | CC38: 0 | CD38: 0 | CE38: 0 | CF38: 0 | CG38: 0 | CH38: 0 | CI38: 0 | CJ38: 0 | CK38: 0 | CL38: 0 | CM38: 0 | CN38: 0
A39: 35 | B39: Pedro Mello | C39: 15 | E39: 0* | H39: 29 | I39: 2 | M39: 0* | Q39: 0 | U39: 0 | X39: 18 | Y39: 13 | AC39: 0 | AG39: 0 | AK39: 0 | AO39: 0 | AS39: 0 | AW39: 0 | AZ39: 0 | BA39: 0 | BB39: 0 | BC39: 0 | BD39: 0 | BE39: 0 | BF39: 0 | BG39: 0 | BH39: 0 | BI39: 0 | BJ39: 0 | BK39: 0 | BL39: 0 | BM39: 0 | BN39: 0 | BO39: 0 | BP39: 0 | BQ39: 1 | BR39: 0 | BS39: 0 | BT39: 0 | BU39: 0 | BV39: 0 | BW39: 0 | BX39: 0 | BY39: 0 | BZ39: 0 | CA39: 0 | CB39: 1 | CC39: 0 | CD39: 0 | CE39: 0 | CF39: 0 | CG39: 0 | CH39: 0 | CI39: 0 | CJ39: 0 | CK39: 0 | CL39: 0 | CM39: 0 | CN39: 0
A40: 36 | B40: Izabella Rodrigues | C40: 5 | E40: 0* | I40: 0* | L40: 25 | M40: 6 | P40: 14 | Q40: 17 | U40: 0 | W40: -5 | Y40: 0 | AA40: -5 | AB40: 15 | AC40: 16 | AE40: -5 | AF40: 32 | AG40: 1 | AI40: SIM | AK40: 0 | AM40: -5 | AO40: 0 | AQ40: -5 | AS40: 0 | AU40: -5 | AW40: 0 | AY40: -5 | AZ40: 0 | BA40: 0 | BB40: 0 | BC40: 0 | BD40: 0 | BE40: 0 | BF40: 0 | BG40: 0 | BH40: 0 | BI40: 0 | BJ40: 0 | BK40: 0 | BL40: 0 | BM40: 1 | BN40: 1 | BO40: 0 | BP40: 0 | BQ40: 0 | BR40: 0 | BS40: 0 | BT40: 0 | BU40: 0 | BV40: 0 | BW40: 0 | BX40: 1 | BY40: 0 | BZ40: 0 | CA40: 0 | CB40: 0 | CC40: 0 | CD40: 0 | CE40: 1 | CF40: 0 | CG40: 0 | CH40: 0 | CI40: 0 | CJ40: 0 | CK40: 0 | CL40: 0 | CM40: 0 | CN40: 0
A41: 37 | B41: Andre Resende | C41: 0 | E41: 0* | I41: 0* | M41: 0 | Q41: 0 | U41: 0 | Y41: 0 | AC41: 0 | AF41: 20 | AG41: 11 | AK41: 0 | AM41: -5 | AO41: 0 | AQ41: -5 | AS41: 0 | AU41: -5 | AW41: 0 | AY41: -5 | AZ41: 0 | BA41: 0 | BB41: 0 | BC41: 0 | BD41: 0 | BE41: 0 | BF41: 0 | BG41: 0 | BH41: 0 | BI41: 0 | BJ41: 0 | BK41: 1 | BL41: 0 | BM41: 0 | BN41: 0 | BO41: 0 | BP41: 0 | BQ41: 0 | BR41: 0 | BS41: 1 | BT41: 0 | BU41: 1 | BV41: 0 | BW41: 0 | BX41: 0 | BY41: 2 | BZ41: 0 | CA41: 0 | CB41: 0 | CC41: 0 | CD41: 0 | CE41: 0 | CF41: 0 | CG41: 0 | CH41: 0 | CI41: 0 | CJ41: 0 | CK41: 0 | CL41: 0 | CM41: 0 | CN41: 0
A42: 38 | B42: SSSSS | C42: 0 | E42: 0* | I42: 0* | M42: 0 | Q42: 0 | U42: 0 | Y42: 0 | AC42: 0 | AG42: 0 | AK42: 0 | AO42: 0 | AS42: 0 | AW42: 0 | AZ42: 0 | BA42: 0 | BB42: 0 | BC42: 0 | BD42: 0 | BE42: 0 | BF42: 0 | BG42: 0 | BH42: 0 | BI42: 0 | BJ42: 0 | BK42: 0 | BL42: 0 | BM42: 0 | BN42: 0 | BO42: 1 | BP42: 0 | BQ42: 1 | BR42: 1 | BS42: 0 | BT42: 1 | BU42: 0 | BV42: 0 | BW42: 0 | BX42: 0 | BY42: 0 | BZ42: 0 | CA42: 0 | CB42: 0 | CC42: 0 | CD42: 0 | CE42: 0 | CF42: 0 | CG42: 0 | CH42: 0 | CI42: 0 | CJ42: 0 | CK42: 0 | CL42: 0 | CM42: 0 | CN42: 0
A43: 39 | B43: Wesley Camargos | C43: 0 | E43: 0* | I43: 0* | M43: 0 | O43: -5 | P43: 25 | Q43: 6 | U43: 0 | W43: -5 | Y43: 0 | AA43: -5 | AB43: 17 | AC43: 14 | AG43: 0 | AI43: -5 | AK43: 0 | AM43: -5 | AO43: 0 | AQ43: -5 | AR43: 20 | AS43: 11 | AW43: 0 | AY43: -5 | AZ43: 0 | BA43: 0 | BB43: 0 | BC43: 0 | BD43: 0 | BE43: 0 | BF43: 0 | BG43: 0 | BH43: 0 | BI43: 0 | BJ43: 0 | BK43: 0 | BL43: 0 | BM43: 0 | BN43: 0 | BO43: 0 | BP43: 1 | BQ43: 0 | BR43: 0 | BS43: 1 | BT43: 0 | BU43: 0 | BV43: 0 | BW43: 0 | BX43: 1 | BY43: 0 | BZ43: 0 | CA43: 0 | CB43: 0 | CC43: 0 | CD43: 0 | CE43: 0 | CF43: 0 | CG43: 0 | CH43: 0 | CI43: 0 | CJ43: 0 | CK43: 0 | CL43: 0 | CM43: 0 | CN43: 0
A44: 40 | B44: Hugo Denucci | C44: 0 | E44: 0* | G44: -5 | I44: 0* | K44: -5 | M44: 0 | Q44: 0 | S44: -5 | U44: 0 | Y44: 0 | AC44: 0 | AG44: 0 | AI44: -5 | AK44: 0 | AM44: -5 | AO44: 0 | AQ44: -5 | AS44: 0 | AU44: -5 | AW44: 0 | AY44: -5 | AZ44: 0 | BA44: 0 | BB44: 0 | BC44: 0 | BD44: 0 | BE44: 0 | BF44: 0 | BG44: 0 | BH44: 0 | BI44: 0 | BJ44: 0 | BK44: 0 | BL44: 0 | BM44: 0 | BN44: 0 | BO44: 0 | BP44: 0 | BQ44: 0 | BR44: 0 | BS44: 0 | BT44: 0 | BU44: 0 | BV44: 0 | BW44: 0 | BX44: 0 | BY44: 0 | BZ44: 0 | CA44: 0 | CB44: 0 | CC44: 0 | CD44: 0 | CE44: 0 | CF44: 0 | CG44: 0 | CH44: 0 | CI44: 0 | CJ44: 0 | CK44: 0 | CL44: 0 | CM44: 0 | CN44: 0
A45: 41 | B45: Gabriel Garabini | C45: 0 | E45: 0* | I45: 0* | M45: 0 | Q45: 0 | U45: 0 | Y45: 0 | AC45: 0 | AG45: 0 | AK45: 0 | AM45: -5 | AO45: 0 | AQ45: -5 | AS45: 0 | AU45: -5 | AW45: 0 | AY45: -5 | AZ45: 0 | BA45: 0 | BB45: 0 | BC45: 0 | BD45: 0 | BE45: 0 | BF45: 0 | BG45: 0 | BH45: 0 | BI45: 0 | BJ45: 0 | BK45: 0 | BL45: 0 | BM45: 0 | BN45: 0 | BO45: 0 | BP45: 0 | BQ45: 0 | BR45: 0 | BS45: 0 | BT45: 0 | BU45: 0 | BV45: 0 | BW45: 0 | BX45: 0 | BY45: 0 | BZ45: 0 | CA45: 0 | CB45: 0 | CC45: 0 | CD45: 0 | CE45: 0 | CF45: 0 | CG45: 0 | CH45: 0 | CI45: 0 | CJ45: 0 | CK45: 0 | CL45: 0 | CM45: 0 | CN45: 0
A46: 42 | C46: 0 | E46: 0 | I46: 0 | M46: 0 | Q46: 0 | U46: 0 | Y46: 0 | AC46: 0 | AG46: 0 | AK46: 0 | AO46: 0 | AS46: 0 | AW46: 0 | AZ46: 0 | BA46: 0 | BB46: 0 | BC46: 0 | BD46: 0 | BE46: 0 | BF46: 0 | BG46: 0 | BH46: 0 | BI46: 0 | BJ46: 0 | BK46: 0 | BL46: 0 | BM46: 0 | BN46: 0 | BO46: 0 | BP46: 0 | BQ46: 0 | BR46: 0 | BS46: 0 | BT46: 0 | BU46: 0 | BV46: 0 | BW46: 0 | BX46: 0 | BY46: 0 | BZ46: 0 | CA46: 0 | CB46: 0 | CC46: 0 | CD46: 0 | CE46: 0 | CF46: 0 | CG46: 0 | CH46: 0 | CI46: 0 | CJ46: 0 | CK46: 0 | CL46: 0 | CM46: 0 | CN46: 0
A47: 43 | C47: 0 | E47: 0 | I47: 0 | M47: 0 | Q47: 0 | U47: 0 | Y47: 0 | AC47: 0 | AG47: 0 | AK47: 0 | AO47: 0 | AS47: 0 | AW47: 0 | AZ47: 0 | BA47: 0 | BB47: 0 | BC47: 0 | BD47: 0 | BE47: 0 | BF47: 0 | BG47: 0 | BH47: 0 | BI47: 0 | BJ47: 0 | BK47: 0 | BL47: 0 | BM47: 0 | BN47: 0 | BO47: 0 | BP47: 0 | BQ47: 0 | BR47: 0 | BS47: 0 | BT47: 0 | BU47: 0 | BV47: 0 | BW47: 0 | BX47: 0 | BY47: 0 | BZ47: 0 | CA47: 0 | CB47: 0 | CC47: 0 | CD47: 0 | CE47: 0 | CF47: 0 | CG47: 0 | CH47: 0 | CI47: 0 | CJ47: 0 | CK47: 0 | CL47: 0 | CM47: 0 | CN47: 0
A48: 44 | C48: 0 | E48: 0 | I48: 0 | M48: 0 | Q48: 0 | U48: 0 | Y48: 0 | AC48: 0 | AG48: 0 | AK48: 0 | AO48: 0 | AS48: 0 | AW48: 0 | AZ48: 0 | BA48: 0 | BB48: 0 | BC48: 0 | BD48: 0 | BE48: 0 | BF48: 0 | BG48: 0 | BH48: 0 | BI48: 0 | BJ48: 0 | BK48: 0 | BL48: 0 | BM48: 0 | BN48: 0 | BO48: 0 | BP48: 0 | BQ48: 0 | BR48: 0 | BS48: 0 | BT48: 0 | BU48: 0 | BV48: 0 | BW48: 0 | BX48: 0 | BY48: 0 | BZ48: 0 | CA48: 0 | CB48: 0 | CC48: 0 | CD48: 0 | CE48: 0 | CF48: 0 | CG48: 0 | CH48: 0 | CI48: 0 | CJ48: 0 | CK48: 0 | CL48: 0 | CM48: 0 | CN48: 0
A49: 45 | C49: 0 | E49: 0 | I49: 0 | M49: 0 | Q49: 0 | U49: 0 | Y49: 0 | AC49: 0 | AG49: 0 | AK49: 0 | AO49: 0 | AS49: 0 | AW49: 0 | AZ49: 0 | BA49: 0 | BB49: 0 | BC49: 0 | BD49: 0 | BE49: 0 | BF49: 0 | BG49: 0 | BH49: 0 | BI49: 0 | BJ49: 0 | BK49: 0 | BL49: 0 | BM49: 0 | BN49: 0 | BO49: 0 | BP49: 0 | BQ49: 0 | BR49: 0 | BS49: 0 | BT49: 0 | BU49: 0 | BV49: 0 | BW49: 0 | BX49: 0 | BY49: 0 | BZ49: 0 | CA49: 0 | CB49: 0 | CC49: 0 | CD49: 0 | CE49: 0 | CF49: 0 | CG49: 0 | CH49: 0 | CI49: 0 | CJ49: 0 | CK49: 0 | CL49: 0 | CM49: 0 | CN49: 0
M53: 1
L55: 29

Sheet Tabela Equipes
A1: 2022 | D1: OK | H1: OK | L1: OK | P1: OK | T1: OK | X1: OK | AB1: OK | AF1: OK | AJ1: OK | AN1: OK | AR1: OK | AV1: OK
C2: 1ª etapa | G2: 2ª etapa | K2: 3ª etapa | O2: 4ª etapa | S2: 5ª etapa | W2: 6ª etapa | AA2: 7ª etapa | AE2: 8ª etapa | AI2: 9ª etapa | AM2: 10ª etapa | AQ2: 11ª etapa | AU2: 12ª etapa
C3: 00:00:00 | G3: 00:00:00 | K3: 13/03/2022 - 10:00 - Domingo | O3: 00:00:00 | S3: 00:00:00 | W3: 00:00:00 | AA3: 00:00:00 | AE3: 00:00:00 | AI3: 00:00:00 | AM3: 00:00:00 | AQ3: 00:00:00 | AU3: 00:00:00
A4: EQUIPES | B4: Pontuação Geral | C4: Posição | D4: Pontos | E4: Bônus | F4: Penalidade | G4: Posição | H4: Pontos | I4: Bônus | J4: Penalidade | K4: Posição | L4: Pontos | M4: Bônus | N4: Penalidade | O4: Posição | P4: Pontos | Q4: Bônus | R4: Penalidade | S4: Posição | T4: Pontos | U4: Bônus | V4: Penalidade | W4: Posição | X4: Pontos | Y4: Bônus | Z4: Penalidade | AA4: Posição | AB4: Pontos | AC4: Bônus | AD4: Penalidade | AE4: Posição | AF4: Pontos | AG4: Bônus | AH4: Penalidade | AI4: Posição | AJ4: Pontos | AK4: Bônus | AL4: Penalidade | AM4: Posição | AN4: Pontos | AO4: Bônus | AP4: Penalidade | AQ4: Posição | AR4: Pontos | AS4: Bônus | AT4: Penalidade | AU4: Posição | AV4: Pontos | AW4: Bônus | AX4: Penalidade
A5: Lider | B5: 693 | D5: 79 | E5: 1 | H5: 66 | I5: 0 | L5: 77 | M5: 1 | P5: 69 | Q5: 0 | T5: 52 | U5: 0 | X5: 11 | Y5: 1 | AB5: 62 | AC5: 1 | AF5: 60 | AG5: 0 | AJ5: 83 | AK5: 0 | AN5: 37 | AO5: 0 | AR5: 63 | AS5: 1 | AV5: 29 | AW5: 0
A6: Marcelo Campos | B6: 413 | C6: 2 | D6: 41 | E6: 1 | G6: 8 | H6: 28 | I6: 0 | K6: 4 | L6: 36 | M6: 0 | O6: 1 | P6: 45 | Q6: 0 | S6: 5 | T6: 34 | U6: 0 | W6: 20 | X6: 11 | Y6: 1 | AA6: 2 | AB6: 41 | AC6: 1 | AE6: 5 | AF6: 34 | AG6: 0 | AI6: 3 | AJ6: 38 | AK6: 0 | AM6: 6 | AN6: 32 | AO6: 0 | AQ6: 1 | AR6: 45 | AS6: 1 | AU6: 10 | AV6: 24 | AW6: 0
A7: Marcelo Pereira | B7: 249 | C7: 3 | D7: 38 | E7: 0 | G7: 3 | H7: 38 | I7: 0 | K7: 2 | L7: 41 | M7: 1 | O7: 13 | P7: 18 | Q7: 0 | S7: 13 | T7: 18 | U7: 0 | W7: 0 | X7: 0 | Y7: 0 | AA7: 24 | AB7: 7 | AC7: 0 | AE7: 9 | AF7: 26 | AG7: 0 | AI7: 1 | AJ7: 45 | AK7: 0 | AM7: 26 | AN7: 5 | AO7: 0 | AQ7: 24 | AR7: 7 | AS7: 0 | AU7: 26 | AV7: 5 | AW7: 0
A8: Wesley Camargos | B8: 31 | C8: 0 | D8: 0 | E8: 0 | G8: 0 | H8: 0 | I8: 0 | K8: 0 | L8: 0 | M8: 0 | O8: 25 | P8: 6 | Q8: 0 | S8: 0 | T8: 0 | U8: 0 | W8: 0 | X8: 0 | Y8: 0 | AA8: 17 | AB8: 14 | AC8: 0 | AE8: 0 | AF8: 0 | AG8: 0 | AI8: 0 | AJ8: 0 | AK8: 0 | AM8: 0 | AN8: 0 | AO8: 0 | AQ8: 20 | AR8: 11 | AS8: 0 | AU8: 0 | AV8: 0 | AW8: 0
A9: Hugo Denucci | B9: 0 | C9: 0 | D9: 0 | E9: 0 | G9: 0 | H9: 0 | I9: 0 | K9: 0 | L9: 0 | M9: 0 | O9: 0 | P9: 0 | Q9: 0 | S9: 0 | T9: 0 | U9: 0 | W9: 0 | X9: 0 | Y9: 0 | AA9: 0 | AB9: 0 | AC9: 0 | AE9: 0 | AF9: 0 | AG9: 0 | AI9: 0 | AJ9: 0 | AK9: 0 | AM9: 0 | AN9: 0 | AO9: 0 | AQ9: 0 | AR9: 0 | AS9: 0 | AU9: 0 | AV9: 0 | AW9: 0
A10: X
A11: Santiago | B11: 602 | D11: 60 | E11: 0 | H11: 48 | I11: 0 | L11: 35 | M11: 0 | P11: 40 | Q11: 1 | T11: 38 | U11: 0 | X11: 62 | Y11: 0 | AB11: 87 | AC11: 0 | AF11: 67 | AG11: 0 | AJ11: 36 | AK11: 0 | AN11: 36 | AO11: 0 | AR11: 30 | AS11: 0 | AV11: 61 | AW11: 1
A12: Daniel Nahum | B12: 394 | C12: 1 | D12: 45 | E12: 0 | G12: 4 | H12: 36 | I12: 0 | K12: 5 | L12: 34 | M12: 0 | O12: 3 | P12: 38 | Q12: 1 | S12: 23 | T12: 8 | U12: 0 | W12: 3 | X12: 38 | Y12: 0 | AA12: 3 | AB12: 38 | AC12: 0 | AE12: 7 | AF12: 30 | AG12: 0 | AI12: 4 | AJ12: 36 | AK12: 0 | AM12: 4 | AN12: 36 | AO12: 0 | AQ12: 23 | AR12: 8 | AS12: 0 | AU12: 1 | AV12: 45 | AW12: 1
A13: Pedro Mello | B13: 15 | C13: 0 | D13: 0 | E13: 0 | G13: 29 | H13: 2 | I13: 0 | K13: 0 | L13: 0 | M13: 0 | O13: 0 | P13: 0 | Q13: 0 | S13: 0 | T13: 0 | U13: 0 | W13: 18 | X13: 13 | Y13: 0 | AA13: 0 | AB13: 0 | AC13: 0 | AE13: 0 | AF13: 0 | AG13: 0 | AI13: 0 | AJ13: 0 | AK13: 0 | AM13: 0 | AN13: 0 | AO13: 0 | AQ13: 0 | AR13: 0 | AS13: 0 | AU13: 0 | AV13: 0 | AW13: 0
A14: Leandro Malias | B14: 75 | C14: 16 | D14: 15 | E14: 0 | G14: 25 | H14: 6 | I14: 0 | K14: 0 | L14: 0 | M14: 0 | O14: 0 | P14: 0 | Q14: 0 | S14: 0 | T14: 0 | U14: 0 | W14: 21 | X14: 10 | Y14: 0 | AA14: 19 | AB14: 12 | AC14: 0 | AE14: 0 | AF14: 0 | AG14: 0 | AI14: 0 | AJ14: 0 | AK14: 0 | AM14: 0 | AN14: 0 | AO14: 0 | AQ14: 15 | AR14: 16 | AS14: 0 | AU14: 15 | AV14: 16 | AW14: 0
A15: Lucas Guimarães | B15: 84 | C15: 0 | D15: 0 | E15: 0 | G15: 32 | H15: 1 | I15: 0 | K15: 0 | L15: 0 | M15: 0 | O15: 33 | P15: 1 | Q15: 0 | S15: 7 | T15: 30 | U15: 0 | W15: 0 | X15: 0 | Y15: 0 | AA15: 10 | AB15: 24 | AC15: 0 | AE15: 8 | AF15: 28 | AG15: 0 | AI15: 0 | AJ15: 0 | AK15: 0 | AM15: 0 | AN15: 0 | AO15: 0 | AQ15: 0 | AR15: 0 | AS15: 0 | AU15: 0 | AV15: 0 | AW15: 0
A16: Roberta Epifânio | B16: 34 | C16: 0 | D16: 0 | E16: 0 | G16: 28 | H16: 3 | I16: 0 | K16: 30 | L16: 1 | M16: 0 | O16: 30 | P16: 1 | Q16: 0 | S16: 0 | T16: 0 | U16: 0 | W16: 33 | X16: 1 | Y16: 0 | AA16: 18 | AB16: 13 | AC16: 0 | AE16: 22 | AF16: 9 | AG16: 0 | AI16: 0 | AJ16: 0 | AK16: 0 | AM16: 0 | AN16: 0 | AO16: 0 | AQ16: 25 | AR16: 6 | AS16: 0 | AU16: 0 | AV16: 0 | AW16: 0
A17: Alpha | B17: 574 | D17: 60 | E17: 0 | H17: 39 | I17: 0 | L17: 83 | M17: 0 | P17: 59 | Q17: 0 | T17: 48 | U17: 0 | X17: 35 | Y17: 0 | AB17: 55 | AC17: 0 | AF17: 51 | AG17: 0 | AJ17: 22 | AK17: 0 | AN17: 18 | AO17: 0 | AR17: 64 | AS17: 0 | AV17: 40 | AW17: 0
A18: Guilherme Alves | B18: 249 | C18: 9 | D18: 26 | E18: 0 | G18: 11 | H18: 22 | I18: 0 | K18: 10 | L18: 24 | M18: 0 | O18: 16 | P18: 15 | Q18: 0 | S18: 11 | T18: 22 | U18: 0 | W18: 16 | X18: 15 | Y18: 0 | AA18: 5 | AB18: 34 | AC18: 0 | AE18: 4 | AF18: 36 | AG18: 0 | AI18: 11 | AJ18: 22 | AK18: 0 | AM18: 0 | AN18: 0 | AO18: 0 | AQ18: 6 | AR18: 32 | AS18: 0 | AU18: 37 | AV18: 1 | AW18: 0
A19: Raphael Reis | B19: 97 | C19: 12 | D19: 20 | E19: 0 | G19: 22 | H19: 9 | I19: 0 | K19: 18 | L19: 13 | M19: 0 | O19: 18 | P19: 13 | Q19: 0 | S19: 0 | T19: 0 | U19: 0 | W19: 0 | X19: 0 | Y19: 0 | AA19: 0 | AB19: 0 | AC19: 0 | AE19: 0 | AF19: 0 | AG19: 0 | AI19: 0 | AJ19: 0 | AK19: 0 | AM19: 0 | AN19: 0 | AO19: 0 | AQ19: 12 | AR19: 20 | AS19: 0 | AU19: 11 | AV19: 22 | AW19: 0
A20: Bernardo Freitas | B20: 71 | C20: 26 | D20: 5 | E20: 0 | G20: 0 | H20: 0 | I20: 0 | K20: 6 | L20: 32 | M20: 0 | O20: 17 | P20: 14 | Q20: 0 | S20: 15 | T20: 16 | U20: 0 | W20: 27 | X20: 4 | Y20: 0 | AA20: 0 | AB20: 0 | AC20: 0 | AE20: 0 | AF20: 0 | AG20: 0 | AI20: 0 | AJ20: 0 | AK20: 0 | AM20: 0 | AN20: 0 | AO20: 0 | AQ20: 0 | AR20: 0 | AS20: 0 | AU20: 0 | AV20: 0 | AW20: 0
A21: Hélio Chagas | B21: 117 | C21: 22 | D21: 9 | E21: 0 | G21: 23 | H21: 8 | I21: 0 | K21: 23 | L21: 8 | M21: 0 | O21: 0 | P21: 0 | Q21: 0 | S21: 21 | T21: 10 | U21: 0 | W21: 15 | X21: 16 | Y21: 0 | AA21: 26 | AB21: 5 | AC21: 0 | AE21: 17 | AF21: 14 | AG21: 0 | AI21: 0 | AJ21: 0 | AK21: 0 | AM21: 13 | AN21: 18 | AO21: 0 | AQ21: 19 | AR21: 12 | AS21: 0 | AU21: 14 | AV21: 17 | AW21: 0
A22: Izabella Rodrigues | B22: 40 | C22: 0 | D22: 0 | E22: 0 | G22: 0 | H22: 0 | I22: 0 | K22: 25 | L22: 6 | M22: 0 | O22: 14 | P22: 17 | Q22: 0 | S22: 0 | T22: 0 | U22: 0 | W22: 0 | X22: 0 | Y22: 0 | AA22: 15 | AB22: 16 | AC22: 0 | AE22: 32 | AF22: 1 | AG22: 0 | AI22: 0 | AJ22: 0 | AK22: 0 | AM22: 0 | AN22: 0 | AO22: 0 | AQ22: 0 | AR22: 0 | AS22: 0 | AU22: 0 | AV22: 0 | AW22: 0
A23: Ventura | B23: 674 | D23: 36 | E23: 0 | H23: 38 | I23: 0 | L23: 56 | M23: 0 | P23: 31 | Q23: 0 | T23: 53 | U23: 0 | X23: 107 | Y23: 0 | AB23: 63 | AC23: 0 | AF23: 46 | AG23: 0 | AJ23: 15 | AK23: 0 | AN23: 58 | AO23: 0 | AR23: 90 | AS23: 0 | AV23: 81 | AW23: 0
A24: Marcelo Sant'anna | B24: 57 | C24: 17 | D24: 14 | E24: 0 | G24: 21 | H24: 10 | I24: 0 | K24: 47 | L24: 1 | M24: 0 | O24: 0 | P24: 0 | Q24: 0 | S24: 0 | T24: 0 | U24: 0 | W24: 6 | X24: 32 | Y24: 0 | AA24: 0 | AB24: 0 | AC24: 0 | AE24: 0 | AF24: 0 | AG24: 0 | AI24: 0 | AJ24: 0 | AK24: 0 | AM24: 0 | AN24: 0 | AO24: 0 | AQ24: 0 | AR24: 0 | AS24: 0 | AU24: 0 | AV24: 0 | AW24: 0
A25: Wesley Canuto | B25: 331 | C25: 28 | D25: 3 | E25: 0 | G25: 10 | H25: 24 | I25: 0 | K25: 12 | L25: 20 | M25: 0 | O25: 7 | P25: 30 | Q25: 0 | S25: 10 | T25: 24 | U25: 0 | W25: 5 | X25: 34 | Y25: 0 | AA25: 8 | AB25: 28 | AC25: 0 | AE25: 3 | AF25: 38 | AG25: 0 | AI25: 16 | AJ25: 15 | AK25: 0 | AM25: 2 | AN25: 41 | AO25: 0 | AQ25: 4 | AR25: 36 | AS25: 0 | AU25: 3 | AV25: 38 | AW25: 0
A26: Cláudio Naves | B26: 95 | C26: 24 | D26: 7 | E26: 0 | G26: 27 | H26: 4 | I26: 0 | K26: 24 | L26: 7 | M26: 0 | O26: 33 | P26: 1 | Q26: 0 | S26: 44 | T26: 1 | U26: 0 | W26: 14 | X26: 17 | Y26: 0 | AA26: 14 | AB26: 17 | AC26: 0 | AE26: 0 | AF26: 0 | AG26: 0 | AI26: 0 | AJ26: 0 | AK26: 0 | AM26: 0 | AN26: 0 | AO26: 0 | AQ26: 18 | AR26: 13 | AS26: 0 | AU26: 8 | AV26: 28 | AW26: 0
A27: Marcelo Chagas | B27: 191 | C27: 19 | D27: 12 | E27: 0 | G27: 0 | H27: 0 | I27: 0 | K27: 8 | L27: 28 | M27: 0 | O27: 0 | P27: 0 | Q27: 0 | S27: 8 | T27: 28 | U27: 0 | W27: 10 | X27: 24 | Y27: 0 | AA27: 13 | AB27: 18 | AC27: 0 | AE27: 23 | AF27: 8 | AG27: 0 | AI27: 0 | AJ27: 0 | AK27: 0 | AM27: 14 | AN27: 17 | AO27: 0 | AQ27: 2 | AR27: 41 | AS27: 0 | AU27: 16 | AV27: 15 | AW27: 0
A28: XXXX
A29: LQN | B29: 1004 | D29: 69 | E29: 0 | H29: 107 | I29: 0 | L29: 97 | M29: 0 | P29: 113 | Q29: 0 | T29: 95 | U29: 0 | X29: 100 | Y29: 0 | AB29: 56 | AC29: 0 | AF29: 119 | AG29: 1 | AJ29: 43 | AK29: 0 | AN29: 79 | AO29: 1 | AR29: 57 | AS29: 0 | AV29: 67 | AW29: 0
A30: Alexandre Melillo | B30: 300 | C30: 11 | D30: 22 | E30: 0 | G30: 12 | H30: 20 | I30: 0 | K30: 17 | L30: 14 | M30: 0 | O30: 2 | P30: 41 | Q30: 0 | S30: 6 | T30: 32 | U30: 0 | W30: 2 | X30: 41 | Y30: 0 | AA30: 4 | AB30: 36 | AC30: 0 | AE30: 11 | AF30: 22 | AG30: 0 | AI30: 17 | AJ30: 14 | AK30: 0 | AM30: 5 | AN30: 34 | AO30: 0 | AQ30: 10 | AR30: 24 | AS30: 0 | AU30: 0 | AV30: 0 | AW30: 0
A31: Wesley Bambirra | B31: 367 | C31: 10 | D31: 24 | E31: 0 | G31: 1 | H31: 45 | I31: 0 | K31: 3 | L31: 38 | M31: 0 | O31: 5 | P31: 34 | Q31: 0 | S31: 2 | T31: 41 | U31: 0 | W31: 1 | X31: 45 | Y31: 0 | AA31: 12 | AB31: 20 | AC31: 0 | AE31: 2 | AF31: 41 | AG31: 0 | AI31: 14 | AJ31: 17 | AK31: 0 | AM31: 0 | AN31: 0 | AO31: 0 | AQ31: 8 | AR31: 28 | AS31: 0 | AU31: 5 | AV31: 34 | AW31: 0
A32: SSSSS | B32: 50 | C32: 18 | D32: 13 | E32: 0 | G32: 19 | H32: 12 | I32: 0 | K32: 0 | L32: 0 | M32: 0 | O32: 21 | P32: 10 | Q32: 0 | S32: 16 | T32: 15 | U32: 0 | W32: 0 | X32: 0 | Y32: 0 | AA32: 0 | AB32: 0 | AC32: 0 | AE32: 0 | AF32: 0 | AG32: 0 | AI32: 0 | AJ32: 0 | AK32: 0 | AM32: 0 | AN32: 0 | AO32: 0 | AQ32: 0 | AR32: 0 | AS32: 0 | AU32: 0 | AV32: 0 | AW32: 0
A33: Marcelo Marcondes | B33: 253 | C33: 21 | D33: 10 | E33: 0 | G33: 7 | H33: 30 | I33: 0 | K33: 1 | L33: 45 | M33: 0 | O33: 8 | P33: 28 | Q33: 0 | S33: 24 | T33: 7 | U33: 0 | W33: 17 | X33: 14 | Y33: 0 | AA33: 0 | AB33: 0 | AC33: 0 | AE33: 10 | AF33: 24 | AG33: 0 | AI33: 19 | AJ33: 12 | AK33: 0 | AM33: 1 | AN33: 45 | AO33: 1 | AQ33: 26 | AR33: 5 | AS33: 0 | AU33: 6 | AV33: 32 | AW33: 0
A34: Lucca Veloso | B34: 34 | C34: 0 | D34: 0 | E34: 0 | G34: 0 | H34: 0 | I34: 0 | K34: 0 | L34: 0 | M34: 0 | O34: 0 | P34: 0 | Q34: 0 | S34: 0 | T34: 0 | U34: 0 | W34: 0 | X34: 0 | Y34: 0 | AA34: 0 | AB34: 0 | AC34: 0 | AE34: 6 | AF34: 32 | AG34: 1 | AI34: 50 | AJ34: 0 | AK34: 0 | AM34: 0 | AN34: 0 | AO34: 0 | AQ34: 0 | AR34: 0 | AS34: 0 | AU34: 31 | AV34: 1 | AW34: 0
A35: Clemente Car | B35: 769 | D35: 84 | E35: 0 | H35: 98 | I35: 1 | L35: 67 | M35: 0 | P35: 76 | Q35: 0 | T35: 71 | U35: 1 | X35: 35 | Y35: 0 | AB35: 77 | AC35: 0 | AF35: 45 | AG35: 0 | AJ35: 43 | AK35: 1 | AN35: 64 | AO35: 0 | AR35: 65 | AS35: 0 | AV35: 41 | AW35: 0
A36: Marcelo Clemente | B36: 300 | C36: 27 | D36: 4 | E36: 0 | G36: 17 | H36: 14 | I36: 1 | K36: 11 | L36: 22 | M36: 0 | O36: 15 | P36: 16 | Q36: 0 | S36: 1 | T36: 45 | U36: 1 | W36: 9 | X36: 26 | Y36: 0 | AA36: 1 | AB36: 45 | AC36: 0 | AE36: 1 | AF36: 45 | AG36: 0 | AI36: 7 | AJ36: 30 | AK36: 1 | AM36: 0 | AN36: 0 | AO36: 0 | AQ36: 22 | AR36: 9 | AS36: 0 | AU36: 2 | AV36: 41 | AW36: 0
A37: Cláudio Dumont | B37: 127 | C37: 8 | D37: 28 | E37: 0 | G37: 2 | H37: 41 | I37: 0 | K37: 15 | L37: 16 | M37: 0 | O37: 4 | P37: 36 | Q37: 0 | S37: 25 | T37: 6 | U37: 0 | W37: 0 | X37: 0 | Y37: 0 | AA37: 0 | AB37: 0 | AC37: 0 | AE37: 0 | AF37: 0 | AG37: 0 | AI37: 0 | AJ37: 0 | AK37: 0 | AM37: 0 | AN37: 0 | AO37: 0 | AQ37: 0 | AR37: 0 | AS37: 0 | AU37: 0 | AV37: 0 | AW37: 0
A38: Frederico Papatella | B38: 98 | C38: 5 | D38: 34 | E38: 0 | G38: 14 | H38: 17 | I38: 0 | K38: 28 | L38: 3 | M38: 0 | O38: 0 | P38: 0 | Q38: 0 | S38: 0 | T38: 0 | U38: 0 | W38: 0 | X38: 0 | Y38: 0 | AA38: 0 | AB38: 0 | AC38: 0 | AE38: 0 | AF38: 0 | AG38: 0 | AI38: 0 | AJ38: 0 | AK38: 0 | AM38: 9 | AN38: 26 | AO38: 0 | AQ38: 13 | AR38: 18 | AS38: 0 | AU38: 0 | AV38: 0 | AW38: 0
A39: Maurício Júnior | B39: 244 | C39: 13 | D39: 18 | E39: 0 | G39: 9 | H39: 26 | I39: 0 | K39: 9 | L39: 26 | M39: 0 | O39: 10 | P39: 24 | Q39: 0 | S39: 12 | T39: 20 | U39: 0 | W39: 22 | X39: 9 | Y39: 0 | AA39: 6 | AB39: 32 | AC39: 0 | AE39: 0 | AF39: 0 | AG39: 0 | AI39: 18 | AJ39: 13 | AK39: 0 | AM39: 3 | AN39: 38 | AO39: 0 | AQ39: 3 | AR39: 38 | AS39: 0 | AU39: 0 | AV39: 0 | AW39: 0
A40: XXXXXX | B40: 0
A41: Delcar | B41: 594 | D41: 17 | E41: 0 | H41: 47 | I41: 0 | L41: 61 | M41: 0 | P41: 61 | Q41: 0 | T41: 64 | U41: 0 | X41: 64 | Y41: 0 | AB41: 26 | AC41: 0 | AF41: 48 | AG41: 0 | AJ41: 109 | AK41: 0 | AN41: 20 | AO41: 0 | AR41: 51 | AS41: 0 | AV41: 26 | AW41: 0
A42: Bernardo Gatti | B42: 150 | C42: 25 | D42: 6 | E42: 0 | G42: 13 | H42: 18 | I42: 0 | K42: 7 | L42: 30 | M42: 0 | O42: 6 | P42: 32 | Q42: 0 | S42: 9 | T42: 26 | U42: 0 | W42: 25 | X42: 6 | Y42: 0 | AA42: 0 | AB42: 0 | AC42: 0 | AE42: 0 | AF42: 0 | AG42: 0 | AI42: 6 | AJ42: 32 | AK42: 0 | AM42: 0 | AN42: 0 | AO42: 0 | AQ42: 0 | AR42: 0 | AS42: 0 | AU42: 0 | AV42: 0 | AW42: 0
A43: Eduardo Henrique | B43: 233 | C43: 0 | D43: 0 | E43: 0 | G43: 42 | H43: 1 | I43: 0 | K43: 14 | L43: 17 | M43: 0 | O43: 12 | P43: 20 | Q43: 0 | S43: 3 | T43: 38 | U43: 0 | W43: 4 | X43: 36 | Y43: 0 | AA43: 9 | AB43: 26 | AC43: 0 | AE43: 12 | AF43: 20 | AG43: 0 | AI43: 2 | AJ43: 41 | AK43: 0 | AM43: 0 | AN43: 0 | AO43: 0 | AQ43: 5 | AR43: 34 | AS43: 0 | AU43: 0 | AV43: 0 | AW43: 0
A44: Felipe Bouhid | B44: 125 | C44: 0 | D44: 0 | E44: 0 | G44: 16 | H44: 15 | I44: 0 | K44: 19 | L44: 12 | M44: 0 | O44: 29 | P44: 2 | Q44: 0 | S44: 0 | T44: 0 | U44: 0 | W44: 0 | X44: 0 | Y44: 0 | AA44: 0 | AB44: 0 | AC44: 0 | AE44: 18 | AF44: 13 | AG44: 0 | AI44: 12 | AJ44: 20 | AK44: 0 | AM44: 12 | AN44: 20 | AO44: 0 | AQ44: 14 | AR44: 17 | AS44: 0 | AU44: 9 | AV44: 26 | AW44: 0
A45: Reila Ricardo | B45: 86 | C45: 20 | D45: 11 | E45: 0 | G45: 18 | H45: 13 | I45: 0 | K45: 29 | L45: 2 | M45: 0 | O45: 24 | P45: 7 | Q45: 0 | S45: 0 | T45: 0 | U45: 0 | W45: 11 | X45: 22 | Y45: 0 | AA45: 0 | AB45: 0 | AC45: 0 | AE45: 16 | AF45: 15 | AG45: 0 | AI45: 15 | AJ45: 16 | AK45: 0 | AM45: 0 | AN45: 0 | AO45: 0 | AQ45: 0 | AR45: 0 | AS45: 0 | AU45: 0 | AV45: 0 | AW45: 0
A46: XXXXXXX | B46: 0
A47: Incosel | B47: 790 | D47: 114 | E47: 0 | H47: 74 | I47: 0 | L47: 34 | M47: 0 | P47: 60 | Q47: 0 | T47: 61 | U47: 0 | X47: 58 | Y47: 0 | AB47: 52 | AC47: 0 | AF47: 35 | AG47: 0 | AJ47: 88 | AK47: 0 | AN47: 82 | AO47: 0 | AR47: 66 | AS47: 0 | AV47: 66 | AW47: 0
A48: Rodrigo Mercadante | B48: 135 | C48: 7 | D48: 30 | E48: 0 | G48: 5 | H48: 34 | I48: 0 | K48: 0 | L48: 0 | M48: 0 | O48: 0 | P48: 0 | Q48: 0 | S48: 20 | T48: 11 | U48: 0 | W48: 7 | X48: 30 | Y48: 0 | AA48: 7 | AB48: 30 | AC48: 0 | AE48: 0 | AF48: 0 | AG48: 0 | AI48: 0 | AJ48: 0 | AK48: 0 | AM48: 0 | AN48: 0 | AO48: 0 | AQ48: 0 | AR48: 0 | AS48: 0 | AU48: 0 | AV48: 0 | AW48: 0
A49: Jarbas Reis | B49: 324 | C49: 6 | D49: 32 | E49: 0 | G49: 6 | H49: 32 | I49: 0 | K49: 21 | L49: 10 | M49: 0 | O49: 11 | P49: 22 | Q49: 0 | S49: 4 | T49: 36 | U49: 0 | W49: 8 | X49: 28 | Y49: 0 | AA49: 11 | AB49: 22 | AC49: 0 | AE49: 13 | AF49: 18 | AG49: 0 | AI49: 8 | AJ49: 28 | AK49: 0 | AM49: 7 | AN49: 30 | AO49: 0 | AQ49: 7 | AR49: 30 | AS49: 0 | AU49: 4 | AV49: 36 | AW49: 0
A50: Luciano Robervine | B50: 78 | C50: 4 | D50: 36 | E50: 0 | G50: 33 | H50: 1 | I50: 0 | K50: 16 | L50: 15 | M50: 0 | O50: 9 | P50: 26 | Q50: 0 | S50: 0 | T50: 0 | U50: 0 | W50: 0 | X50: 0 | Y50: 0 | AA50: 0 | AB50: 0 | AC50: 0 | AE50: 0 | AF50: 0 | AG50: 0 | AI50: 0 | AJ50: 0 | AK50: 0 | AM50: 0 | AN50: 0 | AO50: 0 | AQ50: 0 | AR50: 0 | AS50: 0 | AU50: 0 | AV50: 0 | AW50: 0
A51: Renato Amaral | B51: 126 | C51: 15 | D51: 16 | E51: 0 | G51: 24 | H51: 7 | I51: 0 | K51: 22 | L51: 9 | M51: 0 | O51: 19 | P51: 12 | Q51: 0 | S51: 17 | T51: 14 | U51: 0 | W51: 0 | X51: 0 | Y51: 0 | AA51: 0 | AB51: 0 | AC51: 0 | AE51: 0 | AF51: 0 | AG51: 0 | AI51: 5 | AJ51: 34 | AK51: 0 | AM51: 10 | AN51: 24 | AO51: 0 | AQ51: 21 | AR51: 10 | AS51: 0 | AU51: 0 | AV51: 0 | AW51: 0
A52: Vitor Gatti | B52: 127 | C52: 0 | D52: 0 | E52: 0 | G52: 0 | H52: 0 | I52: 0 | K52: 0 | L52: 0 | M52: 0 | O52: 0 | P52: 0 | Q52: 0 | S52: 0 | T52: 0 | U52: 0 | W52: 0 | X52: 0 | Y52: 0 | AA52: 0 | AB52: 0 | AC52: 0 | AE52: 14 | AF52: 17 | AG52: 0 | AI52: 9 | AJ52: 26 | AK52: 0 | AM52: 8 | AN52: 28 | AO52: 0 | AQ52: 9 | AR52: 26 | AS52: 0 | AU52: 7 | AV52: 30 | AW52: 0
A53: Lokamig | B53: 456 | D53: 25 | E53: 0 | H53: 32 | I53: 0 | L53: 38 | M53: 0 | P53: 33 | Q53: 0 | T53: 51 | U53: 0 | X53: 51 | Y53: 0 | AB53: 15 | AC53: 0 | AF53: 49 | AG53: 0 | AJ53: 42 | AK53: 0 | AN53: 29 | AO53: 0 | AR53: 51 | AS53: 0 | AV53: 40 | AW53: 0
A54: Rodrigo Ricardo | B54: 201 | C54: 14 | D54: 17 | E54: 0 | G54: 15 | H54: 16 | I54: 0 | K54: 13 | L54: 18 | M54: 0 | O54: 20 | P54: 11 | Q54: 0 | S54: 14 | T54: 17 | U54: 0 | W54: 13 | X54: 18 | Y54: 0 | AA54: 0 | AB54: 0 | AC54: 0 | AE54: 15 | AF54: 16 | AG54: 0 | AI54: 10 | AJ54: 24 | AK54: 0 | AM54: 11 | AN54: 22 | AO54: 0 | AQ54: 11 | AR54: 22 | AS54: 0 | AU54: 12 | AV54: 20 | AW54: 0
A55: Tati Marcondes | B55: 90 | C55: 23 | D55: 8 | E55: 0 | G55: 26 | H55: 5 | I55: 0 | K55: 20 | L55: 11 | M55: 0 | O55: 22 | P55: 9 | Q55: 0 | S55: 19 | T55: 12 | U55: 0 | W55: 44 | X55: 1 | Y55: 0 | AA55: 0 | AB55: 0 | AC55: 0 | AE55: 21 | AF55: 10 | AG55: 0 | AI55: 13 | AJ55: 18 | AK55: 0 | AM55: 0 | AN55: 0 | AO55: 0 | AQ55: 17 | AR55: 14 | AS55: 0 | AU55: 29 | AV55: 2 | AW55: 0
A56: Jucimar Vieira | B56: 115 | C56: 0 | D56: 0 | E56: 0 | G56: 20 | H56: 11 | I56: 0 | K56: 27 | L56: 4 | M56: 0 | O56: 23 | P56: 8 | Q56: 0 | S56: 18 | T56: 13 | U56: 0 | W56: 19 | X56: 12 | Y56: 0 | AA56: 16 | AB56: 15 | AC56: 0 | AE56: 19 | AF56: 12 | AG56: 0 | AI56: 0 | AJ56: 0 | AK56: 0 | AM56: 24 | AN56: 7 | AO56: 0 | AQ56: 16 | AR56: 15 | AS56: 0 | AU56: 13 | AV56: 18 | AW56: 0
A57: Andre Resende | B57: 50 | C57: 0 | D57: 0 | E57: 0 | G57: 0 | H57: 0 | I57: 0 | K57: 26 | L57: 5 | M57: 0 | O57: 26 | P57: 5 | Q57: 0 | S57: 22 | T57: 9 | U57: 0 | W57: 12 | X57: 20 | Y57: 0 | AA57: 0 | AB57: 0 | AC57: 0 | AE57: 20 | AF57: 11 | AG57: 0 | AI57: 0 | AJ57: 0 | AK57: 0 | AM57: 0 | AN57: 0 | AO57: 0 | AQ57: 0 | AR57: 0 | AS57: 0 | AU57: 0 | AV57: 0 | AW57: 0
A58: Gabriel Garabini | B58: 0 | C58: 0 | D58: 0 | E58: 0 | G58: 0 | H58: 0 | I58: 0 | K58: 0 | L58: 0 | M58: 0 | O58: 0 | P58: 0 | Q58: 0 | S58: 0 | T58: 0 | U58: 0 | W58: 0 | X58: 0 | Y58: 0 | AA58: 0 | AB58: 0 | AC58: 0 | AE58: 0 | AF58: 0 | AG58: 0 | AI58: 0 | AJ58: 0 | AK58: 0 | AM58: 0 | AN58: 0 | AO58: 0 | AQ58: 0 | AR58: 0 | AS58: 0 | AU58: 0 | AV58: 0 | AW58: 0

Sheet Class Elimin 2 Piores Equip
A1: 2022 | D1: OK | H1: OK | L1: OK | P1: OK | T1: OK | X1: OK | AB1: OK | AF1: OK | AJ1: OK | AN1: OK | AR1: OK | AV1: OK
C2: 1ª etapa | G2: 2ª etapa | K2: 3ª etapa | O2: 4ª etapa | S2: 5ª etapa | W2: 6ª etapa | AA2: 7ª etapa | AE2: 8ª etapa | AI2: 9ª etapa | AM2: 10ª etapa | AQ2: 11ª etapa | AU2: 12ª etapa
C3: 00:00:00 | G3: 00:00:00 | K3: 13/03/2022 - 10:00 - Domingo | O3: 00:00:00 | S3: 00:00:00 | W3: 00:00:00 | AA3: 00:00:00 | AE3: 00:00:00 | AI3: 00:00:00 | AM3: 00:00:00 | AQ3: 00:00:00 | AU3: 00:00:00
A4: EQUIPES | B4: Pontuação Geral | C4: Posição | D4: Pontos | E4: Bônus | F4: Penalidade | G4: Posição | H4: Pontos | I4: Bônus | J4: Penalidade | K4: Posição | L4: Pontos | M4: Bônus | N4: Penalidade | O4: Posição | P4: Pontos | Q4: Bônus | R4: Penalidade | S4: Posição | T4: Pontos | U4: Bônus | V4: Penalidade | W4: Posição | X4: Pontos | Y4: Bônus | Z4: Penalidade | AA4: Posição | AB4: Pontos | AC4: Bônus | AD4: Penalidade | AE4: Posição | AF4: Pontos | AG4: Bônus | AH4: Penalidade | AI4: Posição | AJ4: Pontos | AK4: Bônus | AL4: Penalidade | AM4: Posição | AN4: Pontos | AO4: Bônus | AP4: Penalidade | AQ4: Posição | AR4: Pontos | AS4: Bônus | AT4: Penalidade | AU4: Posição | AV4: Pontos | AW4: Bônus | AX4: Penalidade
A5: LQN | B5: 844 | D5: 59 | E5: 0 | H5: 95 | I5: 0 | L5: 97 | M5: 0 | P5: 103 | Q5: 0 | T5: 88 | U5: 0 | X5: 100 | Y5: 0 | AB5: 56* | AC5: 0 | AF5: 97 | AG5: 1 | AJ5: 43* | AK5: 0 | AN5: 79 | AO5: 1 | AR5: 57 | AS5: 0 | AV5: 67 | AW5: 0
A6: Alexandre Melillo | B6: 228 | C6: 11 | D6: 22 | E6: 0 | G6: 12 | H6: 20 | I6: 0 | K6: 17 | L6: 14 | M6: 0 | O6: 2 | P6: 41 | Q6: 0 | S6: 6 | T6: 32 | U6: 0 | W6: 2 | X6: 41 | Y6: 0 | AA6: 4 | AB6: 36* | AC6: 0 | AE6: 11 | AF6: 22* | AG6: 0 | AI6: 17 | AJ6: 14* | AK6: 0 | AM6: 5 | AN6: 34 | AO6: 0 | AQ6: 10 | AR6: 24 | AS6: 0 | AU6: 0 | AV6: 0 | AW6: 0
A7: Wesley Bambirra | B7: 330 | C7: 10 | D7: 24 | E7: 0 | G7: 1 | H7: 45 | I7: 0 | K7: 3 | L7: 38 | M7: 0 | O7: 5 | P7: 34 | Q7: 0 | S7: 2 | T7: 41 | U7: 0 | W7: 1 | X7: 45 | Y7: 0 | AA7: 12 | AB7: 20* | AC7: 0 | AE7: 2 | AF7: 41 | AG7: 0 | AI7: 14 | AJ7: 17* | AK7: 0 | AM7: 0 | AN7: 0 | AO7: 0 | AQ7: 8 | AR7: 28 | AS7: 0 | AU7: 5 | AV7: 34 | AW7: 0
A8: SSSSS | B8: 28 | C8: 18 | D8: 13 | E8: 0 | G8: 19 | H8: 12* | I8: 0 | K8: 0 | L8: 0 | M8: 0 | O8: 21 | P8: 10* | Q8: 0 | S8: 16 | T8: 15 | U8: 0 | W8: 0 | X8: 0 | Y8: 0 | AA8: 0 | AB8: 0* | AC8: 0 | AE8: 0 | AF8: 0 | AG8: 0 | AI8: 0 | AJ8: 0* | AK8: 0 | AM8: 0 | AN8: 0 | AO8: 0 | AQ8: 0 | AR8: 0 | AS8: 0 | AU8: 0 | AV8: 0 | AW8: 0
A9: Marcelo Marcondes | B9: 224 | C9: 21 | D9: 10* | E9: 0 | G9: 7 | H9: 30 | I9: 0 | K9: 1 | L9: 45 | M9: 0 | O9: 8 | P9: 28 | Q9: 0 | S9: 24 | T9: 7* | U9: 0 | W9: 17 | X9: 14 | Y9: 0 | AA9: 0 | AB9: 0* | AC9: 0 | AE9: 10 | AF9: 24 | AG9: 0 | AI9: 19 | AJ9: 12* | AK9: 0 | AM9: 1 | AN9: 45 | AO9: 1 | AQ9: 26 | AR9: 5 | AS9: 0 | AU9: 6 | AV9: 32 | AW9: 0
A10: Lucca Veloso | B10: 34 | C10: 0 | D10: 0 | E10: 0 | G10: 0 | H10: 0 | I10: 0 | K10: 0 | L10: 0 | M10: 0 | O10: 0 | P10: 0 | Q10: 0 | S10: 0 | T10: 0 | U10: 0 | W10: 0 | X10: 0 | Y10: 0 | AA10: 0 | AB10: 0* | AC10: 0 | AE10: 6 | AF10: 32 | AG10: 1 | AI10: 50 | AJ10: 0* | AK10: 0 | AM10: 0 | AN10: 0 | AO10: 0 | AQ10: 0 | AR10: 0 | AS10: 0 | AU10: 31 | AV10: 1 | AW10: 0
A11: Incosel | B11: 704 | D11: 98 | E11: 0 | H11: 73 | I11: 0 | L11: 34* | M11: 0 | P11: 60 | Q11: 0 | T11: 61 | U11: 0 | X11: 58 | Y11: 0 | AB11: 52 | AC11: 0 | AF11: 35* | AG11: 0 | AJ11: 88 | AK11: 0 | AN11: 82 | AO11: 0 | AR11: 66 | AS11: 0 | AV11: 66 | AW11: 0
A12: Rodrigo Mercadante | B12: 135 | C12: 7 | D12: 30 | E12: 0 | G12: 5 | H12: 34 | I12: 0 | K12: 0 | L12: 0* | M12: 0 | O12: 0 | P12: 0 | Q12: 0 | S12: 20 | T12: 11 | U12: 0 | W12: 7 | X12: 30 | Y12: 0 | AA12: 7 | AB12: 30 | AC12: 0 | AE12: 0 | AF12: 0* | AG12: 0 | AI12: 0 | AJ12: 0 | AK12: 0 | AM12: 0 | AN12: 0 | AO12: 0 | AQ12: 0 | AR12: 0 | AS12: 0 | AU12: 0 | AV12: 0 | AW12: 0
A13: Jarbas Reis | B13: 296 | C13: 6 | D13: 32 | E13: 0 | G13: 6 | H13: 32 | I13: 0 | K13: 21 | L13: 10* | M13: 0 | O13: 11 | P13: 22 | Q13: 0 | S13: 4 | T13: 36 | U13: 0 | W13: 8 | X13: 28 | Y13: 0 | AA13: 11 | AB13: 22 | AC13: 0 | AE13: 13 | AF13: 18* | AG13: 0 | AI13: 8 | AJ13: 28 | AK13: 0 | AM13: 7 | AN13: 30 | AO13: 0 | AQ13: 7 | AR13: 30 | AS13: 0 | AU13: 4 | AV13: 36 | AW13: 0
A14: Luciano Robervine | B14: 62 | C14: 4 | D14: 36 | E14: 0 | G14: 33 | H14: 1* | I14: 0 | K14: 16 | L14: 15* | M14: 0 | O14: 9 | P14: 26 | Q14: 0 | S14: 0 | T14: 0 | U14: 0 | W14: 0 | X14: 0 | Y14: 0 | AA14: 0 | AB14: 0 | AC14: 0 | AE14: 0 | AF14: 0* | AG14: 0 | AI14: 0 | AJ14: 0 | AK14: 0 | AM14: 0 | AN14: 0 | AO14: 0 | AQ14: 0 | AR14: 0 | AS14: 0 | AU14: 0 | AV14: 0 | AW14: 0
A15: Renato Amaral | B15: 101 | C15: 15 | D15: 16* | E15: 0 | G15: 24 | H15: 7 | I15: 0 | K15: 22 | L15: 9* | M15: 0 | O15: 19 | P15: 12 | Q15: 0 | S15: 17 | T15: 14 | U15: 0 | W15: 0 | X15: 0 | Y15: 0 | AA15: 0 | AB15: 0 | AC15: 0 | AE15: 0 | AF15: 0* | AG15: 0 | AI15: 5 | AJ15: 34 | AK15: 0 | AM15: 10 | AN15: 24 | AO15: 0 | AQ15: 21 | AR15: 10 | AS15: 0 | AU15: 0 | AV15: 0 | AW15: 0
A16: Vitor Gatti | B16: 110 | C16: 0 | D16: 0 | E16: 0 | G16: 0 | H16: 0 | I16: 0 | K16: 0 | L16: 0* | M16: 0 | O16: 0 | P16: 0 | Q16: 0 | S16: 0 | T16: 0 | U16: 0 | W16: 0 | X16: 0 | Y16: 0 | AA16: 0 | AB16: 0 | AC16: 0 | AE16: 14 | AF16: 17* | AG16: 0 | AI16: 9 | AJ16: 26 | AK16: 0 | AM16: 8 | AN16: 28 | AO16: 0 | AQ16: 9 | AR16: 26 | AS16: 0 | AU16: 7 | AV16: 30 | AW16: 0
A17: Clemente Car | B17: 672 | D17: 80 | E17: 0 | H17: 84 | I17: 1 | L17: 64 | M17: 0 | P17: 76 | Q17: 0 | T17: 71 | U17: 1 | X17: 35* | Y17: 0 | AB17: 77 | AC17: 0 | AF17: 45 | AG17: 0 | AJ17: 43 | AK17: 1 | AN17: 64 | AO17: 0 | AR17: 65 | AS17: 0 | AV17: 41* | AW17: 0
A18: Marcelo Clemente | B18: 215 | C18: 27 | D18: 4* | E18: 0 | G18: 17 | H18: 14* | I18: 1 | K18: 11 | L18: 22 | M18: 0 | O18: 15 | P18: 16 | Q18: 0 | S18: 1 | T18: 45 | U18: 1 | W18: 9 | X18: 26* | Y18: 0 | AA18: 1 | AB18: 45 | AC18: 0 | AE18: 1 | AF18: 45 | AG18: 0 | AI18: 7 | AJ18: 30 | AK18: 1 | AM18: 0 | AN18: 0 | AO18: 0 | AQ18: 22 | AR18: 9 | AS18: 0 | AU18: 2 | AV18: 41* | AW18: 0
A19: Cláudio Dumont | B19: 127 | C19: 8 | D19: 28 | E19: 0 | G19: 2 | H19: 41 | I19: 0 | K19: 15 | L19: 16 | M19: 0 | O19: 4 | P19: 36 | Q19: 0 | S19: 25 | T19: 6 | U19: 0 | W19: 0 | X19: 0* | Y19: 0 | AA19: 0 | AB19: 0 | AC19: 0 | AE19: 0 | AF19: 0 | AG19: 0 | AI19: 0 | AJ19: 0 | AK19: 0 | AM19: 0 | AN19: 0 | AO19: 0 | AQ19: 0 | AR19: 0 | AS19: 0 | AU19: 0 | AV19: 0* | AW19: 0
A20: Frederico Papatella | B20: 95 | C20: 5 | D20: 34 | E20: 0 | G20: 14 | H20: 17 | I20: 0 | K20: 28 | L20: 3* | M20: 0 | O20: 0 | P20: 0 | Q20: 0 | S20: 0 | T20: 0 | U20: 0 | W20: 0 | X20: 0* | Y20: 0 | AA20: 0 | AB20: 0 | AC20: 0 | AE20: 0 | AF20: 0 | AG20: 0 | AI20: 0 | AJ20: 0 | AK20: 0 | AM20: 9 | AN20: 26 | AO20: 0 | AQ20: 13 | AR20: 18 | AS20: 0 | AU20: 0 | AV20: 0* | AW20: 0
A21: Maurício Júnior | B21: 235 | C21: 13 | D21: 18 | E21: 0 | G21: 9 | H21: 26 | I21: 0 | K21: 9 | L21: 26 | M21: 0 | O21: 10 | P21: 24 | Q21: 0 | S21: 12 | T21: 20 | U21: 0 | W21: 22 | X21: 9* | Y21: 0 | AA21: 6 | AB21: 32 | AC21: 0 | AE21: 0 | AF21: 0 | AG21: 0 | AI21: 18 | AJ21: 13 | AK21: 0 | AM21: 3 | AN21: 38 | AO21: 0 | AQ21: 3 | AR21: 38 | AS21: 0 | AU21: 0 | AV21: 0* | AW21: 0
A22: XXXXXX | B22: 0 | X22: * | AV22: *
A23: Lider | B23: 653 | D23: 79 | E23: 1 | H23: 66 | I23: 0 | L23: 77 | M23: 1 | P23: 69 | Q23: 0 | T23: 52 | U23: 0 | X23: 11* | Y23: 1 | AB23: 62 | AC23: 1 | AF23: 60 | AG23: 0 | AJ23: 83 | AK23: 0 | AN23: 37 | AO23: 0 | AR23: 63 | AS23: 1 | AV23: 29* | AW23: 0
A24: Marcelo Campos | B24: 378 | C24: 2 | D24: 41 | E24: 1 | G24: 8 | H24: 28 | I24: 0 | K24: 4 | L24: 36 | M24: 0 | O24: 1 | P24: 45 | Q24: 0 | S24: 5 | T24: 34 | U24: 0 | W24: 20 | X24: 11* | Y24: 1 | AA24: 2 | AB24: 41 | AC24: 1 | AE24: 5 | AF24: 34 | AG24: 0 | AI24: 3 | AJ24: 38 | AK24: 0 | AM24: 6 | AN24: 32 | AO24: 0 | AQ24: 1 | AR24: 45 | AS24: 1 | AU24: 10 | AV24: 24* | AW24: 0
A25: Marcelo Pereira | B25: 244 | C25: 3 | D25: 38 | E25: 0 | G25: 3 | H25: 38 | I25: 0 | K25: 2 | L25: 41 | M25: 1 | O25: 13 | P25: 18 | Q25: 0 | S25: 13 | T25: 18 | U25: 0 | W25: 0 | X25: 0* | Y25: 0 | AA25: 24 | AB25: 7 | AC25: 0 | AE25: 9 | AF25: 26 | AG25: 0 | AI25: 1 | AJ25: 45 | AK25: 0 | AM25: 26 | AN25: 5 | AO25: 0 | AQ25: 24 | AR25: 7 | AS25: 0 | AU25: 26 | AV25: 5* | AW25: 0
A26: Wesley Camargos | B26: 31 | C26: 0 | D26: 0 | E26: 0 | G26: 0 | H26: 0 | I26: 0 | K26: 0 | L26: 0 | M26: 0 | O26: 25 | P26: 6 | Q26: 0 | S26: 0 | T26: 0 | U26: 0 | W26: 0 | X26: 0* | Y26: 0 | AA26: 17 | AB26: 14 | AC26: 0 | AE26: 0 | AF26: 0 | AG26: 0 | AI26: 0 | AJ26: 0 | AK26: 0 | AM26: 0 | AN26: 0 | AO26: 0 | AQ26: 20 | AR26: 11 | AS26: 0 | AU26: 0 | AV26: 0* | AW26: 0
A27: Hugo Denucci | B27: 0 | C27: 0 | D27: 0 | E27: 0 | G27: 0 | H27: 0 | I27: 0 | K27: 0 | L27: 0 | M27: 0 | O27: 0 | P27: 0 | Q27: 0 | S27: 0 | T27: 0 | U27: 0 | W27: 0 | X27: 0* | Y27: 0 | AA27: 0 | AB27: 0 | AC27: 0 | AE27: 0 | AF27: 0 | AG27: 0 | AI27: 0 | AJ27: 0 | AK27: 0 | AM27: 0 | AN27: 0 | AO27: 0 | AQ27: 0 | AR27: 0 | AS27: 0 | AU27: 0 | AV27: 0* | AW27: 0
A28: X | X28: * | AV28: *
A29: Ventura | B29: 607 | D29: 33 | E29: 0 | H29: 38 | I29: 0 | L29: 55 | M29: 0 | P29: 31* | Q29: 0 | T29: 53 | U29: 0 | X29: 90 | Y29: 0 | AB29: 63 | AC29: 0 | AF29: 46 | AG29: 0 | AJ29: 15* | AK29: 0 | AN29: 58 | AO29: 0 | AR29: 90 | AS29: 0 | AV29: 81 | AW29: 0
A30: Marcelo Sant'anna | B30: 56 | C30: 17 | D30: 14 | E30: 0 | G30: 21 | H30: 10 | I30: 0 | K30: 47 | L30: 1* | M30: 0 | O30: 0 | P30: 0* | Q30: 0 | S30: 0 | T30: 0 | U30: 0 | W30: 6 | X30: 32 | Y30: 0 | AA30: 0 | AB30: 0 | AC30: 0 | AE30: 0 | AF30: 0 | AG30: 0 | AI30: 0 | AJ30: 0* | AK30: 0 | AM30: 0 | AN30: 0 | AO30: 0 | AQ30: 0 | AR30: 0 | AS30: 0 | AU30: 0 | AV30: 0 | AW30: 0
A31: Wesley Canuto | B31: 283 | C31: 28 | D31: 3* | E31: 0 | G31: 10 | H31: 24 | I31: 0 | K31: 12 | L31: 20 | M31: 0 | O31: 7 | P31: 30* | Q31: 0 | S31: 10 | T31: 24 | U31: 0 | W31: 5 | X31: 34 | Y31: 0 | AA31: 8 | AB31: 28 | AC31: 0 | AE31: 3 | AF31: 38 | AG31: 0 | AI31: 16 | AJ31: 15* | AK31: 0 | AM31: 2 | AN31: 41 | AO31: 0 | AQ31: 4 | AR31: 36 | AS31: 0 | AU31: 3 | AV31: 38 | AW31: 0
A32: Cláudio Naves | B32: 77 | C32: 24 | D32: 7 | E32: 0 | G32: 27 | H32: 4 | I32: 0 | K32: 24 | L32: 7 | M32: 0 | O32: 33 | P32: 1* | Q32: 0 | S32: 44 | T32: 1 | U32: 0 | W32: 14 | X32: 17* | Y32: 0 | AA32: 14 | AB32: 17 | AC32: 0 | AE32: 0 | AF32: 0 | AG32: 0 | AI32: 0 | AJ32: 0* | AK32: 0 | AM32: 0 | AN32: 0 | AO32: 0 | AQ32: 18 | AR32: 13 | AS32: 0 | AU32: 8 | AV32: 28 | AW32: 0
A33: Marcelo Chagas | B33: 191 | C33: 19 | D33: 12 | E33: 0 | G33: 0 | H33: 0 | I33: 0 | K33: 8 | L33: 28 | M33: 0 | O33: 0 | P33: 0* | Q33: 0 | S33: 8 | T33: 28 | U33: 0 | W33: 10 | X33: 24 | Y33: 0 | AA33: 13 | AB33: 18 | AC33: 0 | AE33: 23 | AF33: 8 | AG33: 0 | AI33: 0 | AJ33: 0* | AK33: 0 | AM33: 14 | AN33: 17 | AO33: 0 | AQ33: 2 | AR33: 41 | AS33: 0 | AU33: 16 | AV33: 15 | AW33: 0
A34: XXXX | P34: * | AJ34: *
A35: Delcar | B35: 536 | D35: 17* | E35: 0 | H35: 46 | I35: 0 | L35: 59 | M35: 0 | P35: 59 | Q35: 0 | T35: 64 | U35: 0 | X35: 64 | Y35: 0 | AB35: 26 | AC35: 0 | AF35: 48 | AG35: 0 | AJ35: 93 | AK35: 0 | AN35: 20* | AO35: 0 | AR35: 51 | AS35: 0 | AV35: 26 | AW35: 0
A36: Bernardo Gatti | B36: 144 | C36: 25 | D36: 6* | E36: 0 | G36: 13 | H36: 18 | I36: 0 | K36: 7 | L36: 30 | M36: 0 | O36: 6 | P36: 32 | Q36: 0 | S36: 9 | T36: 26 | U36: 0 | W36: 25 | X36: 6 | Y36: 0 | AA36: 0 | AB36: 0 | AC36: 0 | AE36: 0 | AF36: 0 | AG36: 0 | AI36: 6 | AJ36: 32 | AK36: 0 | AM36: 0 | AN36: 0* | AO36: 0 | AQ36: 0 | AR36: 0 | AS36: 0 | AU36: 0 | AV36: 0 | AW36: 0
A37: Eduardo Henrique | B37: 232 | C37: 0 | D37: 0* | E37: 0 | G37: 42 | H37: 1* | I37: 0 | K37: 14 | L37: 17 | M37: 0 | O37: 12 | P37: 20 | Q37: 0 | S37: 3 | T37: 38 | U37: 0 | W37: 4 | X37: 36 | Y37: 0 | AA37: 9 | AB37: 26 | AC37: 0 | AE37: 12 | AF37: 20 | AG37: 0 | AI37: 2 | AJ37: 41 | AK37: 0 | AM37: 0 | AN37: 0* | AO37: 0 | AQ37: 5 | AR37: 34 | AS37: 0 | AU37: 0 | AV37: 0 | AW37: 0
A38: Felipe Bouhid | B38: 103 | C38: 0 | D38: 0* | E38: 0 | G38: 16 | H38: 15 | I38: 0 | K38: 19 | L38: 12 | M38: 0 | O38: 29 | P38: 2* | Q38: 0 | S38: 0 | T38: 0 | U38: 0 | W38: 0 | X38: 0 | Y38: 0 | AA38: 0 | AB38: 0 | AC38: 0 | AE38: 18 | AF38: 13 | AG38: 0 | AI38: 12 | AJ38: 20 | AK38: 0 | AM38: 12 | AN38: 20* | AO38: 0 | AQ38: 14 | AR38: 17 | AS38: 0 | AU38: 9 | AV38: 26 | AW38: 0
A39: Reila Ricardo | B39: 57 | C39: 20 | D39: 11* | E39: 0 | G39: 18 | H39: 13 | I39: 0 | K39: 29 | L39: 2* | M39: 0 | O39: 24 | P39: 7 | Q39: 0 | S39: 0 | T39: 0 | U39: 0 | W39: 11 | X39: 22 | Y39: 0 | AA39: 0 | AB39: 0 | AC39: 0 | AE39: 16 | AF39: 15 | AG39: 0 | AI39: 15 | AJ39: 16* | AK39: 0 | AM39: 0 | AN39: 0* | AO39: 0 | AQ39: 0 | AR39: 0 | AS39: 0 | AU39: 0 | AV39: 0 | AW39: 0
A40: XXXXXXX | B40: 0 | D40: * | AN40: *
A41: Santiago | B41: 521 | D41: 60 | E41: 0 | H41: 45 | I41: 0 | L41: 35* | M41: 0 | P41: 40 | Q41: 1 | T41: 38 | U41: 0 | X41: 61 | Y41: 0 | AB41: 75 | AC41: 0 | AF41: 67 | AG41: 0 | AJ41: 36 | AK41: 0 | AN41: 36 | AO41: 0 | AR41: 30* | AS41: 0 | AV41: 61 | AW41: 1
A42: Daniel Nahum | B42: 352 | C42: 1 | D42: 45 | E42: 0 | G42: 4 | H42: 36 | I42: 0 | K42: 5 | L42: 34* | M42: 0 | O42: 3 | P42: 38 | Q42: 1 | S42: 23 | T42: 8 | U42: 0 | W42: 3 | X42: 38 | Y42: 0 | AA42: 3 | AB42: 38 | AC42: 0 | AE42: 7 | AF42: 30 | AG42: 0 | AI42: 4 | AJ42: 36 | AK42: 0 | AM42: 4 | AN42: 36 | AO42: 0 | AQ42: 23 | AR42: 8* | AS42: 0 | AU42: 1 | AV42: 45 | AW42: 1
A43: Pedro Mello | B43: 13 | C43: 0 | D43: 0 | E43: 0 | G43: 29 | H43: 2* | I43: 0 | K43: 0 | L43: 0* | M43: 0 | O43: 0 | P43: 0 | Q43: 0 | S43: 0 | T43: 0 | U43: 0 | W43: 18 | X43: 13 | Y43: 0 | AA43: 0 | AB43: 0 | AC43: 0 | AE43: 0 | AF43: 0 | AG43: 0 | AI43: 0 | AJ43: 0 | AK43: 0 | AM43: 0 | AN43: 0 | AO43: 0 | AQ43: 0 | AR43: 0* | AS43: 0 | AU43: 0 | AV43: 0 | AW43: 0
A44: Leandro Malias | B44: 47 | C44: 16 | D44: 15 | E44: 0 | G44: 25 | H44: 6 | I44: 0 | K44: 0 | L44: 0* | M44: 0 | O44: 0 | P44: 0 | Q44: 0 | S44: 0 | T44: 0 | U44: 0 | W44: 21 | X44: 10 | Y44: 0 | AA44: 19 | AB44: 12* | AC44: 0 | AE44: 0 | AF44: 0 | AG44: 0 | AI44: 0 | AJ44: 0 | AK44: 0 | AM44: 0 | AN44: 0 | AO44: 0 | AQ44: 15 | AR44: 16* | AS44: 0 | AU44: 15 | AV44: 16 | AW44: 0
A45: Lucas Guimarães | B45: 83 | C45: 0 | D45: 0 | E45: 0 | G45: 32 | H45: 1* | I45: 0 | K45: 0 | L45: 0* | M45: 0 | O45: 33 | P45: 1 | Q45: 0 | S45: 7 | T45: 30 | U45: 0 | W45: 0 | X45: 0 | Y45: 0 | AA45: 10 | AB45: 24 | AC45: 0 | AE45: 8 | AF45: 28 | AG45: 0 | AI45: 0 | AJ45: 0 | AK45: 0 | AM45: 0 | AN45: 0 | AO45: 0 | AQ45: 0 | AR45: 0* | AS45: 0 | AU45: 0 | AV45: 0 | AW45: 0
A46: Roberta Epifânio | B46: 26 | C46: 0 | D46: 0 | E46: 0 | G46: 28 | H46: 3 | I46: 0 | K46: 30 | L46: 1* | M46: 0 | O46: 30 | P46: 1 | Q46: 0 | S46: 0 | T46: 0 | U46: 0 | W46: 33 | X46: 1* | Y46: 0 | AA46: 18 | AB46: 13 | AC46: 0 | AE46: 22 | AF46: 9 | AG46: 0 | AI46: 0 | AJ46: 0 | AK46: 0 | AM46: 0 | AN46: 0 | AO46: 0 | AQ46: 25 | AR46: 6* | AS46: 0 | AU46: 0 | AV46: 0 | AW46: 0
A47: Alpha | B47: 502 | D47: 55 | E47: 0 | H47: 39 | I47: 0 | L47: 69 | M47: 0 | P47: 46 | Q47: 0 | T47: 48 | U47: 0 | X47: 35 | Y47: 0 | AB47: 55 | AC47: 0 | AF47: 51 | AG47: 0 | AJ47: 22* | AK47: 0 | AN47: 18* | AO47: 0 | AR47: 64 | AS47: 0 | AV47: 40 | AW47: 0
A48: Guilherme Alves | B48: 227 | C48: 9 | D48: 26 | E48: 0 | G48: 11 | H48: 22 | I48: 0 | K48: 10 | L48: 24 | M48: 0 | O48: 16 | P48: 15 | Q48: 0 | S48: 11 | T48: 22 | U48: 0 | W48: 16 | X48: 15 | Y48: 0 | AA48: 5 | AB48: 34 | AC48: 0 | AE48: 4 | AF48: 36 | AG48: 0 | AI48: 11 | AJ48: 22* | AK48: 0 | AM48: 0 | AN48: 0* | AO48: 0 | AQ48: 6 | AR48: 32 | AS48: 0 | AU48: 37 | AV48: 1 | AW48: 0
A49: Raphael Reis | B49: 84 | C49: 12 | D49: 20 | E49: 0 | G49: 22 | H49: 9 | I49: 0 | K49: 18 | L49: 13 | M49: 0 | O49: 18 | P49: 13* | Q49: 0 | S49: 0 | T49: 0 | U49: 0 | W49: 0 | X49: 0 | Y49: 0 | AA49: 0 | AB49: 0 | AC49: 0 | AE49: 0 | AF49: 0 | AG49: 0 | AI49: 0 | AJ49: 0* | AK49: 0 | AM49: 0 | AN49: 0* | AO49: 0 | AQ49: 12 | AR49: 20 | AS49: 0 | AU49: 11 | AV49: 22 | AW49: 0
A50: Bernardo Freitas | B50: 66 | C50: 26 | D50: 5* | E50: 0 | G50: 0 | H50: 0 | I50: 0 | K50: 6 | L50: 32 | M50: 0 | O50: 17 | P50: 14 | Q50: 0 | S50: 15 | T50: 16 | U50: 0 | W50: 27 | X50: 4 | Y50: 0 | AA50: 0 | AB50: 0 | AC50: 0 | AE50: 0 | AF50: 0 | AG50: 0 | AI50: 0 | AJ50: 0* | AK50: 0 | AM50: 0 | AN50: 0* | AO50: 0 | AQ50: 0 | AR50: 0 | AS50: 0 | AU50: 0 | AV50: 0 | AW50: 0
A51: Hélio Chagas | B51: 91 | C51: 22 | D51: 9 | E51: 0 | G51: 23 | H51: 8 | I51: 0 | K51: 23 | L51: 8* | M51: 0 | O51: 0 | P51: 0 | Q51: 0 | S51: 21 | T51: 10 | U51: 0 | W51: 15 | X51: 16 | Y51: 0 | AA51: 26 | AB51: 5 | AC51: 0 | AE51: 17 | AF51: 14 | AG51: 0 | AI51: 0 | AJ51: 0* | AK51: 0 | AM51: 13 | AN51: 18* | AO51: 0 | AQ51: 19 | AR51: 12 | AS51: 0 | AU51: 14 | AV51: 17 | AW51: 0
A52: Izabella Rodrigues | B52: 34 | C52: 0 | D52: 0 | E52: 0 | G52: 0 | H52: 0 | I52: 0 | K52: 25 | L52: 6* | M52: 0 | O52: 14 | P52: 17 | Q52: 0 | S52: 0 | T52: 0 | U52: 0 | W52: 0 | X52: 0 | Y52: 0 | AA52: 15 | AB52: 16 | AC52: 0 | AE52: 32 | AF52: 1 | AG52: 0 | AI52: 0 | AJ52: 0* | AK52: 0 | AM52: 0 | AN52: 0* | AO52: 0 | AQ52: 0 | AR52: 0 | AS52: 0 | AU52: 0 | AV52: 0 | AW52: 0
A53: Lokamig | B53: 387 | D53: 25* | E53: 0 | H53: 32 | I53: 0 | L53: 34 | M53: 0 | P53: 28 | Q53: 0 | T53: 42 | U53: 0 | X53: 50 | Y53: 0 | AB53: 15* | AC53: 0 | AF53: 39 | AG53: 0 | AJ53: 42 | AK53: 0 | AN53: 29 | AO53: 0 | AR53: 51 | AS53: 0 | AV53: 40 | AW53: 0
A54: Rodrigo Ricardo | B54: 184 | C54: 14 | D54: 17* | E54: 0 | G54: 15 | H54: 16 | I54: 0 | K54: 13 | L54: 18 | M54: 0 | O54: 20 | P54: 11 | Q54: 0 | S54: 14 | T54: 17 | U54: 0 | W54: 13 | X54: 18 | Y54: 0 | AA54: 0 | AB54: 0* | AC54: 0 | AE54: 15 | AF54: 16 | AG54: 0 | AI54: 10 | AJ54: 24 | AK54: 0 | AM54: 11 | AN54: 22 | AO54: 0 | AQ54: 11 | AR54: 22 | AS54: 0 | AU54: 12 | AV54: 20 | AW54: 0
A55: Tati Marcondes | B55: 71 | C55: 23 | D55: 8* | E55: 0 | G55: 26 | H55: 5 | I55: 0 | K55: 20 | L55: 11 | M55: 0 | O55: 22 | P55: 9 | Q55: 0 | S55: 19 | T55: 12 | U55: 0 | W55: 44 | X55: 1* | Y55: 0 | AA55: 0 | AB55: 0* | AC55: 0 | AE55: 21 | AF55: 10* | AG55: 0 | AI55: 13 | AJ55: 18 | AK55: 0 | AM55: 0 | AN55: 0 | AO55: 0 | AQ55: 17 | AR55: 14 | AS55: 0 | AU55: 29 | AV55: 2 | AW55: 0
A56: Jucimar Vieira | B56: 96 | C56: 0 | D56: 0* | E56: 0 | G56: 20 | H56: 11 | I56: 0 | K56: 27 | L56: 4* | M56: 0 | O56: 23 | P56: 8 | Q56: 0 | S56: 18 | T56: 13 | U56: 0 | W56: 19 | X56: 12 | Y56: 0 | AA56: 16 | AB56: 15* | AC56: 0 | AE56: 19 | AF56: 12 | AG56: 0 | AI56: 0 | AJ56: 0 | AK56: 0 | AM56: 24 | AN56: 7 | AO56: 0 | AQ56: 16 | AR56: 15 | AS56: 0 | AU56: 13 | AV56: 18 | AW56: 0
A57: Andre Resende | B57: 36 | C57: 0 | D57: 0* | E57: 0 | G57: 0 | H57: 0 | I57: 0 | K57: 26 | L57: 5 | M57: 0 | O57: 26 | P57: 5* | Q57: 0 | S57: 22 | T57: 9* | U57: 0 | W57: 12 | X57: 20 | Y57: 0 | AA57: 0 | AB57: 0* | AC57: 0 | AE57: 20 | AF57: 11 | AG57: 0 | AI57: 0 | AJ57: 0 | AK57: 0 | AM57: 0 | AN57: 0 | AO57: 0 | AQ57: 0 | AR57: 0 | AS57: 0 | AU57: 0 | AV57: 0 | AW57: 0
A58: Gabriel Garabini | B58: 0 | C58: 0 | D58: 0* | E58: 0 | G58: 0 | H58: 0 | I58: 0 | K58: 0 | L58: 0 | M58: 0 | O58: 0 | P58: 0 | Q58: 0 | S58: 0 | T58: 0 | U58: 0 | W58: 0 | X58: 0 | Y58: 0 | AA58: 0 | AB58: 0* | AC58: 0 | AE58: 0 | AF58: 0 | AG58: 0 | AI58: 0 | AJ58: 0 | AK58: 0 | AM58: 0 | AN58: 0 | AO58: 0 | AQ58: 0 | AR58: 0 | AS58: 0 | AU58: 0 | AV58: 0 | AW58: 0

Sheet Posição x Pontos
H1: Posição | I1: Pontos
H2: 1 | I2: 45
H3: 2 | I3: 41
H4: 3 | I4: 38
H5: 4 | I5: 36
H6: 5 | I6: 34
H7: 6 | I7: 32
H8: 7 | I8: 30
H9: 8 | I9: 28
H10: 9 | I10: 26
H11: 10 | I11: 24
H12: 11 | I12: 22
H13: 12 | I13: 20
H14: 13 | I14: 18
H15: 14 | I15: 17
H16: 15 | I16: 16
H17: 16 | I17: 15
H18: 17 | I18: 14
H19: 18 | I19: 13
H20: 19 | I20: 12
H21: 20 | I21: 11
H22: 21 | I22: 10
H23: 22 | I23: 9
H24: 23 | I24: 8
H25: 24 | I25: 7
H26: 25 | I26: 6
H27: 26 | I27: 5
H28: 27 | I28: 4
H29: 28 | I29: 3
H30: 29 | I30: 2
H31: 30 | I31: 1
H32: 31 | I32: 1
H33: 32 | I33: 1
H34: 33 | I34: 1
H35: 34 | I35: 1
H36: 35 | I36: 1
H37: 36 | I37: 1
H38: 37 | I38: 1
H39: 38 | I39: 1
H40: 39 | I40: 1
H41: 40 | I41: 1
H42: 41 | I42: 1
H43: 42 | I43: 1
H44: 43 | I44: 1
H45: 44 | I45: 1
H46: 45 | I46: 1
H47: 46 | I47: 1
H48: 47 | I48: 1
H49: 48 | I49: 1
H50: 49 | I50: 1
H51: 50 | I51: 1
H52: 51 | I52: 1
H53: 52 | I53: 1
H54: 53 | I54: 1
H55: 54 | I55: 1
H56: 55 | I56: 1
H57: 56 | I57: 1
H58: 57 | I58: 1
H59: 58 | I59: 1
H60: 59 | I60: 1
H61: 60 | I61: 1
H62: 61 | I62: 1
H63: 62 | I63: 1
H64: 63 | I64: 1
H65: 64 | I65: 1
H66: 65 | I66: 1
H67: 66 | I67: 1
H68: 67 | I68: 1
H69: 68 | I69: 1
H70: 69 | I70: 1
